Workbook

Sheet Set-Up
A1: =IFERROR(IF(AND(D7<>"",D8<>"",D9<>""),TRUE,FALSE),FALSE) -> TRUE | D1: SET UP
A2: =IFERROR(IF(AND(#REF!<>"",#REF!<>"",#REF!<>""),TRUE,FALSE),FALSE) -> FALSE
A4: Update Number
A5: 14 | D5: TAXATION RATE
A6: Next Emp Number | D6: NORMAL | E6: RATES | F6: Personal Relife
A7: =IFERROR(MAX(Employee_ID)+1,1) -> 15 | D7: 24000 | E7: 0.1 | F7: 2400
A8: Delete Row | D8: 8333 | E8: 0.25
A9: =IFERROR(MATCH(A5,Employee_ID,0)+5,"") -> 19 | D9: 32332 | E9: 0.3
A10: PicPath
A12: Test
A13: 14
A14: Save
A15: =IFERROR(MATCH(A13,Employee_ID,0),"") -> 14
A16: Duplicate
A17: =IF(A15<>"",TRUE,FALSE) -> TRUE
A19: Residental Status
A20: Resident
A21: Non-Resident
A23: Type of Employee
A24: Primary Employee
A25: Secondary Employee
A27: Type Of Housing
A28: Benefit not given
A29: Employer's Owned House
A30: Employer's Rented House
A31: Agriculture Farm
A32: House to Non full time service Director
A34: Years
A35: 2000
A36: =A35+1 -> 2001
A37: =A36+1 -> 2002
A38: 2003
A39: 2004
A40: 2005
A41: 2006
A42: 2007
A43: 2008
A44: 2009
A45: 2010
A46: 2011
A47: 2012
A48: 2013
A49: 2014
A50: 2015
A51: 2016
A52: 2017
A53: 2018
A54: 2019
A55: 2020
A56: 2021
A57: 2022
A58: 2023
A59: 2024
A60: 2025
A61: 2026
A62: 2027
A63: 2028
A64: 2029
A65: 2030
A66: 2031
A67: 2032
A68: 2033
A69: 2034
A70: 2035
A71: 2036
A72: 2037
A73: 2038
A74: 2039
A75: 2040
A76: 2041
A77: 2042
A78: 2043
A79: 2044
A80: 2045
A81: 2046
A82: 2047
A83: 2048
A84: 2049
A85: 2050
A86: 2051
A87: 2052
A88: 2053
A89: 2054
A90: 2055
A91: 2056
A92: 2057
A93: 2058
A94: 2059
A95: 2060
A96: 2061
A97: 2062
A98: 2063
A99: 2064
A100: 2065
A101: =A100+1 -> 2066
A102: 2067
A103: 2068
A104: 2069
A105: 2070
A106: 2071
A107: 2072
A108: 2073
A109: 2074
A110: 2075
A111: 2076
A112: 2077
A113: 2078
A114: 2079
A115: 2080
A116: 2081
A117: 2082
A118: 2083
A119: 2084
A120: 2085

Sheet Paye Calculator (hidden)
D1: PAYE CALCULATIOR
A2: Emp Row | B2: =IFERROR(MATCH(E7,Employee_ID)+5,"") -> 
A3: Total Cash Pay | B3: =SUM(G9,G11,G13,G15,G17,I9,I11) -> 0
A4: Total Non-Cash Pay | B4: =SUM(I13,I15) -> 0
A5: Emp Income | B5: =B3+B4 -> 0 | H5: Update Transaction Controls | AM5: Paye Normal
A6: Total Allo Deductions | B6: =E32+E34+E36 -> 0 | D6: Emp Income | E6: Paye | H6: EmpID | I6: Months | AM6: NORMAL | AN6: RATES
A7: Paye | B7: =IFERROR(IF((AP10-G32-G34)>0,(AP10-G32-G34),0),0) -> 0 | D7: Load Emp No: | F7: Year | AM7: ='Set-Up'!$D$7 -> 24000 | AN7: ='Set-Up'!$E$7 -> 0.1 | AP7: =IFERROR(IF(($B$12-$AM$7)>1,$AM$7*AN7,0),"") -> 0
A8: Personal Relief | B8: =G32 -> 0 | AM8: ='Set-Up'!$D$8 -> 8333 | AN8: ='Set-Up'!$E$8 -> 0.25 | AP8: =IFERROR(IF(($B$12-$AM$7)>$AM$8,$AM$8*$AN$8,$AS$8),0) -> 0 | AS8: =IF(AND(($B$12-$AM$7)<$AM$8,($B$12-$AM$7)>0),(($B$12-$AM$7)/$AM$8*($AM$8*$AN$8)),0) -> 0
A9: Insurance Relief | B9: =G34 -> 0 | D9: Emp Pin Number(A) | F9: Basic Salary(A) | H9: Lumpsum(A) | AM9: ='Set-Up'!$D$9 -> 32332 | AN9: ='Set-Up'!$E$9 -> 0.3 | AP9: =IFERROR(IF(($B$12-$AM$7-$AM$8)>$AM$9,($B$12-$AM$9)*$AN$9,$AS$9),0) -> 0 | AS9: =IF(AND(($B$12-$AM$7-$AM$8)<$AM$9,($B$12-$AM$7-$AM$8)>0),(($B$12-$AM$7-$AM$8)/$AM$9*($AM$9*$AN$9)),0) -> 0
A10: FirstOccEmpDI | B10: =IFERROR(MATCH(H7,'Monthly PayeDB'!A6:A469,0)+5,"") ->  | AP10: =SUM(AP7:AP9) -> 0
A11: FirstOccMonth | D11: Name Of Employee(A) | F11: Housing Allowance(A) | H11: Other Allowance(A)
A12: Taxable Income | B12: =B5-B6 -> 0 | AM12: NSSF
A13: Active Col | B13: 5 | D13: Residental Status(A) | F13: Transport Allowance(A) | H13: Car Benefit(A) | AM13: Rates | AN13: Amount | AP13: Result
AM14: 0.06 | AN14: 18000
D15: Type of Employee(A) | F15: Leave Pay(A) | H15: Other Non-Cash Benefit(B) | AM15: Above Limit | AN15: =AM14*AN14 -> 1080 | AP15: =IFERROR(IF(B3>=AN14,1080,B3*AM14),0) -> 0
D17: Month Of Filling(A) | F17: Director's Fee(A) | H17: Net Value Of Housing(B)
A18: Months
A19: January | D19: Total Cash Pay | F19: Total Non-Cash Pay(B) | H19: Overtime Allowance | AM19: NSSF
A20: February | AM20: Rates | AN20: Amount | AP20: Result
A21: March | E21: Employment Income(A+B) | AM21: 0 | AN21: 150 | AP21: Cash Pay | AQ21: OutPut | AR21: Relief
A22: April | AM22: 6000 | AN22: 300 | AP22: =B3 -> 0 | AQ22: =VLOOKUP(AP22,AM21:AN37,2,TRUE) -> 150 | AR22: =AQ22*15% -> 22.5
A23: May | AM23: 8000 | AN23: 400
A24: June | AM24: 12000 | AN24: 500
A25: July | AM25: 15000 | AN25: 600
A26: August | AM26: 20000 | AN26: 750
A27: September | AM27: 25000 | AN27: 850
A28: October | AM28: 30000 | AN28: 900
A29: November | AM29: 35000 | AN29: 950
A30: December | AM30: 40000 | AN30: 1000
A31: January | AM31: 45000 | AN31: 1100
A32: February | D32: Pension | F32: Monthly Relief | AM32: 50000 | AN32: 1200
A33: March | AM33: 60000 | AN33: 1300
A34: April | D34: Mortgage Interest | F34: Insurance Relief | AM34: 70000 | AN34: 1400
A35: May | AM35: 80000 | AN35: 1500
A36: June | D36: HOSP | F36: Type Of Housing | AM36: 90000 | AN36: 1600
A37: July | AM37: 100000 | AN37: 1700
A38: August | D38: PAYE
A39: September
A40: October
A41: November
A42: December

Sheet NSSF (hidden)
A2: Year | B2: 2023
A3: Month | B3: February | O3: Criteria | P3: Criteria
O4: Month Of Filling | P4: years | U4: Employee Number | V4: Month Of Filling | W4: Pin Of Employee | X4: Name Of Employee | Y4: Residental-Status | Z4: Type of Employee | AA4: Basic Salary | AB4: Housing Allowance | AC4: Transport Allowance | AD4: Leave Pay | AE4: Director's Fee | AF4: Lumpsum | AG4: Other Allowance | AH4: Total Cash Paye | AI4: Car Benefit | AJ4: Other Non-Cash Benefit | AK4: Total Non-Cash Pay | AL4: Net-Value Of Housing | AM4: Total Gross Pay | AN4: Pension | AO4: Mortgage Interest | AP4: HOSP | AQ4: Monthly Relief | AR4: Insurance Relief | AS4: Paye | AT4: Type Of Housing | AU4: Over Time Allowance | AV4: years | AZ4: PAYROLL NUMBER | BA4: SURNAME | BB4: OTHER NAMES | BC4: ID NO | BD4: KRA PIN | BE4: NSSF NO | BF4: GROSS PAY | BG4: VOLUNTARY | BI4: Employee ID | BJ4: NSSF NO | BK4: ID Number
A5: NSSF | O5: =B3 -> February | P5: =B2 -> 2023 | U5: 1 | V5: February | W5: A34578678450P | X5: Brian Kombe Gode | Y5: Resident | Z5: Primary Employee | AA5: 60000 | AH5: 60000 | AK5: 0 | AM5: 60000 | AN5: 1080 | AQ5: 2400 | AR5: 195 | AS5: 9864.35 | AT5: Benefit not given | AV5: 2023 | AZ5: =IFERROR(U5,0) -> 1 | BA5: =IFERROR(RIGHT(X5,LEN(X5)-SEARCH(" ",X5,FIND(" ",X5,1)+1)),0) -> Gode | BB5: =IFERROR(LEFT(X5,SEARCH(" ",X5,FIND(" ",X5,1)+1)),0) -> Brian Kombe | BC5: =IFERROR(VLOOKUP(AZ5,$BI$5:$BK$200,3,FALSE),0) -> 334567890 | BD5: =IFERROR(W5,0) -> A34578678450P | BE5: =IFERROR(VLOOKUP(AZ5,$BI$5:$BK$200,2,FALSE),0) -> 84537 | BF5: =IFERROR(AH5,0) -> 60000 | BI5: 1 | BJ5: 84537 | BK5: 334567890
A6: PAYROLL NUMBER | B6: SURNAME | C6: OTHER NAMES | D6: ID NO | E6: KRA PIN | F6: NSSF NO | G6: GROSS PAY | H6: VOLUNTARY | U6: 2 | V6: February | W6: A49898479409 | X6: Timothy Brian Odongo | Y6: Resident | Z6: Primary Employee | AA6: 100000 | AB6: 20000 | AC6: 10000 | AE6: 5000 | AH6: 135000 | AK6: 0 | AM6: 135000 | AN6: 1080 | AQ6: 2400 | AR6: 255 | AS6: 32304.65 | AT6: Benefit not given | AV6: 2023 | AZ6: =IFERROR(U6,0) -> 2 | BA6: =IFERROR(RIGHT(X6,LEN(X6)-SEARCH(" ",X6,FIND(" ",X6,1)+1)),0) -> Odongo | BB6: =IFERROR(LEFT(X6,SEARCH(" ",X6,FIND(" ",X6,1)+1)),0) -> Timothy Brian | BC6: =IFERROR(VLOOKUP(AZ6,$BI$5:$BK$200,3,FALSE),0) -> 2345671 | BD6: =IFERROR(W6,0) -> A49898479409 | BE6: =IFERROR(VLOOKUP(AZ6,$BI$5:$BK$200,2,FALSE),0) -> 479347 | BF6: =IFERROR(AH6,0) -> 135000 | BI6: 2 | BJ6: 479347 | BK6: 2345671
U7: 3 | V7: February | W7: A4378678570K | X7: Bshora Wayu Nzamo | Y7: Resident | Z7: Primary Employee | AA7: 50000 | AH7: 50000 | AK7: 0 | AM7: 50000 | AN7: 1080 | AQ7: 2400 | AR7: 180 | AS7: 6879.35 | AT7: Benefit not given | AV7: 2023 | AZ7: 3 | BA7: =IFERROR(RIGHT(X7,LEN(X7)-SEARCH(" ",X7,FIND(" ",X7,1)+1)),0) -> Nzamo | BB7: Bshora Wayu | BC7: 29675430 | BD7: A4378678570K | BE7: 45768 | BF7: 50000 | BI7: 3 | BJ7: 45768 | BK7: 29675430
U8: 4 | V8: February | W8: A646834690O | X8: Wanyoni Agala Musando | Y8: Resident | Z8: Primary Employee | AA8: 45000 | AH8: 45000 | AK8: 0 | AM8: 45000 | AN8: 1080 | AQ8: 2400 | AR8: 165 | AS8: 5394.35 | AT8: Benefit not given | AV8: 2023 | AZ8: 4 | BA8: Musando | BB8: Wanyoni Agala | BC8: 33456789 | BD8: A646834690O | BE8: 3468 | BF8: 45000 | BI8: 4 | BJ8: 3468 | BK8: 33456789
U9: 5 | V9: February | W9: A745878980P | X9: Benerd Kimani Njorioge | Y9: Resident | Z9: Primary Employee | AA9: 45000 | AH9: 45000 | AK9: 0 | AM9: 45000 | AN9: 1080 | AQ9: 2400 | AR9: 165 | AS9: 5394.35 | AT9: Benefit not given | AV9: 2023 | AZ9: 5 | BA9: Njorioge | BB9: Benerd Kimani | BC9: 30456789 | BD9: A745878980P | BE9: 456687 | BF9: 45000 | BI9: 5 | BJ9: 456687 | BK9: 30456789
U10: 6 | V10: February | W10: A457899480p | X10: Sam Jacob Mroki | Y10: Resident | Z10: Primary Employee | AA10: 35000 | AH10: 35000 | AK10: 0 | AM10: 35000 | AN10: 1080 | AQ10: 2400 | AR10: 142.5 | AS10: 2416.85 | AT10: Benefit not given | AV10: 2023 | AZ10: 6 | BA10: Mroki | BB10: Sam Jacob | BC10: 31567823 | BD10: A457899480p | BE10: 4587 | BF10: 35000 | BI10: 6 | BJ10: 4587 | BK10: 31567823
U11: 7 | V11: February | W11: A5783458890P | X11: Joy Mueni Mutinda | Y11: Resident | Z11: Primary Employee | AA11: 40000 | AH11: 40000 | AK11: 0 | AM11: 40000 | AN11: 1080 | AQ11: 2400 | AR11: 150 | AS11: 3909.35 | AT11: Benefit not given | AV11: 2023 | AZ11: 7 | BA11: Mutinda | BB11: Joy Mueni | BC11: 32897938 | BD11: A5783458890P | BE11: 874587 | BF11: 40000 | BI11: 7 | BJ11: 874587 | BK11: 32897938
U12: 8 | V12: February | W12: A34778457890p | X12: Kahindi Mwero Boga | Y12: Resident | Z12: Primary Employee | AA12: 40000 | AH12: 40000 | AK12: 0 | AM12: 40000 | AN12: 1080 | AQ12: 2400 | AR12: 150 | AS12: 3909.35 | AT12: Benefit not given | AV12: 2023 | AZ12: 8 | BA12: Boga | BB12: Kahindi Mwero | BC12: 2934567 | BD12: A34778457890p | BE12: 45789 | BF12: 40000 | BI12: 8 | BJ12: 45789 | BK12: 2934567
U13: 9 | V13: February | W13: A034897489E | X13: John Boscco Bosire | Y13: Resident | Z13: Primary Employee | AA13: 50000 | AH13: 50000 | AK13: 0 | AM13: 50000 | AN13: 1080 | AQ13: 2400 | AR13: 180 | AS13: 6879.35 | AT13: Benefit not given | AV13: 2023 | AZ13: 9 | BA13: Bosire | BB13: John Boscco | BC13: 98347897 | BD13: A034897489E | BE13: 49588 | BF13: 50000 | BI13: 9 | BJ13: 49588 | BK13: 98347897
U14: 10 | V14: February | W14: A4782349790P | X14: Hassan Abdulnasir Wario | Y14: Resident | Z14: Primary Employee | AA14: 40000 | AH14: 40000 | AK14: 0 | AM14: 40000 | AN14: 1080 | AQ14: 2400 | AR14: 150 | AS14: 3909.35 | AT14: Benefit not given | AV14: 2023 | AZ14: 10 | BA14: Wario | BB14: Hassan Abdulnasir | BC14: 2156789 | BD14: A4782349790P | BE14: 934878 | BF14: 40000 | BI14: 10 | BJ14: 934878 | BK14: 2156789
U15: 11 | V15: February | W15: A0324878234P | X15: Jastine Makemba Batogo | Y15: Resident | Z15: Primary Employee | AA15: 50000 | AH15: 50000 | AK15: 0 | AM15: 50000 | AN15: 1080 | AQ15: 2400 | AR15: 180 | AS15: 6879.35 | AT15: Benefit not given | AV15: 2023 | AZ15: 11 | BA15: Batogo | BB15: Jastine Makemba | BC15: 34567890 | BD15: A0324878234P | BE15: 47998 | BF15: 50000 | BI15: 11 | BJ15: 47998 | BK15: 34567890
U16: 12 | V16: February | W16: A03476784359K | X16: Janet Wairimu Wamatagi | Y16: Resident | Z16: Primary Employee | AA16: 40000 | AH16: 40000 | AK16: 0 | AM16: 40000 | AN16: 1080 | AQ16: 2400 | AR16: 150 | AS16: 3909.35 | AT16: Benefit not given | AV16: 2023 | AZ16: 12 | BA16: Wamatagi | BB16: Janet Wairimu | BC16: 35678910 | BD16: A03476784359K | BE16: 234789 | BF16: 40000 | BI16: 12 | BJ16: 234789 | BK16: 35678910
AZ17: 0 | BA17: 0 | BB17: 0 | BC17: 0 | BD17: 0 | BE17: 0 | BF17: 0 | BI17: 13 | BJ17: 43788 | BK17: 34567812
AZ18: 0 | BA18: 0 | BB18: 0 | BC18: 0 | BD18: 0 | BE18: 0 | BF18: 0 | BI18: 14 | BJ18: 238947 | BK18: 35267812
AZ19: 0 | BA19: 0 | BB19: 0 | BC19: 0 | BD19: 0 | BE19: 0 | BF19: 0
AZ20: 0 | BA20: 0 | BB20: 0 | BC20: 0 | BD20: 0 | BE20: 0 | BF20: 0
AZ21: 0 | BA21: 0 | BB21: 0 | BC21: 0 | BD21: 0 | BE21: 0 | BF21: 0
AZ22: 0 | BA22: 0 | BB22: 0 | BC22: 0 | BD22: 0 | BE22: 0 | BF22: 0
AZ23: 0 | BA23: 0 | BB23: 0 | BC23: 0 | BD23: 0 | BE23: 0 | BF23: 0
AZ24: 0 | BA24: 0 | BB24: 0 | BC24: 0 | BD24: 0 | BE24: 0 | BF24: 0
AZ25: 0 | BA25: 0 | BB25: 0 | BC25: 0 | BD25: 0 | BE25: 0 | BF25: 0
AZ26: 0 | BA26: 0 | BB26: 0 | BC26: 0 | BD26: 0 | BE26: 0 | BF26: 0
AZ27: 0 | BA27: 0 | BB27: 0 | BC27: 0 | BD27: 0 | BE27: 0 | BF27: 0
AZ28: 0 | BA28: 0 | BB28: 0 | BC28: 0 | BD28: 0 | BE28: 0 | BF28: 0
AZ29: 0 | BA29: 0 | BB29: 0 | BC29: 0 | BD29: 0 | BE29: 0 | BF29: 0
AZ30: 0 | BA30: 0 | BB30: 0 | BC30: 0 | BD30: 0 | BE30: 0 | BF30: 0
AZ31: 0 | BA31: 0 | BB31: 0 | BC31: 0 | BD31: 0 | BE31: 0 | BF31: 0
AZ32: 0 | BA32: 0 | BB32: 0 | BC32: 0 | BD32: 0 | BE32: 0 | BF32: 0
AZ33: 0 | BA33: 0 | BB33: 0 | BC33: 0 | BD33: 0 | BE33: 0 | BF33: 0
AZ34: 0 | BA34: 0 | BB34: 0 | BC34: 0 | BD34: 0 | BE34: 0 | BF34: 0
AZ35: 0 | BA35: 0 | BB35: 0 | BC35: 0 | BD35: 0 | BE35: 0 | BF35: 0
AZ36: 0 | BA36: 0 | BB36: 0 | BC36: 0 | BD36: 0 | BE36: 0 | BF36: 0
AZ37: 0 | BA37: 0 | BB37: 0 | BC37: 0 | BD37: 0 | BE37: 0 | BF37: 0
AZ38: 0 | BA38: 0 | BB38: 0 | BC38: 0 | BD38: 0 | BE38: 0 | BF38: 0
AZ39: 0 | BA39: 0 | BB39: 0 | BC39: 0 | BD39: 0 | BE39: 0 | BF39: 0
AZ40: 0 | BA40: 0 | BB40: 0 | BC40: 0 | BD40: 0 | BE40: 0 | BF40: 0
AZ41: 0 | BA41: 0 | BB41: 0 | BC41: 0 | BD41: 0 | BE41: 0 | BF41: 0
AZ42: 0 | BA42: 0 | BB42: 0 | BC42: 0 | BD42: 0 | BE42: 0 | BF42: 0
AZ43: 0 | BA43: 0 | BB43: 0 | BC43: 0 | BD43: 0 | BE43: 0 | BF43: 0
AZ44: 0 | BA44: 0 | BB44: 0 | BC44: 0 | BD44: 0 | BE44: 0 | BF44: 0
AZ45: 0 | BA45: 0 | BB45: 0 | BC45: 0 | BD45: 0 | BE45: 0 | BF45: 0
AZ46: 0 | BA46: 0 | BB46: 0 | BC46: 0 | BD46: 0 | BE46: 0 | BF46: 0
AZ47: 0 | BA47: 0 | BB47: 0 | BC47: 0 | BD47: 0 | BE47: 0 | BF47: 0
AZ48: 0 | BA48: 0 | BB48: 0 | BC48: 0 | BD48: 0 | BE48: 0 | BF48: 0
AZ49: 0 | BA49: 0 | BB49: 0 | BC49: 0 | BD49: 0 | BE49: 0 | BF49: 0
AZ50: 0 | BA50: 0 | BB50: 0 | BC50: 0 | BD50: 0 | BE50: 0 | BF50: 0
AZ51: 0 | BA51: 0 | BB51: 0 | BC51: 0 | BD51: 0 | BE51: 0 | BF51: 0
AZ52: 0 | BA52: 0 | BB52: 0 | BC52: 0 | BD52: 0 | BE52: 0 | BF52: 0
AZ53: 0 | BA53: 0 | BB53: 0 | BC53: 0 | BD53: 0 | BE53: 0 | BF53: 0
AZ54: 0 | BA54: 0 | BB54: 0 | BC54: 0 | BD54: 0 | BE54: 0 | BF54: 0
AZ55: 0 | BA55: 0 | BB55: 0 | BC55: 0 | BD55: 0 | BE55: 0 | BF55: 0
AZ56: 0 | BA56: 0 | BB56: 0 | BC56: 0 | BD56: 0 | BE56: 0 | BF56: 0
AZ57: 0 | BA57: 0 | BB57: 0 | BC57: 0 | BD57: 0 | BE57: 0 | BF57: 0
AZ58: 0 | BA58: 0 | BB58: 0 | BC58: 0 | BD58: 0 | BE58: 0 | BF58: 0
AZ59: 0 | BA59: 0 | BB59: 0 | BC59: 0 | BD59: 0 | BE59: 0 | BF59: 0
AZ60: 0 | BA60: 0 | BB60: 0 | BC60: 0 | BD60: 0 | BE60: 0 | BF60: 0
AZ61: 0 | BA61: 0 | BB61: 0 | BC61: 0 | BD61: 0 | BE61: 0 | BF61: 0
AZ62: 0 | BA62: 0 | BB62: 0 | BC62: 0 | BD62: 0 | BE62: 0 | BF62: 0
AZ63: 0 | BA63: 0 | BB63: 0 | BC63: 0 | BD63: 0 | BE63: 0 | BF63: 0
AZ64: 0 | BA64: 0 | BB64: 0 | BC64: 0 | BD64: 0 | BE64: 0 | BF64: 0
AZ65: 0 | BA65: 0 | BB65: 0 | BC65: 0 | BD65: 0 | BE65: 0 | BF65: 0
AZ66: 0 | BA66: 0 | BB66: 0 | BC66: 0 | BD66: 0 | BE66: 0 | BF66: 0
AZ67: 0 | BA67: 0 | BB67: 0 | BC67: 0 | BD67: 0 | BE67: 0 | BF67: 0
AZ68: 0 | BA68: 0 | BB68: 0 | BC68: 0 | BD68: 0 | BE68: 0 | BF68: 0
AZ69: 0 | BA69: 0 | BB69: 0 | BC69: 0 | BD69: 0 | BE69: 0 | BF69: 0
AZ70: =IFERROR(U70,0) -> 0 | BA70: =IFERROR(RIGHT(X70,LEN(X70)-SEARCH(" ",X70,FIND(" ",X70,1)+1)),0) -> 0 | BB70: =IFERROR(LEFT(X70,SEARCH(" ",X70,FIND(" ",X70,1)+1)),0) -> 0 | BC70: =IFERROR(VLOOKUP(AZ70,$BI$5:$BK$200,3,FALSE),0) -> 0 | BD70: =IFERROR(W70,0) -> 0 | BE70: =IFERROR(VLOOKUP(AZ70,$BI$5:$BK$200,2,FALSE),0) -> 0 | BF70: =IFERROR(AH70,0) -> 0
AZ71: 0 | BA71: 0 | BB71: 0 | BC71: 0 | BD71: 0 | BE71: 0 | BF71: 0
AZ72: 0 | BA72: 0 | BB72: 0 | BC72: 0 | BD72: 0 | BE72: 0 | BF72: 0
AZ73: 0 | BA73: 0 | BB73: 0 | BC73: 0 | BD73: 0 | BE73: 0 | BF73: 0
AZ74: 0 | BA74: 0 | BB74: 0 | BC74: 0 | BD74: 0 | BE74: 0 | BF74: 0
AZ75: 0 | BA75: 0 | BB75: 0 | BC75: 0 | BD75: 0 | BE75: 0 | BF75: 0
AZ76: 0 | BA76: 0 | BB76: 0 | BC76: 0 | BD76: 0 | BE76: 0 | BF76: 0
AZ77: 0 | BA77: 0 | BB77: 0 | BC77: 0 | BD77: 0 | BE77: 0 | BF77: 0
AZ78: 0 | BA78: 0 | BB78: 0 | BC78: 0 | BD78: 0 | BE78: 0 | BF78: 0
AZ79: 0 | BA79: 0 | BB79: 0 | BC79: 0 | BD79: 0 | BE79: 0 | BF79: 0
AZ80: 0 | BA80: 0 | BB80: 0 | BC80: 0 | BD80: 0 | BE80: 0 | BF80: 0
AZ81: 0 | BA81: 0 | BB81: 0 | BC81: 0 | BD81: 0 | BE81: 0 | BF81: 0
AZ82: 0 | BA82: 0 | BB82: 0 | BC82: 0 | BD82: 0 | BE82: 0 | BF82: 0
AZ83: 0 | BA83: 0 | BB83: 0 | BC83: 0 | BD83: 0 | BE83: 0 | BF83: 0
AZ84: 0 | BA84: 0 | BB84: 0 | BC84: 0 | BD84: 0 | BE84: 0 | BF84: 0
AZ85: 0 | BA85: 0 | BB85: 0 | BC85: 0 | BD85: 0 | BE85: 0 | BF85: 0
AZ86: 0 | BA86: 0 | BB86: 0 | BC86: 0 | BD86: 0 | BE86: 0 | BF86: 0
AZ87: 0 | BA87: 0 | BB87: 0 | BC87: 0 | BD87: 0 | BE87: 0 | BF87: 0
AZ88: 0 | BA88: 0 | BB88: 0 | BC88: 0 | BD88: 0 | BE88: 0 | BF88: 0
AZ89: 0 | BA89: 0 | BB89: 0 | BC89: 0 | BD89: 0 | BE89: 0 | BF89: 0
AZ90: 0 | BA90: 0 | BB90: 0 | BC90: 0 | BD90: 0 | BE90: 0 | BF90: 0
AZ91: 0 | BA91: 0 | BB91: 0 | BC91: 0 | BD91: 0 | BE91: 0 | BF91: 0
AZ92: 0 | BA92: 0 | BB92: 0 | BC92: 0 | BD92: 0 | BE92: 0 | BF92: 0
AZ93: 0 | BA93: 0 | BB93: 0 | BC93: 0 | BD93: 0 | BE93: 0 | BF93: 0
AZ94: 0 | BA94: 0 | BB94: 0 | BC94: 0 | BD94: 0 | BE94: 0 | BF94: 0
AZ95: 0 | BA95: 0 | BB95: 0 | BC95: 0 | BD95: 0 | BE95: 0 | BF95: 0
AZ96: 0 | BA96: 0 | BB96: 0 | BC96: 0 | BD96: 0 | BE96: 0 | BF96: 0
AZ97: 0 | BA97: 0 | BB97: 0 | BC97: 0 | BD97: 0 | BE97: 0 | BF97: 0
AZ98: 0 | BA98: 0 | BB98: 0 | BC98: 0 | BD98: 0 | BE98: 0 | BF98: 0
AZ99: 0 | BA99: 0 | BB99: 0 | BC99: 0 | BD99: 0 | BE99: 0 | BF99: 0
AZ100: 0 | BA100: 0 | BB100: 0 | BC100: 0 | BD100: 0 | BE100: 0 | BF100: 0
AZ101: 0 | BA101: 0 | BB101: 0 | BC101: 0 | BD101: 0 | BE101: 0 | BF101: 0
AZ102: 0 | BA102: 0 | BB102: 0 | BC102: 0 | BD102: 0 | BE102: 0 | BF102: 0
AZ103: 0 | BA103: 0 | BB103: 0 | BC103: 0 | BD103: 0 | BE103: 0 | BF103: 0
AZ104: 0 | BA104: 0 | BB104: 0 | BC104: 0 | BD104: 0 | BE104: 0 | BF104: 0
AZ105: 0 | BA105: 0 | BB105: 0 | BC105: 0 | BD105: 0 | BE105: 0 | BF105: 0
AZ106: 0 | BA106: 0 | BB106: 0 | BC106: 0 | BD106: 0 | BE106: 0 | BF106: 0
AZ107: 0 | BA107: 0 | BB107: 0 | BC107: 0 | BD107: 0 | BE107: 0 | BF107: 0
AZ108: 0 | BA108: 0 | BB108: 0 | BC108: 0 | BD108: 0 | BE108: 0 | BF108: 0
AZ109: 0 | BA109: 0 | BB109: 0 | BC109: 0 | BD109: 0 | BE109: 0 | BF109: 0
AZ110: 0 | BA110: 0 | BB110: 0 | BC110: 0 | BD110: 0 | BE110: 0 | BF110: 0
AZ111: 0 | BA111: 0 | BB111: 0 | BC111: 0 | BD111: 0 | BE111: 0 | BF111: 0
AZ112: 0 | BA112: 0 | BB112: 0 | BC112: 0 | BD112: 0 | BE112: 0 | BF112: 0
AZ113: 0 | BA113: 0 | BB113: 0 | BC113: 0 | BD113: 0 | BE113: 0 | BF113: 0
AZ114: 0 | BA114: 0 | BB114: 0 | BC114: 0 | BD114: 0 | BE114: 0 | BF114: 0
AZ115: 0 | BA115: 0 | BB115: 0 | BC115: 0 | BD115: 0 | BE115: 0 | BF115: 0
AZ116: 0 | BA116: 0 | BB116: 0 | BC116: 0 | BD116: 0 | BE116: 0 | BF116: 0
AZ117: 0 | BA117: 0 | BB117: 0 | BC117: 0 | BD117: 0 | BE117: 0 | BF117: 0
AZ118: 0 | BA118: 0 | BB118: 0 | BC118: 0 | BD118: 0 | BE118: 0 | BF118: 0
AZ119: 0 | BA119: 0 | BB119: 0 | BC119: 0 | BD119: 0 | BE119: 0 | BF119: 0
AZ120: 0 | BA120: 0 | BB120: 0 | BC120: 0 | BD120: 0 | BE120: 0 | BF120: 0
AZ121: 0 | BA121: 0 | BB121: 0 | BC121: 0 | BD121: 0 | BE121: 0 | BF121: 0
AZ122: 0 | BA122: 0 | BB122: 0 | BC122: 0 | BD122: 0 | BE122: 0 | BF122: 0
AZ123: 0 | BA123: 0 | BB123: 0 | BC123: 0 | BD123: 0 | BE123: 0 | BF123: 0
AZ124: 0 | BA124: 0 | BB124: 0 | BC124: 0 | BD124: 0 | BE124: 0 | BF124: 0
AZ125: 0 | BA125: 0 | BB125: 0 | BC125: 0 | BD125: 0 | BE125: 0 | BF125: 0
AZ126: 0 | BA126: 0 | BB126: 0 | BC126: 0 | BD126: 0 | BE126: 0 | BF126: 0
AZ127: 0 | BA127: 0 | BB127: 0 | BC127: 0 | BD127: 0 | BE127: 0 | BF127: 0
AZ128: 0 | BA128: 0 | BB128: 0 | BC128: 0 | BD128: 0 | BE128: 0 | BF128: 0
AZ129: 0 | BA129: 0 | BB129: 0 | BC129: 0 | BD129: 0 | BE129: 0 | BF129: 0
AZ130: 0 | BA130: 0 | BB130: 0 | BC130: 0 | BD130: 0 | BE130: 0 | BF130: 0
AZ131: 0 | BA131: 0 | BB131: 0 | BC131: 0 | BD131: 0 | BE131: 0 | BF131: 0
AZ132: 0 | BA132: 0 | BB132: 0 | BC132: 0 | BD132: 0 | BE132: 0 | BF132: 0
AZ133: 0 | BA133: 0 | BB133: 0 | BC133: 0 | BD133: 0 | BE133: 0 | BF133: 0
AZ134: =IFERROR(U134,0) -> 0 | BA134: =IFERROR(RIGHT(X134,LEN(X134)-SEARCH(" ",X134,FIND(" ",X134,1)+1)),0) -> 0 | BB134: =IFERROR(LEFT(X134,SEARCH(" ",X134,FIND(" ",X134,1)+1)),0) -> 0 | BC134: =IFERROR(VLOOKUP(AZ134,$BI$5:$BK$200,3,FALSE),0) -> 0 | BD134: =IFERROR(W134,0) -> 0 | BE134: =IFERROR(VLOOKUP(AZ134,$BI$5:$BK$200,2,FALSE),0) -> 0 | BF134: =IFERROR(AH134,0) -> 0
AZ135: 0 | BA135: 0 | BB135: 0 | BC135: 0 | BD135: 0 | BE135: 0 | BF135: 0
AZ136: 0 | BA136: 0 | BB136: 0 | BC136: 0 | BD136: 0 | BE136: 0 | BF136: 0
AZ137: 0 | BA137: 0 | BB137: 0 | BC137: 0 | BD137: 0 | BE137: 0 | BF137: 0
AZ138: 0 | BA138: 0 | BB138: 0 | BC138: 0 | BD138: 0 | BE138: 0 | BF138: 0
AZ139: 0 | BA139: 0 | BB139: 0 | BC139: 0 | BD139: 0 | BE139: 0 | BF139: 0
AZ140: 0 | BA140: 0 | BB140: 0 | BC140: 0 | BD140: 0 | BE140: 0 | BF140: 0
AZ141: 0 | BA141: 0 | BB141: 0 | BC141: 0 | BD141: 0 | BE141: 0 | BF141: 0
AZ142: 0 | BA142: 0 | BB142: 0 | BC142: 0 | BD142: 0 | BE142: 0 | BF142: 0
AZ143: 0 | BA143: 0 | BB143: 0 | BC143: 0 | BD143: 0 | BE143: 0 | BF143: 0
AZ144: 0 | BA144: 0 | BB144: 0 | BC144: 0 | BD144: 0 | BE144: 0 | BF144: 0
AZ145: 0 | BA145: 0 | BB145: 0 | BC145: 0 | BD145: 0 | BE145: 0 | BF145: 0
AZ146: 0 | BA146: 0 | BB146: 0 | BC146: 0 | BD146: 0 | BE146: 0 | BF146: 0
AZ147: 0 | BA147: 0 | BB147: 0 | BC147: 0 | BD147: 0 | BE147: 0 | BF147: 0
AZ148: 0 | BA148: 0 | BB148: 0 | BC148: 0 | BD148: 0 | BE148: 0 | BF148: 0
AZ149: 0 | BA149: 0 | BB149: 0 | BC149: 0 | BD149: 0 | BE149: 0 | BF149: 0
AZ150: 0 | BA150: 0 | BB150: 0 | BC150: 0 | BD150: 0 | BE150: 0 | BF150: 0
AZ151: 0 | BA151: 0 | BB151: 0 | BC151: 0 | BD151: 0 | BE151: 0 | BF151: 0
AZ152: 0 | BA152: 0 | BB152: 0 | BC152: 0 | BD152: 0 | BE152: 0 | BF152: 0
AZ153: 0 | BA153: 0 | BB153: 0 | BC153: 0 | BD153: 0 | BE153: 0 | BF153: 0
AZ154: 0 | BA154: 0 | BB154: 0 | BC154: 0 | BD154: 0 | BE154: 0 | BF154: 0
AZ155: 0 | BA155: 0 | BB155: 0 | BC155: 0 | BD155: 0 | BE155: 0 | BF155: 0
AZ156: 0 | BA156: 0 | BB156: 0 | BC156: 0 | BD156: 0 | BE156: 0 | BF156: 0
AZ157: 0 | BA157: 0 | BB157: 0 | BC157: 0 | BD157: 0 | BE157: 0 | BF157: 0
AZ158: 0 | BA158: 0 | BB158: 0 | BC158: 0 | BD158: 0 | BE158: 0 | BF158: 0
AZ159: 0 | BA159: 0 | BB159: 0 | BC159: 0 | BD159: 0 | BE159: 0 | BF159: 0
AZ160: 0 | BA160: 0 | BB160: 0 | BC160: 0 | BD160: 0 | BE160: 0 | BF160: 0
AZ161: 0 | BA161: 0 | BB161: 0 | BC161: 0 | BD161: 0 | BE161: 0 | BF161: 0
AZ162: 0 | BA162: 0 | BB162: 0 | BC162: 0 | BD162: 0 | BE162: 0 | BF162: 0
AZ163: 0 | BA163: 0 | BB163: 0 | BC163: 0 | BD163: 0 | BE163: 0 | BF163: 0
AZ164: 0 | BA164: 0 | BB164: 0 | BC164: 0 | BD164: 0 | BE164: 0 | BF164: 0
AZ165: 0 | BA165: 0 | BB165: 0 | BC165: 0 | BD165: 0 | BE165: 0 | BF165: 0
AZ166: 0 | BA166: 0 | BB166: 0 | BC166: 0 | BD166: 0 | BE166: 0 | BF166: 0
AZ167: 0 | BA167: 0 | BB167: 0 | BC167: 0 | BD167: 0 | BE167: 0 | BF167: 0
AZ168: 0 | BA168: 0 | BB168: 0 | BC168: 0 | BD168: 0 | BE168: 0 | BF168: 0
AZ169: 0 | BA169: 0 | BB169: 0 | BC169: 0 | BD169: 0 | BE169: 0 | BF169: 0
AZ170: 0 | BA170: 0 | BB170: 0 | BC170: 0 | BD170: 0 | BE170: 0 | BF170: 0
AZ171: 0 | BA171: 0 | BB171: 0 | BC171: 0 | BD171: 0 | BE171: 0 | BF171: 0
AZ172: 0 | BA172: 0 | BB172: 0 | BC172: 0 | BD172: 0 | BE172: 0 | BF172: 0
AZ173: 0 | BA173: 0 | BB173: 0 | BC173: 0 | BD173: 0 | BE173: 0 | BF173: 0
AZ174: 0 | BA174: 0 | BB174: 0 | BC174: 0 | BD174: 0 | BE174: 0 | BF174: 0
AZ175: 0 | BA175: 0 | BB175: 0 | BC175: 0 | BD175: 0 | BE175: 0 | BF175: 0
AZ176: 0 | BA176: 0 | BB176: 0 | BC176: 0 | BD176: 0 | BE176: 0 | BF176: 0
AZ177: 0 | BA177: 0 | BB177: 0 | BC177: 0 | BD177: 0 | BE177: 0 | BF177: 0
AZ178: 0 | BA178: 0 | BB178: 0 | BC178: 0 | BD178: 0 | BE178: 0 | BF178: 0
AZ179: 0 | BA179: 0 | BB179: 0 | BC179: 0 | BD179: 0 | BE179: 0 | BF179: 0
AZ180: 0 | BA180: 0 | BB180: 0 | BC180: 0 | BD180: 0 | BE180: 0 | BF180: 0
AZ181: 0 | BA181: 0 | BB181: 0 | BC181: 0 | BD181: 0 | BE181: 0 | BF181: 0
AZ182: 0 | BA182: 0 | BB182: 0 | BC182: 0 | BD182: 0 | BE182: 0 | BF182: 0
AZ183: 0 | BA183: 0 | BB183: 0 | BC183: 0 | BD183: 0 | BE183: 0 | BF183: 0
AZ184: 0 | BA184: 0 | BB184: 0 | BC184: 0 | BD184: 0 | BE184: 0 | BF184: 0
AZ185: 0 | BA185: 0 | BB185: 0 | BC185: 0 | BD185: 0 | BE185: 0 | BF185: 0
AZ186: 0 | BA186: 0 | BB186: 0 | BC186: 0 | BD186: 0 | BE186: 0 | BF186: 0
AZ187: 0 | BA187: 0 | BB187: 0 | BC187: 0 | BD187: 0 | BE187: 0 | BF187: 0
AZ188: 0 | BA188: 0 | BB188: 0 | BC188: 0 | BD188: 0 | BE188: 0 | BF188: 0
AZ189: 0 | BA189: 0 | BB189: 0 | BC189: 0 | BD189: 0 | BE189: 0 | BF189: 0
AZ190: 0 | BA190: 0 | BB190: 0 | BC190: 0 | BD190: 0 | BE190: 0 | BF190: 0
AZ191: 0 | BA191: 0 | BB191: 0 | BC191: 0 | BD191: 0 | BE191: 0 | BF191: 0
AZ192: 0 | BA192: 0 | BB192: 0 | BC192: 0 | BD192: 0 | BE192: 0 | BF192: 0
AZ193: 0 | BA193: 0 | BB193: 0 | BC193: 0 | BD193: 0 | BE193: 0 | BF193: 0
AZ194: 0 | BA194: 0 | BB194: 0 | BC194: 0 | BD194: 0 | BE194: 0 | BF194: 0
AZ195: 0 | BA195: 0 | BB195: 0 | BC195: 0 | BD195: 0 | BE195: 0 | BF195: 0
AZ196: 0 | BA196: 0 | BB196: 0 | BC196: 0 | BD196: 0 | BE196: 0 | BF196: 0
AZ197: 0 | BA197: 0 | BB197: 0 | BC197: 0 | BD197: 0 | BE197: 0 | BF197: 0
AZ198: =IFERROR(U198,0) -> 0 | BA198: =IFERROR(RIGHT(X198,LEN(X198)-SEARCH(" ",X198,FIND(" ",X198,1)+1)),0) -> 0 | BB198: =IFERROR(LEFT(X198,SEARCH(" ",X198,FIND(" ",X198,1)+1)),0) -> 0 | BC198: =IFERROR(VLOOKUP(AZ198,$BI$5:$BK$200,3,FALSE),0) -> 0 | BD198: =IFERROR(W198,0) -> 0 | BE198: =IFERROR(VLOOKUP(AZ198,$BI$5:$BK$200,2,FALSE),0) -> 0 | BF198: =IFERROR(AH198,0) -> 0
AZ199: 0 | BA199: 0 | BB199: 0 | BC199: 0 | BD199: 0 | BE199: 0 | BF199: 0
AZ200: 0 | BA200: 0 | BB200: 0 | BC200: 0 | BD200: 0 | BE200: 0 | BF200: 0

Sheet NHIF (hidden)
A2: Year | B2: 2023
A3: Month | B3: January
C4: NHIF
P5: Criteria | Q5: Criteria
A6: EMPLOYER CODE | B6: 37846786 | P6: Month Of Filling | Q6: years | S6: Employee Number | T6: Month Of Filling | U6: Pin Of Employee | V6: Name Of Employee | W6: Residental-Status | X6: Type of Employee | Y6: Basic Salary | Z6: Housing Allowance | AA6: Transport Allowance | AB6: Leave Pay | AC6: Director's Fee | AD6: Lumpsum | AE6: Other Allowance | AF6: Total Cash Paye | AG6: Car Benefit | AH6: Other Non-Cash Benefit | AI6: Total Non-Cash Pay | AJ6: Net-Value Of Housing | AK6: Total Gross Pay | AL6: Pension | AM6: Mortgage Interest | AN6: HOSP | AO6: Monthly Relief | AP6: Insurance Relief | AQ6: Paye | AR6: Type Of Housing | AS6: Over Time Allowance | AT6: years | AY6: PAYROLL NO | AZ6: LAST NAME | BA6: FIRST NAME | BB6: ID NO | BC6: NHIF NO | BD6: AMOUNT | BF6: sum | BG6: =IFERROR(SUM(BD7:BD359),0) -> 14950
A7: EMPLOYER NAME | B7: BRAVE LION'S BRAIN | P7: =B3 -> January | Q7: =B2 -> 2023 | S7: 1 | T7: January | U7: A34578678450P | V7: Brian Kombe Gode | W7: Resident | X7: Primary Employee | Y7: 60000 | AF7: 60000 | AI7: 0 | AK7: 60000 | AL7: 1080 | AO7: 2400 | AP7: 195 | AQ7: 9864.35 | AR7: Benefit not given | AT7: 2023 | AY7: =S7 -> 1 | AZ7: =IFERROR(RIGHT(V7,LEN(V7)-FIND(" ",V7)),"") -> Kombe Gode | BA7: =IFERROR(LEFT(V7,FIND(" ",V7,1)-1),"") -> Brian | BB7: =IFERROR(VLOOKUP(AY7,'EmpGenInfo(ESS1P)'!$A$6:$AC$390,3,FALSE),0) -> 334567890 | BC7: =IFERROR(VLOOKUP(AY7,'EmpGenInfo(ESS1P)'!$A$6:$AC$390,12,FALSE),0) -> 8764587 | BD7: =AP7*100/15 -> 1300
A8: MONTH OF CONTRIBUTION | B8: JAN | S8: 2 | T8: January | U8: A49898479409 | V8: Timothy Brian Odongo | W8: Resident | X8: Primary Employee | Y8: 100000 | Z8: 20000 | AA8: 10000 | AC8: 5000 | AF8: 135000 | AI8: 0 | AK8: 135000 | AL8: 1080 | AO8: 2400 | AP8: 255 | AQ8: 32304.65 | AR8: Benefit not given | AT8: 2023 | AY8: =S8 -> 2 | AZ8: =IFERROR(RIGHT(V8,LEN(V8)-FIND(" ",V8)),"") -> Brian Odongo | BA8: =IFERROR(LEFT(V8,FIND(" ",V8,1)-1),"") -> Timothy | BB8: =IFERROR(VLOOKUP(AY8,'EmpGenInfo(ESS1P)'!$A$6:$AC$390,3,FALSE),0) -> 2345671 | BC8: =IFERROR(VLOOKUP(AY8,'EmpGenInfo(ESS1P)'!$A$6:$AC$390,12,FALSE),0) -> 849237 | BD8: =AP8*100/15 -> 1700
S9: 3 | T9: January | U9: A4378678570K | V9: Bshora Wayu Nzamo | W9: Resident | X9: Primary Employee | Y9: 50000 | AF9: 50000 | AI9: 0 | AK9: 50000 | AL9: 1080 | AO9: 2400 | AP9: 180 | AQ9: 6879.35 | AR9: Benefit not given | AT9: 2023 | AY9: 3 | AZ9: Wayu Nzamo | BA9: Bshora | BB9: =IFERROR(VLOOKUP(AY9,'EmpGenInfo(ESS1P)'!$A$6:$AC$390,3,FALSE),0) -> 29675430 | BC9: =IFERROR(VLOOKUP(AY9,'EmpGenInfo(ESS1P)'!$A$6:$AC$390,12,FALSE),0) -> 43578 | BD9: 1200
A10: PAYROLL NO | B10: LAST NAME | C10: FIRST NAME | D10: ID NO | E10: NHIF NO | F10: AMOUNT | S10: 4 | T10: January | U10: A646834690O | V10: Wanyoni Agala Musando | W10: Resident | X10: Primary Employee | Y10: 45000 | AF10: 45000 | AI10: 0 | AK10: 45000 | AL10: 1080 | AO10: 2400 | AP10: 165 | AQ10: 5394.35 | AR10: Benefit not given | AT10: 2023 | AY10: 4 | AZ10: Agala Musando | BA10: Wanyoni | BB10: =IFERROR(VLOOKUP(AY10,'EmpGenInfo(ESS1P)'!$A$6:$AC$390,3,FALSE),0) -> 33456789 | BC10: =IFERROR(VLOOKUP(AY10,'EmpGenInfo(ESS1P)'!$A$6:$AC$390,12,FALSE),0) -> 763476 | BD10: 1100
S11: 5 | T11: January | U11: A745878980P | V11: Benerd Kimani Njorioge | W11: Resident | X11: Primary Employee | Y11: 45000 | AF11: 45000 | AI11: 0 | AK11: 45000 | AL11: 1080 | AO11: 2400 | AP11: 165 | AQ11: 5394.35 | AR11: Benefit not given | AT11: 2023 | AY11: 5 | AZ11: Kimani Njorioge | BA11: Benerd | BB11: =IFERROR(VLOOKUP(AY11,'EmpGenInfo(ESS1P)'!$A$6:$AC$390,3,FALSE),0) -> 30456789 | BC11: =IFERROR(VLOOKUP(AY11,'EmpGenInfo(ESS1P)'!$A$6:$AC$390,12,FALSE),0) -> 75487 | BD11: 1100
S12: 6 | T12: January | U12: A457899480p | V12: Sam Jacob Mroki | W12: Resident | X12: Primary Employee | Y12: 35000 | AF12: 35000 | AI12: 0 | AK12: 35000 | AL12: 1080 | AO12: 2400 | AP12: 142.5 | AQ12: 2416.85 | AR12: Benefit not given | AT12: 2023 | AY12: 6 | AZ12: Jacob Mroki | BA12: Sam | BB12: =IFERROR(VLOOKUP(AY12,'EmpGenInfo(ESS1P)'!$A$6:$AC$390,3,FALSE),0) -> 31567823 | BC12: =IFERROR(VLOOKUP(AY12,'EmpGenInfo(ESS1P)'!$A$6:$AC$390,12,FALSE),0) -> 89345 | BD12: 950
S13: 7 | T13: January | U13: A5783458890P | V13: Joy Mueni Mutinda | W13: Resident | X13: Primary Employee | Y13: 40000 | AF13: 40000 | AI13: 0 | AK13: 40000 | AL13: 1080 | AO13: 2400 | AP13: 150 | AQ13: 3909.35 | AR13: Benefit not given | AT13: 2023 | AY13: 7 | AZ13: Mueni Mutinda | BA13: Joy | BB13: =IFERROR(VLOOKUP(AY13,'EmpGenInfo(ESS1P)'!$A$6:$AC$390,3,FALSE),0) -> 32897938 | BC13: =IFERROR(VLOOKUP(AY13,'EmpGenInfo(ESS1P)'!$A$6:$AC$390,12,FALSE),0) -> 783489 | BD13: 1000
S14: 8 | T14: January | U14: A34778457890p | V14: Kahindi Mwero Boga | W14: Resident | X14: Primary Employee | Y14: 40000 | AF14: 40000 | AI14: 0 | AK14: 40000 | AL14: 1080 | AO14: 2400 | AP14: 150 | AQ14: 3909.35 | AR14: Benefit not given | AT14: 2023 | AY14: 8 | AZ14: Mwero Boga | BA14: Kahindi | BB14: =IFERROR(VLOOKUP(AY14,'EmpGenInfo(ESS1P)'!$A$6:$AC$390,3,FALSE),0) -> 2934567 | BC14: =IFERROR(VLOOKUP(AY14,'EmpGenInfo(ESS1P)'!$A$6:$AC$390,12,FALSE),0) -> 873447 | BD14: 1000
S15: 9 | T15: January | U15: A034897489E | V15: John Boscco Bosire | W15: Resident | X15: Primary Employee | Y15: 50000 | AF15: 50000 | AI15: 0 | AK15: 50000 | AL15: 1080 | AO15: 2400 | AP15: 180 | AQ15: 6879.35 | AR15: Benefit not given | AT15: 2023 | AY15: 9 | AZ15: Boscco Bosire | BA15: John | BB15: =IFERROR(VLOOKUP(AY15,'EmpGenInfo(ESS1P)'!$A$6:$AC$390,3,FALSE),0) -> 98347897 | BC15: =IFERROR(VLOOKUP(AY15,'EmpGenInfo(ESS1P)'!$A$6:$AC$390,12,FALSE),0) -> 98348 | BD15: 1200
S16: 10 | T16: January | U16: A4782349790P | V16: Hassan Abdulnasir Wario | W16: Resident | X16: Primary Employee | Y16: 40000 | AF16: 40000 | AI16: 0 | AK16: 40000 | AL16: 1080 | AO16: 2400 | AP16: 150 | AQ16: 3909.35 | AR16: Benefit not given | AT16: 2023 | AY16: 10 | AZ16: Abdulnasir Wario | BA16: Hassan | BB16: =IFERROR(VLOOKUP(AY16,'EmpGenInfo(ESS1P)'!$A$6:$AC$390,3,FALSE),0) -> 2156789 | BC16: =IFERROR(VLOOKUP(AY16,'EmpGenInfo(ESS1P)'!$A$6:$AC$390,12,FALSE),0) -> 783458 | BD16: 1000
S17: 11 | T17: January | U17: A0324878234P | V17: Jastine Makemba Batogo | W17: Resident | X17: Primary Employee | Y17: 50000 | AF17: 50000 | AI17: 0 | AK17: 50000 | AL17: 1080 | AO17: 2400 | AP17: 180 | AQ17: 6879.35 | AR17: Benefit not given | AT17: 2023 | AY17: 11 | AZ17: =IFERROR(RIGHT(V17,LEN(V17)-FIND(" ",V17)),"") -> Makemba Batogo | BA17: =IFERROR(LEFT(V17,FIND(" ",V17,1)-1),"") -> Jastine | BB17: =IFERROR(VLOOKUP(AY17,'EmpGenInfo(ESS1P)'!$A$6:$AC$390,3,FALSE),0) -> 34567890 | BC17: =IFERROR(VLOOKUP(AY17,'EmpGenInfo(ESS1P)'!$A$6:$AC$390,12,FALSE),0) -> 987489 | BD17: 1200
S18: 12 | T18: January | U18: A03476784359K | V18: Janet Wairimu Wamatagi | W18: Resident | X18: Primary Employee | Y18: 40000 | AF18: 40000 | AI18: 0 | AK18: 40000 | AL18: 1080 | AO18: 2400 | AP18: 150 | AQ18: 3909.35 | AR18: Benefit not given | AT18: 2023 | AY18: 12 | AZ18: Wairimu Wamatagi | BA18: Janet | BB18: =IFERROR(VLOOKUP(AY18,'EmpGenInfo(ESS1P)'!$A$6:$AC$390,3,FALSE),0) -> 35678910 | BC18: =IFERROR(VLOOKUP(AY18,'EmpGenInfo(ESS1P)'!$A$6:$AC$390,12,FALSE),0) -> 89347 | BD18: 1000
S19: 14 | T19: January | U19: A03467623670P | V19: Gitau Harrison Kithi | W19: Resident | X19: Primary Employee | Y19: 55000 | AF19: 55000 | AI19: 0 | AK19: 55000 | AL19: 1080 | AO19: 2400 | AP19: 180 | AQ19: 8379.35 | AR19: Benefit not given | AT19: 2023 | AY19: 14 | AZ19: Harrison Kithi | BA19: Gitau | BB19: =IFERROR(VLOOKUP(AY19,'EmpGenInfo(ESS1P)'!$A$6:$AC$390,3,FALSE),0) -> 35267812 | BC19: =IFERROR(VLOOKUP(AY19,'EmpGenInfo(ESS1P)'!$A$6:$AC$390,12,FALSE),0) -> 876348 | BD19: 1200
AY20: 0 | BB20: =IFERROR(VLOOKUP(AY20,'EmpGenInfo(ESS1P)'!$A$6:$AC$390,3,FALSE),0) -> 0 | BC20: =IFERROR(VLOOKUP(AY20,'EmpGenInfo(ESS1P)'!$A$6:$AC$390,12,FALSE),0) -> 0 | BD20: 0
AY21: 0 | BB21: =IFERROR(VLOOKUP(AY21,'EmpGenInfo(ESS1P)'!$A$6:$AC$390,3,FALSE),0) -> 0 | BC21: =IFERROR(VLOOKUP(AY21,'EmpGenInfo(ESS1P)'!$A$6:$AC$390,12,FALSE),0) -> 0 | BD21: 0
AY22: 0 | BB22: =IFERROR(VLOOKUP(AY22,'EmpGenInfo(ESS1P)'!$A$6:$AC$390,3,FALSE),0) -> 0 | BC22: =IFERROR(VLOOKUP(AY22,'EmpGenInfo(ESS1P)'!$A$6:$AC$390,12,FALSE),0) -> 0 | BD22: 0
AY23: 0 | BB23: =IFERROR(VLOOKUP(AY23,'EmpGenInfo(ESS1P)'!$A$6:$AC$390,3,FALSE),0) -> 0 | BC23: =IFERROR(VLOOKUP(AY23,'EmpGenInfo(ESS1P)'!$A$6:$AC$390,12,FALSE),0) -> 0 | BD23: 0
AY24: 0 | BB24: =IFERROR(VLOOKUP(AY24,'EmpGenInfo(ESS1P)'!$A$6:$AC$390,3,FALSE),0) -> 0 | BC24: =IFERROR(VLOOKUP(AY24,'EmpGenInfo(ESS1P)'!$A$6:$AC$390,12,FALSE),0) -> 0 | BD24: 0
AY25: 0 | BB25: =IFERROR(VLOOKUP(AY25,'EmpGenInfo(ESS1P)'!$A$6:$AC$390,3,FALSE),0) -> 0 | BC25: =IFERROR(VLOOKUP(AY25,'EmpGenInfo(ESS1P)'!$A$6:$AC$390,12,FALSE),0) -> 0 | BD25: 0
AY26: 0 | BB26: =IFERROR(VLOOKUP(AY26,'EmpGenInfo(ESS1P)'!$A$6:$AC$390,3,FALSE),0) -> 0 | BC26: =IFERROR(VLOOKUP(AY26,'EmpGenInfo(ESS1P)'!$A$6:$AC$390,12,FALSE),0) -> 0 | BD26: 0
AY27: 0 | BB27: =IFERROR(VLOOKUP(AY27,'EmpGenInfo(ESS1P)'!$A$6:$AC$390,3,FALSE),0) -> 0 | BC27: =IFERROR(VLOOKUP(AY27,'EmpGenInfo(ESS1P)'!$A$6:$AC$390,12,FALSE),0) -> 0 | BD27: 0
AY28: 0 | BB28: =IFERROR(VLOOKUP(AY28,'EmpGenInfo(ESS1P)'!$A$6:$AC$390,3,FALSE),0) -> 0 | BC28: =IFERROR(VLOOKUP(AY28,'EmpGenInfo(ESS1P)'!$A$6:$AC$390,12,FALSE),0) -> 0 | BD28: 0
AY29: 0 | BB29: =IFERROR(VLOOKUP(AY29,'EmpGenInfo(ESS1P)'!$A$6:$AC$390,3,FALSE),0) -> 0 | BC29: =IFERROR(VLOOKUP(AY29,'EmpGenInfo(ESS1P)'!$A$6:$AC$390,12,FALSE),0) -> 0 | BD29: 0
AY30: 0 | BB30: =IFERROR(VLOOKUP(AY30,'EmpGenInfo(ESS1P)'!$A$6:$AC$390,3,FALSE),0) -> 0 | BC30: =IFERROR(VLOOKUP(AY30,'EmpGenInfo(ESS1P)'!$A$6:$AC$390,12,FALSE),0) -> 0 | BD30: 0
AY31: 0 | BB31: =IFERROR(VLOOKUP(AY31,'EmpGenInfo(ESS1P)'!$A$6:$AC$390,3,FALSE),0) -> 0 | BC31: =IFERROR(VLOOKUP(AY31,'EmpGenInfo(ESS1P)'!$A$6:$AC$390,12,FALSE),0) -> 0 | BD31: 0
AY32: 0 | BB32: =IFERROR(VLOOKUP(AY32,'EmpGenInfo(ESS1P)'!$A$6:$AC$390,3,FALSE),0) -> 0 | BC32: =IFERROR(VLOOKUP(AY32,'EmpGenInfo(ESS1P)'!$A$6:$AC$390,12,FALSE),0) -> 0 | BD32: 0
AY33: 0 | BB33: =IFERROR(VLOOKUP(AY33,'EmpGenInfo(ESS1P)'!$A$6:$AC$390,3,FALSE),0) -> 0 | BC33: =IFERROR(VLOOKUP(AY33,'EmpGenInfo(ESS1P)'!$A$6:$AC$390,12,FALSE),0) -> 0 | BD33: 0
AY34: 0 | BB34: =IFERROR(VLOOKUP(AY34,'EmpGenInfo(ESS1P)'!$A$6:$AC$390,3,FALSE),0) -> 0 | BC34: =IFERROR(VLOOKUP(AY34,'EmpGenInfo(ESS1P)'!$A$6:$AC$390,12,FALSE),0) -> 0 | BD34: 0
AY35: 0 | BB35: =IFERROR(VLOOKUP(AY35,'EmpGenInfo(ESS1P)'!$A$6:$AC$390,3,FALSE),0) -> 0 | BC35: =IFERROR(VLOOKUP(AY35,'EmpGenInfo(ESS1P)'!$A$6:$AC$390,12,FALSE),0) -> 0 | BD35: 0
AY36: 0 | BB36: =IFERROR(VLOOKUP(AY36,'EmpGenInfo(ESS1P)'!$A$6:$AC$390,3,FALSE),0) -> 0 | BC36: =IFERROR(VLOOKUP(AY36,'EmpGenInfo(ESS1P)'!$A$6:$AC$390,12,FALSE),0) -> 0 | BD36: 0
AY37: 0 | BB37: =IFERROR(VLOOKUP(AY37,'EmpGenInfo(ESS1P)'!$A$6:$AC$390,3,FALSE),0) -> 0 | BC37: =IFERROR(VLOOKUP(AY37,'EmpGenInfo(ESS1P)'!$A$6:$AC$390,12,FALSE),0) -> 0 | BD37: 0
AY38: 0 | BB38: =IFERROR(VLOOKUP(AY38,'EmpGenInfo(ESS1P)'!$A$6:$AC$390,3,FALSE),0) -> 0 | BC38: =IFERROR(VLOOKUP(AY38,'EmpGenInfo(ESS1P)'!$A$6:$AC$390,12,FALSE),0) -> 0 | BD38: 0
AY39: 0 | BB39: =IFERROR(VLOOKUP(AY39,'EmpGenInfo(ESS1P)'!$A$6:$AC$390,3,FALSE),0) -> 0 | BC39: =IFERROR(VLOOKUP(AY39,'EmpGenInfo(ESS1P)'!$A$6:$AC$390,12,FALSE),0) -> 0 | BD39: 0
AY40: 0 | BB40: =IFERROR(VLOOKUP(AY40,'EmpGenInfo(ESS1P)'!$A$6:$AC$390,3,FALSE),0) -> 0 | BC40: =IFERROR(VLOOKUP(AY40,'EmpGenInfo(ESS1P)'!$A$6:$AC$390,12,FALSE),0) -> 0 | BD40: 0
AY41: 0 | BB41: =IFERROR(VLOOKUP(AY41,'EmpGenInfo(ESS1P)'!$A$6:$AC$390,3,FALSE),0) -> 0 | BC41: =IFERROR(VLOOKUP(AY41,'EmpGenInfo(ESS1P)'!$A$6:$AC$390,12,FALSE),0) -> 0 | BD41: 0
AY42: 0 | BB42: =IFERROR(VLOOKUP(AY42,'EmpGenInfo(ESS1P)'!$A$6:$AC$390,3,FALSE),0) -> 0 | BC42: =IFERROR(VLOOKUP(AY42,'EmpGenInfo(ESS1P)'!$A$6:$AC$390,12,FALSE),0) -> 0 | BD42: 0
AY43: 0 | BB43: =IFERROR(VLOOKUP(AY43,'EmpGenInfo(ESS1P)'!$A$6:$AC$390,3,FALSE),0) -> 0 | BC43: =IFERROR(VLOOKUP(AY43,'EmpGenInfo(ESS1P)'!$A$6:$AC$390,12,FALSE),0) -> 0 | BD43: 0
AY44: 0 | BB44: =IFERROR(VLOOKUP(AY44,'EmpGenInfo(ESS1P)'!$A$6:$AC$390,3,FALSE),0) -> 0 | BC44: =IFERROR(VLOOKUP(AY44,'EmpGenInfo(ESS1P)'!$A$6:$AC$390,12,FALSE),0) -> 0 | BD44: 0
AY45: 0 | BB45: =IFERROR(VLOOKUP(AY45,'EmpGenInfo(ESS1P)'!$A$6:$AC$390,3,FALSE),0) -> 0 | BC45: =IFERROR(VLOOKUP(AY45,'EmpGenInfo(ESS1P)'!$A$6:$AC$390,12,FALSE),0) -> 0 | BD45: 0
AY46: 0 | BB46: =IFERROR(VLOOKUP(AY46,'EmpGenInfo(ESS1P)'!$A$6:$AC$390,3,FALSE),0) -> 0 | BC46: =IFERROR(VLOOKUP(AY46,'EmpGenInfo(ESS1P)'!$A$6:$AC$390,12,FALSE),0) -> 0 | BD46: 0
AY47: 0 | BB47: =IFERROR(VLOOKUP(AY47,'EmpGenInfo(ESS1P)'!$A$6:$AC$390,3,FALSE),0) -> 0 | BC47: =IFERROR(VLOOKUP(AY47,'EmpGenInfo(ESS1P)'!$A$6:$AC$390,12,FALSE),0) -> 0 | BD47: 0
AY48: 0 | BB48: =IFERROR(VLOOKUP(AY48,'EmpGenInfo(ESS1P)'!$A$6:$AC$390,3,FALSE),0) -> 0 | BC48: =IFERROR(VLOOKUP(AY48,'EmpGenInfo(ESS1P)'!$A$6:$AC$390,12,FALSE),0) -> 0 | BD48: 0
AY49: 0 | BB49: =IFERROR(VLOOKUP(AY49,'EmpGenInfo(ESS1P)'!$A$6:$AC$390,3,FALSE),0) -> 0 | BC49: =IFERROR(VLOOKUP(AY49,'EmpGenInfo(ESS1P)'!$A$6:$AC$390,12,FALSE),0) -> 0 | BD49: 0
AY50: 0 | BB50: =IFERROR(VLOOKUP(AY50,'EmpGenInfo(ESS1P)'!$A$6:$AC$390,3,FALSE),0) -> 0 | BC50: =IFERROR(VLOOKUP(AY50,'EmpGenInfo(ESS1P)'!$A$6:$AC$390,12,FALSE),0) -> 0 | BD50: 0
AY51: 0 | BB51: =IFERROR(VLOOKUP(AY51,'EmpGenInfo(ESS1P)'!$A$6:$AC$390,3,FALSE),0) -> 0 | BC51: =IFERROR(VLOOKUP(AY51,'EmpGenInfo(ESS1P)'!$A$6:$AC$390,12,FALSE),0) -> 0 | BD51: 0
AY52: 0 | BB52: =IFERROR(VLOOKUP(AY52,'EmpGenInfo(ESS1P)'!$A$6:$AC$390,3,FALSE),0) -> 0 | BC52: =IFERROR(VLOOKUP(AY52,'EmpGenInfo(ESS1P)'!$A$6:$AC$390,12,FALSE),0) -> 0 | BD52: 0
AY53: 0 | BB53: =IFERROR(VLOOKUP(AY53,'EmpGenInfo(ESS1P)'!$A$6:$AC$390,3,FALSE),0) -> 0 | BC53: =IFERROR(VLOOKUP(AY53,'EmpGenInfo(ESS1P)'!$A$6:$AC$390,12,FALSE),0) -> 0 | BD53: 0
AY54: 0 | BB54: =IFERROR(VLOOKUP(AY54,'EmpGenInfo(ESS1P)'!$A$6:$AC$390,3,FALSE),0) -> 0 | BC54: =IFERROR(VLOOKUP(AY54,'EmpGenInfo(ESS1P)'!$A$6:$AC$390,12,FALSE),0) -> 0 | BD54: 0
AY55: 0 | BB55: =IFERROR(VLOOKUP(AY55,'EmpGenInfo(ESS1P)'!$A$6:$AC$390,3,FALSE),0) -> 0 | BC55: =IFERROR(VLOOKUP(AY55,'EmpGenInfo(ESS1P)'!$A$6:$AC$390,12,FALSE),0) -> 0 | BD55: 0
AY56: 0 | BB56: =IFERROR(VLOOKUP(AY56,'EmpGenInfo(ESS1P)'!$A$6:$AC$390,3,FALSE),0) -> 0 | BC56: =IFERROR(VLOOKUP(AY56,'EmpGenInfo(ESS1P)'!$A$6:$AC$390,12,FALSE),0) -> 0 | BD56: 0
AY57: 0 | BB57: =IFERROR(VLOOKUP(AY57,'EmpGenInfo(ESS1P)'!$A$6:$AC$390,3,FALSE),0) -> 0 | BC57: =IFERROR(VLOOKUP(AY57,'EmpGenInfo(ESS1P)'!$A$6:$AC$390,12,FALSE),0) -> 0 | BD57: 0
AY58: 0 | BB58: =IFERROR(VLOOKUP(AY58,'EmpGenInfo(ESS1P)'!$A$6:$AC$390,3,FALSE),0) -> 0 | BC58: =IFERROR(VLOOKUP(AY58,'EmpGenInfo(ESS1P)'!$A$6:$AC$390,12,FALSE),0) -> 0 | BD58: 0
AY59: 0 | BB59: =IFERROR(VLOOKUP(AY59,'EmpGenInfo(ESS1P)'!$A$6:$AC$390,3,FALSE),0) -> 0 | BC59: =IFERROR(VLOOKUP(AY59,'EmpGenInfo(ESS1P)'!$A$6:$AC$390,12,FALSE),0) -> 0 | BD59: 0
AY60: 0 | BB60: =IFERROR(VLOOKUP(AY60,'EmpGenInfo(ESS1P)'!$A$6:$AC$390,3,FALSE),0) -> 0 | BC60: =IFERROR(VLOOKUP(AY60,'EmpGenInfo(ESS1P)'!$A$6:$AC$390,12,FALSE),0) -> 0 | BD60: 0
AY61: 0 | BB61: =IFERROR(VLOOKUP(AY61,'EmpGenInfo(ESS1P)'!$A$6:$AC$390,3,FALSE),0) -> 0 | BC61: =IFERROR(VLOOKUP(AY61,'EmpGenInfo(ESS1P)'!$A$6:$AC$390,12,FALSE),0) -> 0 | BD61: 0
AY62: 0 | BB62: =IFERROR(VLOOKUP(AY62,'EmpGenInfo(ESS1P)'!$A$6:$AC$390,3,FALSE),0) -> 0 | BC62: =IFERROR(VLOOKUP(AY62,'EmpGenInfo(ESS1P)'!$A$6:$AC$390,12,FALSE),0) -> 0 | BD62: 0
AY63: 0 | BB63: =IFERROR(VLOOKUP(AY63,'EmpGenInfo(ESS1P)'!$A$6:$AC$390,3,FALSE),0) -> 0 | BC63: =IFERROR(VLOOKUP(AY63,'EmpGenInfo(ESS1P)'!$A$6:$AC$390,12,FALSE),0) -> 0 | BD63: 0
AY64: 0 | BB64: =IFERROR(VLOOKUP(AY64,'EmpGenInfo(ESS1P)'!$A$6:$AC$390,3,FALSE),0) -> 0 | BC64: =IFERROR(VLOOKUP(AY64,'EmpGenInfo(ESS1P)'!$A$6:$AC$390,12,FALSE),0) -> 0 | BD64: 0
AY65: 0 | BB65: =IFERROR(VLOOKUP(AY65,'EmpGenInfo(ESS1P)'!$A$6:$AC$390,3,FALSE),0) -> 0 | BC65: =IFERROR(VLOOKUP(AY65,'EmpGenInfo(ESS1P)'!$A$6:$AC$390,12,FALSE),0) -> 0 | BD65: 0
AY66: 0 | BB66: =IFERROR(VLOOKUP(AY66,'EmpGenInfo(ESS1P)'!$A$6:$AC$390,3,FALSE),0) -> 0 | BC66: =IFERROR(VLOOKUP(AY66,'EmpGenInfo(ESS1P)'!$A$6:$AC$390,12,FALSE),0) -> 0 | BD66: 0
AY67: 0 | BB67: =IFERROR(VLOOKUP(AY67,'EmpGenInfo(ESS1P)'!$A$6:$AC$390,3,FALSE),0) -> 0 | BC67: =IFERROR(VLOOKUP(AY67,'EmpGenInfo(ESS1P)'!$A$6:$AC$390,12,FALSE),0) -> 0 | BD67: 0
AY68: 0 | BB68: =IFERROR(VLOOKUP(AY68,'EmpGenInfo(ESS1P)'!$A$6:$AC$390,3,FALSE),0) -> 0 | BC68: =IFERROR(VLOOKUP(AY68,'EmpGenInfo(ESS1P)'!$A$6:$AC$390,12,FALSE),0) -> 0 | BD68: 0
AY69: 0 | BB69: =IFERROR(VLOOKUP(AY69,'EmpGenInfo(ESS1P)'!$A$6:$AC$390,3,FALSE),0) -> 0 | BC69: =IFERROR(VLOOKUP(AY69,'EmpGenInfo(ESS1P)'!$A$6:$AC$390,12,FALSE),0) -> 0 | BD69: 0
AY70: 0 | BB70: =IFERROR(VLOOKUP(AY70,'EmpGenInfo(ESS1P)'!$A$6:$AC$390,3,FALSE),0) -> 0 | BC70: =IFERROR(VLOOKUP(AY70,'EmpGenInfo(ESS1P)'!$A$6:$AC$390,12,FALSE),0) -> 0 | BD70: 0
AY71: 0 | BB71: =IFERROR(VLOOKUP(AY71,'EmpGenInfo(ESS1P)'!$A$6:$AC$390,3,FALSE),0) -> 0 | BC71: =IFERROR(VLOOKUP(AY71,'EmpGenInfo(ESS1P)'!$A$6:$AC$390,12,FALSE),0) -> 0 | BD71: 0
AY72: =S72 -> 0 | BB72: =IFERROR(VLOOKUP(AY72,'EmpGenInfo(ESS1P)'!$A$6:$AC$390,3,FALSE),0) -> 0 | BC72: =IFERROR(VLOOKUP(AY72,'EmpGenInfo(ESS1P)'!$A$6:$AC$390,12,FALSE),0) -> 0 | BD72: =AP72*100/15 -> 0
AY73: 0 | BB73: =IFERROR(VLOOKUP(AY73,'EmpGenInfo(ESS1P)'!$A$6:$AC$390,3,FALSE),0) -> 0 | BC73: =IFERROR(VLOOKUP(AY73,'EmpGenInfo(ESS1P)'!$A$6:$AC$390,12,FALSE),0) -> 0 | BD73: 0
AY74: 0 | BB74: =IFERROR(VLOOKUP(AY74,'EmpGenInfo(ESS1P)'!$A$6:$AC$390,3,FALSE),0) -> 0 | BC74: =IFERROR(VLOOKUP(AY74,'EmpGenInfo(ESS1P)'!$A$6:$AC$390,12,FALSE),0) -> 0 | BD74: 0
AY75: 0 | BB75: =IFERROR(VLOOKUP(AY75,'EmpGenInfo(ESS1P)'!$A$6:$AC$390,3,FALSE),0) -> 0 | BC75: =IFERROR(VLOOKUP(AY75,'EmpGenInfo(ESS1P)'!$A$6:$AC$390,12,FALSE),0) -> 0 | BD75: 0
AY76: 0 | BB76: =IFERROR(VLOOKUP(AY76,'EmpGenInfo(ESS1P)'!$A$6:$AC$390,3,FALSE),0) -> 0 | BC76: =IFERROR(VLOOKUP(AY76,'EmpGenInfo(ESS1P)'!$A$6:$AC$390,12,FALSE),0) -> 0 | BD76: 0
AY77: 0 | BB77: =IFERROR(VLOOKUP(AY77,'EmpGenInfo(ESS1P)'!$A$6:$AC$390,3,FALSE),0) -> 0 | BC77: =IFERROR(VLOOKUP(AY77,'EmpGenInfo(ESS1P)'!$A$6:$AC$390,12,FALSE),0) -> 0 | BD77: 0
AY78: 0 | BB78: =IFERROR(VLOOKUP(AY78,'EmpGenInfo(ESS1P)'!$A$6:$AC$390,3,FALSE),0) -> 0 | BC78: =IFERROR(VLOOKUP(AY78,'EmpGenInfo(ESS1P)'!$A$6:$AC$390,12,FALSE),0) -> 0 | BD78: 0
AY79: 0 | BB79: =IFERROR(VLOOKUP(AY79,'EmpGenInfo(ESS1P)'!$A$6:$AC$390,3,FALSE),0) -> 0 | BC79: =IFERROR(VLOOKUP(AY79,'EmpGenInfo(ESS1P)'!$A$6:$AC$390,12,FALSE),0) -> 0 | BD79: 0
AY80: 0 | BB80: =IFERROR(VLOOKUP(AY80,'EmpGenInfo(ESS1P)'!$A$6:$AC$390,3,FALSE),0) -> 0 | BC80: =IFERROR(VLOOKUP(AY80,'EmpGenInfo(ESS1P)'!$A$6:$AC$390,12,FALSE),0) -> 0 | BD80: 0
AY81: 0 | AZ81: =IFERROR(RIGHT(V81,LEN(V81)-FIND(" ",V81)),"") ->  | BA81: =IFERROR(LEFT(V81,FIND(" ",V81,1)-1),"") ->  | BB81: =IFERROR(VLOOKUP(AY81,'EmpGenInfo(ESS1P)'!$A$6:$AC$390,3,FALSE),0) -> 0 | BC81: =IFERROR(VLOOKUP(AY81,'EmpGenInfo(ESS1P)'!$A$6:$AC$390,12,FALSE),0) -> 0 | BD81: 0
AY82: 0 | BB82: =IFERROR(VLOOKUP(AY82,'EmpGenInfo(ESS1P)'!$A$6:$AC$390,3,FALSE),0) -> 0 | BC82: =IFERROR(VLOOKUP(AY82,'EmpGenInfo(ESS1P)'!$A$6:$AC$390,12,FALSE),0) -> 0 | BD82: 0
AY83: 0 | BB83: =IFERROR(VLOOKUP(AY83,'EmpGenInfo(ESS1P)'!$A$6:$AC$390,3,FALSE),0) -> 0 | BC83: =IFERROR(VLOOKUP(AY83,'EmpGenInfo(ESS1P)'!$A$6:$AC$390,12,FALSE),0) -> 0 | BD83: 0
AY84: 0 | BB84: =IFERROR(VLOOKUP(AY84,'EmpGenInfo(ESS1P)'!$A$6:$AC$390,3,FALSE),0) -> 0 | BC84: =IFERROR(VLOOKUP(AY84,'EmpGenInfo(ESS1P)'!$A$6:$AC$390,12,FALSE),0) -> 0 | BD84: 0
AY85: 0 | BB85: =IFERROR(VLOOKUP(AY85,'EmpGenInfo(ESS1P)'!$A$6:$AC$390,3,FALSE),0) -> 0 | BC85: =IFERROR(VLOOKUP(AY85,'EmpGenInfo(ESS1P)'!$A$6:$AC$390,12,FALSE),0) -> 0 | BD85: 0
AY86: 0 | BB86: =IFERROR(VLOOKUP(AY86,'EmpGenInfo(ESS1P)'!$A$6:$AC$390,3,FALSE),0) -> 0 | BC86: =IFERROR(VLOOKUP(AY86,'EmpGenInfo(ESS1P)'!$A$6:$AC$390,12,FALSE),0) -> 0 | BD86: 0
AY87: 0 | BB87: =IFERROR(VLOOKUP(AY87,'EmpGenInfo(ESS1P)'!$A$6:$AC$390,3,FALSE),0) -> 0 | BC87: =IFERROR(VLOOKUP(AY87,'EmpGenInfo(ESS1P)'!$A$6:$AC$390,12,FALSE),0) -> 0 | BD87: 0
AY88: 0 | BB88: =IFERROR(VLOOKUP(AY88,'EmpGenInfo(ESS1P)'!$A$6:$AC$390,3,FALSE),0) -> 0 | BC88: =IFERROR(VLOOKUP(AY88,'EmpGenInfo(ESS1P)'!$A$6:$AC$390,12,FALSE),0) -> 0 | BD88: 0
AY89: 0 | BB89: =IFERROR(VLOOKUP(AY89,'EmpGenInfo(ESS1P)'!$A$6:$AC$390,3,FALSE),0) -> 0 | BC89: =IFERROR(VLOOKUP(AY89,'EmpGenInfo(ESS1P)'!$A$6:$AC$390,12,FALSE),0) -> 0 | BD89: 0
AY90: 0 | BB90: =IFERROR(VLOOKUP(AY90,'EmpGenInfo(ESS1P)'!$A$6:$AC$390,3,FALSE),0) -> 0 | BC90: =IFERROR(VLOOKUP(AY90,'EmpGenInfo(ESS1P)'!$A$6:$AC$390,12,FALSE),0) -> 0 | BD90: 0
AY91: 0 | BB91: =IFERROR(VLOOKUP(AY91,'EmpGenInfo(ESS1P)'!$A$6:$AC$390,3,FALSE),0) -> 0 | BC91: =IFERROR(VLOOKUP(AY91,'EmpGenInfo(ESS1P)'!$A$6:$AC$390,12,FALSE),0) -> 0 | BD91: 0
AY92: 0 | BB92: =IFERROR(VLOOKUP(AY92,'EmpGenInfo(ESS1P)'!$A$6:$AC$390,3,FALSE),0) -> 0 | BC92: =IFERROR(VLOOKUP(AY92,'EmpGenInfo(ESS1P)'!$A$6:$AC$390,12,FALSE),0) -> 0 | BD92: 0
AY93: 0 | BB93: =IFERROR(VLOOKUP(AY93,'EmpGenInfo(ESS1P)'!$A$6:$AC$390,3,FALSE),0) -> 0 | BC93: =IFERROR(VLOOKUP(AY93,'EmpGenInfo(ESS1P)'!$A$6:$AC$390,12,FALSE),0) -> 0 | BD93: 0
AY94: 0 | BB94: =IFERROR(VLOOKUP(AY94,'EmpGenInfo(ESS1P)'!$A$6:$AC$390,3,FALSE),0) -> 0 | BC94: =IFERROR(VLOOKUP(AY94,'EmpGenInfo(ESS1P)'!$A$6:$AC$390,12,FALSE),0) -> 0 | BD94: 0
AY95: 0 | BB95: =IFERROR(VLOOKUP(AY95,'EmpGenInfo(ESS1P)'!$A$6:$AC$390,3,FALSE),0) -> 0 | BC95: =IFERROR(VLOOKUP(AY95,'EmpGenInfo(ESS1P)'!$A$6:$AC$390,12,FALSE),0) -> 0 | BD95: 0
AY96: 0 | BB96: =IFERROR(VLOOKUP(AY96,'EmpGenInfo(ESS1P)'!$A$6:$AC$390,3,FALSE),0) -> 0 | BC96: =IFERROR(VLOOKUP(AY96,'EmpGenInfo(ESS1P)'!$A$6:$AC$390,12,FALSE),0) -> 0 | BD96: 0
AY97: 0 | BB97: =IFERROR(VLOOKUP(AY97,'EmpGenInfo(ESS1P)'!$A$6:$AC$390,3,FALSE),0) -> 0 | BC97: =IFERROR(VLOOKUP(AY97,'EmpGenInfo(ESS1P)'!$A$6:$AC$390,12,FALSE),0) -> 0 | BD97: 0
AY98: 0 | BB98: =IFERROR(VLOOKUP(AY98,'EmpGenInfo(ESS1P)'!$A$6:$AC$390,3,FALSE),0) -> 0 | BC98: =IFERROR(VLOOKUP(AY98,'EmpGenInfo(ESS1P)'!$A$6:$AC$390,12,FALSE),0) -> 0 | BD98: 0
AY99: 0 | BB99: =IFERROR(VLOOKUP(AY99,'EmpGenInfo(ESS1P)'!$A$6:$AC$390,3,FALSE),0) -> 0 | BC99: =IFERROR(VLOOKUP(AY99,'EmpGenInfo(ESS1P)'!$A$6:$AC$390,12,FALSE),0) -> 0 | BD99: 0
AY100: 0 | BB100: =IFERROR(VLOOKUP(AY100,'EmpGenInfo(ESS1P)'!$A$6:$AC$390,3,FALSE),0) -> 0 | BC100: =IFERROR(VLOOKUP(AY100,'EmpGenInfo(ESS1P)'!$A$6:$AC$390,12,FALSE),0) -> 0 | BD100: 0
AY101: 0 | BB101: =IFERROR(VLOOKUP(AY101,'EmpGenInfo(ESS1P)'!$A$6:$AC$390,3,FALSE),0) -> 0 | BC101: =IFERROR(VLOOKUP(AY101,'EmpGenInfo(ESS1P)'!$A$6:$AC$390,12,FALSE),0) -> 0 | BD101: 0
AY102: 0 | BB102: =IFERROR(VLOOKUP(AY102,'EmpGenInfo(ESS1P)'!$A$6:$AC$390,3,FALSE),0) -> 0 | BC102: =IFERROR(VLOOKUP(AY102,'EmpGenInfo(ESS1P)'!$A$6:$AC$390,12,FALSE),0) -> 0 | BD102: 0
AY103: 0 | BB103: =IFERROR(VLOOKUP(AY103,'EmpGenInfo(ESS1P)'!$A$6:$AC$390,3,FALSE),0) -> 0 | BC103: =IFERROR(VLOOKUP(AY103,'EmpGenInfo(ESS1P)'!$A$6:$AC$390,12,FALSE),0) -> 0 | BD103: 0
AY104: 0 | BB104: =IFERROR(VLOOKUP(AY104,'EmpGenInfo(ESS1P)'!$A$6:$AC$390,3,FALSE),0) -> 0 | BC104: =IFERROR(VLOOKUP(AY104,'EmpGenInfo(ESS1P)'!$A$6:$AC$390,12,FALSE),0) -> 0 | BD104: 0
AY105: 0 | BB105: =IFERROR(VLOOKUP(AY105,'EmpGenInfo(ESS1P)'!$A$6:$AC$390,3,FALSE),0) -> 0 | BC105: =IFERROR(VLOOKUP(AY105,'EmpGenInfo(ESS1P)'!$A$6:$AC$390,12,FALSE),0) -> 0 | BD105: 0
AY106: 0 | BB106: =IFERROR(VLOOKUP(AY106,'EmpGenInfo(ESS1P)'!$A$6:$AC$390,3,FALSE),0) -> 0 | BC106: =IFERROR(VLOOKUP(AY106,'EmpGenInfo(ESS1P)'!$A$6:$AC$390,12,FALSE),0) -> 0 | BD106: 0
AY107: 0 | BB107: =IFERROR(VLOOKUP(AY107,'EmpGenInfo(ESS1P)'!$A$6:$AC$390,3,FALSE),0) -> 0 | BC107: =IFERROR(VLOOKUP(AY107,'EmpGenInfo(ESS1P)'!$A$6:$AC$390,12,FALSE),0) -> 0 | BD107: 0
AY108: 0 | BB108: =IFERROR(VLOOKUP(AY108,'EmpGenInfo(ESS1P)'!$A$6:$AC$390,3,FALSE),0) -> 0 | BC108: =IFERROR(VLOOKUP(AY108,'EmpGenInfo(ESS1P)'!$A$6:$AC$390,12,FALSE),0) -> 0 | BD108: 0
AY109: 0 | BB109: =IFERROR(VLOOKUP(AY109,'EmpGenInfo(ESS1P)'!$A$6:$AC$390,3,FALSE),0) -> 0 | BC109: =IFERROR(VLOOKUP(AY109,'EmpGenInfo(ESS1P)'!$A$6:$AC$390,12,FALSE),0) -> 0 | BD109: 0
AY110: 0 | BB110: =IFERROR(VLOOKUP(AY110,'EmpGenInfo(ESS1P)'!$A$6:$AC$390,3,FALSE),0) -> 0 | BC110: =IFERROR(VLOOKUP(AY110,'EmpGenInfo(ESS1P)'!$A$6:$AC$390,12,FALSE),0) -> 0 | BD110: 0
AY111: 0 | BB111: =IFERROR(VLOOKUP(AY111,'EmpGenInfo(ESS1P)'!$A$6:$AC$390,3,FALSE),0) -> 0 | BC111: =IFERROR(VLOOKUP(AY111,'EmpGenInfo(ESS1P)'!$A$6:$AC$390,12,FALSE),0) -> 0 | BD111: 0
AY112: 0 | BB112: =IFERROR(VLOOKUP(AY112,'EmpGenInfo(ESS1P)'!$A$6:$AC$390,3,FALSE),0) -> 0 | BC112: =IFERROR(VLOOKUP(AY112,'EmpGenInfo(ESS1P)'!$A$6:$AC$390,12,FALSE),0) -> 0 | BD112: 0
AY113: 0 | BB113: =IFERROR(VLOOKUP(AY113,'EmpGenInfo(ESS1P)'!$A$6:$AC$390,3,FALSE),0) -> 0 | BC113: =IFERROR(VLOOKUP(AY113,'EmpGenInfo(ESS1P)'!$A$6:$AC$390,12,FALSE),0) -> 0 | BD113: 0
AY114: 0 | BB114: =IFERROR(VLOOKUP(AY114,'EmpGenInfo(ESS1P)'!$A$6:$AC$390,3,FALSE),0) -> 0 | BC114: =IFERROR(VLOOKUP(AY114,'EmpGenInfo(ESS1P)'!$A$6:$AC$390,12,FALSE),0) -> 0 | BD114: 0
AY115: 0 | BB115: =IFERROR(VLOOKUP(AY115,'EmpGenInfo(ESS1P)'!$A$6:$AC$390,3,FALSE),0) -> 0 | BC115: =IFERROR(VLOOKUP(AY115,'EmpGenInfo(ESS1P)'!$A$6:$AC$390,12,FALSE),0) -> 0 | BD115: 0
AY116: 0 | BB116: =IFERROR(VLOOKUP(AY116,'EmpGenInfo(ESS1P)'!$A$6:$AC$390,3,FALSE),0) -> 0 | BC116: =IFERROR(VLOOKUP(AY116,'EmpGenInfo(ESS1P)'!$A$6:$AC$390,12,FALSE),0) -> 0 | BD116: 0
AY117: 0 | BB117: =IFERROR(VLOOKUP(AY117,'EmpGenInfo(ESS1P)'!$A$6:$AC$390,3,FALSE),0) -> 0 | BC117: =IFERROR(VLOOKUP(AY117,'EmpGenInfo(ESS1P)'!$A$6:$AC$390,12,FALSE),0) -> 0 | BD117: 0
AY118: 0 | BB118: =IFERROR(VLOOKUP(AY118,'EmpGenInfo(ESS1P)'!$A$6:$AC$390,3,FALSE),0) -> 0 | BC118: =IFERROR(VLOOKUP(AY118,'EmpGenInfo(ESS1P)'!$A$6:$AC$390,12,FALSE),0) -> 0 | BD118: 0
AY119: 0 | BB119: =IFERROR(VLOOKUP(AY119,'EmpGenInfo(ESS1P)'!$A$6:$AC$390,3,FALSE),0) -> 0 | BC119: =IFERROR(VLOOKUP(AY119,'EmpGenInfo(ESS1P)'!$A$6:$AC$390,12,FALSE),0) -> 0 | BD119: 0
AY120: 0 | BB120: =IFERROR(VLOOKUP(AY120,'EmpGenInfo(ESS1P)'!$A$6:$AC$390,3,FALSE),0) -> 0 | BC120: =IFERROR(VLOOKUP(AY120,'EmpGenInfo(ESS1P)'!$A$6:$AC$390,12,FALSE),0) -> 0 | BD120: 0
AY121: 0 | BB121: =IFERROR(VLOOKUP(AY121,'EmpGenInfo(ESS1P)'!$A$6:$AC$390,3,FALSE),0) -> 0 | BC121: =IFERROR(VLOOKUP(AY121,'EmpGenInfo(ESS1P)'!$A$6:$AC$390,12,FALSE),0) -> 0 | BD121: 0
AY122: 0 | BB122: =IFERROR(VLOOKUP(AY122,'EmpGenInfo(ESS1P)'!$A$6:$AC$390,3,FALSE),0) -> 0 | BC122: =IFERROR(VLOOKUP(AY122,'EmpGenInfo(ESS1P)'!$A$6:$AC$390,12,FALSE),0) -> 0 | BD122: 0
AY123: 0 | BB123: =IFERROR(VLOOKUP(AY123,'EmpGenInfo(ESS1P)'!$A$6:$AC$390,3,FALSE),0) -> 0 | BC123: =IFERROR(VLOOKUP(AY123,'EmpGenInfo(ESS1P)'!$A$6:$AC$390,12,FALSE),0) -> 0 | BD123: 0
AY124: 0 | BB124: =IFERROR(VLOOKUP(AY124,'EmpGenInfo(ESS1P)'!$A$6:$AC$390,3,FALSE),0) -> 0 | BC124: =IFERROR(VLOOKUP(AY124,'EmpGenInfo(ESS1P)'!$A$6:$AC$390,12,FALSE),0) -> 0 | BD124: 0
AY125: 0 | BB125: =IFERROR(VLOOKUP(AY125,'EmpGenInfo(ESS1P)'!$A$6:$AC$390,3,FALSE),0) -> 0 | BC125: =IFERROR(VLOOKUP(AY125,'EmpGenInfo(ESS1P)'!$A$6:$AC$390,12,FALSE),0) -> 0 | BD125: 0
AY126: 0 | BB126: =IFERROR(VLOOKUP(AY126,'EmpGenInfo(ESS1P)'!$A$6:$AC$390,3,FALSE),0) -> 0 | BC126: =IFERROR(VLOOKUP(AY126,'EmpGenInfo(ESS1P)'!$A$6:$AC$390,12,FALSE),0) -> 0 | BD126: 0
AY127: 0 | BB127: =IFERROR(VLOOKUP(AY127,'EmpGenInfo(ESS1P)'!$A$6:$AC$390,3,FALSE),0) -> 0 | BC127: =IFERROR(VLOOKUP(AY127,'EmpGenInfo(ESS1P)'!$A$6:$AC$390,12,FALSE),0) -> 0 | BD127: 0
AY128: 0 | BB128: =IFERROR(VLOOKUP(AY128,'EmpGenInfo(ESS1P)'!$A$6:$AC$390,3,FALSE),0) -> 0 | BC128: =IFERROR(VLOOKUP(AY128,'EmpGenInfo(ESS1P)'!$A$6:$AC$390,12,FALSE),0) -> 0 | BD128: 0
AY129: 0 | BB129: =IFERROR(VLOOKUP(AY129,'EmpGenInfo(ESS1P)'!$A$6:$AC$390,3,FALSE),0) -> 0 | BC129: =IFERROR(VLOOKUP(AY129,'EmpGenInfo(ESS1P)'!$A$6:$AC$390,12,FALSE),0) -> 0 | BD129: 0
AY130: 0 | BB130: =IFERROR(VLOOKUP(AY130,'EmpGenInfo(ESS1P)'!$A$6:$AC$390,3,FALSE),0) -> 0 | BC130: =IFERROR(VLOOKUP(AY130,'EmpGenInfo(ESS1P)'!$A$6:$AC$390,12,FALSE),0) -> 0 | BD130: 0
AY131: 0 | BB131: =IFERROR(VLOOKUP(AY131,'EmpGenInfo(ESS1P)'!$A$6:$AC$390,3,FALSE),0) -> 0 | BC131: =IFERROR(VLOOKUP(AY131,'EmpGenInfo(ESS1P)'!$A$6:$AC$390,12,FALSE),0) -> 0 | BD131: 0
AY132: 0 | BB132: =IFERROR(VLOOKUP(AY132,'EmpGenInfo(ESS1P)'!$A$6:$AC$390,3,FALSE),0) -> 0 | BC132: =IFERROR(VLOOKUP(AY132,'EmpGenInfo(ESS1P)'!$A$6:$AC$390,12,FALSE),0) -> 0 | BD132: 0
AY133: 0 | BB133: =IFERROR(VLOOKUP(AY133,'EmpGenInfo(ESS1P)'!$A$6:$AC$390,3,FALSE),0) -> 0 | BC133: =IFERROR(VLOOKUP(AY133,'EmpGenInfo(ESS1P)'!$A$6:$AC$390,12,FALSE),0) -> 0 | BD133: 0
AY134: 0 | BB134: =IFERROR(VLOOKUP(AY134,'EmpGenInfo(ESS1P)'!$A$6:$AC$390,3,FALSE),0) -> 0 | BC134: =IFERROR(VLOOKUP(AY134,'EmpGenInfo(ESS1P)'!$A$6:$AC$390,12,FALSE),0) -> 0 | BD134: 0
AY135: 0 | BB135: =IFERROR(VLOOKUP(AY135,'EmpGenInfo(ESS1P)'!$A$6:$AC$390,3,FALSE),0) -> 0 | BC135: =IFERROR(VLOOKUP(AY135,'EmpGenInfo(ESS1P)'!$A$6:$AC$390,12,FALSE),0) -> 0 | BD135: 0
AY136: =S136 -> 0 | BB136: =IFERROR(VLOOKUP(AY136,'EmpGenInfo(ESS1P)'!$A$6:$AC$390,3,FALSE),0) -> 0 | BC136: =IFERROR(VLOOKUP(AY136,'EmpGenInfo(ESS1P)'!$A$6:$AC$390,12,FALSE),0) -> 0 | BD136: =AP136*100/15 -> 0
AY137: 0 | BB137: =IFERROR(VLOOKUP(AY137,'EmpGenInfo(ESS1P)'!$A$6:$AC$390,3,FALSE),0) -> 0 | BC137: =IFERROR(VLOOKUP(AY137,'EmpGenInfo(ESS1P)'!$A$6:$AC$390,12,FALSE),0) -> 0 | BD137: 0
AY138: 0 | BB138: =IFERROR(VLOOKUP(AY138,'EmpGenInfo(ESS1P)'!$A$6:$AC$390,3,FALSE),0) -> 0 | BC138: =IFERROR(VLOOKUP(AY138,'EmpGenInfo(ESS1P)'!$A$6:$AC$390,12,FALSE),0) -> 0 | BD138: 0
AY139: 0 | BB139: =IFERROR(VLOOKUP(AY139,'EmpGenInfo(ESS1P)'!$A$6:$AC$390,3,FALSE),0) -> 0 | BC139: =IFERROR(VLOOKUP(AY139,'EmpGenInfo(ESS1P)'!$A$6:$AC$390,12,FALSE),0) -> 0 | BD139: 0
AY140: 0 | BB140: =IFERROR(VLOOKUP(AY140,'EmpGenInfo(ESS1P)'!$A$6:$AC$390,3,FALSE),0) -> 0 | BC140: =IFERROR(VLOOKUP(AY140,'EmpGenInfo(ESS1P)'!$A$6:$AC$390,12,FALSE),0) -> 0 | BD140: 0
AY141: 0 | BB141: =IFERROR(VLOOKUP(AY141,'EmpGenInfo(ESS1P)'!$A$6:$AC$390,3,FALSE),0) -> 0 | BC141: =IFERROR(VLOOKUP(AY141,'EmpGenInfo(ESS1P)'!$A$6:$AC$390,12,FALSE),0) -> 0 | BD141: 0
AY142: 0 | BB142: =IFERROR(VLOOKUP(AY142,'EmpGenInfo(ESS1P)'!$A$6:$AC$390,3,FALSE),0) -> 0 | BC142: =IFERROR(VLOOKUP(AY142,'EmpGenInfo(ESS1P)'!$A$6:$AC$390,12,FALSE),0) -> 0 | BD142: 0
AY143: 0 | BB143: =IFERROR(VLOOKUP(AY143,'EmpGenInfo(ESS1P)'!$A$6:$AC$390,3,FALSE),0) -> 0 | BC143: =IFERROR(VLOOKUP(AY143,'EmpGenInfo(ESS1P)'!$A$6:$AC$390,12,FALSE),0) -> 0 | BD143: 0
AY144: 0 | BB144: =IFERROR(VLOOKUP(AY144,'EmpGenInfo(ESS1P)'!$A$6:$AC$390,3,FALSE),0) -> 0 | BC144: =IFERROR(VLOOKUP(AY144,'EmpGenInfo(ESS1P)'!$A$6:$AC$390,12,FALSE),0) -> 0 | BD144: 0
AY145: 0 | AZ145: =IFERROR(RIGHT(V145,LEN(V145)-FIND(" ",V145)),"") ->  | BA145: =IFERROR(LEFT(V145,FIND(" ",V145,1)-1),"") ->  | BB145: =IFERROR(VLOOKUP(AY145,'EmpGenInfo(ESS1P)'!$A$6:$AC$390,3,FALSE),0) -> 0 | BC145: =IFERROR(VLOOKUP(AY145,'EmpGenInfo(ESS1P)'!$A$6:$AC$390,12,FALSE),0) -> 0 | BD145: 0
AY146: 0 | BB146: =IFERROR(VLOOKUP(AY146,'EmpGenInfo(ESS1P)'!$A$6:$AC$390,3,FALSE),0) -> 0 | BC146: =IFERROR(VLOOKUP(AY146,'EmpGenInfo(ESS1P)'!$A$6:$AC$390,12,FALSE),0) -> 0 | BD146: 0
AY147: 0 | BB147: =IFERROR(VLOOKUP(AY147,'EmpGenInfo(ESS1P)'!$A$6:$AC$390,3,FALSE),0) -> 0 | BC147: =IFERROR(VLOOKUP(AY147,'EmpGenInfo(ESS1P)'!$A$6:$AC$390,12,FALSE),0) -> 0 | BD147: 0
AY148: 0 | BB148: =IFERROR(VLOOKUP(AY148,'EmpGenInfo(ESS1P)'!$A$6:$AC$390,3,FALSE),0) -> 0 | BC148: =IFERROR(VLOOKUP(AY148,'EmpGenInfo(ESS1P)'!$A$6:$AC$390,12,FALSE),0) -> 0 | BD148: 0
AY149: 0 | BB149: =IFERROR(VLOOKUP(AY149,'EmpGenInfo(ESS1P)'!$A$6:$AC$390,3,FALSE),0) -> 0 | BC149: =IFERROR(VLOOKUP(AY149,'EmpGenInfo(ESS1P)'!$A$6:$AC$390,12,FALSE),0) -> 0 | BD149: 0
AY150: 0 | BB150: =IFERROR(VLOOKUP(AY150,'EmpGenInfo(ESS1P)'!$A$6:$AC$390,3,FALSE),0) -> 0 | BC150: =IFERROR(VLOOKUP(AY150,'EmpGenInfo(ESS1P)'!$A$6:$AC$390,12,FALSE),0) -> 0 | BD150: 0
AY151: 0 | BB151: =IFERROR(VLOOKUP(AY151,'EmpGenInfo(ESS1P)'!$A$6:$AC$390,3,FALSE),0) -> 0 | BC151: =IFERROR(VLOOKUP(AY151,'EmpGenInfo(ESS1P)'!$A$6:$AC$390,12,FALSE),0) -> 0 | BD151: 0
AY152: 0 | BB152: =IFERROR(VLOOKUP(AY152,'EmpGenInfo(ESS1P)'!$A$6:$AC$390,3,FALSE),0) -> 0 | BC152: =IFERROR(VLOOKUP(AY152,'EmpGenInfo(ESS1P)'!$A$6:$AC$390,12,FALSE),0) -> 0 | BD152: 0
AY153: 0 | BB153: =IFERROR(VLOOKUP(AY153,'EmpGenInfo(ESS1P)'!$A$6:$AC$390,3,FALSE),0) -> 0 | BC153: =IFERROR(VLOOKUP(AY153,'EmpGenInfo(ESS1P)'!$A$6:$AC$390,12,FALSE),0) -> 0 | BD153: 0
AY154: 0 | BB154: =IFERROR(VLOOKUP(AY154,'EmpGenInfo(ESS1P)'!$A$6:$AC$390,3,FALSE),0) -> 0 | BC154: =IFERROR(VLOOKUP(AY154,'EmpGenInfo(ESS1P)'!$A$6:$AC$390,12,FALSE),0) -> 0 | BD154: 0
AY155: 0 | BB155: =IFERROR(VLOOKUP(AY155,'EmpGenInfo(ESS1P)'!$A$6:$AC$390,3,FALSE),0) -> 0 | BC155: =IFERROR(VLOOKUP(AY155,'EmpGenInfo(ESS1P)'!$A$6:$AC$390,12,FALSE),0) -> 0 | BD155: 0
AY156: 0 | BB156: =IFERROR(VLOOKUP(AY156,'EmpGenInfo(ESS1P)'!$A$6:$AC$390,3,FALSE),0) -> 0 | BC156: =IFERROR(VLOOKUP(AY156,'EmpGenInfo(ESS1P)'!$A$6:$AC$390,12,FALSE),0) -> 0 | BD156: 0
AY157: 0 | BB157: =IFERROR(VLOOKUP(AY157,'EmpGenInfo(ESS1P)'!$A$6:$AC$390,3,FALSE),0) -> 0 | BC157: =IFERROR(VLOOKUP(AY157,'EmpGenInfo(ESS1P)'!$A$6:$AC$390,12,FALSE),0) -> 0 | BD157: 0
AY158: 0 | BB158: =IFERROR(VLOOKUP(AY158,'EmpGenInfo(ESS1P)'!$A$6:$AC$390,3,FALSE),0) -> 0 | BC158: =IFERROR(VLOOKUP(AY158,'EmpGenInfo(ESS1P)'!$A$6:$AC$390,12,FALSE),0) -> 0 | BD158: 0
AY159: 0 | BB159: =IFERROR(VLOOKUP(AY159,'EmpGenInfo(ESS1P)'!$A$6:$AC$390,3,FALSE),0) -> 0 | BC159: =IFERROR(VLOOKUP(AY159,'EmpGenInfo(ESS1P)'!$A$6:$AC$390,12,FALSE),0) -> 0 | BD159: 0
AY160: 0 | BB160: =IFERROR(VLOOKUP(AY160,'EmpGenInfo(ESS1P)'!$A$6:$AC$390,3,FALSE),0) -> 0 | BC160: =IFERROR(VLOOKUP(AY160,'EmpGenInfo(ESS1P)'!$A$6:$AC$390,12,FALSE),0) -> 0 | BD160: 0
AY161: 0 | BB161: =IFERROR(VLOOKUP(AY161,'EmpGenInfo(ESS1P)'!$A$6:$AC$390,3,FALSE),0) -> 0 | BC161: =IFERROR(VLOOKUP(AY161,'EmpGenInfo(ESS1P)'!$A$6:$AC$390,12,FALSE),0) -> 0 | BD161: 0
AY162: 0 | BB162: =IFERROR(VLOOKUP(AY162,'EmpGenInfo(ESS1P)'!$A$6:$AC$390,3,FALSE),0) -> 0 | BC162: =IFERROR(VLOOKUP(AY162,'EmpGenInfo(ESS1P)'!$A$6:$AC$390,12,FALSE),0) -> 0 | BD162: 0
AY163: 0 | BB163: =IFERROR(VLOOKUP(AY163,'EmpGenInfo(ESS1P)'!$A$6:$AC$390,3,FALSE),0) -> 0 | BC163: =IFERROR(VLOOKUP(AY163,'EmpGenInfo(ESS1P)'!$A$6:$AC$390,12,FALSE),0) -> 0 | BD163: 0
AY164: 0 | BB164: =IFERROR(VLOOKUP(AY164,'EmpGenInfo(ESS1P)'!$A$6:$AC$390,3,FALSE),0) -> 0 | BC164: =IFERROR(VLOOKUP(AY164,'EmpGenInfo(ESS1P)'!$A$6:$AC$390,12,FALSE),0) -> 0 | BD164: 0
AY165: 0 | BB165: =IFERROR(VLOOKUP(AY165,'EmpGenInfo(ESS1P)'!$A$6:$AC$390,3,FALSE),0) -> 0 | BC165: =IFERROR(VLOOKUP(AY165,'EmpGenInfo(ESS1P)'!$A$6:$AC$390,12,FALSE),0) -> 0 | BD165: 0
AY166: 0 | BB166: =IFERROR(VLOOKUP(AY166,'EmpGenInfo(ESS1P)'!$A$6:$AC$390,3,FALSE),0) -> 0 | BC166: =IFERROR(VLOOKUP(AY166,'EmpGenInfo(ESS1P)'!$A$6:$AC$390,12,FALSE),0) -> 0 | BD166: 0
AY167: 0 | BB167: =IFERROR(VLOOKUP(AY167,'EmpGenInfo(ESS1P)'!$A$6:$AC$390,3,FALSE),0) -> 0 | BC167: =IFERROR(VLOOKUP(AY167,'EmpGenInfo(ESS1P)'!$A$6:$AC$390,12,FALSE),0) -> 0 | BD167: 0
AY168: 0 | BB168: =IFERROR(VLOOKUP(AY168,'EmpGenInfo(ESS1P)'!$A$6:$AC$390,3,FALSE),0) -> 0 | BC168: =IFERROR(VLOOKUP(AY168,'EmpGenInfo(ESS1P)'!$A$6:$AC$390,12,FALSE),0) -> 0 | BD168: 0
AY169: 0 | BB169: =IFERROR(VLOOKUP(AY169,'EmpGenInfo(ESS1P)'!$A$6:$AC$390,3,FALSE),0) -> 0 | BC169: =IFERROR(VLOOKUP(AY169,'EmpGenInfo(ESS1P)'!$A$6:$AC$390,12,FALSE),0) -> 0 | BD169: 0
AY170: 0 | BB170: =IFERROR(VLOOKUP(AY170,'EmpGenInfo(ESS1P)'!$A$6:$AC$390,3,FALSE),0) -> 0 | BC170: =IFERROR(VLOOKUP(AY170,'EmpGenInfo(ESS1P)'!$A$6:$AC$390,12,FALSE),0) -> 0 | BD170: 0
AY171: 0 | BB171: =IFERROR(VLOOKUP(AY171,'EmpGenInfo(ESS1P)'!$A$6:$AC$390,3,FALSE),0) -> 0 | BC171: =IFERROR(VLOOKUP(AY171,'EmpGenInfo(ESS1P)'!$A$6:$AC$390,12,FALSE),0) -> 0 | BD171: 0
AY172: 0 | BB172: =IFERROR(VLOOKUP(AY172,'EmpGenInfo(ESS1P)'!$A$6:$AC$390,3,FALSE),0) -> 0 | BC172: =IFERROR(VLOOKUP(AY172,'EmpGenInfo(ESS1P)'!$A$6:$AC$390,12,FALSE),0) -> 0 | BD172: 0
AY173: 0 | BB173: =IFERROR(VLOOKUP(AY173,'EmpGenInfo(ESS1P)'!$A$6:$AC$390,3,FALSE),0) -> 0 | BC173: =IFERROR(VLOOKUP(AY173,'EmpGenInfo(ESS1P)'!$A$6:$AC$390,12,FALSE),0) -> 0 | BD173: 0
AY174: 0 | BB174: =IFERROR(VLOOKUP(AY174,'EmpGenInfo(ESS1P)'!$A$6:$AC$390,3,FALSE),0) -> 0 | BC174: =IFERROR(VLOOKUP(AY174,'EmpGenInfo(ESS1P)'!$A$6:$AC$390,12,FALSE),0) -> 0 | BD174: 0
AY175: 0 | BB175: =IFERROR(VLOOKUP(AY175,'EmpGenInfo(ESS1P)'!$A$6:$AC$390,3,FALSE),0) -> 0 | BC175: =IFERROR(VLOOKUP(AY175,'EmpGenInfo(ESS1P)'!$A$6:$AC$390,12,FALSE),0) -> 0 | BD175: 0
AY176: 0 | BB176: =IFERROR(VLOOKUP(AY176,'EmpGenInfo(ESS1P)'!$A$6:$AC$390,3,FALSE),0) -> 0 | BC176: =IFERROR(VLOOKUP(AY176,'EmpGenInfo(ESS1P)'!$A$6:$AC$390,12,FALSE),0) -> 0 | BD176: 0
AY177: 0 | BB177: =IFERROR(VLOOKUP(AY177,'EmpGenInfo(ESS1P)'!$A$6:$AC$390,3,FALSE),0) -> 0 | BC177: =IFERROR(VLOOKUP(AY177,'EmpGenInfo(ESS1P)'!$A$6:$AC$390,12,FALSE),0) -> 0 | BD177: 0
AY178: 0 | BB178: =IFERROR(VLOOKUP(AY178,'EmpGenInfo(ESS1P)'!$A$6:$AC$390,3,FALSE),0) -> 0 | BC178: =IFERROR(VLOOKUP(AY178,'EmpGenInfo(ESS1P)'!$A$6:$AC$390,12,FALSE),0) -> 0 | BD178: 0
AY179: 0 | BB179: =IFERROR(VLOOKUP(AY179,'EmpGenInfo(ESS1P)'!$A$6:$AC$390,3,FALSE),0) -> 0 | BC179: =IFERROR(VLOOKUP(AY179,'EmpGenInfo(ESS1P)'!$A$6:$AC$390,12,FALSE),0) -> 0 | BD179: 0
AY180: 0 | BB180: =IFERROR(VLOOKUP(AY180,'EmpGenInfo(ESS1P)'!$A$6:$AC$390,3,FALSE),0) -> 0 | BC180: =IFERROR(VLOOKUP(AY180,'EmpGenInfo(ESS1P)'!$A$6:$AC$390,12,FALSE),0) -> 0 | BD180: 0
AY181: 0 | BB181: =IFERROR(VLOOKUP(AY181,'EmpGenInfo(ESS1P)'!$A$6:$AC$390,3,FALSE),0) -> 0 | BC181: =IFERROR(VLOOKUP(AY181,'EmpGenInfo(ESS1P)'!$A$6:$AC$390,12,FALSE),0) -> 0 | BD181: 0
AY182: 0 | BB182: =IFERROR(VLOOKUP(AY182,'EmpGenInfo(ESS1P)'!$A$6:$AC$390,3,FALSE),0) -> 0 | BC182: =IFERROR(VLOOKUP(AY182,'EmpGenInfo(ESS1P)'!$A$6:$AC$390,12,FALSE),0) -> 0 | BD182: 0
AY183: 0 | BB183: =IFERROR(VLOOKUP(AY183,'EmpGenInfo(ESS1P)'!$A$6:$AC$390,3,FALSE),0) -> 0 | BC183: =IFERROR(VLOOKUP(AY183,'EmpGenInfo(ESS1P)'!$A$6:$AC$390,12,FALSE),0) -> 0 | BD183: 0
AY184: 0 | BB184: =IFERROR(VLOOKUP(AY184,'EmpGenInfo(ESS1P)'!$A$6:$AC$390,3,FALSE),0) -> 0 | BC184: =IFERROR(VLOOKUP(AY184,'EmpGenInfo(ESS1P)'!$A$6:$AC$390,12,FALSE),0) -> 0 | BD184: 0
AY185: 0 | BB185: =IFERROR(VLOOKUP(AY185,'EmpGenInfo(ESS1P)'!$A$6:$AC$390,3,FALSE),0) -> 0 | BC185: =IFERROR(VLOOKUP(AY185,'EmpGenInfo(ESS1P)'!$A$6:$AC$390,12,FALSE),0) -> 0 | BD185: 0
AY186: 0 | BB186: =IFERROR(VLOOKUP(AY186,'EmpGenInfo(ESS1P)'!$A$6:$AC$390,3,FALSE),0) -> 0 | BC186: =IFERROR(VLOOKUP(AY186,'EmpGenInfo(ESS1P)'!$A$6:$AC$390,12,FALSE),0) -> 0 | BD186: 0
AY187: 0 | BB187: =IFERROR(VLOOKUP(AY187,'EmpGenInfo(ESS1P)'!$A$6:$AC$390,3,FALSE),0) -> 0 | BC187: =IFERROR(VLOOKUP(AY187,'EmpGenInfo(ESS1P)'!$A$6:$AC$390,12,FALSE),0) -> 0 | BD187: 0
AY188: 0 | BB188: =IFERROR(VLOOKUP(AY188,'EmpGenInfo(ESS1P)'!$A$6:$AC$390,3,FALSE),0) -> 0 | BC188: =IFERROR(VLOOKUP(AY188,'EmpGenInfo(ESS1P)'!$A$6:$AC$390,12,FALSE),0) -> 0 | BD188: 0
AY189: 0 | BB189: =IFERROR(VLOOKUP(AY189,'EmpGenInfo(ESS1P)'!$A$6:$AC$390,3,FALSE),0) -> 0 | BC189: =IFERROR(VLOOKUP(AY189,'EmpGenInfo(ESS1P)'!$A$6:$AC$390,12,FALSE),0) -> 0 | BD189: 0
AY190: 0 | BB190: =IFERROR(VLOOKUP(AY190,'EmpGenInfo(ESS1P)'!$A$6:$AC$390,3,FALSE),0) -> 0 | BC190: =IFERROR(VLOOKUP(AY190,'EmpGenInfo(ESS1P)'!$A$6:$AC$390,12,FALSE),0) -> 0 | BD190: 0
AY191: 0 | BB191: =IFERROR(VLOOKUP(AY191,'EmpGenInfo(ESS1P)'!$A$6:$AC$390,3,FALSE),0) -> 0 | BC191: =IFERROR(VLOOKUP(AY191,'EmpGenInfo(ESS1P)'!$A$6:$AC$390,12,FALSE),0) -> 0 | BD191: 0
AY192: 0 | BB192: =IFERROR(VLOOKUP(AY192,'EmpGenInfo(ESS1P)'!$A$6:$AC$390,3,FALSE),0) -> 0 | BC192: =IFERROR(VLOOKUP(AY192,'EmpGenInfo(ESS1P)'!$A$6:$AC$390,12,FALSE),0) -> 0 | BD192: 0
AY193: 0 | BB193: =IFERROR(VLOOKUP(AY193,'EmpGenInfo(ESS1P)'!$A$6:$AC$390,3,FALSE),0) -> 0 | BC193: =IFERROR(VLOOKUP(AY193,'EmpGenInfo(ESS1P)'!$A$6:$AC$390,12,FALSE),0) -> 0 | BD193: 0
AY194: 0 | BB194: =IFERROR(VLOOKUP(AY194,'EmpGenInfo(ESS1P)'!$A$6:$AC$390,3,FALSE),0) -> 0 | BC194: =IFERROR(VLOOKUP(AY194,'EmpGenInfo(ESS1P)'!$A$6:$AC$390,12,FALSE),0) -> 0 | BD194: 0
AY195: 0 | BB195: =IFERROR(VLOOKUP(AY195,'EmpGenInfo(ESS1P)'!$A$6:$AC$390,3,FALSE),0) -> 0 | BC195: =IFERROR(VLOOKUP(AY195,'EmpGenInfo(ESS1P)'!$A$6:$AC$390,12,FALSE),0) -> 0 | BD195: 0
AY196: 0 | BB196: =IFERROR(VLOOKUP(AY196,'EmpGenInfo(ESS1P)'!$A$6:$AC$390,3,FALSE),0) -> 0 | BC196: =IFERROR(VLOOKUP(AY196,'EmpGenInfo(ESS1P)'!$A$6:$AC$390,12,FALSE),0) -> 0 | BD196: 0
AY197: 0 | BB197: =IFERROR(VLOOKUP(AY197,'EmpGenInfo(ESS1P)'!$A$6:$AC$390,3,FALSE),0) -> 0 | BC197: =IFERROR(VLOOKUP(AY197,'EmpGenInfo(ESS1P)'!$A$6:$AC$390,12,FALSE),0) -> 0 | BD197: 0
AY198: 0 | BB198: =IFERROR(VLOOKUP(AY198,'EmpGenInfo(ESS1P)'!$A$6:$AC$390,3,FALSE),0) -> 0 | BC198: =IFERROR(VLOOKUP(AY198,'EmpGenInfo(ESS1P)'!$A$6:$AC$390,12,FALSE),0) -> 0 | BD198: 0
AY199: 0 | BB199: =IFERROR(VLOOKUP(AY199,'EmpGenInfo(ESS1P)'!$A$6:$AC$390,3,FALSE),0) -> 0 | BC199: =IFERROR(VLOOKUP(AY199,'EmpGenInfo(ESS1P)'!$A$6:$AC$390,12,FALSE),0) -> 0 | BD199: 0
AY200: =S200 -> 0 | BB200: =IFERROR(VLOOKUP(AY200,'EmpGenInfo(ESS1P)'!$A$6:$AC$390,3,FALSE),0) -> 0 | BC200: =IFERROR(VLOOKUP(AY200,'EmpGenInfo(ESS1P)'!$A$6:$AC$390,12,FALSE),0) -> 0 | BD200: =AP200*100/15 -> 0
AY201: 0 | BB201: =IFERROR(VLOOKUP(AY201,'EmpGenInfo(ESS1P)'!$A$6:$AC$390,3,FALSE),0) -> 0 | BC201: =IFERROR(VLOOKUP(AY201,'EmpGenInfo(ESS1P)'!$A$6:$AC$390,12,FALSE),0) -> 0 | BD201: 0
... 299 more rows

Sheet P10-Report (hidden)
D2: P10 -Returns
A3: Year | B3: 2023
A4: Month | B4: January

Sheet Payslip (hidden)
A2: Company Name | B2: BRAVE LION'S BRAIN
A3: Company Mobile | B3: 713883912
A4: Company Email Address | B4: bravelionsbrainconsultancy@gmail.com
A5: Company Month Of Payment | B5: January | F5: Pay Slip Generator | AK5: PAYE SLIP DATA
A6: Compay Year Of Payment | B6: 2023 | AA6: Criteria | AB6: Criteria | AC6: Criteria | AE6: Criteria | CU6: Criteria | CV6: Criteria
AA7: Employee Number | AB7: Month Of Filling | AC7: years | AE7: Employee ID | AK7: Employee Number | AL7: Month Of Filling | AM7: Pin Of Employee | AN7: Name Of Employee | AO7: Residental-Status | AP7: Type of Employee | AQ7: Basic Salary | AR7: Housing Allowance | AS7: Transport Allowance | AT7: Leave Pay | AU7: Director's Fee | AV7: Lumpsum | AW7: Other Allowance | AX7: Total Cash Paye | AY7: Car Benefit | AZ7: Other Non-Cash Benefit | BA7: Total Non-Cash Pay | BB7: Net-Value Of Housing | BC7: Total Gross Pay | BD7: Pension | BE7: Mortgage Interest | BF7: HOSP | BG7: Monthly Relief | BH7: Insurance Relief | BI7: Paye | BJ7: Type Of Housing | BK7: Over Time Allowance | BL7: years | BM7: Employee ID | BN7: Empoyee Name | BO7: ID Number | BP7: Address | BQ7: Email Address | BR7: Postal Code | BS7: Date Of Employment | BT7: Phone Number | BU7: Employee Type | BV7: KRA NO | BW7: NSSF NO | BX7: NHIF NO | BY7: Job Title | BZ7: Gender | CA7: Bank Name | CB7: Bank Branch | CC7: Bank Code | CD7: Branch Code | CE7: Bank Account | CF7: Basic Salary | CG7: Housing Allowance | CH7: Transport Allowance | CI7: Leave Pay | CJ7: Director's Fee | CK7: Lumpsum | CL7: Other Allowance | CM7: Car Benefit | CN7: Other Non-Cash Benefit | CO7: Overtime Allowance | CU7: Month Of Filling | CV7: years | CY7: Employee Number
AA8: =G17 -> 0 | AB8: =B5 -> January | AC8: =B6 -> 2023 | AE8: =G17 -> 0 | AK8: 14 | AL8: January | AM8: A03467623670P | AN8: Gitau Harrison Kithi | AO8: Resident | AP8: Primary Employee | AQ8: 55000 | AX8: 55000 | BA8: 0 | BC8: 55000 | BD8: 1080 | BG8: 2400 | BH8: 180 | BI8: 8379.35 | BJ8: Benefit not given | BL8: 2023 | BM8: 14 | BN8: Gitau Harrison Kithi | BO8: 35267812 | BP8: 436UEU | BQ8: ghk2346@gamil.com | BR8: 34786 | BS8: 2023-01-01 | BT8: 739456712 | BU8: Permanent/Skilled Worker | BV8: A03467623670P | BW8: 238947 | BX8: 876348 | BY8: Admin | BZ8: Male | CA8: KCB | CB8: MAJENGO | CC8: 347889 | CD8: 73467 | CE8: 932476 | CF8: 55000 | CP8: TOTAL CASH BENEFIT | CQ8: =G27+G30+G32+G34+G36+G38+G40+G42 -> 0 | CU8: =B5 -> January | CV8: =B6 -> 2023 | CY8: 1 | CZ8: NHIF | DA8: =100*BH8/15 -> 1200
CP9: TOTAL DEDUCTION | CQ9: =K30+K32+K34+K37+K39+K41+K43 -> 0 | CY9: 2
H10: Paye Slip | CP10: NET PAY: | CQ10: =CQ8-CQ9 -> 0 | CY10: 3
CY11: 4
CY12: 5
K13: Emp Pin NO: | CY13: 6
K14: PAY DATE | L14: PAY MONTH | M14: PAY YEAR | CY14: 7
CY15: 8
F16: Employee Pay Saummary | CY16: 9
F17: Employee ID | CY17: 10
F18: Employee Name | L18: Cash Beneifts: | CY18: 11
F19: ID Number | L19: Total Gross Pay: | CY19: 12
F20: Employee Date Of Employment | CY20: 14
F21: Postal Code | L21: Total Deductions:
F22: Email Address
F23: Job Title | L23: Net Pay:
F24: Account Number
F25: Details
F27: Basic Salary:
F29: Cash Beneifts: | J29: Allowable Deduction:
F30: Housing Allowance | J30: NSSF
F32: Transport Allowance | J32: Mortgage Interest
F34: Leave Pay | J34: Proffesional Fee
F36: Director's Fee | J36: Other Deductions:
J37: NHIF
F38: Other Allowance
J39: Paye
F40: Arrears
J41: Loan Repayment
F42: Over Time Allowance
J43: Advance
F45: Total Cash Benefits: | J45: Total Deduction:
G52: Thank You For working with us it’s been nice working with you
G53: But remember use your money for good!!!

Sheet P9A (hidden)
A1: Pesion Set Limit | B1: 20000 | CG1: 0
A2: Personal Relief | B2: 2400
E6: DOMESTIC TAXES DEPARTMENT
A7: P9 A | E7: TAX DEDUCTION CARD YEAR | G7: 2023
A8: Employers Name | J8: Employer's PIN
A9: Empoyee's Name | B9: Brian Kombe Gode
A10: Employee's Other Name | J10: Employee's PIN | L10: A34578678450P
A11: MONTH | B11: Basic | C11: Allowance & | D11: Net Value of | E11: Total Gross | F11: Defined Contribution | I11: Owner- | J11: Retirement | K11: Chargerble | L11: Tax | M11: Personal | N11: Insurance | O11: Paye Tax
B12: Salary | C12: Benefit from | D12: Quarters | E12: pay | F12: Retirment Scheme | I12: Occupied | J12: Contribution | K12: Pay | L12: Charged | M12: Relief | N12: Relief | O12: (J-K)
C13: employment(other | I13: Interest | J13: &Owner
C14: than car & Housing) | E14: (A+B+C) | J14: Occupied
J15: Interest | K15: (D-F) | CE15: =B9 -> Brian Kombe Gode
B17: Kshs. | C17: Kshs. | D17: Kshs. | E17: Kshs. | F17: Kshs. | I17: Kshs. | J17: Kshs. | K17: Kshs. | L17: Kshs. | M17: Kshs. | N17: Kshs. | O17: Kshs. | BA17: RESULT FOR P9 FORM
B19: A | C19: B | D19: C | E19: D | F19: E | I19: F | J19: G | K19: H | L19: J | M19: K | O19: L | CE19: Month | CF19: A | CG19: B | CH19: C | CI19: D | CJ19: E | CM19: F | CN19: G | CO19: H | CP19: J | CQ19: K | CS19: L
F20: E1 | G20: E2 | H20: E3 | I20: Amount of | J20: The Lowest | CJ20: E1 | CK20: E2 | CL20: E3 | CM20: Amount of | CN20: The Lowest
F21: 0.3 | I21: Interest | J21: of E added to | M21: Total | AX21: Criteria Range | AY21: Criteria Range | CJ21: 0.3 | CM21: Interest | CN21: of E added to | CQ21: Total
F22: OF A | G22: Actual | H22: Fixed | J22: F | M22: Kshs. | AX22: years | AY22: Name Of Employee | BA22: Employee Number | BB22: Month Of Filling | BC22: Pin Of Employee | BD22: Name Of Employee | BE22: Residental-Status | BF22: Type of Employee | BG22: Basic Salary | BH22: Housing Allowance | BI22: Transport Allowance | BJ22: Leave Pay | BK22: Director's Fee | BL22: Lumpsum | BM22: Other Allowance | BN22: Total Cash Paye | BO22: Car Benefit | BP22: Other Non-Cash Benefit | BQ22: Total Non-Cash Pay | BR22: Net-Value Of Housing | BS22: Total Gross Pay | BT22: Pension | BU22: Mortgage Interest | BV22: HOSP | BW22: Monthly Relief | BX22: Insurance Relief | BY22: Paye | BZ22: Type Of Housing | CA22: Over Time Allowance | CB22: years | CC22: Total Benefit Except Car | CJ22: OF A | CK22: Actual | CL22: Fixed | CN22: F | CQ22: Kshs.
A23: January | B23: 60000 | C23: 0 | D23: 0 | E23: 60000 | F23: 18000 | G23: 1080 | H23: 20000 | I23: 0 | J23: 1080 | K23: 58920 | L23: 12459.35 | M23: 2400 | N23: 195 | O23: 9864.35 | AX23: =$G$7 -> 2023 | AY23: =B9 -> Brian Kombe Gode | BA23: 1 | BB23: January | BC23: A34578678450P | BD23: Brian Kombe Gode | BE23: Resident | BF23: Primary Employee | BG23: 60000 | BN23: 60000 | BQ23: 0 | BS23: 60000 | BT23: 1080 | BW23: 2400 | BX23: 195 | BY23: 9864.35 | BZ23: Benefit not given | CB23: 2023 | CC23: =BH23+BI23+BJ23+BK23+BL23+BM23+BP23 -> 0 | CE23: January | CF23: =IFERROR(SUMIF($BB$23:$BB$34,CE23,$BG$23:$BG$34),0) -> 60000 | CG23: =IFERROR(SUMIF($BB$23:$BB$34,CE23,$CC$23:$CC$34),0) -> 0 | CH23: =IFERROR(SUMIF($BB$23:$BB$34,CE23,$BR$23:$BR$34),0) -> 0 | CI23: =CF23+CG23+CH23 -> 60000 | CJ23: =IFERROR(CF23*$F$21,0) -> 18000 | CK23: =IFERROR(SUMIF($BB$23:$BB$34,CE23,$BT$23:$BT$34),0) -> 1080 | CL23: =IFERROR($B$1,0) -> 20000 | CM23: =IFERROR(SUMIF($BB$23:$BB$34,CE23,$BV$23:$BV$34),0) -> 0 | CN23: =IFERROR(CM23+MIN(CJ23:CL23),0) -> 1080 | CO23: =IFERROR(CI23-CN23,0) -> 58920 | CP23: =IFERROR(IF((CO23-$CV$25)>1,$CV$25*$CW$25,0)+IF((CO23-$CV$25)>$CV$26,$CV$26*$CW$26,IF(AND((CO23-$CV$25)<$CV$26,(CO23-$CV$25)>0),((CO23-$CV$25)/$CV$26*($CV$26*$CW$26)),0))+IF((CO23-$CV$25-$CV$26)>$CV$27,(CO23-$CV$27)*$CW$27,IF(AND((CO23-$CV$25-$CV$26)<$CV$27,(CO23-$CV$25-$CV$26)>0),((CO23-$CV$25-$CV$26)/$CV$27*($CV$27*$CW$27)),0)),0) -> 12459.35 | CQ23: =IFERROR($B$2,0) -> 2400 | CR23: =IFERROR(SUMIF($BB$23:$BB$34,CE23,$BX$23:$BX$34),0) -> 195 | CS23: =IFERROR(IF(CP23-SUM(CQ23:CR23)<0,0,CP23-SUM(CQ23:CR23)),0) -> 9864.35 | CV23: Paye Normal
A24: February | B24: 60000 | C24: 0 | D24: 0 | E24: 60000 | F24: 18000 | G24: 1080 | H24: 20000 | I24: 0 | J24: 1080 | K24: 58920 | L24: 12459.35 | M24: 2400 | N24: 195 | O24: 9864.35 | BA24: 1 | BB24: February | BC24: A34578678450P | BD24: Brian Kombe Gode | BE24: Resident | BF24: Primary Employee | BG24: 60000 | BN24: 60000 | BQ24: 0 | BS24: 60000 | BT24: 1080 | BW24: 2400 | BX24: 195 | BY24: 9864.35 | BZ24: Benefit not given | CB24: 2023 | CC24: 0 | CE24: February | CF24: =IFERROR(SUMIF($BB$23:$BB$34,CE24,$BG$23:$BG$34),0) -> 60000 | CG24: 0 | CH24: 0 | CI24: =CF24+CG24+CH24 -> 60000 | CJ24: =IFERROR(CF24*$F$21,0) -> 18000 | CK24: =IFERROR(SUMIF($BB$23:$BB$34,CE24,$BT$23:$BT$34),0) -> 1080 | CL24: =IFERROR($B$1,0) -> 20000 | CM24: 0 | CN24: =IFERROR(CM24+MIN(CJ24:CL24),0) -> 1080 | CO24: =IFERROR(CI24-CN24,0) -> 58920 | CP24: =IFERROR(IF((CO24-$CV$25)>1,$CV$25*$CW$25,0)+IF((CO24-$CV$25)>$CV$26,$CV$26*$CW$26,IF(AND((CO24-$CV$25)<$CV$26,(CO24-$CV$25)>0),((CO24-$CV$25)/$CV$26*($CV$26*$CW$26)),0))+IF((CO24-$CV$25-$CV$26)>$CV$27,(CO24-$CV$27)*$CW$27,IF(AND((CO24-$CV$25-$CV$26)<$CV$27,(CO24-$CV$25-$CV$26)>0),((CO24-$CV$25-$CV$26)/$CV$27*($CV$27*$CW$27)),0)),0) -> 12459.35 | CQ24: =IFERROR($B$2,0) -> 2400 | CR24: =IFERROR(SUMIF($BB$23:$BB$34,CE24,$BX$23:$BX$34),0) -> 195 | CS24: =IFERROR(IF(CP24-SUM(CQ24:CR24)<0,0,CP24-SUM(CQ24:CR24)),0) -> 9864.35 | CV24: NORMAL | CW24: RATES
A25: March | B25: 60000 | C25: 0 | D25: 0 | E25: 60000 | F25: 18000 | G25: 1080 | H25: 20000 | I25: 0 | J25: 1080 | K25: 58920 | L25: 12459.35 | M25: 2400 | N25: 195 | O25: 9864.35 | BA25: 1 | BB25: March | BC25: A34578678450P | BD25: Brian Kombe Gode | BE25: Resident | BF25: Primary Employee | BG25: 60000 | BN25: 60000 | BQ25: 0 | BS25: 60000 | BT25: 1080 | BW25: 2400 | BX25: 195 | BY25: 9864.35 | BZ25: Benefit not given | CB25: 2023 | CC25: 0 | CE25: March | CF25: 60000 | CG25: 0 | CH25: 0 | CI25: 60000 | CJ25: 18000 | CK25: 1080 | CL25: 20000 | CM25: 0 | CN25: 1080 | CO25: 58920 | CP25: 12459.35 | CQ25: 2400 | CR25: 195 | CS25: 9864.35 | CV25: ='Set-Up'!$D$7 -> 24000 | CW25: ='Set-Up'!$E$7 -> 0.1 | CY25: =IFERROR(IF(($CO23-$CV$25)>1,$CV$25*CW25,0),"") -> 2400
A26: April | B26: 60000 | C26: 0 | D26: 0 | E26: 60000 | F26: 18000 | G26: 1080 | H26: 20000 | I26: 0 | J26: 1080 | K26: 58920 | L26: 12459.35 | M26: 2400 | N26: 195 | O26: 9864.35 | BA26: 1 | BB26: April | BC26: A34578678450P | BD26: Brian Kombe Gode | BE26: Resident | BF26: Primary Employee | BG26: 60000 | BN26: 60000 | BQ26: 0 | BS26: 60000 | BT26: 1080 | BW26: 2400 | BX26: 195 | BY26: 9864.35 | BZ26: Benefit not given | CB26: 2023 | CC26: 0 | CE26: April | CF26: 60000 | CG26: 0 | CH26: 0 | CI26: 60000 | CJ26: 18000 | CK26: 1080 | CL26: 20000 | CM26: 0 | CN26: 1080 | CO26: 58920 | CP26: 12459.35 | CQ26: 2400 | CR26: 195 | CS26: 9864.35 | CV26: ='Set-Up'!$D$8 -> 8333 | CW26: ='Set-Up'!$E$8 -> 0.25 | CY26: =IFERROR(IF(($CO23-$CV$25)>$CV$26,$CV$26*$CW$26,IF(AND((CO23-$CV$25)<$CV$26,(CO23-$CV$25)>0),((CO23-$CV$25)/$CV$26*($CV$26*$CW$26)),0)),0) -> 2083.25 | DB26: =IF(AND((CO23-$CV$25)<$CV$26,(CO23-$CV$25)>0),((CO23-$CV$25)/$CV$26*($CV$26*$CW$26)),0) -> 0
A27: May | B27: 60000 | C27: 0 | D27: 0 | E27: 60000 | F27: 18000 | G27: 1080 | H27: 20000 | I27: 0 | J27: 1080 | K27: 58920 | L27: 12459.35 | M27: 2400 | N27: 195 | O27: 9864.35 | BA27: 1 | BB27: May | BC27: A34578678450P | BD27: Brian Kombe Gode | BE27: Resident | BF27: Primary Employee | BG27: 60000 | BN27: 60000 | BQ27: 0 | BS27: 60000 | BT27: 1080 | BW27: 2400 | BX27: 195 | BY27: 9864.35 | BZ27: Benefit not given | CB27: 2023 | CC27: 0 | CE27: May | CF27: 60000 | CG27: 0 | CH27: 0 | CI27: 60000 | CJ27: 18000 | CK27: 1080 | CL27: 20000 | CM27: 0 | CN27: 1080 | CO27: 58920 | CP27: 12459.35 | CQ27: 2400 | CR27: 195 | CS27: 9864.35 | CV27: ='Set-Up'!$D$9 -> 32332 | CW27: ='Set-Up'!$E$9 -> 0.3 | CY27: =IFERROR(IF(($CO23-$CV$25-$CV$26)>$CV$27,($CO23-$CV$27)*$CW$27,IF(AND((CO23-$CV$25-$CV$26)<$CV$27,(CO23-$CV$25-$CV$26)>0),((CO23-$CV$25-$CV$26)/$CV$27*($CV$27*$CW$27)),0)),0) -> 7976.1 | DB27: =IF(AND((CO23-$CV$25-$CV$26)<$CV$27,(CO23-$CV$25-$CV$26)>0),((CO23-$CV$25-$CV$26)/$CV$27*($CV$27*$CW$27)),0) -> 7976.1
A28: June | B28: 60000 | C28: 0 | D28: 0 | E28: 60000 | F28: 18000 | G28: 1080 | H28: 20000 | I28: 0 | J28: 1080 | K28: 58920 | L28: 12459.35 | M28: 2400 | N28: 195 | O28: 9864.35 | BA28: 1 | BB28: June | BC28: A34578678450P | BD28: Brian Kombe Gode | BE28: Resident | BF28: Primary Employee | BG28: 60000 | BN28: 60000 | BQ28: 0 | BS28: 60000 | BT28: 1080 | BW28: 2400 | BX28: 195 | BY28: 9864.35 | BZ28: Benefit not given | CB28: 2023 | CC28: 0 | CE28: June | CF28: 60000 | CG28: 0 | CH28: 0 | CI28: 60000 | CJ28: 18000 | CK28: 1080 | CL28: 20000 | CM28: 0 | CN28: 1080 | CO28: 58920 | CP28: 12459.35 | CQ28: 2400 | CR28: 195 | CS28: 9864.35 | CY28: =SUM(CY25:CY27) -> 12459.35
A29: July | B29: 60000 | C29: 0 | D29: 0 | E29: 60000 | F29: 18000 | G29: 1080 | H29: 20000 | I29: 0 | J29: 1080 | K29: 58920 | L29: 12459.35 | M29: 2400 | N29: 195 | O29: 9864.35 | BA29: 1 | BB29: July | BC29: A34578678450P | BD29: Brian Kombe Gode | BE29: Resident | BF29: Primary Employee | BG29: 60000 | BN29: 60000 | BQ29: 0 | BS29: 60000 | BT29: 1080 | BW29: 2400 | BX29: 195 | BY29: 9864.35 | BZ29: Benefit not given | CB29: 2023 | CC29: 0 | CE29: July | CF29: 60000 | CG29: 0 | CH29: 0 | CI29: 60000 | CJ29: 18000 | CK29: 1080 | CL29: 20000 | CM29: 0 | CN29: 1080 | CO29: 58920 | CP29: 12459.35 | CQ29: 2400 | CR29: 195 | CS29: 9864.35
A30: August | B30: 60000 | C30: 0 | D30: 0 | E30: 60000 | F30: 18000 | G30: 1080 | H30: 20000 | I30: 0 | J30: 1080 | K30: 58920 | L30: 12459.35 | M30: 2400 | N30: 195 | O30: 9864.35 | BA30: 1 | BB30: August | BC30: A34578678450P | BD30: Brian Kombe Gode | BE30: Resident | BF30: Primary Employee | BG30: 60000 | BN30: 60000 | BQ30: 0 | BS30: 60000 | BT30: 1080 | BW30: 2400 | BX30: 195 | BY30: 9864.35 | BZ30: Benefit not given | CB30: 2023 | CC30: 0 | CE30: August | CF30: 60000 | CG30: 0 | CH30: 0 | CI30: 60000 | CJ30: 18000 | CK30: 1080 | CL30: 20000 | CM30: 0 | CN30: 1080 | CO30: 58920 | CP30: 12459.35 | CQ30: 2400 | CR30: 195 | CS30: 9864.35
A31: September | B31: 60000 | C31: 0 | D31: 0 | E31: 60000 | F31: 18000 | G31: 1080 | H31: 20000 | I31: 0 | J31: 1080 | K31: 58920 | L31: 12459.35 | M31: 2400 | N31: 195 | O31: 9864.35 | BA31: 1 | BB31: September | BC31: A34578678450P | BD31: Brian Kombe Gode | BE31: Resident | BF31: Primary Employee | BG31: 60000 | BN31: 60000 | BQ31: 0 | BS31: 60000 | BT31: 1080 | BW31: 2400 | BX31: 195 | BY31: 9864.35 | BZ31: Benefit not given | CB31: 2023 | CC31: 0 | CE31: September | CF31: 60000 | CG31: 0 | CH31: 0 | CI31: 60000 | CJ31: 18000 | CK31: 1080 | CL31: 20000 | CM31: 0 | CN31: 1080 | CO31: 58920 | CP31: 12459.35 | CQ31: 2400 | CR31: 195 | CS31: 9864.35
A32: October | B32: 60000 | C32: 0 | D32: 0 | E32: 60000 | F32: 18000 | G32: 1080 | H32: 20000 | I32: 0 | J32: 1080 | K32: 58920 | L32: 12459.35 | M32: 2400 | N32: 195 | O32: 9864.35 | BA32: 1 | BB32: October | BC32: A34578678450P | BD32: Brian Kombe Gode | BE32: Resident | BF32: Primary Employee | BG32: 60000 | BN32: 60000 | BQ32: 0 | BS32: 60000 | BT32: 1080 | BW32: 2400 | BX32: 195 | BY32: 9864.35 | BZ32: Benefit not given | CB32: 2023 | CC32: 0 | CE32: October | CF32: 60000 | CG32: 0 | CH32: 0 | CI32: 60000 | CJ32: 18000 | CK32: 1080 | CL32: 20000 | CM32: 0 | CN32: 1080 | CO32: 58920 | CP32: 12459.35 | CQ32: 2400 | CR32: 195 | CS32: 9864.35
A33: November | B33: 60000 | C33: 0 | D33: 0 | E33: 60000 | F33: 18000 | G33: 1080 | H33: 20000 | I33: 0 | J33: 1080 | K33: 58920 | L33: 12459.35 | M33: 2400 | N33: 195 | O33: 9864.35 | BA33: 1 | BB33: November | BC33: A34578678450P | BD33: Brian Kombe Gode | BE33: Resident | BF33: Primary Employee | BG33: 60000 | BN33: 60000 | BQ33: 0 | BS33: 60000 | BT33: 1080 | BW33: 2400 | BX33: 195 | BY33: 9864.35 | BZ33: Benefit not given | CB33: 2023 | CC33: 0 | CE33: November | CF33: 60000 | CG33: 0 | CH33: 0 | CI33: 60000 | CJ33: 18000 | CK33: 1080 | CL33: 20000 | CM33: 0 | CN33: 1080 | CO33: 58920 | CP33: 12459.35 | CQ33: 2400 | CR33: 195 | CS33: 9864.35
A34: December | B34: 60000 | C34: 0 | D34: 0 | E34: 60000 | F34: 18000 | G34: 1080 | H34: 20000 | I34: 0 | J34: 1080 | K34: 58920 | L34: 12459.35 | M34: 2400 | N34: 195 | O34: 9864.35 | BA34: 1 | BB34: December | BC34: A34578678450P | BD34: Brian Kombe Gode | BE34: Resident | BF34: Primary Employee | BG34: 60000 | BN34: 60000 | BQ34: 0 | BS34: 60000 | BT34: 1080 | BW34: 2400 | BX34: 195 | BY34: 9864.35 | BZ34: Benefit not given | CB34: 2023 | CC34: 0 | CE34: December | CF34: 60000 | CG34: 0 | CH34: 0 | CI34: 60000 | CJ34: 18000 | CK34: 1080 | CL34: 20000 | CM34: 0 | CN34: 1080 | CO34: 58920 | CP34: 12459.35 | CQ34: 2400 | CR34: 195 | CS34: 9864.35
A35: TOTALS | B35: =SUM(B23:B34) -> 720000 | C35: =SUM(C23:C34) -> 0 | D35: 0 | E35: 720000 | F35: 216000 | G35: 12960 | H35: 240000 | I35: 0 | J35: 12960 | K35: 707040 | L35: 149512.2 | M35: 28800 | N35: 2340 | O35: 118372.2 | CE35: TOTALS | CF35: =SUM(CF23:CF34) -> 720000 | CG35: =SUM(CG23:CG34) -> 0 | CH35: 0 | CI35: 720000 | CJ35: 216000 | CK35: 12960 | CL35: 240000 | CM35: 0 | CN35: 12960 | CO35: 707040 | CP35: 149512.2 | CQ35: 28800 | CR35: 2340 | CS35: 118372.2
I36: TOTAL TAX (COLL.) Kshs. | K36: =O35 -> 118372.2
A37: To be completed by Employer at end of year
A38: TOTAL CHARGEBABLE PAY(COL.H) Kshs. | C38: =K35 -> 707040
A39: IMPORTANT
A40: 1. Use P9A (a) | B40: For all liable employees and where director/employee received | J40: (b)Attach | K40: (i)Photostat copy on interest certificate and Statement Of Accout From The
B41: Benefit in additon to cash emoluments | K41: Financial Institution
A42: (b) | B42: Where an employee is eligible to deduction on owner occupied interest | K42: (ii)The DECLARATION duly signed by the empoyee
A43: 2.(a)Deductable interest in respect of any month must not exceed Kshs 12500/=
J44: NAMES OF FINANCIAL INSTITUTION ADVANCING MORTAGAGE LOAN
A45: P9A | J45: I.R NO. OF OWNER OCCUPIED PROPERTY:
J46: DATE OF OCCUPATION OF HOUSE:

Sheet EmpGenInfo(ESS1P) (hidden)
B1: E11 | J1: E9 | T1: G9 | U1: G11 | V1: G13 | W1: G15 | X1: G17 | Y1: I9 | Z1: I11 | AA1: I13 | AB1: I15 | AC1: I19
A3: EMPOYEE GENERAL INFORMATION
A5: Employee ID | B5: Empoyee Name | C5: ID Number | D5: Address | E5: Email Address | F5: Postal Code | G5: Date Of Employment | H5: Phone Number | I5: Employee Type | J5: KRA NO | K5: NSSF NO | L5: NHIF NO | M5: Job Title | N5: Gender | O5: Bank Name | P5: Bank Branch | Q5: Bank Code | R5: Branch Code | S5: Bank Account | T5: Basic Salary | U5: Housing Allowance | V5: Transport Allowance | W5: Leave Pay | X5: Director's Fee | Y5: Lumpsum | Z5: Other Allowance | AA5: Car Benefit | AB5: Other Non-Cash Benefit | AC5: Overtime Allowance | AD5: PATH
A6: 1 | B6: Brian Kombe Gode | C6: 334567890 | D6: 2347OIU | E6: bkg985 | F6: 84598 | G6: 2022-01-01 | H6: 7896543 | I6: Permanent/Skilled Worker | J6: A34578678450P | K6: 84537 | L6: 8764587 | M6: Accountant | N6: Male | O6: KCB | P6: MAJENGO | Q6: 4789 | R6: 8974 | S6: 9342434 | T6: 60000 | AD6: C:\Users\Admin\Downloads\Documents\download (1).jpg
A7: 2 | B7: Timothy Brian Odongo | C7: 2345671 | D7: 34978hk | E7: tbo47@gamil.com | F7: 34789 | G7: 2019-01-01 | H7: 737456712 | I7: Permanent/Skilled Worker | J7: A49898479409 | K7: 479347 | L7: 849237 | M7: Manager | N7: Male | O7: KCB | P7: BAMBURI | Q7: 43578 | R7: 8743 | S7: 32476487 | T7: 100000 | U7: 20000 | V7: 10000 | X7: 5000 | AD7: C:\Users\Admin\Downloads\Documents\images (4).jpg
A8: 3 | B8: Bshora Wayu Nzamo | C8: 29675430 | D8: 476JDF | E8: bwn347@gmail.com | F8: 458687 | G8: 2020-01-01 | H8: 734567820 | I8: Permanent/Skilled Worker | J8: A4378678570K | K8: 45768 | L8: 43578 | M8: Accountant | N8: Male | O8: DTB | P8: BONDENI | Q8: 384568 | R8: 78468 | S8: 856627645 | T8: 50000 | AD8: C:\Users\Admin\Downloads\Documents\download (2).jpg
A9: 4 | B9: Wanyoni Agala Musando | C9: 33456789 | D9: 2346JHG | E9: wam764@gamil.com | F9: 7458 | G9: 2020-01-01 | H9: 786543221 | I9: Permanent/Skilled Worker | J9: A646834690O | K9: 3468 | L9: 763476 | M9: Accountant | N9: Male | O9: KCB | P9: MAJENGO | Q9: 34586 | R9: 76834 | S9: 975346 | T9: 45000 | AD9: C:\Users\Admin\Downloads\Documents\images.jpg
A10: 5 | B10: Benerd Kimani Njorioge | C10: 30456789 | D10: 9845KJDF | E10: bkn458@gamil.com | F10: 5898 | G10: 2021-01-10 | H10: 789654321 | I10: Permanent/Skilled Worker | J10: A745878980P | K10: 456687 | L10: 75487 | M10: Admin | N10: Male | O10: KCB | P10: MWEMBE TAYARI | Q10: 5489 | R10: 8458 | S10: 74524 | T10: 45000 | AD10: C:\Users\Admin\Downloads\Documents\images (1).jpg
A11: 6 | B11: Sam Jacob Mroki | C11: 31567823 | D11: 576HDK | E11: sjm349@gamil.com | F11: 8975 | G11: 2020-01-01 | H11: 768942345 | I11: Permanent/Skilled Worker | J11: A457899480p | K11: 4587 | L11: 89345 | M11: Security Personel | N11: Male | O11: KCB | P11: MJENGO | Q11: 3487 | R11: 89734 | S11: 789234 | T11: 35000 | AD11: C:\Users\Admin\Downloads\Documents\images (3).jpg
A12: 7 | B12: Joy Mueni Mutinda | C12: 32897938 | D12: 3487URI | E12: jmm468@jamil.com | F12: 8578 | G12: 2022-01-01 | H12: 723456765 | I12: Permanent/Skilled Worker | J12: A5783458890P | K12: 874587 | L12: 783489 | M12: IT Stuff | N12: Female | O12: DTB | P12: KINGORANI | Q12: 4587 | R12: 983475 | S12: 95723477 | T12: 40000 | AD12: C:\Users\Admin\Downloads\Documents\download (3).jpg
A13: 8 | B13: Kahindi Mwero Boga | C13: 2934567 | D13: 4576YUR | E13: twa3487@gamil.com | F13: 3457 | G13: 2019-01-01 | H13: 798654312 | I13: Permanent/Skilled Worker | J13: A34778457890p | K13: 45789 | L13: 873447 | M13: IT Stuff | N13: Male | O13: DTB | P13: MEMBE TAYARI | Q13: 34688 | R13: 34678 | S13: 845673 | T13: 40000 | AD13: C:\Users\Admin\Downloads\Documents\images (5).jpg
A14: 9 | B14: John Boscco Bosire | C14: 98347897 | D14: 9847jhdf | E14: jbb847@gamil.com | F14: 98450 | G14: 2020-01-01 | H14: 734567128 | I14: Permanent/Skilled Worker | J14: A034897489E | K14: 49588 | L14: 98348 | M14: Accountant | N14: Male | O14: KCB | P14: MAJENGO | Q14: 34957 | R14: 8934 | S14: 974728729 | T14: 50000 | AD14: C:\Users\Admin\Downloads\Documents\download.jpg
A15: 10 | B15: Hassan Abdulnasir Wario | C15: 2156789 | D15: 8475QWE | E15: bck479@gamil.com | F15: 94387 | G15: 2015-01-01 | H15: 731256789 | I15: Permanent/Skilled Worker | J15: A4782349790P | K15: 934878 | L15: 783458 | M15: IT Stuff | N15: Male | O15: KCB | P15: MAJENGO | Q15: 3498 | R15: 984389 | S15: 74593477 | T15: 40000 | AD15: C:\Users\Admin\Downloads\Documents\images (2).jpg
A16: 11 | B16: Jastine Makemba Batogo | C16: 34567890 | D16: 784UYG | E16: jmb784@gamil.com | F16: 43687 | G16: 2019-01-01 | H16: 786885432 | I16: Permanent/Skilled Worker | J16: A0324878234P | K16: 47998 | L16: 987489 | M16: Accountant | N16: Male | O16: KCB | P16: MAJENGO | Q16: 347979 | R16: 984359 | S16: 7623544 | T16: 50000 | AD16: C:\Users\Admin\Downloads\Documents\download (4).jpg
A17: 12 | B17: Janet Wairimu Wamatagi | C17: 35678910 | D17: 934RUY | E17: jww457@gamil.com | F17: 4598 | G17: 2020-01-01 | H17: 745683412 | I17: Permanent/Skilled Worker | J17: A03476784359K | K17: 234789 | L17: 89347 | M17: IT Stuff | N17: Female | O17: DTB | P17: MTWAPA | Q17: 345789 | R17: 87345 | S17: 347578 | T17: 40000 | AD17: C:\Users\Admin\Downloads\Documents\images (10).jpg
A18: 13 | B18: Denis Brian Ochola | C18: 34567812 | D18: 73489YUR | E18: dbo347@gmail.com | F18: 4689 | G18: 2020-01-01 | H18: 798345675 | I18: Permanent/Skilled Worker | J18: A2347984780P | K18: 43788 | L18: 87499 | M18: IT Stuff | N18: Male | O18: KCB | P18: MAJENGO | Q18: 7549 | R18: 9854 | S18: 934576726 | T18: 50000 | AD18: C:\Users\Admin\Downloads\Documents\images (8).jpg
A19: 14 | B19: Gitau Harrison Kithi | C19: 35267812 | D19: 436UEU | E19: ghk2346@gamil.com | F19: 34786 | G19: 2023-01-01 | H19: 739456712 | I19: Permanent/Skilled Worker | J19: A03467623670P | K19: 238947 | L19: 876348 | M19: Admin | N19: Male | O19: KCB | P19: MAJENGO | Q19: 347889 | R19: 73467 | S19: 932476 | T19: 55000 | AD19: C:\Users\Admin\Downloads\Documents\images (9).jpg | AM19: =CONCATENATE(AI19,AL19) ->  | AN19: =TRIM(AM19) ->  | AR19: =TRIM(CONCATENATE(AQ19,AL19)) -> 
AM20: =CONCATENATE(AI20,AL20) ->  | AN20: =TRIM(AM20) ->  | AR20: =TRIM(CONCATENATE(AQ20,AL20)) -> 

Sheet Monthly PayeDB (hidden)
A1: E7 | B1: E17 | C1: E9 | D1: E11 | E1: E13 | F1: E15 | G1: G9 | H1: G11 | I1: G13 | J1: G15 | K1: G17 | L1: I9 | M1: I11 | N1: E19 | O1: I13 | P1: I15 | Q1: G19 | R1: I17 | S1: F21 | T1: E32 | U1: E34 | V1: E36 | W1: G32 | X1: G34 | Y1: E38 | Z1: G36 | AA1: I19 | AB1: G7 | AD1: Creteria Range | AE1: Creteria Range | AF1: Creteria Range | BK1: Creteria Range | BL1: Creteria Range | CQ1: a | CR1: b | CS1: c | CT1: d | CU1: e | CV1: f | CW1: g | CX1: h | CY1: i | CZ1: j | DA1: k | DB1: l | DC1: m | DD1: n | DE1: o | DF1: p | DG1: q | DH1: r | DI1: s | DJ1: t | DK1: u | DL1: v | DM1: w | DN1: x | DO1: y | DP1: z | DQ1: aa | DR1: ab
AD2: Month Of Filling | AE2: Employee Number | AF2: years | BK2: Month Of Filling | BL2: years
A3: Employee Paye Data Base | AD3: ='Paye Calculator'!I7 -> 0 | AE3: ='Paye Calculator'!H7 -> 0 | AF3: ='Paye Calculator'!G7 -> 0 | AH3: Load Employee Paye To Paye Calc | BK3: ='P10-Report'!B4 -> January | BL3: ='P10-Report'!B3 -> 2023 | BN3: Load Eployee Data to P10 Form | CQ3: Data Used For P10 Form
A5: Employee Number | B5: Month Of Filling | C5: Pin Of Employee | D5: Name Of Employee | E5: Residental-Status | F5: Type of Employee | G5: Basic Salary | H5: Housing Allowance | I5: Transport Allowance | J5: Leave Pay | K5: Director's Fee | L5: Lumpsum | M5: Other Allowance | N5: Total Cash Paye | O5: Car Benefit | P5: Other Non-Cash Benefit | Q5: Total Non-Cash Pay | R5: Net-Value Of Housing | S5: Total Gross Pay | T5: Pension | U5: Mortgage Interest | V5: HOSP | W5: Monthly Relief | X5: Insurance Relief | Y5: Paye | Z5: Type Of Housing | AA5: Over Time Allowance | AB5: years | AH5: Employee Number | AI5: Month Of Filling | AJ5: Pin Of Employee | AK5: Name Of Employee | AL5: Residental-Status | AM5: Type of Employee | AN5: Basic Salary | AO5: Housing Allowance | AP5: Transport Allowance | AQ5: Leave Pay | AR5: Director's Fee | AS5: Lumpsum | AT5: Other Allowance | AU5: Total Cash Paye | AV5: Car Benefit | AW5: Other Non-Cash Benefit | AX5: Total Non-Cash Pay | AY5: Net-Value Of Housing | AZ5: Total Gross Pay | BA5: Pension | BB5: Mortgage Interest | BC5: HOSP | BD5: Monthly Relief | BE5: Insurance Relief | BF5: Paye | BG5: Type Of Housing | BH5: Over Time Allowance | BI5: years | BN5: Employee Number | BO5: Month Of Filling | BP5: Pin Of Employee | BQ5: Name Of Employee | BR5: Residental-Status | BS5: Type of Employee | BT5: Basic Salary | BU5: Housing Allowance | BV5: Transport Allowance | BW5: Leave Pay | BX5: Director's Fee | BY5: Lumpsum | BZ5: Other Allowance | CA5: Total Cash Paye | CB5: Car Benefit | CC5: Other Non-Cash Benefit | CD5: Total Non-Cash Pay | CE5: Net-Value Of Housing | CF5: Total Gross Pay | CG5: Pension | CH5: Mortgage Interest | CI5: HOSP | CJ5: Monthly Relief | CK5: Insurance Relief | CL5: Paye | CM5: Type Of Housing | CN5: Over Time Allowance | CO5: years | CQ5: PIN of Employee | CR5: Name of Employee | CS5: Residental Status | CT5: Type of Employee | CU5: Basic Salary | CV5: Housing Allowance | CW5: Transport Allowance | CX5: Leave Pay | CY5: Over Time Allowance | CZ5: Director's Fee | DA5: Lumpsum | DB5: Other Allowance | DC5: Total Cash Paye | DD5: Car Benefit | DE5: Other Non-Cash Benefit | DF5: Total Non-Cash Pay | DG5: Global Income | DH5: Type Of Housing | DI5: Rent Of House/Market Value | DJ5: Computend Rent of House | DK5: Rent Recoverd From Employee | DL5: Net Value Of Housing | DM5: Total Gross Pay | DN5: 30% of Cash Pay | DO5: Actual Contribution | DP5: Permissible Limit | DQ5: Mortgage Interest | DR5: HOSP | DS5: Amount Of Benefit | DT5: Taxable Pay | DU5: Tax Payable | DV5: Monthly TaxRelief | DW5: Insurance Relief | DX5: Paye Tax | DY5: Self Assessed Paye Tax
A6: 1 | B6: January | C6: A34578678450P | D6: Brian Kombe Gode | E6: Resident | F6: Primary Employee | G6: 60000 | N6: 60000 | Q6: 0 | S6: 60000 | T6: 1080 | W6: 2400 | X6: 195 | Y6: 9864.35 | Z6: Benefit not given | AB6: 2023 | BN6: 1 | BO6: January | BP6: A34578678450P | BQ6: Brian Kombe Gode | BR6: Resident | BS6: Primary Employee | BT6: 60000 | CA6: 60000 | CD6: 0 | CF6: 60000 | CG6: 1080 | CJ6: 2400 | CK6: 195 | CL6: 9864.35 | CM6: Benefit not given | CQ6: =BP6 -> A34578678450P | CR6: =BQ6 -> Brian Kombe Gode | CS6: =BR6 -> Resident | CT6: =BS6 -> Primary Employee | CU6: =BT6 -> 60000 | CV6: =BU6 -> 0 | CW6: =BV6 -> 0 | CX6: =BW6 -> 0 | CY6: =CN6 -> 0 | CZ6: =BX6 -> 0 | DA6: =BY6 -> 0 | DB6: =BZ6 -> 0 | DD6: =CB6 -> 0 | DE6: =CC6 -> 0 | DG6: =0 -> 0 | DH6: =CM6 -> Benefit not given | DO6: =CG6 -> 1080 | DQ6: =CH6 -> 0 | DV6: =CJ6 -> 2400 | DW6: =CK6 -> 195 | DY6: =CL6 -> 9864.35
A7: 2 | B7: January | C7: A49898479409 | D7: Timothy Brian Odongo | E7: Resident | F7: Primary Employee | G7: 100000 | H7: 20000 | I7: 10000 | K7: 5000 | N7: 135000 | Q7: 0 | S7: 135000 | T7: 1080 | W7: 2400 | X7: 255 | Y7: 32304.65 | Z7: Benefit not given | AB7: 2023 | BN7: 2 | BO7: January | BP7: A49898479409 | BQ7: Timothy Brian Odongo | BR7: Resident | BS7: Primary Employee | BT7: 100000 | BU7: 20000 | BV7: 10000 | BX7: 5000 | CA7: 135000 | CD7: 0 | CF7: 135000 | CG7: 1080 | CJ7: 2400 | CK7: 255 | CL7: 32304.65 | CM7: Benefit not given | CQ7: A49898479409 | CR7: Timothy Brian Odongo | CS7: Resident | CT7: Primary Employee | CU7: 100000 | CV7: 20000 | CW7: 10000 | CX7: 0 | CY7: 0 | CZ7: 5000 | DA7: 0 | DB7: 0 | DD7: 0 | DE7: 0 | DG7: =0 -> 0 | DH7: Benefit not given | DO7: 1080 | DQ7: 0 | DV7: 2400 | DW7: 255 | DY7: 32304.65
A8: 3 | B8: January | C8: A4378678570K | D8: Bshora Wayu Nzamo | E8: Resident | F8: Primary Employee | G8: 50000 | N8: 50000 | Q8: 0 | S8: 50000 | T8: 1080 | W8: 2400 | X8: 180 | Y8: 6879.35 | Z8: Benefit not given | AB8: 2023 | BN8: 3 | BO8: January | BP8: A4378678570K | BQ8: Bshora Wayu Nzamo | BR8: Resident | BS8: Primary Employee | BT8: 50000 | CA8: 50000 | CD8: 0 | CF8: 50000 | CG8: 1080 | CJ8: 2400 | CK8: 180 | CL8: 6879.35 | CM8: Benefit not given | CQ8: A4378678570K | CR8: Bshora Wayu Nzamo | CS8: Resident | CT8: Primary Employee | CU8: 50000 | CV8: 0 | CW8: 0 | CX8: 0 | CY8: 0 | CZ8: 0 | DA8: 0 | DB8: 0 | DD8: 0 | DE8: 0 | DG8: =0 -> 0 | DH8: Benefit not given | DO8: 1080 | DQ8: 0 | DV8: 2400 | DW8: 180 | DY8: 6879.35
A9: 4 | B9: January | C9: A646834690O | D9: Wanyoni Agala Musando | E9: Resident | F9: Primary Employee | G9: 45000 | N9: 45000 | Q9: 0 | S9: 45000 | T9: 1080 | W9: 2400 | X9: 165 | Y9: 5394.35 | Z9: Benefit not given | AB9: 2023 | BN9: 4 | BO9: January | BP9: A646834690O | BQ9: Wanyoni Agala Musando | BR9: Resident | BS9: Primary Employee | BT9: 45000 | CA9: 45000 | CD9: 0 | CF9: 45000 | CG9: 1080 | CJ9: 2400 | CK9: 165 | CL9: 5394.35 | CM9: Benefit not given | CQ9: A646834690O | CR9: Wanyoni Agala Musando | CS9: Resident | CT9: Primary Employee | CU9: 45000 | CV9: 0 | CW9: 0 | CX9: 0 | CY9: 0 | CZ9: 0 | DA9: 0 | DB9: 0 | DD9: 0 | DE9: 0 | DG9: =0 -> 0 | DH9: Benefit not given | DO9: 1080 | DQ9: 0 | DV9: 2400 | DW9: 165 | DY9: 5394.35
A10: 5 | B10: January | C10: A745878980P | D10: Benerd Kimani Njorioge | E10: Resident | F10: Primary Employee | G10: 45000 | N10: 45000 | Q10: 0 | S10: 45000 | T10: 1080 | W10: 2400 | X10: 165 | Y10: 5394.35 | Z10: Benefit not given | AB10: 2023 | BN10: 5 | BO10: January | BP10: A745878980P | BQ10: Benerd Kimani Njorioge | BR10: Resident | BS10: Primary Employee | BT10: 45000 | CA10: 45000 | CD10: 0 | CF10: 45000 | CG10: 1080 | CJ10: 2400 | CK10: 165 | CL10: 5394.35 | CM10: Benefit not given | CQ10: A745878980P | CR10: Benerd Kimani Njorioge | CS10: Resident | CT10: Primary Employee | CU10: 45000 | CV10: 0 | CW10: 0 | CX10: 0 | CY10: 0 | CZ10: 0 | DA10: 0 | DB10: 0 | DD10: 0 | DE10: 0 | DG10: =0 -> 0 | DH10: Benefit not given | DO10: 1080 | DQ10: 0 | DV10: 2400 | DW10: 165 | DY10: 5394.35
A11: 6 | B11: January | C11: A457899480p | D11: Sam Jacob Mroki | E11: Resident | F11: Primary Employee | G11: 35000 | N11: 35000 | Q11: 0 | S11: 35000 | T11: 1080 | W11: 2400 | X11: 142.5 | Y11: 2416.85 | Z11: Benefit not given | AB11: 2023 | BN11: 6 | BO11: January | BP11: A457899480p | BQ11: Sam Jacob Mroki | BR11: Resident | BS11: Primary Employee | BT11: 35000 | CA11: 35000 | CD11: 0 | CF11: 35000 | CG11: 1080 | CJ11: 2400 | CK11: 142.5 | CL11: 2416.85 | CM11: Benefit not given | CQ11: A457899480p | CR11: Sam Jacob Mroki | CS11: Resident | CT11: Primary Employee | CU11: 35000 | CV11: 0 | CW11: 0 | CX11: 0 | CY11: 0 | CZ11: 0 | DA11: 0 | DB11: 0 | DD11: 0 | DE11: 0 | DG11: =0 -> 0 | DH11: Benefit not given | DO11: 1080 | DQ11: 0 | DV11: 2400 | DW11: 142.5 | DY11: 2416.85
A12: 7 | B12: January | C12: A5783458890P | D12: Joy Mueni Mutinda | E12: Resident | F12: Primary Employee | G12: 40000 | N12: 40000 | Q12: 0 | S12: 40000 | T12: 1080 | W12: 2400 | X12: 150 | Y12: 3909.35 | Z12: Benefit not given | AB12: 2023 | BN12: 7 | BO12: January | BP12: A5783458890P | BQ12: Joy Mueni Mutinda | BR12: Resident | BS12: Primary Employee | BT12: 40000 | CA12: 40000 | CD12: 0 | CF12: 40000 | CG12: 1080 | CJ12: 2400 | CK12: 150 | CL12: 3909.35 | CM12: Benefit not given | CQ12: A5783458890P | CR12: Joy Mueni Mutinda | CS12: Resident | CT12: Primary Employee | CU12: 40000 | CV12: 0 | CW12: 0 | CX12: 0 | CY12: 0 | CZ12: 0 | DA12: 0 | DB12: 0 | DD12: 0 | DE12: 0 | DG12: =0 -> 0 | DH12: Benefit not given | DO12: 1080 | DQ12: 0 | DV12: 2400 | DW12: 150 | DY12: 3909.35
A13: 8 | B13: January | C13: A34778457890p | D13: Kahindi Mwero Boga | E13: Resident | F13: Primary Employee | G13: 40000 | N13: 40000 | Q13: 0 | S13: 40000 | T13: 1080 | W13: 2400 | X13: 150 | Y13: 3909.35 | Z13: Benefit not given | AB13: 2023 | BN13: 8 | BO13: January | BP13: A34778457890p | BQ13: Kahindi Mwero Boga | BR13: Resident | BS13: Primary Employee | BT13: 40000 | CA13: 40000 | CD13: 0 | CF13: 40000 | CG13: 1080 | CJ13: 2400 | CK13: 150 | CL13: 3909.35 | CM13: Benefit not given | CQ13: A34778457890p | CR13: Kahindi Mwero Boga | CS13: Resident | CT13: Primary Employee | CU13: 40000 | CV13: 0 | CW13: 0 | CX13: 0 | CY13: 0 | CZ13: 0 | DA13: 0 | DB13: 0 | DD13: 0 | DE13: 0 | DG13: =0 -> 0 | DH13: Benefit not given | DO13: 1080 | DQ13: 0 | DV13: 2400 | DW13: 150 | DY13: 3909.35
A14: 9 | B14: January | C14: A034897489E | D14: John Boscco Bosire | E14: Resident | F14: Primary Employee | G14: 50000 | N14: 50000 | Q14: 0 | S14: 50000 | T14: 1080 | W14: 2400 | X14: 180 | Y14: 6879.35 | Z14: Benefit not given | AB14: 2023 | BN14: 9 | BO14: January | BP14: A034897489E | BQ14: John Boscco Bosire | BR14: Resident | BS14: Primary Employee | BT14: 50000 | CA14: 50000 | CD14: 0 | CF14: 50000 | CG14: 1080 | CJ14: 2400 | CK14: 180 | CL14: 6879.35 | CM14: Benefit not given | CQ14: A034897489E | CR14: John Boscco Bosire | CS14: Resident | CT14: Primary Employee | CU14: 50000 | CV14: 0 | CW14: 0 | CX14: 0 | CY14: 0 | CZ14: 0 | DA14: 0 | DB14: 0 | DD14: 0 | DE14: 0 | DG14: =0 -> 0 | DH14: Benefit not given | DO14: 1080 | DQ14: 0 | DV14: 2400 | DW14: 180 | DY14: 6879.35
A15: 10 | B15: January | C15: A4782349790P | D15: Hassan Abdulnasir Wario | E15: Resident | F15: Primary Employee | G15: 40000 | N15: 40000 | Q15: 0 | S15: 40000 | T15: 1080 | W15: 2400 | X15: 150 | Y15: 3909.35 | Z15: Benefit not given | AB15: 2023 | BN15: 10 | BO15: January | BP15: A4782349790P | BQ15: Hassan Abdulnasir Wario | BR15: Resident | BS15: Primary Employee | BT15: 40000 | CA15: 40000 | CD15: 0 | CF15: 40000 | CG15: 1080 | CJ15: 2400 | CK15: 150 | CL15: 3909.35 | CM15: Benefit not given | CQ15: A4782349790P | CR15: Hassan Abdulnasir Wario | CS15: Resident | CT15: Primary Employee | CU15: 40000 | CV15: 0 | CW15: 0 | CX15: 0 | CY15: 0 | CZ15: 0 | DA15: 0 | DB15: 0 | DD15: 0 | DE15: 0 | DG15: =0 -> 0 | DH15: Benefit not given | DO15: 1080 | DQ15: 0 | DV15: 2400 | DW15: 150 | DY15: 3909.35
A16: 11 | B16: January | C16: A0324878234P | D16: Jastine Makemba Batogo | E16: Resident | F16: Primary Employee | G16: 50000 | N16: 50000 | Q16: 0 | S16: 50000 | T16: 1080 | W16: 2400 | X16: 180 | Y16: 6879.35 | Z16: Benefit not given | AB16: 2023 | BN16: 11 | BO16: January | BP16: A0324878234P | BQ16: Jastine Makemba Batogo | BR16: Resident | BS16: Primary Employee | BT16: 50000 | CA16: 50000 | CD16: 0 | CF16: 50000 | CG16: 1080 | CJ16: 2400 | CK16: 180 | CL16: 6879.35 | CM16: Benefit not given | CQ16: A0324878234P | CR16: Jastine Makemba Batogo | CS16: Resident | CT16: Primary Employee | CU16: 50000 | CV16: 0 | CW16: 0 | CX16: 0 | CY16: 0 | CZ16: 0 | DA16: 0 | DB16: 0 | DD16: 0 | DE16: 0 | DG16: =0 -> 0 | DH16: Benefit not given | DO16: 1080 | DQ16: 0 | DV16: 2400 | DW16: 180 | DY16: 6879.35
A17: 12 | B17: January | C17: A03476784359K | D17: Janet Wairimu Wamatagi | E17: Resident | F17: Primary Employee | G17: 40000 | N17: 40000 | Q17: 0 | S17: 40000 | T17: 1080 | W17: 2400 | X17: 150 | Y17: 3909.35 | Z17: Benefit not given | AB17: 2023 | BN17: 12 | BO17: January | BP17: A03476784359K | BQ17: Janet Wairimu Wamatagi | BR17: Resident | BS17: Primary Employee | BT17: 40000 | CA17: 40000 | CD17: 0 | CF17: 40000 | CG17: 1080 | CJ17: 2400 | CK17: 150 | CL17: 3909.35 | CM17: Benefit not given | CQ17: A03476784359K | CR17: Janet Wairimu Wamatagi | CS17: Resident | CT17: Primary Employee | CU17: 40000 | CV17: 0 | CW17: 0 | CX17: 0 | CY17: 0 | CZ17: 0 | DA17: 0 | DB17: 0 | DD17: 0 | DE17: 0 | DG17: =0 -> 0 | DH17: Benefit not given | DO17: 1080 | DQ17: 0 | DV17: 2400 | DW17: 150 | DY17: 3909.35
A18: 14 | B18: January | C18: A03467623670P | D18: Gitau Harrison Kithi | E18: Resident | F18: Primary Employee | G18: 55000 | N18: 55000 | Q18: 0 | S18: 55000 | T18: 1080 | W18: 2400 | X18: 180 | Y18: 8379.35 | Z18: Benefit not given | AB18: 2023 | BN18: 14 | BO18: January | BP18: A03467623670P | BQ18: Gitau Harrison Kithi | BR18: Resident | BS18: Primary Employee | BT18: 55000 | CA18: 55000 | CD18: 0 | CF18: 55000 | CG18: 1080 | CJ18: 2400 | CK18: 180 | CL18: 8379.35 | CM18: Benefit not given | CQ18: A03467623670P | CR18: Gitau Harrison Kithi | CS18: Resident | CT18: Primary Employee | CU18: 55000 | CV18: 0 | CW18: 0 | CX18: 0 | CY18: 0 | CZ18: 0 | DA18: 0 | DB18: 0 | DD18: 0 | DE18: 0 | DG18: =0 -> 0 | DH18: Benefit not given | DO18: 1080 | DQ18: 0 | DV18: 2400 | DW18: 180 | DY18: 8379.35
A19: 1 | B19: February | C19: A34578678450P | D19: Brian Kombe Gode | E19: Resident | F19: Primary Employee | G19: 60000 | N19: 60000 | Q19: 0 | S19: 60000 | T19: 1080 | W19: 2400 | X19: 195 | Y19: 9864.35 | Z19: Benefit not given | AB19: 2023 | CQ19: 0 | CR19: 0 | CS19: 0 | CT19: 0 | CU19: 0 | CV19: 0 | CW19: 0 | CX19: 0 | CY19: 0 | CZ19: 0 | DA19: 0 | DB19: 0 | DD19: 0 | DE19: 0 | DG19: =0 -> 0 | DH19: 0 | DO19: 0 | DQ19: 0 | DV19: 0 | DW19: 0 | DY19: 0
A20: 2 | B20: February | C20: A49898479409 | D20: Timothy Brian Odongo | E20: Resident | F20: Primary Employee | G20: 100000 | H20: 20000 | I20: 10000 | K20: 5000 | N20: 135000 | Q20: 0 | S20: 135000 | T20: 1080 | W20: 2400 | X20: 255 | Y20: 32304.65 | Z20: Benefit not given | AB20: 2023 | CQ20: 0 | CR20: 0 | CS20: 0 | CT20: 0 | CU20: 0 | CV20: 0 | CW20: 0 | CX20: 0 | CY20: 0 | CZ20: 0 | DA20: 0 | DB20: 0 | DD20: 0 | DE20: 0 | DG20: =0 -> 0 | DH20: 0 | DO20: 0 | DQ20: 0 | DV20: 0 | DW20: 0 | DY20: 0
A21: 3 | B21: February | C21: A4378678570K | D21: Bshora Wayu Nzamo | E21: Resident | F21: Primary Employee | G21: 50000 | N21: 50000 | Q21: 0 | S21: 50000 | T21: 1080 | W21: 2400 | X21: 180 | Y21: 6879.35 | Z21: Benefit not given | AB21: 2023 | CQ21: 0 | CR21: 0 | CS21: 0 | CT21: 0 | CU21: 0 | CV21: 0 | CW21: 0 | CX21: 0 | CY21: 0 | CZ21: 0 | DA21: 0 | DB21: 0 | DD21: 0 | DE21: 0 | DG21: =0 -> 0 | DH21: 0 | DO21: 0 | DQ21: 0 | DV21: 0 | DW21: 0 | DY21: 0
A22: 4 | B22: February | C22: A646834690O | D22: Wanyoni Agala Musando | E22: Resident | F22: Primary Employee | G22: 45000 | N22: 45000 | Q22: 0 | S22: 45000 | T22: 1080 | W22: 2400 | X22: 165 | Y22: 5394.35 | Z22: Benefit not given | AB22: 2023 | CQ22: 0 | CR22: 0 | CS22: 0 | CT22: 0 | CU22: 0 | CV22: 0 | CW22: 0 | CX22: 0 | CY22: 0 | CZ22: 0 | DA22: 0 | DB22: 0 | DD22: 0 | DE22: 0 | DG22: =0 -> 0 | DH22: 0 | DO22: 0 | DQ22: 0 | DV22: 0 | DW22: 0 | DY22: 0
A23: 5 | B23: February | C23: A745878980P | D23: Benerd Kimani Njorioge | E23: Resident | F23: Primary Employee | G23: 45000 | N23: 45000 | Q23: 0 | S23: 45000 | T23: 1080 | W23: 2400 | X23: 165 | Y23: 5394.35 | Z23: Benefit not given | AB23: 2023 | CQ23: 0 | CR23: 0 | CS23: 0 | CT23: 0 | CU23: 0 | CV23: 0 | CW23: 0 | CX23: 0 | CY23: 0 | CZ23: 0 | DA23: 0 | DB23: 0 | DD23: 0 | DE23: 0 | DG23: =0 -> 0 | DH23: 0 | DO23: 0 | DQ23: 0 | DV23: 0 | DW23: 0 | DY23: 0
A24: 6 | B24: February | C24: A457899480p | D24: Sam Jacob Mroki | E24: Resident | F24: Primary Employee | G24: 35000 | N24: 35000 | Q24: 0 | S24: 35000 | T24: 1080 | W24: 2400 | X24: 142.5 | Y24: 2416.85 | Z24: Benefit not given | AB24: 2023 | CQ24: 0 | CR24: 0 | CS24: 0 | CT24: 0 | CU24: 0 | CV24: 0 | CW24: 0 | CX24: 0 | CY24: 0 | CZ24: 0 | DA24: 0 | DB24: 0 | DD24: 0 | DE24: 0 | DG24: =0 -> 0 | DH24: 0 | DO24: 0 | DQ24: 0 | DV24: 0 | DW24: 0 | DY24: 0
A25: 7 | B25: February | C25: A5783458890P | D25: Joy Mueni Mutinda | E25: Resident | F25: Primary Employee | G25: 40000 | N25: 40000 | Q25: 0 | S25: 40000 | T25: 1080 | W25: 2400 | X25: 150 | Y25: 3909.35 | Z25: Benefit not given | AB25: 2023 | CQ25: 0 | CR25: 0 | CS25: 0 | CT25: 0 | CU25: 0 | CV25: 0 | CW25: 0 | CX25: 0 | CY25: 0 | CZ25: 0 | DA25: 0 | DB25: 0 | DD25: 0 | DE25: 0 | DG25: =0 -> 0 | DH25: 0 | DO25: 0 | DQ25: 0 | DV25: 0 | DW25: 0 | DY25: 0
A26: 8 | B26: February | C26: A34778457890p | D26: Kahindi Mwero Boga | E26: Resident | F26: Primary Employee | G26: 40000 | N26: 40000 | Q26: 0 | S26: 40000 | T26: 1080 | W26: 2400 | X26: 150 | Y26: 3909.35 | Z26: Benefit not given | AB26: 2023 | CQ26: 0 | CR26: 0 | CS26: 0 | CT26: 0 | CU26: 0 | CV26: 0 | CW26: 0 | CX26: 0 | CY26: 0 | CZ26: 0 | DA26: 0 | DB26: 0 | DD26: 0 | DE26: 0 | DG26: =0 -> 0 | DH26: 0 | DO26: 0 | DQ26: 0 | DV26: 0 | DW26: 0 | DY26: 0
A27: 9 | B27: February | C27: A034897489E | D27: John Boscco Bosire | E27: Resident | F27: Primary Employee | G27: 50000 | N27: 50000 | Q27: 0 | S27: 50000 | T27: 1080 | W27: 2400 | X27: 180 | Y27: 6879.35 | Z27: Benefit not given | AB27: 2023 | CQ27: 0 | CR27: 0 | CS27: 0 | CT27: 0 | CU27: 0 | CV27: 0 | CW27: 0 | CX27: 0 | CY27: 0 | CZ27: 0 | DA27: 0 | DB27: 0 | DD27: 0 | DE27: 0 | DG27: =0 -> 0 | DH27: 0 | DO27: 0 | DQ27: 0 | DV27: 0 | DW27: 0 | DY27: 0
A28: 10 | B28: February | C28: A4782349790P | D28: Hassan Abdulnasir Wario | E28: Resident | F28: Primary Employee | G28: 40000 | N28: 40000 | Q28: 0 | S28: 40000 | T28: 1080 | W28: 2400 | X28: 150 | Y28: 3909.35 | Z28: Benefit not given | AB28: 2023 | CQ28: 0 | CR28: 0 | CS28: 0 | CT28: 0 | CU28: 0 | CV28: 0 | CW28: 0 | CX28: 0 | CY28: 0 | CZ28: 0 | DA28: 0 | DB28: 0 | DD28: 0 | DE28: 0 | DG28: =0 -> 0 | DH28: 0 | DO28: 0 | DQ28: 0 | DV28: 0 | DW28: 0 | DY28: 0
A29: 11 | B29: February | C29: A0324878234P | D29: Jastine Makemba Batogo | E29: Resident | F29: Primary Employee | G29: 50000 | N29: 50000 | Q29: 0 | S29: 50000 | T29: 1080 | W29: 2400 | X29: 180 | Y29: 6879.35 | Z29: Benefit not given | AB29: 2023 | CQ29: 0 | CR29: 0 | CS29: 0 | CT29: 0 | CU29: 0 | CV29: 0 | CW29: 0 | CX29: 0 | CY29: 0 | CZ29: 0 | DA29: 0 | DB29: 0 | DD29: 0 | DE29: 0 | DG29: =0 -> 0 | DH29: 0 | DO29: 0 | DQ29: 0 | DV29: 0 | DW29: 0 | DY29: 0
A30: 12 | B30: February | C30: A03476784359K | D30: Janet Wairimu Wamatagi | E30: Resident | F30: Primary Employee | G30: 40000 | N30: 40000 | Q30: 0 | S30: 40000 | T30: 1080 | W30: 2400 | X30: 150 | Y30: 3909.35 | Z30: Benefit not given | AB30: 2023 | CQ30: 0 | CR30: 0 | CS30: 0 | CT30: 0 | CU30: 0 | CV30: 0 | CW30: 0 | CX30: 0 | CY30: 0 | CZ30: 0 | DA30: 0 | DB30: 0 | DD30: 0 | DE30: 0 | DG30: =0 -> 0 | DH30: 0 | DO30: 0 | DQ30: 0 | DV30: 0 | DW30: 0 | DY30: 0
A31: 1 | B31: March | C31: A34578678450P | D31: Brian Kombe Gode | E31: Resident | F31: Primary Employee | G31: 60000 | N31: 60000 | Q31: 0 | S31: 60000 | T31: 1080 | W31: 2400 | X31: 195 | Y31: 9864.35 | Z31: Benefit not given | AB31: 2023 | CQ31: 0 | CR31: 0 | CS31: 0 | CT31: 0 | CU31: 0 | CV31: 0 | CW31: 0 | CX31: 0 | CY31: 0 | CZ31: 0 | DA31: 0 | DB31: 0 | DD31: 0 | DE31: 0 | DG31: =0 -> 0 | DH31: 0 | DO31: 0 | DQ31: 0 | DV31: 0 | DW31: 0 | DY31: 0
A32: 2 | B32: March | C32: A49898479409 | D32: Timothy Brian Odongo | E32: Resident | F32: Primary Employee | G32: 100000 | H32: 20000 | I32: 10000 | K32: 5000 | N32: 135000 | Q32: 0 | S32: 135000 | T32: 1080 | W32: 2400 | X32: 255 | Y32: 32304.65 | Z32: Benefit not given | AB32: 2023 | CQ32: 0 | CR32: 0 | CS32: 0 | CT32: 0 | CU32: 0 | CV32: 0 | CW32: 0 | CX32: 0 | CY32: 0 | CZ32: 0 | DA32: 0 | DB32: 0 | DD32: 0 | DE32: 0 | DG32: =0 -> 0 | DH32: 0 | DO32: 0 | DQ32: 0 | DV32: 0 | DW32: 0 | DY32: 0
A33: 3 | B33: March | C33: A4378678570K | D33: Bshora Wayu Nzamo | E33: Resident | F33: Primary Employee | G33: 50000 | N33: 50000 | Q33: 0 | S33: 50000 | T33: 1080 | W33: 2400 | X33: 180 | Y33: 6879.35 | Z33: Benefit not given | AB33: 2023 | CQ33: =BP33 -> 0 | CR33: =BQ33 -> 0 | CS33: =BR33 -> 0 | CT33: =BS33 -> 0 | CU33: =BT33 -> 0 | CV33: =BU33 -> 0 | CW33: =BV33 -> 0 | CX33: =BW33 -> 0 | CY33: =CN33 -> 0 | CZ33: =BX33 -> 0 | DA33: =BY33 -> 0 | DB33: =BZ33 -> 0 | DD33: =CB33 -> 0 | DE33: =CC33 -> 0 | DG33: =0 -> 0 | DH33: =CM33 -> 0 | DO33: =CG33 -> 0 | DQ33: =CH33 -> 0 | DV33: =CJ33 -> 0 | DW33: =CK33 -> 0 | DY33: =CL33 -> 0
A34: 4 | B34: March | C34: A646834690O | D34: Wanyoni Agala Musando | E34: Resident | F34: Primary Employee | G34: 45000 | N34: 45000 | Q34: 0 | S34: 45000 | T34: 1080 | W34: 2400 | X34: 165 | Y34: 5394.35 | Z34: Benefit not given | AB34: 2023 | CQ34: 0 | CR34: 0 | CS34: 0 | CT34: 0 | CU34: 0 | CV34: 0 | CW34: 0 | CX34: 0 | CY34: 0 | CZ34: 0 | DA34: 0 | DB34: 0 | DD34: 0 | DE34: 0 | DG34: =0 -> 0 | DH34: 0 | DO34: 0 | DQ34: 0 | DV34: 0 | DW34: 0 | DY34: 0
A35: 5 | B35: March | C35: A745878980P | D35: Benerd Kimani Njorioge | E35: Resident | F35: Primary Employee | G35: 45000 | N35: 45000 | Q35: 0 | S35: 45000 | T35: 1080 | W35: 2400 | X35: 165 | Y35: 5394.35 | Z35: Benefit not given | AB35: 2023 | CQ35: 0 | CR35: 0 | CS35: 0 | CT35: 0 | CU35: 0 | CV35: 0 | CW35: 0 | CX35: 0 | CY35: 0 | CZ35: 0 | DA35: 0 | DB35: 0 | DD35: 0 | DE35: 0 | DG35: =0 -> 0 | DH35: 0 | DO35: 0 | DQ35: 0 | DV35: 0 | DW35: 0 | DY35: 0
A36: 6 | B36: March | C36: A457899480p | D36: Sam Jacob Mroki | E36: Resident | F36: Primary Employee | G36: 35000 | N36: 35000 | Q36: 0 | S36: 35000 | T36: 1080 | W36: 2400 | X36: 142.5 | Y36: 2416.85 | Z36: Benefit not given | AB36: 2023 | CQ36: 0 | CR36: 0 | CS36: 0 | CT36: 0 | CU36: 0 | CV36: 0 | CW36: 0 | CX36: 0 | CY36: 0 | CZ36: 0 | DA36: 0 | DB36: 0 | DD36: 0 | DE36: 0 | DG36: =0 -> 0 | DH36: 0 | DO36: 0 | DQ36: 0 | DV36: 0 | DW36: 0 | DY36: 0
A37: 7 | B37: March | C37: A5783458890P | D37: Joy Mueni Mutinda | E37: Resident | F37: Primary Employee | G37: 40000 | N37: 40000 | Q37: 0 | S37: 40000 | T37: 1080 | W37: 2400 | X37: 150 | Y37: 3909.35 | Z37: Benefit not given | AB37: 2023 | CQ37: 0 | CR37: 0 | CS37: 0 | CT37: 0 | CU37: 0 | CV37: 0 | CW37: 0 | CX37: 0 | CY37: 0 | CZ37: 0 | DA37: 0 | DB37: 0 | DD37: 0 | DE37: 0 | DG37: =0 -> 0 | DH37: 0 | DO37: 0 | DQ37: 0 | DV37: 0 | DW37: 0 | DY37: 0
A38: 8 | B38: March | C38: A34778457890p | D38: Kahindi Mwero Boga | E38: Resident | F38: Primary Employee | G38: 40000 | N38: 40000 | Q38: 0 | S38: 40000 | T38: 1080 | W38: 2400 | X38: 150 | Y38: 3909.35 | Z38: Benefit not given | AB38: 2023 | CQ38: 0 | CR38: 0 | CS38: 0 | CT38: 0 | CU38: 0 | CV38: 0 | CW38: 0 | CX38: 0 | CY38: 0 | CZ38: 0 | DA38: 0 | DB38: 0 | DD38: 0 | DE38: 0 | DG38: =0 -> 0 | DH38: 0 | DO38: 0 | DQ38: 0 | DV38: 0 | DW38: 0 | DY38: 0
A39: 9 | B39: March | C39: A034897489E | D39: John Boscco Bosire | E39: Resident | F39: Primary Employee | G39: 50000 | N39: 50000 | Q39: 0 | S39: 50000 | T39: 1080 | W39: 2400 | X39: 180 | Y39: 6879.35 | Z39: Benefit not given | AB39: 2023 | CQ39: 0 | CR39: 0 | CS39: 0 | CT39: 0 | CU39: 0 | CV39: 0 | CW39: 0 | CX39: 0 | CY39: 0 | CZ39: 0 | DA39: 0 | DB39: 0 | DD39: 0 | DE39: 0 | DG39: =0 -> 0 | DH39: 0 | DO39: 0 | DQ39: 0 | DV39: 0 | DW39: 0 | DY39: 0
A40: 10 | B40: March | C40: A4782349790P | D40: Hassan Abdulnasir Wario | E40: Resident | F40: Primary Employee | G40: 40000 | N40: 40000 | Q40: 0 | S40: 40000 | T40: 1080 | W40: 2400 | X40: 150 | Y40: 3909.35 | Z40: Benefit not given | AB40: 2023 | CQ40: 0 | CR40: 0 | CS40: 0 | CT40: 0 | CU40: 0 | CV40: 0 | CW40: 0 | CX40: 0 | CY40: 0 | CZ40: 0 | DA40: 0 | DB40: 0 | DD40: 0 | DE40: 0 | DG40: =0 -> 0 | DH40: 0 | DO40: 0 | DQ40: 0 | DV40: 0 | DW40: 0 | DY40: 0
A41: 11 | B41: March | C41: A0324878234P | D41: Jastine Makemba Batogo | E41: Resident | F41: Primary Employee | G41: 50000 | N41: 50000 | Q41: 0 | S41: 50000 | T41: 1080 | W41: 2400 | X41: 180 | Y41: 6879.35 | Z41: Benefit not given | AB41: 2023 | CQ41: 0 | CR41: 0 | CS41: 0 | CT41: 0 | CU41: 0 | CV41: 0 | CW41: 0 | CX41: 0 | CY41: 0 | CZ41: 0 | DA41: 0 | DB41: 0 | DD41: 0 | DE41: 0 | DG41: =0 -> 0 | DH41: 0 | DO41: 0 | DQ41: 0 | DV41: 0 | DW41: 0 | DY41: 0
A42: 12 | B42: March | C42: A03476784359K | D42: Janet Wairimu Wamatagi | E42: Resident | F42: Primary Employee | G42: 40000 | N42: 40000 | Q42: 0 | S42: 40000 | T42: 1080 | W42: 2400 | X42: 150 | Y42: 3909.35 | Z42: Benefit not given | AB42: 2023 | CQ42: 0 | CR42: 0 | CS42: 0 | CT42: 0 | CU42: 0 | CV42: 0 | CW42: 0 | CX42: 0 | CY42: 0 | CZ42: 0 | DA42: 0 | DB42: 0 | DD42: 0 | DE42: 0 | DG42: =0 -> 0 | DH42: 0 | DO42: 0 | DQ42: 0 | DV42: 0 | DW42: 0 | DY42: 0
A43: 1 | B43: April | C43: A34578678450P | D43: Brian Kombe Gode | E43: Resident | F43: Primary Employee | G43: 60000 | N43: 60000 | Q43: 0 | S43: 60000 | T43: 1080 | W43: 2400 | X43: 195 | Y43: 9864.35 | Z43: Benefit not given | AB43: 2023 | CQ43: 0 | CR43: 0 | CS43: 0 | CT43: 0 | CU43: 0 | CV43: 0 | CW43: 0 | CX43: 0 | CY43: 0 | CZ43: 0 | DA43: 0 | DB43: 0 | DD43: 0 | DE43: 0 | DG43: =0 -> 0 | DH43: 0 | DO43: 0 | DQ43: 0 | DV43: 0 | DW43: 0 | DY43: 0
A44: 2 | B44: April | C44: A49898479409 | D44: Timothy Brian Odongo | E44: Resident | F44: Primary Employee | G44: 100000 | H44: 20000 | I44: 10000 | K44: 5000 | N44: 135000 | Q44: 0 | S44: 135000 | T44: 1080 | W44: 2400 | X44: 255 | Y44: 32304.65 | Z44: Benefit not given | AB44: 2023 | CQ44: 0 | CR44: 0 | CS44: 0 | CT44: 0 | CU44: 0 | CV44: 0 | CW44: 0 | CX44: 0 | CY44: 0 | CZ44: 0 | DA44: 0 | DB44: 0 | DD44: 0 | DE44: 0 | DG44: =0 -> 0 | DH44: 0 | DO44: 0 | DQ44: 0 | DV44: 0 | DW44: 0 | DY44: 0
A45: 3 | B45: April | C45: A4378678570K | D45: Bshora Wayu Nzamo | E45: Resident | F45: Primary Employee | G45: 50000 | N45: 50000 | Q45: 0 | S45: 50000 | T45: 1080 | W45: 2400 | X45: 180 | Y45: 6879.35 | Z45: Benefit not given | AB45: 2023 | CQ45: 0 | CR45: 0 | CS45: 0 | CT45: 0 | CU45: 0 | CV45: 0 | CW45: 0 | CX45: 0 | CY45: 0 | CZ45: 0 | DA45: 0 | DB45: 0 | DD45: 0 | DE45: 0 | DG45: =0 -> 0 | DH45: 0 | DO45: 0 | DQ45: 0 | DV45: 0 | DW45: 0 | DY45: 0
A46: 4 | B46: April | C46: A646834690O | D46: Wanyoni Agala Musando | E46: Resident | F46: Primary Employee | G46: 45000 | N46: 45000 | Q46: 0 | S46: 45000 | T46: 1080 | W46: 2400 | X46: 165 | Y46: 5394.35 | Z46: Benefit not given | AB46: 2023 | CQ46: 0 | CR46: 0 | CS46: 0 | CT46: 0 | CU46: 0 | CV46: 0 | CW46: 0 | CX46: 0 | CY46: 0 | CZ46: 0 | DA46: 0 | DB46: 0 | DD46: 0 | DE46: 0 | DG46: =0 -> 0 | DH46: 0 | DO46: 0 | DQ46: 0 | DV46: 0 | DW46: 0 | DY46: 0
A47: 5 | B47: April | C47: A745878980P | D47: Benerd Kimani Njorioge | E47: Resident | F47: Primary Employee | G47: 45000 | N47: 45000 | Q47: 0 | S47: 45000 | T47: 1080 | W47: 2400 | X47: 165 | Y47: 5394.35 | Z47: Benefit not given | AB47: 2023 | CQ47: 0 | CR47: 0 | CS47: 0 | CT47: 0 | CU47: 0 | CV47: 0 | CW47: 0 | CX47: 0 | CY47: 0 | CZ47: 0 | DA47: 0 | DB47: 0 | DD47: 0 | DE47: 0 | DG47: =0 -> 0 | DH47: 0 | DO47: 0 | DQ47: 0 | DV47: 0 | DW47: 0 | DY47: 0
A48: 6 | B48: April | C48: A457899480p | D48: Sam Jacob Mroki | E48: Resident | F48: Primary Employee | G48: 35000 | N48: 35000 | Q48: 0 | S48: 35000 | T48: 1080 | W48: 2400 | X48: 142.5 | Y48: 2416.85 | Z48: Benefit not given | AB48: 2023 | CQ48: 0 | CR48: 0 | CS48: 0 | CT48: 0 | CU48: 0 | CV48: 0 | CW48: 0 | CX48: 0 | CY48: 0 | CZ48: 0 | DA48: 0 | DB48: 0 | DD48: 0 | DE48: 0 | DG48: =0 -> 0 | DH48: 0 | DO48: 0 | DQ48: 0 | DV48: 0 | DW48: 0 | DY48: 0
A49: 7 | B49: April | C49: A5783458890P | D49: Joy Mueni Mutinda | E49: Resident | F49: Primary Employee | G49: 40000 | N49: 40000 | Q49: 0 | S49: 40000 | T49: 1080 | W49: 2400 | X49: 150 | Y49: 3909.35 | Z49: Benefit not given | AB49: 2023 | CQ49: 0 | CR49: 0 | CS49: 0 | CT49: 0 | CU49: 0 | CV49: 0 | CW49: 0 | CX49: 0 | CY49: 0 | CZ49: 0 | DA49: 0 | DB49: 0 | DD49: 0 | DE49: 0 | DG49: =0 -> 0 | DH49: 0 | DO49: 0 | DQ49: 0 | DV49: 0 | DW49: 0 | DY49: 0
A50: 8 | B50: April | C50: A34778457890p | D50: Kahindi Mwero Boga | E50: Resident | F50: Primary Employee | G50: 40000 | N50: 40000 | Q50: 0 | S50: 40000 | T50: 1080 | W50: 2400 | X50: 150 | Y50: 3909.35 | Z50: Benefit not given | AB50: 2023 | CQ50: 0 | CR50: 0 | CS50: 0 | CT50: 0 | CU50: 0 | CV50: 0 | CW50: 0 | CX50: 0 | CY50: 0 | CZ50: 0 | DA50: 0 | DB50: 0 | DD50: 0 | DE50: 0 | DG50: =0 -> 0 | DH50: 0 | DO50: 0 | DQ50: 0 | DV50: 0 | DW50: 0 | DY50: 0
A51: 9 | B51: April | C51: A034897489E | D51: John Boscco Bosire | E51: Resident | F51: Primary Employee | G51: 50000 | N51: 50000 | Q51: 0 | S51: 50000 | T51: 1080 | W51: 2400 | X51: 180 | Y51: 6879.35 | Z51: Benefit not given | AB51: 2023 | CQ51: 0 | CR51: 0 | CS51: 0 | CT51: 0 | CU51: 0 | CV51: 0 | CW51: 0 | CX51: 0 | CY51: 0 | CZ51: 0 | DA51: 0 | DB51: 0 | DD51: 0 | DE51: 0 | DG51: =0 -> 0 | DH51: 0 | DO51: 0 | DQ51: 0 | DV51: 0 | DW51: 0 | DY51: 0
A52: 10 | B52: April | C52: A4782349790P | D52: Hassan Abdulnasir Wario | E52: Resident | F52: Primary Employee | G52: 40000 | N52: 40000 | Q52: 0 | S52: 40000 | T52: 1080 | W52: 2400 | X52: 150 | Y52: 3909.35 | Z52: Benefit not given | AB52: 2023 | CQ52: 0 | CR52: 0 | CS52: 0 | CT52: 0 | CU52: 0 | CV52: 0 | CW52: 0 | CX52: 0 | CY52: 0 | CZ52: 0 | DA52: 0 | DB52: 0 | DD52: 0 | DE52: 0 | DG52: =0 -> 0 | DH52: 0 | DO52: 0 | DQ52: 0 | DV52: 0 | DW52: 0 | DY52: 0
A53: 11 | B53: April | C53: A0324878234P | D53: Jastine Makemba Batogo | E53: Resident | F53: Primary Employee | G53: 50000 | N53: 50000 | Q53: 0 | S53: 50000 | T53: 1080 | W53: 2400 | X53: 180 | Y53: 6879.35 | Z53: Benefit not given | AB53: 2023 | CQ53: 0 | CR53: 0 | CS53: 0 | CT53: 0 | CU53: 0 | CV53: 0 | CW53: 0 | CX53: 0 | CY53: 0 | CZ53: 0 | DA53: 0 | DB53: 0 | DD53: 0 | DE53: 0 | DG53: =0 -> 0 | DH53: 0 | DO53: 0 | DQ53: 0 | DV53: 0 | DW53: 0 | DY53: 0
A54: 12 | B54: April | C54: A03476784359K | D54: Janet Wairimu Wamatagi | E54: Resident | F54: Primary Employee | G54: 40000 | N54: 40000 | Q54: 0 | S54: 40000 | T54: 1080 | W54: 2400 | X54: 150 | Y54: 3909.35 | Z54: Benefit not given | AB54: 2023 | CQ54: 0 | CR54: 0 | CS54: 0 | CT54: 0 | CU54: 0 | CV54: 0 | CW54: 0 | CX54: 0 | CY54: 0 | CZ54: 0 | DA54: 0 | DB54: 0 | DD54: 0 | DE54: 0 | DG54: =0 -> 0 | DH54: 0 | DO54: 0 | DQ54: 0 | DV54: 0 | DW54: 0 | DY54: 0
A55: 1 | B55: May | C55: A34578678450P | D55: Brian Kombe Gode | E55: Resident | F55: Primary Employee | G55: 60000 | N55: 60000 | Q55: 0 | S55: 60000 | T55: 1080 | W55: 2400 | X55: 195 | Y55: 9864.35 | Z55: Benefit not given | AB55: 2023 | CQ55: 0 | CR55: 0 | CS55: 0 | CT55: 0 | CU55: 0 | CV55: 0 | CW55: 0 | CX55: 0 | CY55: 0 | CZ55: 0 | DA55: 0 | DB55: 0 | DD55: 0 | DE55: 0 | DG55: =0 -> 0 | DH55: 0 | DO55: 0 | DQ55: 0 | DV55: 0 | DW55: 0 | DY55: 0
A56: 2 | B56: May | C56: A49898479409 | D56: Timothy Brian Odongo | E56: Resident | F56: Primary Employee | G56: 100000 | H56: 20000 | I56: 10000 | K56: 5000 | N56: 135000 | Q56: 0 | S56: 135000 | T56: 1080 | W56: 2400 | X56: 255 | Y56: 32304.65 | Z56: Benefit not given | AB56: 2023 | CQ56: 0 | CR56: 0 | CS56: 0 | CT56: 0 | CU56: 0 | CV56: 0 | CW56: 0 | CX56: 0 | CY56: 0 | CZ56: 0 | DA56: 0 | DB56: 0 | DD56: 0 | DE56: 0 | DG56: =0 -> 0 | DH56: 0 | DO56: 0 | DQ56: 0 | DV56: 0 | DW56: 0 | DY56: 0
A57: 3 | B57: May | C57: A4378678570K | D57: Bshora Wayu Nzamo | E57: Resident | F57: Primary Employee | G57: 50000 | N57: 50000 | Q57: 0 | S57: 50000 | T57: 1080 | W57: 2400 | X57: 180 | Y57: 6879.35 | Z57: Benefit not given | AB57: 2023 | CQ57: 0 | CR57: 0 | CS57: 0 | CT57: 0 | CU57: 0 | CV57: 0 | CW57: 0 | CX57: 0 | CY57: 0 | CZ57: 0 | DA57: 0 | DB57: 0 | DD57: 0 | DE57: 0 | DG57: =0 -> 0 | DH57: 0 | DO57: 0 | DQ57: 0 | DV57: 0 | DW57: 0 | DY57: 0
A58: 4 | B58: May | C58: A646834690O | D58: Wanyoni Agala Musando | E58: Resident | F58: Primary Employee | G58: 45000 | N58: 45000 | Q58: 0 | S58: 45000 | T58: 1080 | W58: 2400 | X58: 165 | Y58: 5394.35 | Z58: Benefit not given | AB58: 2023 | CQ58: 0 | CR58: 0 | CS58: 0 | CT58: 0 | CU58: 0 | CV58: 0 | CW58: 0 | CX58: 0 | CY58: 0 | CZ58: 0 | DA58: 0 | DB58: 0 | DD58: 0 | DE58: 0 | DG58: =0 -> 0 | DH58: 0 | DO58: 0 | DQ58: 0 | DV58: 0 | DW58: 0 | DY58: 0
A59: 5 | B59: May | C59: A745878980P | D59: Benerd Kimani Njorioge | E59: Resident | F59: Primary Employee | G59: 45000 | N59: 45000 | Q59: 0 | S59: 45000 | T59: 1080 | W59: 2400 | X59: 165 | Y59: 5394.35 | Z59: Benefit not given | AB59: 2023 | CQ59: 0 | CR59: 0 | CS59: 0 | CT59: 0 | CU59: 0 | CV59: 0 | CW59: 0 | CX59: 0 | CY59: 0 | CZ59: 0 | DA59: 0 | DB59: 0 | DD59: 0 | DE59: 0 | DG59: =0 -> 0 | DH59: 0 | DO59: 0 | DQ59: 0 | DV59: 0 | DW59: 0 | DY59: 0
A60: 6 | B60: May | C60: A457899480p | D60: Sam Jacob Mroki | E60: Resident | F60: Primary Employee | G60: 35000 | N60: 35000 | Q60: 0 | S60: 35000 | T60: 1080 | W60: 2400 | X60: 142.5 | Y60: 2416.85 | Z60: Benefit not given | AB60: 2023 | CQ60: 0 | CR60: 0 | CS60: 0 | CT60: 0 | CU60: 0 | CV60: 0 | CW60: 0 | CX60: 0 | CY60: 0 | CZ60: 0 | DA60: 0 | DB60: 0 | DD60: 0 | DE60: 0 | DG60: =0 -> 0 | DH60: 0 | DO60: 0 | DQ60: 0 | DV60: 0 | DW60: 0 | DY60: 0
A61: 7 | B61: May | C61: A5783458890P | D61: Joy Mueni Mutinda | E61: Resident | F61: Primary Employee | G61: 40000 | N61: 40000 | Q61: 0 | S61: 40000 | T61: 1080 | W61: 2400 | X61: 150 | Y61: 3909.35 | Z61: Benefit not given | AB61: 2023 | CQ61: 0 | CR61: 0 | CS61: 0 | CT61: 0 | CU61: 0 | CV61: 0 | CW61: 0 | CX61: 0 | CY61: 0 | CZ61: 0 | DA61: 0 | DB61: 0 | DD61: 0 | DE61: 0 | DG61: =0 -> 0 | DH61: 0 | DO61: 0 | DQ61: 0 | DV61: 0 | DW61: 0 | DY61: 0
A62: 8 | B62: May | C62: A34778457890p | D62: Kahindi Mwero Boga | E62: Resident | F62: Primary Employee | G62: 40000 | N62: 40000 | Q62: 0 | S62: 40000 | T62: 1080 | W62: 2400 | X62: 150 | Y62: 3909.35 | Z62: Benefit not given | AB62: 2023 | CQ62: 0 | CR62: 0 | CS62: 0 | CT62: 0 | CU62: 0 | CV62: 0 | CW62: 0 | CX62: 0 | CY62: 0 | CZ62: 0 | DA62: 0 | DB62: 0 | DD62: 0 | DE62: 0 | DG62: =0 -> 0 | DH62: 0 | DO62: 0 | DQ62: 0 | DV62: 0 | DW62: 0 | DY62: 0
A63: 9 | B63: May | C63: A034897489E | D63: John Boscco Bosire | E63: Resident | F63: Primary Employee | G63: 50000 | N63: 50000 | Q63: 0 | S63: 50000 | T63: 1080 | W63: 2400 | X63: 180 | Y63: 6879.35 | Z63: Benefit not given | AB63: 2023 | CQ63: 0 | CR63: 0 | CS63: 0 | CT63: 0 | CU63: 0 | CV63: 0 | CW63: 0 | CX63: 0 | CY63: 0 | CZ63: 0 | DA63: 0 | DB63: 0 | DD63: 0 | DE63: 0 | DG63: =0 -> 0 | DH63: 0 | DO63: 0 | DQ63: 0 | DV63: 0 | DW63: 0 | DY63: 0
A64: 10 | B64: May | C64: A4782349790P | D64: Hassan Abdulnasir Wario | E64: Resident | F64: Primary Employee | G64: 40000 | N64: 40000 | Q64: 0 | S64: 40000 | T64: 1080 | W64: 2400 | X64: 150 | Y64: 3909.35 | Z64: Benefit not given | AB64: 2023 | CQ64: =BP64 -> 0 | CR64: =BQ64 -> 0 | CS64: =BR64 -> 0 | CT64: =BS64 -> 0 | CU64: =BT64 -> 0 | CV64: =BU64 -> 0 | CW64: =BV64 -> 0 | CX64: =BW64 -> 0 | CY64: =CN64 -> 0 | CZ64: =BX64 -> 0 | DA64: =BY64 -> 0 | DB64: =BZ64 -> 0 | DD64: =CB64 -> 0 | DE64: =CC64 -> 0 | DG64: =0 -> 0 | DH64: =CM64 -> 0 | DO64: =CG64 -> 0 | DQ64: =CH64 -> 0 | DV64: =CJ64 -> 0 | DW64: =CK64 -> 0 | DY64: =CL64 -> 0
A65: 11 | B65: May | C65: A0324878234P | D65: Jastine Makemba Batogo | E65: Resident | F65: Primary Employee | G65: 50000 | N65: 50000 | Q65: 0 | S65: 50000 | T65: 1080 | W65: 2400 | X65: 180 | Y65: 6879.35 | Z65: Benefit not given | AB65: 2023 | CQ65: 0 | CR65: 0 | CS65: 0 | CT65: 0 | CU65: 0 | CV65: 0 | CW65: 0 | CX65: 0 | CY65: 0 | CZ65: 0 | DA65: 0 | DB65: 0 | DD65: 0 | DE65: 0 | DG65: =0 -> 0 | DH65: 0 | DO65: 0 | DQ65: 0 | DV65: 0 | DW65: 0 | DY65: 0
A66: 12 | B66: May | C66: A03476784359K | D66: Janet Wairimu Wamatagi | E66: Resident | F66: Primary Employee | G66: 40000 | N66: 40000 | Q66: 0 | S66: 40000 | T66: 1080 | W66: 2400 | X66: 150 | Y66: 3909.35 | Z66: Benefit not given | AB66: 2023 | CQ66: 0 | CR66: 0 | CS66: 0 | CT66: 0 | CU66: 0 | CV66: 0 | CW66: 0 | CX66: 0 | CY66: 0 | CZ66: 0 | DA66: 0 | DB66: 0 | DD66: 0 | DE66: 0 | DG66: =0 -> 0 | DH66: 0 | DO66: 0 | DQ66: 0 | DV66: 0 | DW66: 0 | DY66: 0
A67: 1 | B67: June | C67: A34578678450P | D67: Brian Kombe Gode | E67: Resident | F67: Primary Employee | G67: 60000 | N67: 60000 | Q67: 0 | S67: 60000 | T67: 1080 | W67: 2400 | X67: 195 | Y67: 9864.35 | Z67: Benefit not given | AB67: 2023 | CQ67: 0 | CR67: 0 | CS67: 0 | CT67: 0 | CU67: 0 | CV67: 0 | CW67: 0 | CX67: 0 | CY67: 0 | CZ67: 0 | DA67: 0 | DB67: 0 | DD67: 0 | DE67: 0 | DG67: =0 -> 0 | DH67: 0 | DO67: 0 | DQ67: 0 | DV67: 0 | DW67: 0 | DY67: 0
A68: 2 | B68: June | C68: A49898479409 | D68: Timothy Brian Odongo | E68: Resident | F68: Primary Employee | G68: 100000 | H68: 20000 | I68: 10000 | K68: 5000 | N68: 135000 | Q68: 0 | S68: 135000 | T68: 1080 | W68: 2400 | X68: 255 | Y68: 32304.65 | Z68: Benefit not given | AB68: 2023 | CQ68: 0 | CR68: 0 | CS68: 0 | CT68: 0 | CU68: 0 | CV68: 0 | CW68: 0 | CX68: 0 | CY68: 0 | CZ68: 0 | DA68: 0 | DB68: 0 | DD68: 0 | DE68: 0 | DG68: =0 -> 0 | DH68: 0 | DO68: 0 | DQ68: 0 | DV68: 0 | DW68: 0 | DY68: 0
A69: 3 | B69: June | C69: A4378678570K | D69: Bshora Wayu Nzamo | E69: Resident | F69: Primary Employee | G69: 50000 | N69: 50000 | Q69: 0 | S69: 50000 | T69: 1080 | W69: 2400 | X69: 180 | Y69: 6879.35 | Z69: Benefit not given | AB69: 2023 | CQ69: 0 | CR69: 0 | CS69: 0 | CT69: 0 | CU69: 0 | CV69: 0 | CW69: 0 | CX69: 0 | CY69: 0 | CZ69: 0 | DA69: 0 | DB69: 0 | DD69: 0 | DE69: 0 | DG69: =0 -> 0 | DH69: 0 | DO69: 0 | DQ69: 0 | DV69: 0 | DW69: 0 | DY69: 0
A70: 4 | B70: June | C70: A646834690O | D70: Wanyoni Agala Musando | E70: Resident | F70: Primary Employee | G70: 45000 | N70: 45000 | Q70: 0 | S70: 45000 | T70: 1080 | W70: 2400 | X70: 165 | Y70: 5394.35 | Z70: Benefit not given | AB70: 2023 | CQ70: 0 | CR70: 0 | CS70: 0 | CT70: 0 | CU70: 0 | CV70: 0 | CW70: 0 | CX70: 0 | CY70: 0 | CZ70: 0 | DA70: 0 | DB70: 0 | DD70: 0 | DE70: 0 | DG70: =0 -> 0 | DH70: 0 | DO70: 0 | DQ70: 0 | DV70: 0 | DW70: 0 | DY70: 0
A71: 5 | B71: June | C71: A745878980P | D71: Benerd Kimani Njorioge | E71: Resident | F71: Primary Employee | G71: 45000 | N71: 45000 | Q71: 0 | S71: 45000 | T71: 1080 | W71: 2400 | X71: 165 | Y71: 5394.35 | Z71: Benefit not given | AB71: 2023 | CQ71: 0 | CR71: 0 | CS71: 0 | CT71: 0 | CU71: 0 | CV71: 0 | CW71: 0 | CX71: 0 | CY71: 0 | CZ71: 0 | DA71: 0 | DB71: 0 | DD71: 0 | DE71: 0 | DG71: =0 -> 0 | DH71: 0 | DO71: 0 | DQ71: 0 | DV71: 0 | DW71: 0 | DY71: 0
A72: 6 | B72: June | C72: A457899480p | D72: Sam Jacob Mroki | E72: Resident | F72: Primary Employee | G72: 35000 | N72: 35000 | Q72: 0 | S72: 35000 | T72: 1080 | W72: 2400 | X72: 142.5 | Y72: 2416.85 | Z72: Benefit not given | AB72: 2023 | CQ72: 0 | CR72: 0 | CS72: 0 | CT72: 0 | CU72: 0 | CV72: 0 | CW72: 0 | CX72: 0 | CY72: 0 | CZ72: 0 | DA72: 0 | DB72: 0 | DD72: 0 | DE72: 0 | DG72: =0 -> 0 | DH72: 0 | DO72: 0 | DQ72: 0 | DV72: 0 | DW72: 0 | DY72: 0
A73: 7 | B73: June | C73: A5783458890P | D73: Joy Mueni Mutinda | E73: Resident | F73: Primary Employee | G73: 40000 | N73: 40000 | Q73: 0 | S73: 40000 | T73: 1080 | W73: 2400 | X73: 150 | Y73: 3909.35 | Z73: Benefit not given | AB73: 2023 | CQ73: 0 | CR73: 0 | CS73: 0 | CT73: 0 | CU73: 0 | CV73: 0 | CW73: 0 | CX73: 0 | CY73: 0 | CZ73: 0 | DA73: 0 | DB73: 0 | DD73: 0 | DE73: 0 | DG73: =0 -> 0 | DH73: 0 | DO73: 0 | DQ73: 0 | DV73: 0 | DW73: 0 | DY73: 0
A74: 8 | B74: June | C74: A34778457890p | D74: Kahindi Mwero Boga | E74: Resident | F74: Primary Employee | G74: 40000 | N74: 40000 | Q74: 0 | S74: 40000 | T74: 1080 | W74: 2400 | X74: 150 | Y74: 3909.35 | Z74: Benefit not given | AB74: 2023 | CQ74: 0 | CR74: 0 | CS74: 0 | CT74: 0 | CU74: 0 | CV74: 0 | CW74: 0 | CX74: 0 | CY74: 0 | CZ74: 0 | DA74: 0 | DB74: 0 | DD74: 0 | DE74: 0 | DG74: =0 -> 0 | DH74: 0 | DO74: 0 | DQ74: 0 | DV74: 0 | DW74: 0 | DY74: 0
A75: 9 | B75: June | C75: A034897489E | D75: John Boscco Bosire | E75: Resident | F75: Primary Employee | G75: 50000 | N75: 50000 | Q75: 0 | S75: 50000 | T75: 1080 | W75: 2400 | X75: 180 | Y75: 6879.35 | Z75: Benefit not given | AB75: 2023 | CQ75: 0 | CR75: 0 | CS75: 0 | CT75: 0 | CU75: 0 | CV75: 0 | CW75: 0 | CX75: 0 | CY75: 0 | CZ75: 0 | DA75: 0 | DB75: 0 | DD75: 0 | DE75: 0 | DG75: =0 -> 0 | DH75: 0 | DO75: 0 | DQ75: 0 | DV75: 0 | DW75: 0 | DY75: 0
A76: 10 | B76: June | C76: A4782349790P | D76: Hassan Abdulnasir Wario | E76: Resident | F76: Primary Employee | G76: 40000 | N76: 40000 | Q76: 0 | S76: 40000 | T76: 1080 | W76: 2400 | X76: 150 | Y76: 3909.35 | Z76: Benefit not given | AB76: 2023 | CQ76: 0 | CR76: 0 | CS76: 0 | CT76: 0 | CU76: 0 | CV76: 0 | CW76: 0 | CX76: 0 | CY76: 0 | CZ76: 0 | DA76: 0 | DB76: 0 | DD76: 0 | DE76: 0 | DG76: =0 -> 0 | DH76: 0 | DO76: 0 | DQ76: 0 | DV76: 0 | DW76: 0 | DY76: 0
A77: 11 | B77: June | C77: A0324878234P | D77: Jastine Makemba Batogo | E77: Resident | F77: Primary Employee | G77: 50000 | N77: 50000 | Q77: 0 | S77: 50000 | T77: 1080 | W77: 2400 | X77: 180 | Y77: 6879.35 | Z77: Benefit not given | AB77: 2023 | CQ77: 0 | CR77: 0 | CS77: 0 | CT77: 0 | CU77: 0 | CV77: 0 | CW77: 0 | CX77: 0 | CY77: 0 | CZ77: 0 | DA77: 0 | DB77: 0 | DD77: 0 | DE77: 0 | DG77: =0 -> 0 | DH77: 0 | DO77: 0 | DQ77: 0 | DV77: 0 | DW77: 0 | DY77: 0
A78: 12 | B78: June | C78: A03476784359K | D78: Janet Wairimu Wamatagi | E78: Resident | F78: Primary Employee | G78: 40000 | N78: 40000 | Q78: 0 | S78: 40000 | T78: 1080 | W78: 2400 | X78: 150 | Y78: 3909.35 | Z78: Benefit not given | AB78: 2023 | CQ78: 0 | CR78: 0 | CS78: 0 | CT78: 0 | CU78: 0 | CV78: 0 | CW78: 0 | CX78: 0 | CY78: 0 | CZ78: 0 | DA78: 0 | DB78: 0 | DD78: 0 | DE78: 0 | DG78: =0 -> 0 | DH78: 0 | DO78: 0 | DQ78: 0 | DV78: 0 | DW78: 0 | DY78: 0
A79: 1 | B79: July | C79: A34578678450P | D79: Brian Kombe Gode | E79: Resident | F79: Primary Employee | G79: 60000 | N79: 60000 | Q79: 0 | S79: 60000 | T79: 1080 | W79: 2400 | X79: 195 | Y79: 9864.35 | Z79: Benefit not given | AB79: 2023 | CQ79: 0 | CR79: 0 | CS79: 0 | CT79: 0 | CU79: 0 | CV79: 0 | CW79: 0 | CX79: 0 | CY79: 0 | CZ79: 0 | DA79: 0 | DB79: 0 | DD79: 0 | DE79: 0 | DG79: =0 -> 0 | DH79: 0 | DO79: 0 | DQ79: 0 | DV79: 0 | DW79: 0 | DY79: 0
A80: 2 | B80: July | C80: A49898479409 | D80: Timothy Brian Odongo | E80: Resident | F80: Primary Employee | G80: 100000 | H80: 20000 | I80: 10000 | K80: 5000 | N80: 135000 | Q80: 0 | S80: 135000 | T80: 1080 | W80: 2400 | X80: 255 | Y80: 32304.65 | Z80: Benefit not given | AB80: 2023 | CQ80: 0 | CR80: 0 | CS80: 0 | CT80: 0 | CU80: 0 | CV80: 0 | CW80: 0 | CX80: 0 | CY80: 0 | CZ80: 0 | DA80: 0 | DB80: 0 | DD80: 0 | DE80: 0 | DG80: =0 -> 0 | DH80: 0 | DO80: 0 | DQ80: 0 | DV80: 0 | DW80: 0 | DY80: 0
A81: 3 | B81: July | C81: A4378678570K | D81: Bshora Wayu Nzamo | E81: Resident | F81: Primary Employee | G81: 50000 | N81: 50000 | Q81: 0 | S81: 50000 | T81: 1080 | W81: 2400 | X81: 180 | Y81: 6879.35 | Z81: Benefit not given | AB81: 2023 | CQ81: 0 | CR81: 0 | CS81: 0 | CT81: 0 | CU81: 0 | CV81: 0 | CW81: 0 | CX81: 0 | CY81: 0 | CZ81: 0 | DA81: 0 | DB81: 0 | DD81: 0 | DE81: 0 | DG81: =0 -> 0 | DH81: 0 | DO81: 0 | DQ81: 0 | DV81: 0 | DW81: 0 | DY81: 0
A82: 4 | B82: July | C82: A646834690O | D82: Wanyoni Agala Musando | E82: Resident | F82: Primary Employee | G82: 45000 | N82: 45000 | Q82: 0 | S82: 45000 | T82: 1080 | W82: 2400 | X82: 165 | Y82: 5394.35 | Z82: Benefit not given | AB82: 2023 | CQ82: 0 | CR82: 0 | CS82: 0 | CT82: 0 | CU82: 0 | CV82: 0 | CW82: 0 | CX82: 0 | CY82: 0 | CZ82: 0 | DA82: 0 | DB82: 0 | DD82: 0 | DE82: 0 | DG82: =0 -> 0 | DH82: 0 | DO82: 0 | DQ82: 0 | DV82: 0 | DW82: 0 | DY82: 0
A83: 5 | B83: July | C83: A745878980P | D83: Benerd Kimani Njorioge | E83: Resident | F83: Primary Employee | G83: 45000 | N83: 45000 | Q83: 0 | S83: 45000 | T83: 1080 | W83: 2400 | X83: 165 | Y83: 5394.35 | Z83: Benefit not given | AB83: 2023 | CQ83: 0 | CR83: 0 | CS83: 0 | CT83: 0 | CU83: 0 | CV83: 0 | CW83: 0 | CX83: 0 | CY83: 0 | CZ83: 0 | DA83: 0 | DB83: 0 | DD83: 0 | DE83: 0 | DG83: =0 -> 0 | DH83: 0 | DO83: 0 | DQ83: 0 | DV83: 0 | DW83: 0 | DY83: 0
A84: 6 | B84: July | C84: A457899480p | D84: Sam Jacob Mroki | E84: Resident | F84: Primary Employee | G84: 35000 | N84: 35000 | Q84: 0 | S84: 35000 | T84: 1080 | W84: 2400 | X84: 142.5 | Y84: 2416.85 | Z84: Benefit not given | AB84: 2023 | CQ84: 0 | CR84: 0 | CS84: 0 | CT84: 0 | CU84: 0 | CV84: 0 | CW84: 0 | CX84: 0 | CY84: 0 | CZ84: 0 | DA84: 0 | DB84: 0 | DD84: 0 | DE84: 0 | DG84: =0 -> 0 | DH84: 0 | DO84: 0 | DQ84: 0 | DV84: 0 | DW84: 0 | DY84: 0
A85: 7 | B85: July | C85: A5783458890P | D85: Joy Mueni Mutinda | E85: Resident | F85: Primary Employee | G85: 40000 | N85: 40000 | Q85: 0 | S85: 40000 | T85: 1080 | W85: 2400 | X85: 150 | Y85: 3909.35 | Z85: Benefit not given | AB85: 2023 | CQ85: 0 | CR85: 0 | CS85: 0 | CT85: 0 | CU85: 0 | CV85: 0 | CW85: 0 | CX85: 0 | CY85: 0 | CZ85: 0 | DA85: 0 | DB85: 0 | DD85: 0 | DE85: 0 | DG85: =0 -> 0 | DH85: 0 | DO85: 0 | DQ85: 0 | DV85: 0 | DW85: 0 | DY85: 0
A86: 8 | B86: July | C86: A34778457890p | D86: Kahindi Mwero Boga | E86: Resident | F86: Primary Employee | G86: 40000 | N86: 40000 | Q86: 0 | S86: 40000 | T86: 1080 | W86: 2400 | X86: 150 | Y86: 3909.35 | Z86: Benefit not given | AB86: 2023 | CQ86: 0 | CR86: 0 | CS86: 0 | CT86: 0 | CU86: 0 | CV86: 0 | CW86: 0 | CX86: 0 | CY86: 0 | CZ86: 0 | DA86: 0 | DB86: 0 | DD86: 0 | DE86: 0 | DG86: =0 -> 0 | DH86: 0 | DO86: 0 | DQ86: 0 | DV86: 0 | DW86: 0 | DY86: 0
A87: 9 | B87: July | C87: A034897489E | D87: John Boscco Bosire | E87: Resident | F87: Primary Employee | G87: 50000 | N87: 50000 | Q87: 0 | S87: 50000 | T87: 1080 | W87: 2400 | X87: 180 | Y87: 6879.35 | Z87: Benefit not given | AB87: 2023 | CQ87: 0 | CR87: 0 | CS87: 0 | CT87: 0 | CU87: 0 | CV87: 0 | CW87: 0 | CX87: 0 | CY87: 0 | CZ87: 0 | DA87: 0 | DB87: 0 | DD87: 0 | DE87: 0 | DG87: =0 -> 0 | DH87: 0 | DO87: 0 | DQ87: 0 | DV87: 0 | DW87: 0 | DY87: 0
A88: 10 | B88: July | C88: A4782349790P | D88: Hassan Abdulnasir Wario | E88: Resident | F88: Primary Employee | G88: 40000 | N88: 40000 | Q88: 0 | S88: 40000 | T88: 1080 | W88: 2400 | X88: 150 | Y88: 3909.35 | Z88: Benefit not given | AB88: 2023 | CQ88: 0 | CR88: 0 | CS88: 0 | CT88: 0 | CU88: 0 | CV88: 0 | CW88: 0 | CX88: 0 | CY88: 0 | CZ88: 0 | DA88: 0 | DB88: 0 | DD88: 0 | DE88: 0 | DG88: =0 -> 0 | DH88: 0 | DO88: 0 | DQ88: 0 | DV88: 0 | DW88: 0 | DY88: 0
A89: 11 | B89: July | C89: A0324878234P | D89: Jastine Makemba Batogo | E89: Resident | F89: Primary Employee | G89: 50000 | N89: 50000 | Q89: 0 | S89: 50000 | T89: 1080 | W89: 2400 | X89: 180 | Y89: 6879.35 | Z89: Benefit not given | AB89: 2023 | CQ89: 0 | CR89: 0 | CS89: 0 | CT89: 0 | CU89: 0 | CV89: 0 | CW89: 0 | CX89: 0 | CY89: 0 | CZ89: 0 | DA89: 0 | DB89: 0 | DD89: 0 | DE89: 0 | DG89: =0 -> 0 | DH89: 0 | DO89: 0 | DQ89: 0 | DV89: 0 | DW89: 0 | DY89: 0
A90: 12 | B90: July | C90: A03476784359K | D90: Janet Wairimu Wamatagi | E90: Resident | F90: Primary Employee | G90: 40000 | N90: 40000 | Q90: 0 | S90: 40000 | T90: 1080 | W90: 2400 | X90: 150 | Y90: 3909.35 | Z90: Benefit not given | AB90: 2023 | CQ90: 0 | CR90: 0 | CS90: 0 | CT90: 0 | CU90: 0 | CV90: 0 | CW90: 0 | CX90: 0 | CY90: 0 | CZ90: 0 | DA90: 0 | DB90: 0 | DD90: 0 | DE90: 0 | DG90: =0 -> 0 | DH90: 0 | DO90: 0 | DQ90: 0 | DV90: 0 | DW90: 0 | DY90: 0
A91: 1 | B91: August | C91: A34578678450P | D91: Brian Kombe Gode | E91: Resident | F91: Primary Employee | G91: 60000 | N91: 60000 | Q91: 0 | S91: 60000 | T91: 1080 | W91: 2400 | X91: 195 | Y91: 9864.35 | Z91: Benefit not given | AB91: 2023 | CQ91: 0 | CR91: 0 | CS91: 0 | CT91: 0 | CU91: 0 | CV91: 0 | CW91: 0 | CX91: 0 | CY91: 0 | CZ91: 0 | DA91: 0 | DB91: 0 | DD91: 0 | DE91: 0 | DG91: =0 -> 0 | DH91: 0 | DO91: 0 | DQ91: 0 | DV91: 0 | DW91: 0 | DY91: 0
A92: 2 | B92: August | C92: A49898479409 | D92: Timothy Brian Odongo | E92: Resident | F92: Primary Employee | G92: 100000 | H92: 20000 | I92: 10000 | K92: 5000 | N92: 135000 | Q92: 0 | S92: 135000 | T92: 1080 | W92: 2400 | X92: 255 | Y92: 32304.65 | Z92: Benefit not given | AB92: 2023 | CQ92: 0 | CR92: 0 | CS92: 0 | CT92: 0 | CU92: 0 | CV92: 0 | CW92: 0 | CX92: 0 | CY92: 0 | CZ92: 0 | DA92: 0 | DB92: 0 | DD92: 0 | DE92: 0 | DG92: =0 -> 0 | DH92: 0 | DO92: 0 | DQ92: 0 | DV92: 0 | DW92: 0 | DY92: 0
A93: 3 | B93: August | C93: A4378678570K | D93: Bshora Wayu Nzamo | E93: Resident | F93: Primary Employee | G93: 50000 | N93: 50000 | Q93: 0 | S93: 50000 | T93: 1080 | W93: 2400 | X93: 180 | Y93: 6879.35 | Z93: Benefit not given | AB93: 2023 | CQ93: 0 | CR93: 0 | CS93: 0 | CT93: 0 | CU93: 0 | CV93: 0 | CW93: 0 | CX93: 0 | CY93: 0 | CZ93: 0 | DA93: 0 | DB93: 0 | DD93: 0 | DE93: 0 | DG93: =0 -> 0 | DH93: 0 | DO93: 0 | DQ93: 0 | DV93: 0 | DW93: 0 | DY93: 0
A94: 4 | B94: August | C94: A646834690O | D94: Wanyoni Agala Musando | E94: Resident | F94: Primary Employee | G94: 45000 | N94: 45000 | Q94: 0 | S94: 45000 | T94: 1080 | W94: 2400 | X94: 165 | Y94: 5394.35 | Z94: Benefit not given | AB94: 2023 | CQ94: 0 | CR94: 0 | CS94: 0 | CT94: 0 | CU94: 0 | CV94: 0 | CW94: 0 | CX94: 0 | CY94: 0 | CZ94: 0 | DA94: 0 | DB94: 0 | DD94: 0 | DE94: 0 | DG94: =0 -> 0 | DH94: 0 | DO94: 0 | DQ94: 0 | DV94: 0 | DW94: 0 | DY94: 0
A95: 5 | B95: August | C95: A745878980P | D95: Benerd Kimani Njorioge | E95: Resident | F95: Primary Employee | G95: 45000 | N95: 45000 | Q95: 0 | S95: 45000 | T95: 1080 | W95: 2400 | X95: 165 | Y95: 5394.35 | Z95: Benefit not given | AB95: 2023 | CQ95: 0 | CR95: 0 | CS95: 0 | CT95: 0 | CU95: 0 | CV95: 0 | CW95: 0 | CX95: 0 | CY95: 0 | CZ95: 0 | DA95: 0 | DB95: 0 | DD95: 0 | DE95: 0 | DG95: =0 -> 0 | DH95: 0 | DO95: 0 | DQ95: 0 | DV95: 0 | DW95: 0 | DY95: 0
A96: 6 | B96: August | C96: A457899480p | D96: Sam Jacob Mroki | E96: Resident | F96: Primary Employee | G96: 35000 | N96: 35000 | Q96: 0 | S96: 35000 | T96: 1080 | W96: 2400 | X96: 142.5 | Y96: 2416.85 | Z96: Benefit not given | AB96: 2023 | CQ96: 0 | CR96: 0 | CS96: 0 | CT96: 0 | CU96: 0 | CV96: 0 | CW96: 0 | CX96: 0 | CY96: 0 | CZ96: 0 | DA96: 0 | DB96: 0 | DD96: 0 | DE96: 0 | DG96: =0 -> 0 | DH96: 0 | DO96: 0 | DQ96: 0 | DV96: 0 | DW96: 0 | DY96: 0
A97: 7 | B97: August | C97: A5783458890P | D97: Joy Mueni Mutinda | E97: Resident | F97: Primary Employee | G97: 40000 | N97: 40000 | Q97: 0 | S97: 40000 | T97: 1080 | W97: 2400 | X97: 150 | Y97: 3909.35 | Z97: Benefit not given | AB97: 2023 | CQ97: 0 | CR97: 0 | CS97: 0 | CT97: 0 | CU97: 0 | CV97: 0 | CW97: 0 | CX97: 0 | CY97: 0 | CZ97: 0 | DA97: 0 | DB97: 0 | DD97: 0 | DE97: 0 | DG97: =0 -> 0 | DH97: 0 | DO97: 0 | DQ97: 0 | DV97: 0 | DW97: 0 | DY97: 0
A98: 8 | B98: August | C98: A34778457890p | D98: Kahindi Mwero Boga | E98: Resident | F98: Primary Employee | G98: 40000 | N98: 40000 | Q98: 0 | S98: 40000 | T98: 1080 | W98: 2400 | X98: 150 | Y98: 3909.35 | Z98: Benefit not given | AB98: 2023 | CQ98: 0 | CR98: 0 | CS98: 0 | CT98: 0 | CU98: 0 | CV98: 0 | CW98: 0 | CX98: 0 | CY98: 0 | CZ98: 0 | DA98: 0 | DB98: 0 | DD98: 0 | DE98: 0 | DG98: =0 -> 0 | DH98: 0 | DO98: 0 | DQ98: 0 | DV98: 0 | DW98: 0 | DY98: 0
A99: 9 | B99: August | C99: A034897489E | D99: John Boscco Bosire | E99: Resident | F99: Primary Employee | G99: 50000 | N99: 50000 | Q99: 0 | S99: 50000 | T99: 1080 | W99: 2400 | X99: 180 | Y99: 6879.35 | Z99: Benefit not given | AB99: 2023 | CQ99: 0 | CR99: 0 | CS99: 0 | CT99: 0 | CU99: 0 | CV99: 0 | CW99: 0 | CX99: 0 | CY99: 0 | CZ99: 0 | DA99: 0 | DB99: 0 | DD99: 0 | DE99: 0 | DG99: =0 -> 0 | DH99: 0 | DO99: 0 | DQ99: 0 | DV99: 0 | DW99: 0 | DY99: 0
A100: 10 | B100: August | C100: A4782349790P | D100: Hassan Abdulnasir Wario | E100: Resident | F100: Primary Employee | G100: 40000 | N100: 40000 | Q100: 0 | S100: 40000 | T100: 1080 | W100: 2400 | X100: 150 | Y100: 3909.35 | Z100: Benefit not given | AB100: 2023 | CQ100: 0 | CR100: 0 | CS100: 0 | CT100: 0 | CU100: 0 | CV100: 0 | CW100: 0 | CX100: 0 | CY100: 0 | CZ100: 0 | DA100: 0 | DB100: 0 | DD100: 0 | DE100: 0 | DG100: =0 -> 0 | DH100: 0 | DO100: 0 | DQ100: 0 | DV100: 0 | DW100: 0 | DY100: 0
A101: 11 | B101: August | C101: A0324878234P | D101: Jastine Makemba Batogo | E101: Resident | F101: Primary Employee | G101: 50000 | N101: 50000 | Q101: 0 | S101: 50000 | T101: 1080 | W101: 2400 | X101: 180 | Y101: 6879.35 | Z101: Benefit not given | AB101: 2023 | CQ101: 0 | CR101: 0 | CS101: 0 | CT101: 0 | CU101: 0 | CV101: 0 | CW101: 0 | CX101: 0 | CY101: 0 | CZ101: 0 | DA101: 0 | DB101: 0 | DD101: 0 | DE101: 0 | DG101: =0 -> 0 | DH101: 0 | DO101: 0 | DQ101: 0 | DV101: 0 | DW101: 0 | DY101: 0
A102: 12 | B102: August | C102: A03476784359K | D102: Janet Wairimu Wamatagi | E102: Resident | F102: Primary Employee | G102: 40000 | N102: 40000 | Q102: 0 | S102: 40000 | T102: 1080 | W102: 2400 | X102: 150 | Y102: 3909.35 | Z102: Benefit not given | AB102: 2023 | CQ102: 0 | CR102: 0 | CS102: 0 | CT102: 0 | CU102: 0 | CV102: 0 | CW102: 0 | CX102: 0 | CY102: 0 | CZ102: 0 | DA102: 0 | DB102: 0 | DD102: 0 | DE102: 0 | DG102: =0 -> 0 | DH102: 0 | DO102: 0 | DQ102: 0 | DV102: 0 | DW102: 0 | DY102: 0
A103: 1 | B103: September | C103: A34578678450P | D103: Brian Kombe Gode | E103: Resident | F103: Primary Employee | G103: 60000 | N103: 60000 | Q103: 0 | S103: 60000 | T103: 1080 | W103: 2400 | X103: 195 | Y103: 9864.35 | Z103: Benefit not given | AB103: 2023 | CQ103: 0 | CR103: 0 | CS103: 0 | CT103: 0 | CU103: 0 | CV103: 0 | CW103: 0 | CX103: 0 | CY103: 0 | CZ103: 0 | DA103: 0 | DB103: 0 | DD103: 0 | DE103: 0 | DG103: =0 -> 0 | DH103: 0 | DO103: 0 | DQ103: 0 | DV103: 0 | DW103: 0 | DY103: 0
A104: 2 | B104: September | C104: A49898479409 | D104: Timothy Brian Odongo | E104: Resident | F104: Primary Employee | G104: 100000 | H104: 20000 | I104: 10000 | K104: 5000 | N104: 135000 | Q104: 0 | S104: 135000 | T104: 1080 | W104: 2400 | X104: 255 | Y104: 32304.65 | Z104: Benefit not given | AB104: 2023 | CQ104: 0 | CR104: 0 | CS104: 0 | CT104: 0 | CU104: 0 | CV104: 0 | CW104: 0 | CX104: 0 | CY104: 0 | CZ104: 0 | DA104: 0 | DB104: 0 | DD104: 0 | DE104: 0 | DG104: =0 -> 0 | DH104: 0 | DO104: 0 | DQ104: 0 | DV104: 0 | DW104: 0 | DY104: 0
A105: 3 | B105: September | C105: A4378678570K | D105: Bshora Wayu Nzamo | E105: Resident | F105: Primary Employee | G105: 50000 | N105: 50000 | Q105: 0 | S105: 50000 | T105: 1080 | W105: 2400 | X105: 180 | Y105: 6879.35 | Z105: Benefit not given | AB105: 2023 | CQ105: 0 | CR105: 0 | CS105: 0 | CT105: 0 | CU105: 0 | CV105: 0 | CW105: 0 | CX105: 0 | CY105: 0 | CZ105: 0 | DA105: 0 | DB105: 0 | DD105: 0 | DE105: 0 | DG105: =0 -> 0 | DH105: 0 | DO105: 0 | DQ105: 0 | DV105: 0 | DW105: 0 | DY105: 0
A106: 4 | B106: September | C106: A646834690O | D106: Wanyoni Agala Musando | E106: Resident | F106: Primary Employee | G106: 45000 | N106: 45000 | Q106: 0 | S106: 45000 | T106: 1080 | W106: 2400 | X106: 165 | Y106: 5394.35 | Z106: Benefit not given | AB106: 2023 | CQ106: 0 | CR106: 0 | CS106: 0 | CT106: 0 | CU106: 0 | CV106: 0 | CW106: 0 | CX106: 0 | CY106: 0 | CZ106: 0 | DA106: 0 | DB106: 0 | DD106: 0 | DE106: 0 | DG106: =0 -> 0 | DH106: 0 | DO106: 0 | DQ106: 0 | DV106: 0 | DW106: 0 | DY106: 0
A107: 5 | B107: September | C107: A745878980P | D107: Benerd Kimani Njorioge | E107: Resident | F107: Primary Employee | G107: 45000 | N107: 45000 | Q107: 0 | S107: 45000 | T107: 1080 | W107: 2400 | X107: 165 | Y107: 5394.35 | Z107: Benefit not given | AB107: 2023 | CQ107: 0 | CR107: 0 | CS107: 0 | CT107: 0 | CU107: 0 | CV107: 0 | CW107: 0 | CX107: 0 | CY107: 0 | CZ107: 0 | DA107: 0 | DB107: 0 | DD107: 0 | DE107: 0 | DG107: =0 -> 0 | DH107: 0 | DO107: 0 | DQ107: 0 | DV107: 0 | DW107: 0 | DY107: 0
A108: 6 | B108: September | C108: A457899480p | D108: Sam Jacob Mroki | E108: Resident | F108: Primary Employee | G108: 35000 | N108: 35000 | Q108: 0 | S108: 35000 | T108: 1080 | W108: 2400 | X108: 142.5 | Y108: 2416.85 | Z108: Benefit not given | AB108: 2023 | CQ108: 0 | CR108: 0 | CS108: 0 | CT108: 0 | CU108: 0 | CV108: 0 | CW108: 0 | CX108: 0 | CY108: 0 | CZ108: 0 | DA108: 0 | DB108: 0 | DD108: 0 | DE108: 0 | DG108: =0 -> 0 | DH108: 0 | DO108: 0 | DQ108: 0 | DV108: 0 | DW108: 0 | DY108: 0
A109: 7 | B109: September | C109: A5783458890P | D109: Joy Mueni Mutinda | E109: Resident | F109: Primary Employee | G109: 40000 | N109: 40000 | Q109: 0 | S109: 40000 | T109: 1080 | W109: 2400 | X109: 150 | Y109: 3909.35 | Z109: Benefit not given | AB109: 2023 | CQ109: 0 | CR109: 0 | CS109: 0 | CT109: 0 | CU109: 0 | CV109: 0 | CW109: 0 | CX109: 0 | CY109: 0 | CZ109: 0 | DA109: 0 | DB109: 0 | DD109: 0 | DE109: 0 | DG109: =0 -> 0 | DH109: 0 | DO109: 0 | DQ109: 0 | DV109: 0 | DW109: 0 | DY109: 0
A110: 8 | B110: September | C110: A34778457890p | D110: Kahindi Mwero Boga | E110: Resident | F110: Primary Employee | G110: 40000 | N110: 40000 | Q110: 0 | S110: 40000 | T110: 1080 | W110: 2400 | X110: 150 | Y110: 3909.35 | Z110: Benefit not given | AB110: 2023 | CQ110: 0 | CR110: 0 | CS110: 0 | CT110: 0 | CU110: 0 | CV110: 0 | CW110: 0 | CX110: 0 | CY110: 0 | CZ110: 0 | DA110: 0 | DB110: 0 | DD110: 0 | DE110: 0 | DG110: =0 -> 0 | DH110: 0 | DO110: 0 | DQ110: 0 | DV110: 0 | DW110: 0 | DY110: 0
A111: 9 | B111: September | C111: A034897489E | D111: John Boscco Bosire | E111: Resident | F111: Primary Employee | G111: 50000 | N111: 50000 | Q111: 0 | S111: 50000 | T111: 1080 | W111: 2400 | X111: 180 | Y111: 6879.35 | Z111: Benefit not given | AB111: 2023 | CQ111: 0 | CR111: 0 | CS111: 0 | CT111: 0 | CU111: 0 | CV111: 0 | CW111: 0 | CX111: 0 | CY111: 0 | CZ111: 0 | DA111: 0 | DB111: 0 | DD111: 0 | DE111: 0 | DG111: =0 -> 0 | DH111: 0 | DO111: 0 | DQ111: 0 | DV111: 0 | DW111: 0 | DY111: 0
A112: 10 | B112: September | C112: A4782349790P | D112: Hassan Abdulnasir Wario | E112: Resident | F112: Primary Employee | G112: 40000 | N112: 40000 | Q112: 0 | S112: 40000 | T112: 1080 | W112: 2400 | X112: 150 | Y112: 3909.35 | Z112: Benefit not given | AB112: 2023 | CQ112: 0 | CR112: 0 | CS112: 0 | CT112: 0 | CU112: 0 | CV112: 0 | CW112: 0 | CX112: 0 | CY112: 0 | CZ112: 0 | DA112: 0 | DB112: 0 | DD112: 0 | DE112: 0 | DG112: =0 -> 0 | DH112: 0 | DO112: 0 | DQ112: 0 | DV112: 0 | DW112: 0 | DY112: 0
A113: 11 | B113: September | C113: A0324878234P | D113: Jastine Makemba Batogo | E113: Resident | F113: Primary Employee | G113: 50000 | N113: 50000 | Q113: 0 | S113: 50000 | T113: 1080 | W113: 2400 | X113: 180 | Y113: 6879.35 | Z113: Benefit not given | AB113: 2023 | CQ113: 0 | CR113: 0 | CS113: 0 | CT113: 0 | CU113: 0 | CV113: 0 | CW113: 0 | CX113: 0 | CY113: 0 | CZ113: 0 | DA113: 0 | DB113: 0 | DD113: 0 | DE113: 0 | DG113: =0 -> 0 | DH113: 0 | DO113: 0 | DQ113: 0 | DV113: 0 | DW113: 0 | DY113: 0
A114: 12 | B114: September | C114: A03476784359K | D114: Janet Wairimu Wamatagi | E114: Resident | F114: Primary Employee | G114: 40000 | N114: 40000 | Q114: 0 | S114: 40000 | T114: 1080 | W114: 2400 | X114: 150 | Y114: 3909.35 | Z114: Benefit not given | AB114: 2023 | CQ114: 0 | CR114: 0 | CS114: 0 | CT114: 0 | CU114: 0 | CV114: 0 | CW114: 0 | CX114: 0 | CY114: 0 | CZ114: 0 | DA114: 0 | DB114: 0 | DD114: 0 | DE114: 0 | DG114: =0 -> 0 | DH114: 0 | DO114: 0 | DQ114: 0 | DV114: 0 | DW114: 0 | DY114: 0
A115: 1 | B115: October | C115: A34578678450P | D115: Brian Kombe Gode | E115: Resident | F115: Primary Employee | G115: 60000 | N115: 60000 | Q115: 0 | S115: 60000 | T115: 1080 | W115: 2400 | X115: 195 | Y115: 9864.35 | Z115: Benefit not given | AB115: 2023 | CQ115: 0 | CR115: 0 | CS115: 0 | CT115: 0 | CU115: 0 | CV115: 0 | CW115: 0 | CX115: 0 | CY115: 0 | CZ115: 0 | DA115: 0 | DB115: 0 | DD115: 0 | DE115: 0 | DG115: =0 -> 0 | DH115: 0 | DO115: 0 | DQ115: 0 | DV115: 0 | DW115: 0 | DY115: 0
A116: 2 | B116: October | C116: A49898479409 | D116: Timothy Brian Odongo | E116: Resident | F116: Primary Employee | G116: 100000 | H116: 20000 | I116: 10000 | K116: 5000 | N116: 135000 | Q116: 0 | S116: 135000 | T116: 1080 | W116: 2400 | X116: 255 | Y116: 32304.65 | Z116: Benefit not given | AB116: 2023 | CQ116: 0 | CR116: 0 | CS116: 0 | CT116: 0 | CU116: 0 | CV116: 0 | CW116: 0 | CX116: 0 | CY116: 0 | CZ116: 0 | DA116: 0 | DB116: 0 | DD116: 0 | DE116: 0 | DG116: =0 -> 0 | DH116: 0 | DO116: 0 | DQ116: 0 | DV116: 0 | DW116: 0 | DY116: 0
A117: 3 | B117: October | C117: A4378678570K | D117: Bshora Wayu Nzamo | E117: Resident | F117: Primary Employee | G117: 50000 | N117: 50000 | Q117: 0 | S117: 50000 | T117: 1080 | W117: 2400 | X117: 180 | Y117: 6879.35 | Z117: Benefit not given | AB117: 2023 | CQ117: 0 | CR117: 0 | CS117: 0 | CT117: 0 | CU117: 0 | CV117: 0 | CW117: 0 | CX117: 0 | CY117: 0 | CZ117: 0 | DA117: 0 | DB117: 0 | DD117: 0 | DE117: 0 | DG117: =0 -> 0 | DH117: 0 | DO117: 0 | DQ117: 0 | DV117: 0 | DW117: 0 | DY117: 0
A118: 4 | B118: October | C118: A646834690O | D118: Wanyoni Agala Musando | E118: Resident | F118: Primary Employee | G118: 45000 | N118: 45000 | Q118: 0 | S118: 45000 | T118: 1080 | W118: 2400 | X118: 165 | Y118: 5394.35 | Z118: Benefit not given | AB118: 2023 | CQ118: 0 | CR118: 0 | CS118: 0 | CT118: 0 | CU118: 0 | CV118: 0 | CW118: 0 | CX118: 0 | CY118: 0 | CZ118: 0 | DA118: 0 | DB118: 0 | DD118: 0 | DE118: 0 | DG118: =0 -> 0 | DH118: 0 | DO118: 0 | DQ118: 0 | DV118: 0 | DW118: 0 | DY118: 0
A119: 5 | B119: October | C119: A745878980P | D119: Benerd Kimani Njorioge | E119: Resident | F119: Primary Employee | G119: 45000 | N119: 45000 | Q119: 0 | S119: 45000 | T119: 1080 | W119: 2400 | X119: 165 | Y119: 5394.35 | Z119: Benefit not given | AB119: 2023 | CQ119: 0 | CR119: 0 | CS119: 0 | CT119: 0 | CU119: 0 | CV119: 0 | CW119: 0 | CX119: 0 | CY119: 0 | CZ119: 0 | DA119: 0 | DB119: 0 | DD119: 0 | DE119: 0 | DG119: =0 -> 0 | DH119: 0 | DO119: 0 | DQ119: 0 | DV119: 0 | DW119: 0 | DY119: 0
A120: 6 | B120: October | C120: A457899480p | D120: Sam Jacob Mroki | E120: Resident | F120: Primary Employee | G120: 35000 | N120: 35000 | Q120: 0 | S120: 35000 | T120: 1080 | W120: 2400 | X120: 142.5 | Y120: 2416.85 | Z120: Benefit not given | AB120: 2023 | CQ120: 0 | CR120: 0 | CS120: 0 | CT120: 0 | CU120: 0 | CV120: 0 | CW120: 0 | CX120: 0 | CY120: 0 | CZ120: 0 | DA120: 0 | DB120: 0 | DD120: 0 | DE120: 0 | DG120: =0 -> 0 | DH120: 0 | DO120: 0 | DQ120: 0 | DV120: 0 | DW120: 0 | DY120: 0
A121: 7 | B121: October | C121: A5783458890P | D121: Joy Mueni Mutinda | E121: Resident | F121: Primary Employee | G121: 40000 | N121: 40000 | Q121: 0 | S121: 40000 | T121: 1080 | W121: 2400 | X121: 150 | Y121: 3909.35 | Z121: Benefit not given | AB121: 2023 | CQ121: 0 | CR121: 0 | CS121: 0 | CT121: 0 | CU121: 0 | CV121: 0 | CW121: 0 | CX121: 0 | CY121: 0 | CZ121: 0 | DA121: 0 | DB121: 0 | DD121: 0 | DE121: 0 | DG121: =0 -> 0 | DH121: 0 | DO121: 0 | DQ121: 0 | DV121: 0 | DW121: 0 | DY121: 0
A122: 8 | B122: October | C122: A34778457890p | D122: Kahindi Mwero Boga | E122: Resident | F122: Primary Employee | G122: 40000 | N122: 40000 | Q122: 0 | S122: 40000 | T122: 1080 | W122: 2400 | X122: 150 | Y122: 3909.35 | Z122: Benefit not given | AB122: 2023 | CQ122: 0 | CR122: 0 | CS122: 0 | CT122: 0 | CU122: 0 | CV122: 0 | CW122: 0 | CX122: 0 | CY122: 0 | CZ122: 0 | DA122: 0 | DB122: 0 | DD122: 0 | DE122: 0 | DG122: =0 -> 0 | DH122: 0 | DO122: 0 | DQ122: 0 | DV122: 0 | DW122: 0 | DY122: 0
A123: 9 | B123: October | C123: A034897489E | D123: John Boscco Bosire | E123: Resident | F123: Primary Employee | G123: 50000 | N123: 50000 | Q123: 0 | S123: 50000 | T123: 1080 | W123: 2400 | X123: 180 | Y123: 6879.35 | Z123: Benefit not given | AB123: 2023 | CQ123: 0 | CR123: 0 | CS123: 0 | CT123: 0 | CU123: 0 | CV123: 0 | CW123: 0 | CX123: 0 | CY123: 0 | CZ123: 0 | DA123: 0 | DB123: 0 | DD123: 0 | DE123: 0 | DG123: =0 -> 0 | DH123: 0 | DO123: 0 | DQ123: 0 | DV123: 0 | DW123: 0 | DY123: 0
A124: 10 | B124: October | C124: A4782349790P | D124: Hassan Abdulnasir Wario | E124: Resident | F124: Primary Employee | G124: 40000 | N124: 40000 | Q124: 0 | S124: 40000 | T124: 1080 | W124: 2400 | X124: 150 | Y124: 3909.35 | Z124: Benefit not given | AB124: 2023 | CQ124: 0 | CR124: 0 | CS124: 0 | CT124: 0 | CU124: 0 | CV124: 0 | CW124: 0 | CX124: 0 | CY124: 0 | CZ124: 0 | DA124: 0 | DB124: 0 | DD124: 0 | DE124: 0 | DG124: =0 -> 0 | DH124: 0 | DO124: 0 | DQ124: 0 | DV124: 0 | DW124: 0 | DY124: 0
A125: 11 | B125: October | C125: A0324878234P | D125: Jastine Makemba Batogo | E125: Resident | F125: Primary Employee | G125: 50000 | N125: 50000 | Q125: 0 | S125: 50000 | T125: 1080 | W125: 2400 | X125: 180 | Y125: 6879.35 | Z125: Benefit not given | AB125: 2023 | CQ125: 0 | CR125: 0 | CS125: 0 | CT125: 0 | CU125: 0 | CV125: 0 | CW125: 0 | CX125: 0 | CY125: 0 | CZ125: 0 | DA125: 0 | DB125: 0 | DD125: 0 | DE125: 0 | DG125: =0 -> 0 | DH125: 0 | DO125: 0 | DQ125: 0 | DV125: 0 | DW125: 0 | DY125: 0
A126: 12 | B126: October | C126: A03476784359K | D126: Janet Wairimu Wamatagi | E126: Resident | F126: Primary Employee | G126: 40000 | N126: 40000 | Q126: 0 | S126: 40000 | T126: 1080 | W126: 2400 | X126: 150 | Y126: 3909.35 | Z126: Benefit not given | AB126: 2023 | CQ126: 0 | CR126: 0 | CS126: 0 | CT126: 0 | CU126: 0 | CV126: 0 | CW126: 0 | CX126: 0 | CY126: 0 | CZ126: 0 | DA126: 0 | DB126: 0 | DD126: 0 | DE126: 0 | DG126: =0 -> 0 | DH126: 0 | DO126: 0 | DQ126: 0 | DV126: 0 | DW126: 0 | DY126: 0
A127: 1 | B127: November | C127: A34578678450P | D127: Brian Kombe Gode | E127: Resident | F127: Primary Employee | G127: 60000 | N127: 60000 | Q127: 0 | S127: 60000 | T127: 1080 | W127: 2400 | X127: 195 | Y127: 9864.35 | Z127: Benefit not given | AB127: 2023 | CQ127: 0 | CR127: 0 | CS127: 0 | CT127: 0 | CU127: 0 | CV127: 0 | CW127: 0 | CX127: 0 | CY127: 0 | CZ127: 0 | DA127: 0 | DB127: 0 | DD127: 0 | DE127: 0 | DG127: =0 -> 0 | DH127: 0 | DO127: 0 | DQ127: 0 | DV127: 0 | DW127: 0 | DY127: 0
A128: 2 | B128: November | C128: A49898479409 | D128: Timothy Brian Odongo | E128: Resident | F128: Primary Employee | G128: 100000 | H128: 20000 | I128: 10000 | K128: 5000 | N128: 135000 | Q128: 0 | S128: 135000 | T128: 1080 | W128: 2400 | X128: 255 | Y128: 32304.65 | Z128: Benefit not given | AB128: 2023 | CQ128: =BP128 -> 0 | CR128: =BQ128 -> 0 | CS128: =BR128 -> 0 | CT128: =BS128 -> 0 | CU128: =BT128 -> 0 | CV128: =BU128 -> 0 | CW128: =BV128 -> 0 | CX128: =BW128 -> 0 | CY128: =CN128 -> 0 | CZ128: =BX128 -> 0 | DA128: =BY128 -> 0 | DB128: =BZ128 -> 0 | DD128: =CB128 -> 0 | DE128: =CC128 -> 0 | DG128: =0 -> 0 | DH128: =CM128 -> 0 | DO128: =CG128 -> 0 | DQ128: =CH128 -> 0 | DV128: =CJ128 -> 0 | DW128: =CK128 -> 0 | DY128: =CL128 -> 0
A129: 3 | B129: November | C129: A4378678570K | D129: Bshora Wayu Nzamo | E129: Resident | F129: Primary Employee | G129: 50000 | N129: 50000 | Q129: 0 | S129: 50000 | T129: 1080 | W129: 2400 | X129: 180 | Y129: 6879.35 | Z129: Benefit not given | AB129: 2023 | CQ129: 0 | CR129: 0 | CS129: 0 | CT129: 0 | CU129: 0 | CV129: 0 | CW129: 0 | CX129: 0 | CY129: 0 | CZ129: 0 | DA129: 0 | DB129: 0 | DD129: 0 | DE129: 0 | DG129: =0 -> 0 | DH129: 0 | DO129: 0 | DQ129: 0 | DV129: 0 | DW129: 0 | DY129: 0
A130: 4 | B130: November | C130: A646834690O | D130: Wanyoni Agala Musando | E130: Resident | F130: Primary Employee | G130: 45000 | N130: 45000 | Q130: 0 | S130: 45000 | T130: 1080 | W130: 2400 | X130: 165 | Y130: 5394.35 | Z130: Benefit not given | AB130: 2023 | CQ130: 0 | CR130: 0 | CS130: 0 | CT130: 0 | CU130: 0 | CV130: 0 | CW130: 0 | CX130: 0 | CY130: 0 | CZ130: 0 | DA130: 0 | DB130: 0 | DD130: 0 | DE130: 0 | DG130: =0 -> 0 | DH130: 0 | DO130: 0 | DQ130: 0 | DV130: 0 | DW130: 0 | DY130: 0
A131: 5 | B131: November | C131: A745878980P | D131: Benerd Kimani Njorioge | E131: Resident | F131: Primary Employee | G131: 45000 | N131: 45000 | Q131: 0 | S131: 45000 | T131: 1080 | W131: 2400 | X131: 165 | Y131: 5394.35 | Z131: Benefit not given | AB131: 2023 | CQ131: 0 | CR131: 0 | CS131: 0 | CT131: 0 | CU131: 0 | CV131: 0 | CW131: 0 | CX131: 0 | CY131: 0 | CZ131: 0 | DA131: 0 | DB131: 0 | DD131: 0 | DE131: 0 | DG131: =0 -> 0 | DH131: 0 | DO131: 0 | DQ131: 0 | DV131: 0 | DW131: 0 | DY131: 0
A132: 6 | B132: November | C132: A457899480p | D132: Sam Jacob Mroki | E132: Resident | F132: Primary Employee | G132: 35000 | N132: 35000 | Q132: 0 | S132: 35000 | T132: 1080 | W132: 2400 | X132: 142.5 | Y132: 2416.85 | Z132: Benefit not given | AB132: 2023 | CQ132: 0 | CR132: 0 | CS132: 0 | CT132: 0 | CU132: 0 | CV132: 0 | CW132: 0 | CX132: 0 | CY132: 0 | CZ132: 0 | DA132: 0 | DB132: 0 | DD132: 0 | DE132: 0 | DG132: =0 -> 0 | DH132: 0 | DO132: 0 | DQ132: 0 | DV132: 0 | DW132: 0 | DY132: 0
A133: 7 | B133: November | C133: A5783458890P | D133: Joy Mueni Mutinda | E133: Resident | F133: Primary Employee | G133: 40000 | N133: 40000 | Q133: 0 | S133: 40000 | T133: 1080 | W133: 2400 | X133: 150 | Y133: 3909.35 | Z133: Benefit not given | AB133: 2023 | CQ133: 0 | CR133: 0 | CS133: 0 | CT133: 0 | CU133: 0 | CV133: 0 | CW133: 0 | CX133: 0 | CY133: 0 | CZ133: 0 | DA133: 0 | DB133: 0 | DD133: 0 | DE133: 0 | DG133: =0 -> 0 | DH133: 0 | DO133: 0 | DQ133: 0 | DV133: 0 | DW133: 0 | DY133: 0
A134: 8 | B134: November | C134: A34778457890p | D134: Kahindi Mwero Boga | E134: Resident | F134: Primary Employee | G134: 40000 | N134: 40000 | Q134: 0 | S134: 40000 | T134: 1080 | W134: 2400 | X134: 150 | Y134: 3909.35 | Z134: Benefit not given | AB134: 2023 | CQ134: 0 | CR134: 0 | CS134: 0 | CT134: 0 | CU134: 0 | CV134: 0 | CW134: 0 | CX134: 0 | CY134: 0 | CZ134: 0 | DA134: 0 | DB134: 0 | DD134: 0 | DE134: 0 | DG134: =0 -> 0 | DH134: 0 | DO134: 0 | DQ134: 0 | DV134: 0 | DW134: 0 | DY134: 0
A135: 9 | B135: November | C135: A034897489E | D135: John Boscco Bosire | E135: Resident | F135: Primary Employee | G135: 50000 | N135: 50000 | Q135: 0 | S135: 50000 | T135: 1080 | W135: 2400 | X135: 180 | Y135: 6879.35 | Z135: Benefit not given | AB135: 2023 | CQ135: 0 | CR135: 0 | CS135: 0 | CT135: 0 | CU135: 0 | CV135: 0 | CW135: 0 | CX135: 0 | CY135: 0 | CZ135: 0 | DA135: 0 | DB135: 0 | DD135: 0 | DE135: 0 | DG135: =0 -> 0 | DH135: 0 | DO135: 0 | DQ135: 0 | DV135: 0 | DW135: 0 | DY135: 0
A136: 10 | B136: November | C136: A4782349790P | D136: Hassan Abdulnasir Wario | E136: Resident | F136: Primary Employee | G136: 40000 | N136: 40000 | Q136: 0 | S136: 40000 | T136: 1080 | W136: 2400 | X136: 150 | Y136: 3909.35 | Z136: Benefit not given | AB136: 2023 | CQ136: 0 | CR136: 0 | CS136: 0 | CT136: 0 | CU136: 0 | CV136: 0 | CW136: 0 | CX136: 0 | CY136: 0 | CZ136: 0 | DA136: 0 | DB136: 0 | DD136: 0 | DE136: 0 | DG136: =0 -> 0 | DH136: 0 | DO136: 0 | DQ136: 0 | DV136: 0 | DW136: 0 | DY136: 0
A137: 11 | B137: November | C137: A0324878234P | D137: Jastine Makemba Batogo | E137: Resident | F137: Primary Employee | G137: 50000 | N137: 50000 | Q137: 0 | S137: 50000 | T137: 1080 | W137: 2400 | X137: 180 | Y137: 6879.35 | Z137: Benefit not given | AB137: 2023 | CQ137: 0 | CR137: 0 | CS137: 0 | CT137: 0 | CU137: 0 | CV137: 0 | CW137: 0 | CX137: 0 | CY137: 0 | CZ137: 0 | DA137: 0 | DB137: 0 | DD137: 0 | DE137: 0 | DG137: =0 -> 0 | DH137: 0 | DO137: 0 | DQ137: 0 | DV137: 0 | DW137: 0 | DY137: 0
A138: 12 | B138: November | C138: A03476784359K | D138: Janet Wairimu Wamatagi | E138: Resident | F138: Primary Employee | G138: 40000 | N138: 40000 | Q138: 0 | S138: 40000 | T138: 1080 | W138: 2400 | X138: 150 | Y138: 3909.35 | Z138: Benefit not given | AB138: 2023 | CQ138: 0 | CR138: 0 | CS138: 0 | CT138: 0 | CU138: 0 | CV138: 0 | CW138: 0 | CX138: 0 | CY138: 0 | CZ138: 0 | DA138: 0 | DB138: 0 | DD138: 0 | DE138: 0 | DG138: =0 -> 0 | DH138: 0 | DO138: 0 | DQ138: 0 | DV138: 0 | DW138: 0 | DY138: 0
A139: 1 | B139: December | C139: A34578678450P | D139: Brian Kombe Gode | E139: Resident | F139: Primary Employee | G139: 60000 | N139: 60000 | Q139: 0 | S139: 60000 | T139: 1080 | W139: 2400 | X139: 195 | Y139: 9864.35 | Z139: Benefit not given | AB139: 2023 | CQ139: 0 | CR139: 0 | CS139: 0 | CT139: 0 | CU139: 0 | CV139: 0 | CW139: 0 | CX139: 0 | CY139: 0 | CZ139: 0 | DA139: 0 | DB139: 0 | DD139: 0 | DE139: 0 | DG139: =0 -> 0 | DH139: 0 | DO139: 0 | DQ139: 0 | DV139: 0 | DW139: 0 | DY139: 0
A140: 2 | B140: December | C140: A49898479409 | D140: Timothy Brian Odongo | E140: Resident | F140: Primary Employee | G140: 100000 | H140: 20000 | I140: 10000 | K140: 5000 | N140: 135000 | Q140: 0 | S140: 135000 | T140: 1080 | W140: 2400 | X140: 255 | Y140: 32304.65 | Z140: Benefit not given | AB140: 2023 | CQ140: 0 | CR140: 0 | CS140: 0 | CT140: 0 | CU140: 0 | CV140: 0 | CW140: 0 | CX140: 0 | CY140: 0 | CZ140: 0 | DA140: 0 | DB140: 0 | DD140: 0 | DE140: 0 | DG140: =0 -> 0 | DH140: 0 | DO140: 0 | DQ140: 0 | DV140: 0 | DW140: 0 | DY140: 0
A141: 3 | B141: December | C141: A4378678570K | D141: Bshora Wayu Nzamo | E141: Resident | F141: Primary Employee | G141: 50000 | N141: 50000 | Q141: 0 | S141: 50000 | T141: 1080 | W141: 2400 | X141: 180 | Y141: 6879.35 | Z141: Benefit not given | AB141: 2023 | CQ141: 0 | CR141: 0 | CS141: 0 | CT141: 0 | CU141: 0 | CV141: 0 | CW141: 0 | CX141: 0 | CY141: 0 | CZ141: 0 | DA141: 0 | DB141: 0 | DD141: 0 | DE141: 0 | DG141: =0 -> 0 | DH141: 0 | DO141: 0 | DQ141: 0 | DV141: 0 | DW141: 0 | DY141: 0
A142: 4 | B142: December | C142: A646834690O | D142: Wanyoni Agala Musando | E142: Resident | F142: Primary Employee | G142: 45000 | N142: 45000 | Q142: 0 | S142: 45000 | T142: 1080 | W142: 2400 | X142: 165 | Y142: 5394.35 | Z142: Benefit not given | AB142: 2023 | CQ142: 0 | CR142: 0 | CS142: 0 | CT142: 0 | CU142: 0 | CV142: 0 | CW142: 0 | CX142: 0 | CY142: 0 | CZ142: 0 | DA142: 0 | DB142: 0 | DD142: 0 | DE142: 0 | DG142: =0 -> 0 | DH142: 0 | DO142: 0 | DQ142: 0 | DV142: 0 | DW142: 0 | DY142: 0
A143: 5 | B143: December | C143: A745878980P | D143: Benerd Kimani Njorioge | E143: Resident | F143: Primary Employee | G143: 45000 | N143: 45000 | Q143: 0 | S143: 45000 | T143: 1080 | W143: 2400 | X143: 165 | Y143: 5394.35 | Z143: Benefit not given | AB143: 2023 | CQ143: 0 | CR143: 0 | CS143: 0 | CT143: 0 | CU143: 0 | CV143: 0 | CW143: 0 | CX143: 0 | CY143: 0 | CZ143: 0 | DA143: 0 | DB143: 0 | DD143: 0 | DE143: 0 | DG143: =0 -> 0 | DH143: 0 | DO143: 0 | DQ143: 0 | DV143: 0 | DW143: 0 | DY143: 0
A144: 6 | B144: December | C144: A457899480p | D144: Sam Jacob Mroki | E144: Resident | F144: Primary Employee | G144: 35000 | N144: 35000 | Q144: 0 | S144: 35000 | T144: 1080 | W144: 2400 | X144: 142.5 | Y144: 2416.85 | Z144: Benefit not given | AB144: 2023 | CQ144: 0 | CR144: 0 | CS144: 0 | CT144: 0 | CU144: 0 | CV144: 0 | CW144: 0 | CX144: 0 | CY144: 0 | CZ144: 0 | DA144: 0 | DB144: 0 | DD144: 0 | DE144: 0 | DG144: =0 -> 0 | DH144: 0 | DO144: 0 | DQ144: 0 | DV144: 0 | DW144: 0 | DY144: 0
A145: 7 | B145: December | C145: A5783458890P | D145: Joy Mueni Mutinda | E145: Resident | F145: Primary Employee | G145: 40000 | N145: 40000 | Q145: 0 | S145: 40000 | T145: 1080 | W145: 2400 | X145: 150 | Y145: 3909.35 | Z145: Benefit not given | AB145: 2023 | CQ145: 0 | CR145: 0 | CS145: 0 | CT145: 0 | CU145: 0 | CV145: 0 | CW145: 0 | CX145: 0 | CY145: 0 | CZ145: 0 | DA145: 0 | DB145: 0 | DD145: 0 | DE145: 0 | DG145: =0 -> 0 | DH145: 0 | DO145: 0 | DQ145: 0 | DV145: 0 | DW145: 0 | DY145: 0
A146: 8 | B146: December | C146: A34778457890p | D146: Kahindi Mwero Boga | E146: Resident | F146: Primary Employee | G146: 40000 | N146: 40000 | Q146: 0 | S146: 40000 | T146: 1080 | W146: 2400 | X146: 150 | Y146: 3909.35 | Z146: Benefit not given | AB146: 2023 | CQ146: 0 | CR146: 0 | CS146: 0 | CT146: 0 | CU146: 0 | CV146: 0 | CW146: 0 | CX146: 0 | CY146: 0 | CZ146: 0 | DA146: 0 | DB146: 0 | DD146: 0 | DE146: 0 | DG146: =0 -> 0 | DH146: 0 | DO146: 0 | DQ146: 0 | DV146: 0 | DW146: 0 | DY146: 0
A147: 9 | B147: December | C147: A034897489E | D147: John Boscco Bosire | E147: Resident | F147: Primary Employee | G147: 50000 | N147: 50000 | Q147: 0 | S147: 50000 | T147: 1080 | W147: 2400 | X147: 180 | Y147: 6879.35 | Z147: Benefit not given | AB147: 2023 | CQ147: 0 | CR147: 0 | CS147: 0 | CT147: 0 | CU147: 0 | CV147: 0 | CW147: 0 | CX147: 0 | CY147: 0 | CZ147: 0 | DA147: 0 | DB147: 0 | DD147: 0 | DE147: 0 | DG147: =0 -> 0 | DH147: 0 | DO147: 0 | DQ147: 0 | DV147: 0 | DW147: 0 | DY147: 0
A148: 10 | B148: December | C148: A4782349790P | D148: Hassan Abdulnasir Wario | E148: Resident | F148: Primary Employee | G148: 40000 | N148: 40000 | Q148: 0 | S148: 40000 | T148: 1080 | W148: 2400 | X148: 150 | Y148: 3909.35 | Z148: Benefit not given | AB148: 2023 | CQ148: 0 | CR148: 0 | CS148: 0 | CT148: 0 | CU148: 0 | CV148: 0 | CW148: 0 | CX148: 0 | CY148: 0 | CZ148: 0 | DA148: 0 | DB148: 0 | DD148: 0 | DE148: 0 | DG148: =0 -> 0 | DH148: 0 | DO148: 0 | DQ148: 0 | DV148: 0 | DW148: 0 | DY148: 0
A149: 11 | B149: December | C149: A0324878234P | D149: Jastine Makemba Batogo | E149: Resident | F149: Primary Employee | G149: 50000 | N149: 50000 | Q149: 0 | S149: 50000 | T149: 1080 | W149: 2400 | X149: 180 | Y149: 6879.35 | Z149: Benefit not given | AB149: 2023 | CQ149: 0 | CR149: 0 | CS149: 0 | CT149: 0 | CU149: 0 | CV149: 0 | CW149: 0 | CX149: 0 | CY149: 0 | CZ149: 0 | DA149: 0 | DB149: 0 | DD149: 0 | DE149: 0 | DG149: =0 -> 0 | DH149: 0 | DO149: 0 | DQ149: 0 | DV149: 0 | DW149: 0 | DY149: 0
A150: 12 | B150: December | C150: A03476784359K | D150: Janet Wairimu Wamatagi | E150: Resident | F150: Primary Employee | G150: 40000 | N150: 40000 | Q150: 0 | S150: 40000 | T150: 1080 | W150: 2400 | X150: 150 | Y150: 3909.35 | Z150: Benefit not given | AB150: 2023 | CQ150: 0 | CR150: 0 | CS150: 0 | CT150: 0 | CU150: 0 | CV150: 0 | CW150: 0 | CX150: 0 | CY150: 0 | CZ150: 0 | DA150: 0 | DB150: 0 | DD150: 0 | DE150: 0 | DG150: =0 -> 0 | DH150: 0 | DO150: 0 | DQ150: 0 | DV150: 0 | DW150: 0 | DY150: 0
CQ151: 0 | CR151: 0 | CS151: 0 | CT151: 0 | CU151: 0 | CV151: 0 | CW151: 0 | CX151: 0 | CY151: 0 | CZ151: 0 | DA151: 0 | DB151: 0 | DD151: 0 | DE151: 0 | DG151: =0 -> 0 | DH151: 0 | DO151: 0 | DQ151: 0 | DV151: 0 | DW151: 0 | DY151: 0
CQ152: 0 | CR152: 0 | CS152: 0 | CT152: 0 | CU152: 0 | CV152: 0 | CW152: 0 | CX152: 0 | CY152: 0 | CZ152: 0 | DA152: 0 | DB152: 0 | DD152: 0 | DE152: 0 | DG152: =0 -> 0 | DH152: 0 | DO152: 0 | DQ152: 0 | DV152: 0 | DW152: 0 | DY152: 0
CQ153: 0 | CR153: 0 | CS153: 0 | CT153: 0 | CU153: 0 | CV153: 0 | CW153: 0 | CX153: 0 | CY153: 0 | CZ153: 0 | DA153: 0 | DB153: 0 | DD153: 0 | DE153: 0 | DG153: =0 -> 0 | DH153: 0 | DO153: 0 | DQ153: 0 | DV153: 0 | DW153: 0 | DY153: 0
CQ154: 0 | CR154: 0 | CS154: 0 | CT154: 0 | CU154: 0 | CV154: 0 | CW154: 0 | CX154: 0 | CY154: 0 | CZ154: 0 | DA154: 0 | DB154: 0 | DD154: 0 | DE154: 0 | DG154: =0 -> 0 | DH154: 0 | DO154: 0 | DQ154: 0 | DV154: 0 | DW154: 0 | DY154: 0
CQ155: 0 | CR155: 0 | CS155: 0 | CT155: 0 | CU155: 0 | CV155: 0 | CW155: 0 | CX155: 0 | CY155: 0 | CZ155: 0 | DA155: 0 | DB155: 0 | DD155: 0 | DE155: 0 | DG155: =0 -> 0 | DH155: 0 | DO155: 0 | DQ155: 0 | DV155: 0 | DW155: 0 | DY155: 0
CQ156: 0 | CR156: 0 | CS156: 0 | CT156: 0 | CU156: 0 | CV156: 0 | CW156: 0 | CX156: 0 | CY156: 0 | CZ156: 0 | DA156: 0 | DB156: 0 | DD156: 0 | DE156: 0 | DG156: =0 -> 0 | DH156: 0 | DO156: 0 | DQ156: 0 | DV156: 0 | DW156: 0 | DY156: 0
CQ157: 0 | CR157: 0 | CS157: 0 | CT157: 0 | CU157: 0 | CV157: 0 | CW157: 0 | CX157: 0 | CY157: 0 | CZ157: 0 | DA157: 0 | DB157: 0 | DD157: 0 | DE157: 0 | DG157: =0 -> 0 | DH157: 0 | DO157: 0 | DQ157: 0 | DV157: 0 | DW157: 0 | DY157: 0
CQ158: 0 | CR158: 0 | CS158: 0 | CT158: 0 | CU158: 0 | CV158: 0 | CW158: 0 | CX158: 0 | CY158: 0 | CZ158: 0 | DA158: 0 | DB158: 0 | DD158: 0 | DE158: 0 | DG158: =0 -> 0 | DH158: 0 | DO158: 0 | DQ158: 0 | DV158: 0 | DW158: 0 | DY158: 0
CQ159: 0 | CR159: 0 | CS159: 0 | CT159: 0 | CU159: 0 | CV159: 0 | CW159: 0 | CX159: 0 | CY159: 0 | CZ159: 0 | DA159: 0 | DB159: 0 | DD159: 0 | DE159: 0 | DG159: =0 -> 0 | DH159: 0 | DO159: 0 | DQ159: 0 | DV159: 0 | DW159: 0 | DY159: 0
CQ160: 0 | CR160: 0 | CS160: 0 | CT160: 0 | CU160: 0 | CV160: 0 | CW160: 0 | CX160: 0 | CY160: 0 | CZ160: 0 | DA160: 0 | DB160: 0 | DD160: 0 | DE160: 0 | DG160: =0 -> 0 | DH160: 0 | DO160: 0 | DQ160: 0 | DV160: 0 | DW160: 0 | DY160: 0
CQ161: 0 | CR161: 0 | CS161: 0 | CT161: 0 | CU161: 0 | CV161: 0 | CW161: 0 | CX161: 0 | CY161: 0 | CZ161: 0 | DA161: 0 | DB161: 0 | DD161: 0 | DE161: 0 | DG161: =0 -> 0 | DH161: 0 | DO161: 0 | DQ161: 0 | DV161: 0 | DW161: 0 | DY161: 0
CQ162: 0 | CR162: 0 | CS162: 0 | CT162: 0 | CU162: 0 | CV162: 0 | CW162: 0 | CX162: 0 | CY162: 0 | CZ162: 0 | DA162: 0 | DB162: 0 | DD162: 0 | DE162: 0 | DG162: =0 -> 0 | DH162: 0 | DO162: 0 | DQ162: 0 | DV162: 0 | DW162: 0 | DY162: 0
CQ163: 0 | CR163: 0 | CS163: 0 | CT163: 0 | CU163: 0 | CV163: 0 | CW163: 0 | CX163: 0 | CY163: 0 | CZ163: 0 | DA163: 0 | DB163: 0 | DD163: 0 | DE163: 0 | DG163: =0 -> 0 | DH163: 0 | DO163: 0 | DQ163: 0 | DV163: 0 | DW163: 0 | DY163: 0
CQ164: 0 | CR164: 0 | CS164: 0 | CT164: 0 | CU164: 0 | CV164: 0 | CW164: 0 | CX164: 0 | CY164: 0 | CZ164: 0 | DA164: 0 | DB164: 0 | DD164: 0 | DE164: 0 | DG164: =0 -> 0 | DH164: 0 | DO164: 0 | DQ164: 0 | DV164: 0 | DW164: 0 | DY164: 0
CQ165: 0 | CR165: 0 | CS165: 0 | CT165: 0 | CU165: 0 | CV165: 0 | CW165: 0 | CX165: 0 | CY165: 0 | CZ165: 0 | DA165: 0 | DB165: 0 | DD165: 0 | DE165: 0 | DG165: =0 -> 0 | DH165: 0 | DO165: 0 | DQ165: 0 | DV165: 0 | DW165: 0 | DY165: 0
CQ166: 0 | CR166: 0 | CS166: 0 | CT166: 0 | CU166: 0 | CV166: 0 | CW166: 0 | CX166: 0 | CY166: 0 | CZ166: 0 | DA166: 0 | DB166: 0 | DD166: 0 | DE166: 0 | DG166: =0 -> 0 | DH166: 0 | DO166: 0 | DQ166: 0 | DV166: 0 | DW166: 0 | DY166: 0
CQ167: 0 | CR167: 0 | CS167: 0 | CT167: 0 | CU167: 0 | CV167: 0 | CW167: 0 | CX167: 0 | CY167: 0 | CZ167: 0 | DA167: 0 | DB167: 0 | DD167: 0 | DE167: 0 | DG167: =0 -> 0 | DH167: 0 | DO167: 0 | DQ167: 0 | DV167: 0 | DW167: 0 | DY167: 0
CQ168: 0 | CR168: 0 | CS168: 0 | CT168: 0 | CU168: 0 | CV168: 0 | CW168: 0 | CX168: 0 | CY168: 0 | CZ168: 0 | DA168: 0 | DB168: 0 | DD168: 0 | DE168: 0 | DG168: =0 -> 0 | DH168: 0 | DO168: 0 | DQ168: 0 | DV168: 0 | DW168: 0 | DY168: 0
CQ169: 0 | CR169: 0 | CS169: 0 | CT169: 0 | CU169: 0 | CV169: 0 | CW169: 0 | CX169: 0 | CY169: 0 | CZ169: 0 | DA169: 0 | DB169: 0 | DD169: 0 | DE169: 0 | DG169: =0 -> 0 | DH169: 0 | DO169: 0 | DQ169: 0 | DV169: 0 | DW169: 0 | DY169: 0
CQ170: 0 | CR170: 0 | CS170: 0 | CT170: 0 | CU170: 0 | CV170: 0 | CW170: 0 | CX170: 0 | CY170: 0 | CZ170: 0 | DA170: 0 | DB170: 0 | DD170: 0 | DE170: 0 | DG170: =0 -> 0 | DH170: 0 | DO170: 0 | DQ170: 0 | DV170: 0 | DW170: 0 | DY170: 0
CQ171: 0 | CR171: 0 | CS171: 0 | CT171: 0 | CU171: 0 | CV171: 0 | CW171: 0 | CX171: 0 | CY171: 0 | CZ171: 0 | DA171: 0 | DB171: 0 | DD171: 0 | DE171: 0 | DG171: =0 -> 0 | DH171: 0 | DO171: 0 | DQ171: 0 | DV171: 0 | DW171: 0 | DY171: 0
CQ172: 0 | CR172: 0 | CS172: 0 | CT172: 0 | CU172: 0 | CV172: 0 | CW172: 0 | CX172: 0 | CY172: 0 | CZ172: 0 | DA172: 0 | DB172: 0 | DD172: 0 | DE172: 0 | DG172: =0 -> 0 | DH172: 0 | DO172: 0 | DQ172: 0 | DV172: 0 | DW172: 0 | DY172: 0
CQ173: 0 | CR173: 0 | CS173: 0 | CT173: 0 | CU173: 0 | CV173: 0 | CW173: 0 | CX173: 0 | CY173: 0 | CZ173: 0 | DA173: 0 | DB173: 0 | DD173: 0 | DE173: 0 | DG173: =0 -> 0 | DH173: 0 | DO173: 0 | DQ173: 0 | DV173: 0 | DW173: 0 | DY173: 0
CQ174: 0 | CR174: 0 | CS174: 0 | CT174: 0 | CU174: 0 | CV174: 0 | CW174: 0 | CX174: 0 | CY174: 0 | CZ174: 0 | DA174: 0 | DB174: 0 | DD174: 0 | DE174: 0 | DG174: =0 -> 0 | DH174: 0 | DO174: 0 | DQ174: 0 | DV174: 0 | DW174: 0 | DY174: 0
CQ175: 0 | CR175: 0 | CS175: 0 | CT175: 0 | CU175: 0 | CV175: 0 | CW175: 0 | CX175: 0 | CY175: 0 | CZ175: 0 | DA175: 0 | DB175: 0 | DD175: 0 | DE175: 0 | DG175: =0 -> 0 | DH175: 0 | DO175: 0 | DQ175: 0 | DV175: 0 | DW175: 0 | DY175: 0
CQ176: 0 | CR176: 0 | CS176: 0 | CT176: 0 | CU176: 0 | CV176: 0 | CW176: 0 | CX176: 0 | CY176: 0 | CZ176: 0 | DA176: 0 | DB176: 0 | DD176: 0 | DE176: 0 | DG176: =0 -> 0 | DH176: 0 | DO176: 0 | DQ176: 0 | DV176: 0 | DW176: 0 | DY176: 0
CQ177: 0 | CR177: 0 | CS177: 0 | CT177: 0 | CU177: 0 | CV177: 0 | CW177: 0 | CX177: 0 | CY177: 0 | CZ177: 0 | DA177: 0 | DB177: 0 | DD177: 0 | DE177: 0 | DG177: =0 -> 0 | DH177: 0 | DO177: 0 | DQ177: 0 | DV177: 0 | DW177: 0 | DY177: 0
CQ178: 0 | CR178: 0 | CS178: 0 | CT178: 0 | CU178: 0 | CV178: 0 | CW178: 0 | CX178: 0 | CY178: 0 | CZ178: 0 | DA178: 0 | DB178: 0 | DD178: 0 | DE178: 0 | DG178: =0 -> 0 | DH178: 0 | DO178: 0 | DQ178: 0 | DV178: 0 | DW178: 0 | DY178: 0
CQ179: 0 | CR179: 0 | CS179: 0 | CT179: 0 | CU179: 0 | CV179: 0 | CW179: 0 | CX179: 0 | CY179: 0 | CZ179: 0 | DA179: 0 | DB179: 0 | DD179: 0 | DE179: 0 | DG179: =0 -> 0 | DH179: 0 | DO179: 0 | DQ179: 0 | DV179: 0 | DW179: 0 | DY179: 0
CQ180: 0 | CR180: 0 | CS180: 0 | CT180: 0 | CU180: 0 | CV180: 0 | CW180: 0 | CX180: 0 | CY180: 0 | CZ180: 0 | DA180: 0 | DB180: 0 | DD180: 0 | DE180: 0 | DG180: =0 -> 0 | DH180: 0 | DO180: 0 | DQ180: 0 | DV180: 0 | DW180: 0 | DY180: 0
CQ181: 0 | CR181: 0 | CS181: 0 | CT181: 0 | CU181: 0 | CV181: 0 | CW181: 0 | CX181: 0 | CY181: 0 | CZ181: 0 | DA181: 0 | DB181: 0 | DD181: 0 | DE181: 0 | DG181: =0 -> 0 | DH181: 0 | DO181: 0 | DQ181: 0 | DV181: 0 | DW181: 0 | DY181: 0
CQ182: 0 | CR182: 0 | CS182: 0 | CT182: 0 | CU182: 0 | CV182: 0 | CW182: 0 | CX182: 0 | CY182: 0 | CZ182: 0 | DA182: 0 | DB182: 0 | DD182: 0 | DE182: 0 | DG182: =0 -> 0 | DH182: 0 | DO182: 0 | DQ182: 0 | DV182: 0 | DW182: 0 | DY182: 0
CQ183: 0 | CR183: 0 | CS183: 0 | CT183: 0 | CU183: 0 | CV183: 0 | CW183: 0 | CX183: 0 | CY183: 0 | CZ183: 0 | DA183: 0 | DB183: 0 | DD183: 0 | DE183: 0 | DG183: =0 -> 0 | DH183: 0 | DO183: 0 | DQ183: 0 | DV183: 0 | DW183: 0 | DY183: 0
CQ184: 0 | CR184: 0 | CS184: 0 | CT184: 0 | CU184: 0 | CV184: 0 | CW184: 0 | CX184: 0 | CY184: 0 | CZ184: 0 | DA184: 0 | DB184: 0 | DD184: 0 | DE184: 0 | DG184: =0 -> 0 | DH184: 0 | DO184: 0 | DQ184: 0 | DV184: 0 | DW184: 0 | DY184: 0
CQ185: 0 | CR185: 0 | CS185: 0 | CT185: 0 | CU185: 0 | CV185: 0 | CW185: 0 | CX185: 0 | CY185: 0 | CZ185: 0 | DA185: 0 | DB185: 0 | DD185: 0 | DE185: 0 | DG185: =0 -> 0 | DH185: 0 | DO185: 0 | DQ185: 0 | DV185: 0 | DW185: 0 | DY185: 0
CQ186: 0 | CR186: 0 | CS186: 0 | CT186: 0 | CU186: 0 | CV186: 0 | CW186: 0 | CX186: 0 | CY186: 0 | CZ186: 0 | DA186: 0 | DB186: 0 | DD186: 0 | DE186: 0 | DG186: =0 -> 0 | DH186: 0 | DO186: 0 | DQ186: 0 | DV186: 0 | DW186: 0 | DY186: 0
CQ187: 0 | CR187: 0 | CS187: 0 | CT187: 0 | CU187: 0 | CV187: 0 | CW187: 0 | CX187: 0 | CY187: 0 | CZ187: 0 | DA187: 0 | DB187: 0 | DD187: 0 | DE187: 0 | DG187: =0 -> 0 | DH187: 0 | DO187: 0 | DQ187: 0 | DV187: 0 | DW187: 0 | DY187: 0
CQ188: 0 | CR188: 0 | CS188: 0 | CT188: 0 | CU188: 0 | CV188: 0 | CW188: 0 | CX188: 0 | CY188: 0 | CZ188: 0 | DA188: 0 | DB188: 0 | DD188: 0 | DE188: 0 | DG188: =0 -> 0 | DH188: 0 | DO188: 0 | DQ188: 0 | DV188: 0 | DW188: 0 | DY188: 0
CQ189: 0 | CR189: 0 | CS189: 0 | CT189: 0 | CU189: 0 | CV189: 0 | CW189: 0 | CX189: 0 | CY189: 0 | CZ189: 0 | DA189: 0 | DB189: 0 | DD189: 0 | DE189: 0 | DG189: =0 -> 0 | DH189: 0 | DO189: 0 | DQ189: 0 | DV189: 0 | DW189: 0 | DY189: 0
CQ190: 0 | CR190: 0 | CS190: 0 | CT190: 0 | CU190: 0 | CV190: 0 | CW190: 0 | CX190: 0 | CY190: 0 | CZ190: 0 | DA190: 0 | DB190: 0 | DD190: 0 | DE190: 0 | DG190: =0 -> 0 | DH190: 0 | DO190: 0 | DQ190: 0 | DV190: 0 | DW190: 0 | DY190: 0
CQ191: 0 | CR191: 0 | CS191: 0 | CT191: 0 | CU191: 0 | CV191: 0 | CW191: 0 | CX191: 0 | CY191: 0 | CZ191: 0 | DA191: 0 | DB191: 0 | DD191: 0 | DE191: 0 | DG191: =0 -> 0 | DH191: 0 | DO191: 0 | DQ191: 0 | DV191: 0 | DW191: 0 | DY191: 0
CQ192: =BP192 -> 0 | CR192: =BQ192 -> 0 | CS192: =BR192 -> 0 | CT192: =BS192 -> 0 | CU192: =BT192 -> 0 | CV192: =BU192 -> 0 | CW192: =BV192 -> 0 | CX192: =BW192 -> 0 | CY192: =CN192 -> 0 | CZ192: =BX192 -> 0 | DA192: =BY192 -> 0 | DB192: =BZ192 -> 0 | DD192: =CB192 -> 0 | DE192: =CC192 -> 0 | DG192: =0 -> 0 | DH192: =CM192 -> 0 | DO192: =CG192 -> 0 | DQ192: =CH192 -> 0 | DV192: =CJ192 -> 0 | DW192: =CK192 -> 0 | DY192: =CL192 -> 0
CQ193: 0 | CR193: 0 | CS193: 0 | CT193: 0 | CU193: 0 | CV193: 0 | CW193: 0 | CX193: 0 | CY193: 0 | CZ193: 0 | DA193: 0 | DB193: 0 | DD193: 0 | DE193: 0 | DG193: =0 -> 0 | DH193: 0 | DO193: 0 | DQ193: 0 | DV193: 0 | DW193: 0 | DY193: 0
CQ194: 0 | CR194: 0 | CS194: 0 | CT194: 0 | CU194: 0 | CV194: 0 | CW194: 0 | CX194: 0 | CY194: 0 | CZ194: 0 | DA194: 0 | DB194: 0 | DD194: 0 | DE194: 0 | DG194: =0 -> 0 | DH194: 0 | DO194: 0 | DQ194: 0 | DV194: 0 | DW194: 0 | DY194: 0
CQ195: 0 | CR195: 0 | CS195: 0 | CT195: 0 | CU195: 0 | CV195: 0 | CW195: 0 | CX195: 0 | CY195: 0 | CZ195: 0 | DA195: 0 | DB195: 0 | DD195: 0 | DE195: 0 | DG195: =0 -> 0 | DH195: 0 | DO195: 0 | DQ195: 0 | DV195: 0 | DW195: 0 | DY195: 0
CQ196: 0 | CR196: 0 | CS196: 0 | CT196: 0 | CU196: 0 | CV196: 0 | CW196: 0 | CX196: 0 | CY196: 0 | CZ196: 0 | DA196: 0 | DB196: 0 | DD196: 0 | DE196: 0 | DG196: =0 -> 0 | DH196: 0 | DO196: 0 | DQ196: 0 | DV196: 0 | DW196: 0 | DY196: 0
CQ197: =BP197 -> 0 | CR197: =BQ197 -> 0 | CS197: =BR197 -> 0 | CT197: =BS197 -> 0 | CU197: =BT197 -> 0 | CV197: =BU197 -> 0 | CW197: =BV197 -> 0 | CX197: =BW197 -> 0 | CY197: =CN197 -> 0 | CZ197: =BX197 -> 0 | DA197: =BY197 -> 0 | DB197: =BZ197 -> 0 | DD197: =CB197 -> 0 | DE197: =CC197 -> 0 | DG197: =0 -> 0 | DH197: =CM197 -> 0 | DO197: =CG197 -> 0 | DQ197: =CH197 -> 0 | DV197: =CJ197 -> 0 | DW197: =CK197 -> 0 | DY197: =CL197 -> 0
CQ198: =BP198 -> 0 | CR198: =BQ198 -> 0 | CS198: =BR198 -> 0 | CT198: =BS198 -> 0 | CU198: =BT198 -> 0 | CV198: =BU198 -> 0 | CW198: =BV198 -> 0 | CX198: =BW198 -> 0 | CY198: =CN198 -> 0 | CZ198: =BX198 -> 0 | DA198: =BY198 -> 0 | DB198: =BZ198 -> 0 | DD198: =CB198 -> 0 | DE198: =CC198 -> 0 | DG198: =0 -> 0 | DH198: =CM198 -> 0 | DO198: =CG198 -> 0 | DQ198: =CH198 -> 0 | DV198: =CJ198 -> 0 | DW198: =CK198 -> 0 | DY198: =CL198 -> 0

Sheet Validator (hidden)
A1: Details | B1: Password | E1: User Name | F1: Password | G1: ResetKey
A2: System Serial No: | G2: XDV!34tyBLB

Sheet SUMMARY (hidden)
A2: MONTH | B2: January
A4: MONTHLY EMPLOYEE PAYROLL MOVEMENT SCHEDULE
A6: January
A7: EMP NO: | B7: NAMES | C7: ID NO | D7: PHONE NO. | E7: RATE | F7: 1 | G7: 2 | H7: 3 | I7: 4 | J7: 5 | K7: 6 | L7: 7 | M7: 8 | N7: 9 | O7: 10 | P7: 11 | Q7: 12 | R7: 13 | S7: 14 | T7: 15 | U7: 16 | V7: 17 | W7: 18 | X7: 19 | Y7: 20 | Z7: 21 | AA7: 22 | AB7: 23 | AC7: 24 | AD7: 25 | AE7: 26 | AF7: 27 | AG7: 28 | AH7: 29 | AI7: 30 | AJ7: 31 | AK7: TOTAL DAYS | AL7: BASIC PAY | AM7: ADVANCE | AN7: PAYEE | AO7: NHIF | AP7: NHIF RELIEF | AQ7: NSSF | AR7: TOTAL-D | AS7: LOAN REPAYMENT | AT7: NET PAYABLE | AU7: LEAVE DAYS | AV7: PAID END MONTH | AW7: NITA | BE7: Basic Salary for Paye | BP7: ID Number | BR7: Employee ID | BS7: Empoyee Name | BT7: ID Number | BU7: Phone Number
A8: =IFERROR(IF($BR$8<>"",$BR$8,""),"") -> 1 | B8: =IFERROR(IF($BS$8<>"",$BS$8,""),"") -> Brian Kombe Gode | C8: =IFERROR(IF($BT$8<>"",$BT$8,""),"") -> 334567890 | D8: =IFERROR(IF($BU$8<>"",$BU$8,""),"") -> 7896543 | E8: 1500 | F8: 1 | G8: 1 | H8: 1 | I8: 1 | J8: 1 | K8: 1 | L8: 1 | M8: 1 | N8: 1 | O8: 1 | P8: 1 | Q8: 1 | R8: 1 | S8: 1 | T8: 1 | U8: 1 | V8: 1 | W8: 1 | X8: 1 | Y8: 1 | Z8: 1 | AA8: 1 | AB8: 1 | AC8: 1 | AD8: 1 | AE8: 1 | AF8: 1 | AG8: 1 | AH8: 1 | AI8: 1 | AJ8: 1 | AK8: =IFERROR(SUM(F8:AJ8)+AU8,0) -> 31 | AL8: =IFERROR(E8*AK8,0) -> 46500 | AM8: 20000 | AN8: =BG8 -> 5844.35 | AO8: =IFERROR(VLOOKUP(AL8,$BH$24:$BI$40,2,TRUE),0) -> 1100 | AP8: =AO8*0.15 -> 165 | AQ8: =IF(AL8>=18000,1080,AL8*0.06) -> 1080 | AR8: =IFERROR(AO8+AQ8,0) -> 2180 | AT8: =AL8-AM8-AN8-AO8-AQ8-AS8 -> 18475.65 | BE8: =AL8-AQ8 -> 45420 | BF8: =(IFERROR(IF((BE8-$BH$10)>1,$BH$10*$BI$10,0)+IF((BE8-$BH$10)>$BH$11,$BH$11*$BI$11,IF(AND((BE8-$BH$10)<$BH$11,(BE8-$BH$10)>0),((BE8-$BH$10)/$BH$11*($BH$11*$BI$11)),0))+IF((BE8-$BH$10-$BH$11)>$BH$12,(BE8-$BH$12)*$BI$12,IF(AND((BE8-$BH$10-$BH$11)<$BH$12,(BE8-$BH$10-$BH$11)>0),((BE8-$BH$10-$BH$11)/$BH$12*($BH$12*$BI$12)),0)),0))-2400-AP8 -> 5844.35 | BG8: =IFERROR(IF(BF8<=0,0,BF8),0) -> 5844.35 | BH8: Paye Normal | BR8: 1 | BS8: Brian Kombe Gode | BT8: 334567890 | BU8: 7896543
A9: =IFERROR(IF($BR$9<>"",$BR$9,""),"") -> 2 | B9: =IFERROR(IF($BS$9<>"",$BS$9,""),"") -> Timothy Brian Odongo | C9: =IFERROR(IF($BT$9<>"",$BT$9,""),"") -> 2345671 | D9: =IFERROR(IF($BU$9<>"",$BU$9,""),"") -> 737456712 | E9: 2000 | F9: 1 | G9: 1 | H9: 1 | I9: 1 | J9: 1 | K9: 1 | L9: 1 | M9: 1 | N9: 1 | O9: 1 | P9: 1 | Q9: 1 | R9: 1 | S9: 1 | T9: 1 | U9: 1 | V9: 1 | W9: 1 | X9: 1 | Y9: 1 | Z9: 1 | AA9: 1 | AB9: 1 | AC9: 1 | AD9: 1 | AE9: 1 | AF9: 1 | AG9: 1 | AH9: 1 | AI9: 1 | AJ9: 1 | AK9: =IFERROR(SUM(F9:AJ9)+AU9,0) -> 31 | AL9: =IFERROR(E9*AK9,0) -> 62000 | AM9: 4000 | AN9: =BG9 -> 10464.35 | AO9: 1300 | AP9: =AO9*0.15 -> 195 | AQ9: =IF(AL9>=18000,1080,AL9*0.06) -> 1080 | AR9: =IFERROR(AO9+AQ9,0) -> 2380 | AT9: =AL9-AM9-AN9-AO9-AQ9 -> 45155.65 | BE9: 60920 | BF9: 10464.35 | BG9: =IFERROR(IF(BF9<=0,0,BF9),0) -> 10464.35 | BH9: NORMAL | BI9: RATES | BR9: 2 | BS9: Timothy Brian Odongo | BT9: 2345671 | BU9: 737456712
A10: =IFERROR(IF($BR$10<>"",$BR$10,""),"") -> 3 | B10: =IFERROR(IF($BS$10<>"",$BS$10,""),"") -> Bshora Wayu Nzamo | C10: =IFERROR(IF($BT$10<>"",$BT$10,""),"") -> 29675430 | D10: =IFERROR(IF($BU$10<>"",$BU$10,""),"") -> 734567820 | E10: 3000 | F10: 1 | G10: 1 | H10: 1 | I10: 1 | J10: 1 | K10: 1 | L10: 1 | M10: 1 | N10: 1 | O10: 1 | P10: 1 | Q10: 1 | R10: 1 | S10: 1 | T10: 1 | U10: 1 | V10: 1 | W10: 1 | X10: 1 | Y10: 1 | Z10: 1 | AA10: 1 | AB10: 1 | AC10: 1 | AD10: 1 | AE10: 1 | AF10: 1 | AG10: 1 | AH10: 1 | AI10: 1 | AJ10: 1 | AK10: 31 | AL10: 93000 | AM10: 40000 | AN10: 19719.65 | AO10: 1600 | AP10: 240 | AQ10: 1080 | AR10: 2680 | AT10: 30600.35 | BE10: 91920 | BF10: 19719.65 | BG10: 19719.65 | BH10: ='Set-Up'!$D$7 -> 24000 | BI10: ='Set-Up'!$E$7 -> 0.1 | BK10: =IFERROR(IF(($B88-$BH$10)>1,$BH$10*BI10,0),"") ->  | BR10: 3 | BS10: Bshora Wayu Nzamo | BT10: 29675430 | BU10: 734567820
A11: =IFERROR(IF($BR$11<>"",$BR$11,""),"") -> 4 | B11: =IFERROR(IF($BS$11<>"",$BS$11,""),"") -> Wanyoni Agala Musando | C11: =IFERROR(IF($BT$11<>"",$BT$11,""),"") -> 33456789 | D11: =IFERROR(IF($BU$11<>"",$BU$11,""),"") -> 786543221 | AK11: 0 | AL11: 0 | AN11: 0 | AO11: 150 | AP11: 22.5 | AQ11: 0 | AR11: 150 | AT11: -150 | BE11: 0 | BF11: -2422.5 | BG11: 0 | BH11: ='Set-Up'!$D$8 -> 8333 | BI11: ='Set-Up'!$E$8 -> 0.25 | BK11: =IFERROR(IF(($BA8-$BH$10)>$BH$11,$BH$11*$BI$11,IF(AND((BA8-$BH$10)<$BH$11,(BA8-$BH$10)>0),((BA8-$BH$10)/$BH$11*($BH$11*$BI$11)),0)),0) -> 0 | BN11: =IF(AND((BA8-$BH10)<$BH$11,(BA8-$BH$10)>0),((BA8-$BH$10)/$BH$11*($BH$26*$BI$11)),0) -> 0 | BR11: 4 | BS11: Wanyoni Agala Musando | BT11: 33456789 | BU11: 786543221
A12: =IFERROR(IF($BR$12<>"",$BR$12,""),"") -> 5 | B12: =IFERROR(IF($BS$12<>"",$BS$12,""),"") -> Benerd Kimani Njorioge | C12: =IFERROR(IF($BT$12<>"",$BT$12,""),"") -> 30456789 | D12: =IFERROR(IF($BU$12<>"",$BU$12,""),"") -> 789654321 | AK12: 0 | AL12: 0 | AN12: 0 | AO12: 150 | AP12: 22.5 | AQ12: 0 | AR12: 150 | AT12: -150 | BE12: 0 | BF12: -2422.5 | BG12: 0 | BH12: ='Set-Up'!$D$9 -> 32332 | BI12: ='Set-Up'!$E$9 -> 0.3 | BK12: =IFERROR(IF(($CN8-$BH$10-$BH$11)>$BH$12,($CN8-$BH$12)*$BI$12,IF(AND((BA8-$BH$10-$BH$11)<$BH$12,(BA8-$BH$10-$BH$11)>0),((BA8-$BH$10-$BH$11)/$BH$12*($BH$12*$BI$12)),0)),0) -> 0 | BN12: =IF(AND((BA8-$BH$10-$BH$11)<$BH$12,(BA8-$BH$10-$BH$11)>0),((BA8-$BH$10-$BH$11)/$BH$12*($BH$12*$BI$12)),0) -> 0 | BR12: 5 | BS12: Benerd Kimani Njorioge | BT12: 30456789 | BU12: 789654321
A13: =IFERROR(IF($BR$13<>"",$BR$13,""),"") -> 6 | B13: =IFERROR(IF($BS$13<>"",$BS$13,""),"") -> Sam Jacob Mroki | C13: =IFERROR(IF($BT$13<>"",$BT$13,""),"") -> 31567823 | D13: =IFERROR(IF($BU$13<>"",$BU$13,""),"") -> 768942345 | AK13: 0 | AL13: 0 | AN13: 0 | AO13: 150 | AP13: 22.5 | AQ13: 0 | AR13: 150 | AT13: -150 | BE13: 0 | BF13: -2422.5 | BG13: 0 | BK13: =SUM(BK10:BK12) -> 0 | BR13: 6 | BS13: Sam Jacob Mroki | BT13: 31567823 | BU13: 768942345
A14: =IFERROR(IF($BR$14<>"",$BR$14,""),"") -> 7 | B14: =IFERROR(IF($BS$14<>"",$BS$14,""),"") -> Joy Mueni Mutinda | C14: =IFERROR(IF($BT$14<>"",$BT$14,""),"") -> 32897938 | D14: =IFERROR(IF($BU$14<>"",$BU$14,""),"") -> 723456765 | AK14: 0 | AL14: 0 | AN14: 0 | AO14: 150 | AP14: 22.5 | AQ14: 0 | AR14: 150 | AT14: -150 | BE14: 0 | BF14: -2422.5 | BG14: 0 | BR14: 7 | BS14: Joy Mueni Mutinda | BT14: 32897938 | BU14: 723456765
A15: =IFERROR(IF($BR$15<>"",$BR$15,""),"") -> 8 | B15: =IFERROR(IF($BS$15<>"",$BS$15,""),"") -> Kahindi Mwero Boga | C15: =IFERROR(IF($BT$15<>"",$BT$15,""),"") -> 2934567 | D15: =IFERROR(IF($BU$15<>"",$BU$15,""),"") -> 798654312 | AK15: 0 | AL15: 0 | AN15: 0 | AO15: 150 | AP15: 22.5 | AQ15: 0 | AR15: 150 | AT15: -150 | BE15: 0 | BF15: -2422.5 | BG15: 0 | BH15: NSSF | BR15: 8 | BS15: Kahindi Mwero Boga | BT15: 2934567 | BU15: 798654312
A16: =IFERROR(IF($BR$16<>"",$BR$16,""),"") -> 9 | B16: =IFERROR(IF($BS$16<>"",$BS$16,""),"") -> John Boscco Bosire | C16: =IFERROR(IF($BT$16<>"",$BT$16,""),"") -> 98347897 | D16: =IFERROR(IF($BU$16<>"",$BU$16,""),"") -> 734567128 | AK16: 0 | AL16: 0 | AN16: 0 | AO16: 150 | AP16: 22.5 | AQ16: 0 | AR16: 150 | AT16: -150 | BE16: 0 | BF16: -2422.5 | BG16: 0 | BH16: Rates | BI16: Amount | BK16: Result | BR16: 9 | BS16: John Boscco Bosire | BT16: 98347897 | BU16: 734567128
A17: =IFERROR(IF($BR$17<>"",$BR$17,""),"") -> 10 | B17: =IFERROR(IF($BS$17<>"",$BS$17,""),"") -> Hassan Abdulnasir Wario | C17: =IFERROR(IF($BT$17<>"",$BT$17,""),"") -> 2156789 | D17: =IFERROR(IF($BU$17<>"",$BU$17,""),"") -> 731256789 | AK17: 0 | AL17: 0 | AN17: 0 | AO17: 150 | AP17: 22.5 | AQ17: 0 | AR17: 150 | AT17: -150 | BE17: 0 | BF17: -2422.5 | BG17: 0 | BH17: 0.06 | BI17: 18000 | BR17: 10 | BS17: Hassan Abdulnasir Wario | BT17: 2156789 | BU17: 731256789
A18: =IFERROR(IF($BR$18<>"",$BR$18,""),"") -> 11 | B18: =IFERROR(IF($BS$18<>"",$BS$18,""),"") -> Jastine Makemba Batogo | C18: =IFERROR(IF($BT$18<>"",$BT$18,""),"") -> 34567890 | D18: =IFERROR(IF($BU$18<>"",$BU$18,""),"") -> 786885432 | AK18: 0 | AL18: 0 | AN18: 0 | AO18: 150 | AP18: 22.5 | AQ18: 0 | AR18: 150 | AT18: -150 | BE18: 0 | BF18: -2422.5 | BG18: 0 | BH18: Above Limit | BI18: =BH17*BI17 -> 1080 | BK18: =IFERROR(IF(X6>=BI17,1080,X6*BH17),0) -> 0 | BR18: 11 | BS18: Jastine Makemba Batogo | BT18: 34567890 | BU18: 786885432
A19: =IFERROR(IF($BR$19<>"",$BR$19,""),"") -> 12 | B19: =IFERROR(IF($BS$19<>"",$BS$19,""),"") -> Janet Wairimu Wamatagi | C19: =IFERROR(IF($BT$19<>"",$BT$19,""),"") -> 35678910 | D19: =IFERROR(IF($BU$19<>"",$BU$19,""),"") -> 745683412 | AK19: 0 | AL19: 0 | AN19: 0 | AO19: 150 | AP19: 22.5 | AQ19: 0 | AR19: 150 | AT19: -150 | BE19: 0 | BF19: -2422.5 | BG19: 0 | BR19: 12 | BS19: Janet Wairimu Wamatagi | BT19: 35678910 | BU19: 745683412
A20: =IFERROR(IF($BR$20<>"",$BR$20,""),"") -> 13 | B20: =IFERROR(IF($BS$20<>"",$BS$20,""),"") -> Denis Brian Ochola | C20: =IFERROR(IF($BT$20<>"",$BT$20,""),"") -> 34567812 | D20: =IFERROR(IF($BU$20<>"",$BU$20,""),"") -> 798345675 | AK20: 0 | AL20: 0 | AN20: 0 | AO20: 150 | AP20: 22.5 | AQ20: 0 | AR20: 150 | AT20: -150 | BE20: 0 | BF20: -2422.5 | BG20: 0 | BR20: 13 | BS20: Denis Brian Ochola | BT20: 34567812 | BU20: 798345675
A21: =IFERROR(IF($BR$21<>"",$BR$21,""),"") -> 14 | B21: =IFERROR(IF($BS$21<>"",$BS$21,""),"") -> Gitau Harrison Kithi | C21: =IFERROR(IF($BT$21<>"",$BT$21,""),"") -> 35267812 | D21: =IFERROR(IF($BU$21<>"",$BU$21,""),"") -> 739456712 | AK21: 0 | AL21: 0 | AN21: 0 | AO21: 150 | AP21: 22.5 | AQ21: 0 | AR21: 150 | AT21: -150 | BE21: 0 | BF21: -2422.5 | BG21: 0 | BR21: 14 | BS21: Gitau Harrison Kithi | BT21: 35267812 | BU21: 739456712
A22: =IFERROR(IF($BR$22<>"",$BR$22,""),"") ->  | B22: =IFERROR(IF($BS$22<>"",$BS$22,""),"") ->  | C22: =IFERROR(IF($BT$22<>"",$BT$22,""),"") ->  | D22: =IFERROR(IF($BU$22<>"",$BU$22,""),"") ->  | AK22: 0 | AL22: 0 | AN22: 0 | AO22: 150 | AP22: 22.5 | AQ22: 0 | AR22: 150 | AT22: -150 | BE22: 0 | BF22: -2422.5 | BG22: 0 | BH22: NHIF
A23: =IFERROR(IF($BR$23<>"",$BR$23,""),"") ->  | B23: =IFERROR(IF($BS$23<>"",$BS$23,""),"") ->  | C23: =IFERROR(IF($BT$23<>"",$BT$23,""),"") ->  | D23: =IFERROR(IF($BU$23<>"",$BU$23,""),"") ->  | AK23: 0 | AL23: 0 | AN23: 0 | AO23: 150 | AP23: 22.5 | AQ23: 0 | AR23: 150 | AT23: -150 | BE23: 0 | BF23: -2422.5 | BG23: 0 | BH23: Rates | BI23: Amount | BK23: Result
A24: =IFERROR(IF($BR$24<>"",$BR$24,""),"") ->  | B24: =IFERROR(IF($BS$24<>"",$BS$24,""),"") ->  | C24: =IFERROR(IF($BT$24<>"",$BT$24,""),"") ->  | D24: =IFERROR(IF($BU$24<>"",$BU$24,""),"") ->  | AK24: 0 | AL24: 0 | AN24: 0 | AO24: 150 | AP24: 22.5 | AQ24: 0 | AR24: 150 | AT24: -150 | BE24: 0 | BF24: -2422.5 | BG24: 0 | BH24: 0 | BI24: 150 | BK24: Cash Pay | BL24: OutPut | BM24: Relief
A25: =IFERROR(IF($BR$25<>"",$BR$25,""),"") ->  | B25: =IFERROR(IF($BS$25<>"",$BS$25,""),"") ->  | C25: =IFERROR(IF($BT$25<>"",$BT$25,""),"") ->  | D25: =IFERROR(IF($BU$25<>"",$BU$25,""),"") ->  | AK25: 0 | AL25: 0 | AN25: 0 | AO25: 150 | AP25: 22.5 | AQ25: 0 | AR25: 150 | AT25: -150 | BE25: 0 | BF25: -2422.5 | BG25: 0 | BH25: 6000 | BI25: 300 | BK25: =X6 -> 0 | BL25: =VLOOKUP(BK25,BH24:BI40,2,TRUE) -> 150 | BM25: =BL25*15% -> 22.5
A26: =IFERROR(IF($BR$26<>"",$BR$26,""),"") ->  | B26: =IFERROR(IF($BS$26<>"",$BS$26,""),"") ->  | C26: =IFERROR(IF($BT$26<>"",$BT$26,""),"") ->  | D26: =IFERROR(IF($BU$26<>"",$BU$26,""),"") ->  | AK26: 0 | AL26: 0 | AN26: 0 | AO26: 150 | AP26: 22.5 | AQ26: 0 | AR26: 150 | AT26: -150 | BE26: 0 | BF26: -2422.5 | BG26: 0 | BH26: 8000 | BI26: 400
A27: =IFERROR(IF($BR$27<>"",$BR$27,""),"") ->  | B27: =IFERROR(IF($BS$27<>"",$BS$27,""),"") ->  | C27: =IFERROR(IF($BT$27<>"",$BT$27,""),"") ->  | D27: =IFERROR(IF($BU$27<>"",$BU$27,""),"") ->  | AK27: 0 | AL27: 0 | AN27: 0 | AO27: 150 | AP27: 22.5 | AQ27: 0 | AR27: 150 | AT27: -150 | BE27: 0 | BF27: -2422.5 | BG27: 0 | BH27: 12000 | BI27: 500
A28: =IFERROR(IF($BR$28<>"",$BR$28,""),"") ->  | B28: =IFERROR(IF($BS$28<>"",$BS$28,""),"") ->  | C28: =IFERROR(IF($BT$28<>"",$BT$28,""),"") ->  | D28: =IFERROR(IF($BU$28<>"",$BU$28,""),"") ->  | AK28: 0 | AL28: 0 | AN28: 0 | AO28: 150 | AP28: 22.5 | AQ28: 0 | AR28: 150 | AT28: -150 | BE28: 0 | BF28: -2422.5 | BG28: 0 | BH28: 15000 | BI28: 600
A29: =IFERROR(IF($BR$29<>"",$BR$29,""),"") ->  | B29: =IFERROR(IF($BS$29<>"",$BS$29,""),"") ->  | C29: =IFERROR(IF($BT$29<>"",$BT$29,""),"") ->  | D29: =IFERROR(IF($BU$29<>"",$BU$29,""),"") ->  | AK29: 0 | AL29: 0 | AN29: 0 | AO29: 150 | AP29: 22.5 | AQ29: 0 | AR29: 150 | AT29: -150 | BE29: 0 | BF29: -2422.5 | BG29: 0 | BH29: 20000 | BI29: 750
A30: =IFERROR(IF($BR$30<>"",$BR$30,""),"") ->  | B30: =IFERROR(IF($BS$30<>"",$BS$30,""),"") ->  | C30: =IFERROR(IF($BT$30<>"",$BT$30,""),"") ->  | D30: =IFERROR(IF($BU$30<>"",$BU$30,""),"") ->  | AK30: 0 | AL30: 0 | AN30: 0 | AO30: 150 | AP30: 22.5 | AQ30: 0 | AR30: 150 | AT30: -150 | BE30: 0 | BF30: -2422.5 | BG30: 0 | BH30: 25000 | BI30: 850
A31: =IFERROR(IF($BR$31<>"",$BR$31,""),"") ->  | B31: =IFERROR(IF($BS$31<>"",$BS$31,""),"") ->  | C31: =IFERROR(IF($BT$31<>"",$BT$31,""),"") ->  | D31: =IFERROR(IF($BU$31<>"",$BU$31,""),"") ->  | AK31: 0 | AL31: 0 | AN31: 0 | AO31: 150 | AP31: 22.5 | AQ31: 0 | AR31: 150 | AT31: -150 | BE31: 0 | BF31: -2422.5 | BG31: 0 | BH31: 30000 | BI31: 900
A32: =IFERROR(IF($BR$32<>"",$BR$32,""),"") ->  | B32: =IFERROR(IF($BS$32<>"",$BS$32,""),"") ->  | C32: =IFERROR(IF($BT$32<>"",$BT$32,""),"") ->  | D32: =IFERROR(IF($BU$32<>"",$BU$32,""),"") ->  | AK32: 0 | AL32: 0 | AN32: 0 | AO32: 150 | AP32: 22.5 | AQ32: 0 | AR32: 150 | AT32: -150 | BE32: 0 | BF32: -2422.5 | BG32: 0 | BH32: 35000 | BI32: 950
A33: TOTAL | AL33: =SUM(AL8:AL32) -> 201500 | AM33: =SUM(AM8:AM32) -> 64000 | AN33: 36028.35 | AO33: 7300 | AP33: 1095 | AQ33: 3240 | AR33: 10540 | AS33: =SUM(AS8:AS32) -> 0 | AT33: =SUM(AT8:AT32) -> 90931.65 | AU33: =SUM(AU8:AU32) -> 0 | AV33: =SUM(AV8:AV32) -> 0 | AW33: =SUM(AW8:AW32) -> 0 | BH33: 40000 | BI33: 1000
BH34: 45000 | BI34: 1100
BH35: 50000 | BI35: 1200
BH36: 60000 | BI36: 1300
BH37: 70000 | BI37: 1400
BH38: 80000 | BI38: 1500
BH39: 90000 | BI39: 1600
A40: February | BH40: 100000 | BI40: 1700
A41: EMP NO: | B41: NAMES | C41: ID NO | D41: PHONE NO. | E41: RATE | F41: 1 | G41: 2 | H41: 3 | I41: 4 | J41: 5 | K41: 6 | L41: 7 | M41: 8 | N41: 9 | O41: 10 | P41: 11 | Q41: 12 | R41: 13 | S41: 14 | T41: 15 | U41: 16 | V41: 17 | W41: 18 | X41: 19 | Y41: 20 | Z41: 21 | AA41: 22 | AB41: 23 | AC41: 24 | AD41: 25 | AE41: 26 | AF41: 27 | AG41: 28 | AH41: 29 | AI41: 30 | AJ41: 31 | AK41: TOTAL DAYS | AL41: BASIC PAY | AM41: ADVANCE | AN41: PAYEE | AO41: NHIF | AP41: NHIF RELIEF | AQ41: NSSF | AR41: TOTAL-D | AS41: LOAN REPAYMENT | AT41: NET PAYABLE | AU41: LEAVE DAYS | AV41: PAID END MONTH | AW41: NITA | BE41: Basic Salary for Paye
A42: =IFERROR(IF($BR$8<>"",$BR$8,""),"") -> 1 | B42: =IFERROR(IF($BS$8<>"",$BS$8,""),"") -> Brian Kombe Gode | C42: =IFERROR(IF($BT$8<>"",$BT$8,""),"") -> 334567890 | D42: =IFERROR(IF($BU$8<>"",$BU$8,""),"") -> 7896543 | AK42: =IFERROR(SUM(F42:AJ42)+AU42,0) -> 0 | AL42: =IFERROR(E42*AK42,0) -> 0 | AN42: =BG42 -> 0 | AO42: =IFERROR(VLOOKUP(AL42,$BH$24:$BI$40,2,TRUE),0) -> 150 | AP42: =AO42*0.15 -> 22.5 | AQ42: =IF(AL42>=18000,1080,AL42*0.06) -> 0 | AR42: =IFERROR(AO42+AQ42,0) -> 150 | AT42: =AL42-AM42-AN42-AO42-AQ42-AS42 -> -150 | BE42: =AL42-AQ42 -> 0 | BF42: =(IFERROR(IF((BE42-$BH$10)>1,$BH$10*$BI$10,0)+IF((BE42-$BH$10)>$BH$11,$BH$11*$BI$11,IF(AND((BE42-$BH$10)<$BH$11,(BE42-$BH$10)>0),((BE42-$BH$10)/$BH$11*($BH$11*$BI$11)),0))+IF((BE42-$BH$10-$BH$11)>$BH$12,(BE42-$BH$12)*$BI$12,IF(AND((BE42-$BH$10-$BH$11)<$BH$12,(BE42-$BH$10-$BH$11)>0),((BE42-$BH$10-$BH$11)/$BH$12*($BH$12*$BI$12)),0)),0))-2400-AP42 -> -2422.5 | BG42: =IFERROR(IF(BF42<=0,0,BF42),0) -> 0
A43: =IFERROR(IF($BR$9<>"",$BR$9,""),"") -> 2 | B43: =IFERROR(IF($BS$9<>"",$BS$9,""),"") -> Timothy Brian Odongo | C43: =IFERROR(IF($BT$9<>"",$BT$9,""),"") -> 2345671 | D43: =IFERROR(IF($BU$9<>"",$BU$9,""),"") -> 737456712 | AK43: =IFERROR(SUM(F43:AJ43)+AU43,0) -> 0 | AL43: =IFERROR(E43*AK43,0) -> 0 | AN43: =BG43 -> 0 | AO43: 150 | AP43: =AO43*0.15 -> 22.5 | AQ43: =IF(AL43>=18000,1080,AL43*0.06) -> 0 | AR43: =IFERROR(AO43+AQ43,0) -> 150 | AT43: =AL43-AM43-AN43-AO43-AQ43 -> -150 | BE43: 0 | BF43: -2422.5 | BG43: =IFERROR(IF(BF43<=0,0,BF43),0) -> 0
A44: =IFERROR(IF($BR$10<>"",$BR$10,""),"") -> 3 | B44: =IFERROR(IF($BS$10<>"",$BS$10,""),"") -> Bshora Wayu Nzamo | C44: =IFERROR(IF($BT$10<>"",$BT$10,""),"") -> 29675430 | D44: =IFERROR(IF($BU$10<>"",$BU$10,""),"") -> 734567820 | AK44: 0 | AL44: 0 | AN44: 0 | AO44: 150 | AP44: 22.5 | AQ44: 0 | AR44: 150 | AT44: -150 | BE44: 0 | BF44: -2422.5 | BG44: 0
A45: =IFERROR(IF($BR$11<>"",$BR$11,""),"") -> 4 | B45: =IFERROR(IF($BS$11<>"",$BS$11,""),"") -> Wanyoni Agala Musando | C45: =IFERROR(IF($BT$11<>"",$BT$11,""),"") -> 33456789 | D45: =IFERROR(IF($BU$11<>"",$BU$11,""),"") -> 786543221 | AK45: 0 | AL45: 0 | AN45: 0 | AO45: 150 | AP45: 22.5 | AQ45: 0 | AR45: 150 | AT45: -150 | BE45: 0 | BF45: -2422.5 | BG45: 0
A46: =IFERROR(IF($BR$12<>"",$BR$12,""),"") -> 5 | B46: =IFERROR(IF($BS$12<>"",$BS$12,""),"") -> Benerd Kimani Njorioge | C46: =IFERROR(IF($BT$12<>"",$BT$12,""),"") -> 30456789 | D46: =IFERROR(IF($BU$12<>"",$BU$12,""),"") -> 789654321 | AK46: 0 | AL46: 0 | AN46: 0 | AO46: 150 | AP46: 22.5 | AQ46: 0 | AR46: 150 | AT46: -150 | BE46: 0 | BF46: -2422.5 | BG46: 0
A47: =IFERROR(IF($BR$13<>"",$BR$13,""),"") -> 6 | B47: =IFERROR(IF($BS$13<>"",$BS$13,""),"") -> Sam Jacob Mroki | C47: =IFERROR(IF($BT$13<>"",$BT$13,""),"") -> 31567823 | D47: =IFERROR(IF($BU$13<>"",$BU$13,""),"") -> 768942345 | AK47: 0 | AL47: 0 | AN47: 0 | AO47: 150 | AP47: 22.5 | AQ47: 0 | AR47: 150 | AT47: -150 | BE47: 0 | BF47: -2422.5 | BG47: 0
A48: =IFERROR(IF($BR$14<>"",$BR$14,""),"") -> 7 | B48: =IFERROR(IF($BS$14<>"",$BS$14,""),"") -> Joy Mueni Mutinda | C48: =IFERROR(IF($BT$14<>"",$BT$14,""),"") -> 32897938 | D48: =IFERROR(IF($BU$14<>"",$BU$14,""),"") -> 723456765 | AK48: 0 | AL48: 0 | AN48: 0 | AO48: 150 | AP48: 22.5 | AQ48: 0 | AR48: 150 | AT48: -150 | BE48: 0 | BF48: -2422.5 | BG48: 0
A49: =IFERROR(IF($BR$15<>"",$BR$15,""),"") -> 8 | B49: =IFERROR(IF($BS$15<>"",$BS$15,""),"") -> Kahindi Mwero Boga | C49: =IFERROR(IF($BT$15<>"",$BT$15,""),"") -> 2934567 | D49: =IFERROR(IF($BU$15<>"",$BU$15,""),"") -> 798654312 | AK49: 0 | AL49: 0 | AN49: 0 | AO49: 150 | AP49: 22.5 | AQ49: 0 | AR49: 150 | AT49: -150 | BE49: 0 | BF49: -2422.5 | BG49: 0
A50: =IFERROR(IF($BR$16<>"",$BR$16,""),"") -> 9 | B50: =IFERROR(IF($BS$16<>"",$BS$16,""),"") -> John Boscco Bosire | C50: =IFERROR(IF($BT$16<>"",$BT$16,""),"") -> 98347897 | D50: =IFERROR(IF($BU$16<>"",$BU$16,""),"") -> 734567128 | AK50: 0 | AL50: 0 | AN50: 0 | AO50: 150 | AP50: 22.5 | AQ50: 0 | AR50: 150 | AT50: -150 | BE50: 0 | BF50: -2422.5 | BG50: 0
A51: =IFERROR(IF($BR$17<>"",$BR$17,""),"") -> 10 | B51: =IFERROR(IF($BS$17<>"",$BS$17,""),"") -> Hassan Abdulnasir Wario | C51: =IFERROR(IF($BT$17<>"",$BT$17,""),"") -> 2156789 | D51: =IFERROR(IF($BU$17<>"",$BU$17,""),"") -> 731256789 | AK51: 0 | AL51: 0 | AN51: 0 | AO51: 150 | AP51: 22.5 | AQ51: 0 | AR51: 150 | AT51: -150 | BE51: 0 | BF51: -2422.5 | BG51: 0
A52: =IFERROR(IF($BR$18<>"",$BR$18,""),"") -> 11 | B52: =IFERROR(IF($BS$18<>"",$BS$18,""),"") -> Jastine Makemba Batogo | C52: =IFERROR(IF($BT$18<>"",$BT$18,""),"") -> 34567890 | D52: =IFERROR(IF($BU$18<>"",$BU$18,""),"") -> 786885432 | AK52: 0 | AL52: 0 | AN52: 0 | AO52: 150 | AP52: 22.5 | AQ52: 0 | AR52: 150 | AT52: -150 | BE52: 0 | BF52: -2422.5 | BG52: 0
A53: =IFERROR(IF($BR$19<>"",$BR$19,""),"") -> 12 | B53: =IFERROR(IF($BS$19<>"",$BS$19,""),"") -> Janet Wairimu Wamatagi | C53: =IFERROR(IF($BT$19<>"",$BT$19,""),"") -> 35678910 | D53: =IFERROR(IF($BU$19<>"",$BU$19,""),"") -> 745683412 | AK53: 0 | AL53: 0 | AN53: 0 | AO53: 150 | AP53: 22.5 | AQ53: 0 | AR53: 150 | AT53: -150 | BE53: 0 | BF53: -2422.5 | BG53: 0
A54: =IFERROR(IF($BR$20<>"",$BR$20,""),"") -> 13 | B54: =IFERROR(IF($BS$20<>"",$BS$20,""),"") -> Denis Brian Ochola | C54: =IFERROR(IF($BT$20<>"",$BT$20,""),"") -> 34567812 | D54: =IFERROR(IF($BU$20<>"",$BU$20,""),"") -> 798345675 | AK54: 0 | AL54: 0 | AN54: 0 | AO54: 150 | AP54: 22.5 | AQ54: 0 | AR54: 150 | AT54: -150 | BE54: 0 | BF54: -2422.5 | BG54: 0
A55: =IFERROR(IF($BR$21<>"",$BR$21,""),"") -> 14 | B55: =IFERROR(IF($BS$21<>"",$BS$21,""),"") -> Gitau Harrison Kithi | C55: =IFERROR(IF($BT$21<>"",$BT$21,""),"") -> 35267812 | D55: =IFERROR(IF($BU$21<>"",$BU$21,""),"") -> 739456712 | AK55: 0 | AL55: 0 | AN55: 0 | AO55: 150 | AP55: 22.5 | AQ55: 0 | AR55: 150 | AT55: -150 | BE55: 0 | BF55: -2422.5 | BG55: 0
A56: =IFERROR(IF($BR$22<>"",$BR$22,""),"") ->  | B56: =IFERROR(IF($BS$22<>"",$BS$22,""),"") ->  | C56: =IFERROR(IF($BT$22<>"",$BT$22,""),"") ->  | D56: =IFERROR(IF($BU$22<>"",$BU$22,""),"") ->  | AK56: 0 | AL56: 0 | AN56: 0 | AO56: 150 | AP56: 22.5 | AQ56: 0 | AR56: 150 | AT56: -150 | BE56: 0 | BF56: -2422.5 | BG56: 0
A57: =IFERROR(IF($BR$23<>"",$BR$23,""),"") ->  | B57: =IFERROR(IF($BS$23<>"",$BS$23,""),"") ->  | C57: =IFERROR(IF($BT$23<>"",$BT$23,""),"") ->  | D57: =IFERROR(IF($BU$23<>"",$BU$23,""),"") ->  | AK57: 0 | AL57: 0 | AN57: 0 | AO57: 150 | AP57: 22.5 | AQ57: 0 | AR57: 150 | AT57: -150 | BE57: 0 | BF57: -2422.5 | BG57: 0
A58: =IFERROR(IF($BR$24<>"",$BR$24,""),"") ->  | B58: =IFERROR(IF($BS$24<>"",$BS$24,""),"") ->  | C58: =IFERROR(IF($BT$24<>"",$BT$24,""),"") ->  | D58: =IFERROR(IF($BU$24<>"",$BU$24,""),"") ->  | AK58: 0 | AL58: 0 | AN58: 0 | AO58: 150 | AP58: 22.5 | AQ58: 0 | AR58: 150 | AT58: -150 | BE58: 0 | BF58: -2422.5 | BG58: 0
A59: =IFERROR(IF($BR$25<>"",$BR$25,""),"") ->  | B59: =IFERROR(IF($BS$25<>"",$BS$25,""),"") ->  | C59: =IFERROR(IF($BT$25<>"",$BT$25,""),"") ->  | D59: =IFERROR(IF($BU$25<>"",$BU$25,""),"") ->  | AK59: 0 | AL59: 0 | AN59: 0 | AO59: 150 | AP59: 22.5 | AQ59: 0 | AR59: 150 | AT59: -150 | BE59: 0 | BF59: -2422.5 | BG59: 0
A60: =IFERROR(IF($BR$26<>"",$BR$26,""),"") ->  | B60: =IFERROR(IF($BS$26<>"",$BS$26,""),"") ->  | C60: =IFERROR(IF($BT$26<>"",$BT$26,""),"") ->  | D60: =IFERROR(IF($BU$26<>"",$BU$26,""),"") ->  | AK60: 0 | AL60: 0 | AN60: 0 | AO60: 150 | AP60: 22.5 | AQ60: 0 | AR60: 150 | AT60: -150 | BE60: 0 | BF60: -2422.5 | BG60: 0
A61: =IFERROR(IF($BR$27<>"",$BR$27,""),"") ->  | B61: =IFERROR(IF($BS$27<>"",$BS$27,""),"") ->  | C61: =IFERROR(IF($BT$27<>"",$BT$27,""),"") ->  | D61: =IFERROR(IF($BU$27<>"",$BU$27,""),"") ->  | AK61: 0 | AL61: 0 | AN61: 0 | AO61: 150 | AP61: 22.5 | AQ61: 0 | AR61: 150 | AT61: -150 | BE61: 0 | BF61: -2422.5 | BG61: 0
A62: =IFERROR(IF($BR$28<>"",$BR$28,""),"") ->  | B62: =IFERROR(IF($BS$28<>"",$BS$28,""),"") ->  | C62: =IFERROR(IF($BT$28<>"",$BT$28,""),"") ->  | D62: =IFERROR(IF($BU$28<>"",$BU$28,""),"") ->  | AK62: 0 | AL62: 0 | AN62: 0 | AO62: 150 | AP62: 22.5 | AQ62: 0 | AR62: 150 | AT62: -150 | BE62: 0 | BF62: -2422.5 | BG62: 0
A63: =IFERROR(IF($BR$29<>"",$BR$29,""),"") ->  | B63: =IFERROR(IF($BS$29<>"",$BS$29,""),"") ->  | C63: =IFERROR(IF($BT$29<>"",$BT$29,""),"") ->  | D63: =IFERROR(IF($BU$29<>"",$BU$29,""),"") ->  | AK63: 0 | AL63: 0 | AN63: 0 | AO63: 150 | AP63: 22.5 | AQ63: 0 | AR63: 150 | AT63: -150 | BE63: 0 | BF63: -2422.5 | BG63: 0
A64: =IFERROR(IF($BR$30<>"",$BR$30,""),"") ->  | B64: =IFERROR(IF($BS$30<>"",$BS$30,""),"") ->  | C64: =IFERROR(IF($BT$30<>"",$BT$30,""),"") ->  | D64: =IFERROR(IF($BU$30<>"",$BU$30,""),"") ->  | AK64: 0 | AL64: 0 | AN64: 0 | AO64: 150 | AP64: 22.5 | AQ64: 0 | AR64: 150 | AT64: -150 | BE64: 0 | BF64: -2422.5 | BG64: 0
A65: =IFERROR(IF($BR$31<>"",$BR$31,""),"") ->  | B65: =IFERROR(IF($BS$31<>"",$BS$31,""),"") ->  | C65: =IFERROR(IF($BT$31<>"",$BT$31,""),"") ->  | D65: =IFERROR(IF($BU$31<>"",$BU$31,""),"") ->  | AK65: 0 | AL65: 0 | AN65: 0 | AO65: 150 | AP65: 22.5 | AQ65: 0 | AR65: 150 | AT65: -150 | BE65: 0 | BF65: -2422.5 | BG65: 0
A66: =IFERROR(IF($BR$32<>"",$BR$32,""),"") ->  | B66: =IFERROR(IF($BS$32<>"",$BS$32,""),"") ->  | C66: =IFERROR(IF($BT$32<>"",$BT$32,""),"") ->  | D66: =IFERROR(IF($BU$32<>"",$BU$32,""),"") ->  | AK66: 0 | AL66: 0 | AN66: 0 | AO66: 150 | AP66: 22.5 | AQ66: 0 | AR66: 150 | AT66: -150 | BE66: 0 | BF66: -2422.5 | BG66: 0
A67: TOTAL | AL67: =SUM(AL42:AL66) -> 0 | AM67: =SUM(AM42:AM66) -> 0 | AN67: 0 | AO67: =SUM(AO42:AO66) -> 3750 | AP67: 562.5 | AQ67: 0 | AR67: 3750 | AS67: 0 | AT67: -3750 | AU67: 0 | AV67: 0 | AW67: 0
A74: March
A75: EMP NO: | B75: NAMES | C75: ID NO | D75: PHONE NO. | E75: RATE | F75: 1 | G75: 2 | H75: 3 | I75: 4 | J75: 5 | K75: 6 | L75: 7 | M75: 8 | N75: 9 | O75: 10 | P75: 11 | Q75: 12 | R75: 13 | S75: 14 | T75: 15 | U75: 16 | V75: 17 | W75: 18 | X75: 19 | Y75: 20 | Z75: 21 | AA75: 22 | AB75: 23 | AC75: 24 | AD75: 25 | AE75: 26 | AF75: 27 | AG75: 28 | AH75: 29 | AI75: 30 | AJ75: 31 | AK75: TOTAL DAYS | AL75: BASIC PAY | AM75: ADVANCE | AN75: PAYEE | AO75: NHIF | AP75: NHIF RELIEF | AQ75: NSSF | AR75: TOTAL-D | AS75: LOAN REPAYMENT | AT75: NET PAYABLE | AU75: LEAVE DAYS | AV75: PAID END MONTH | AW75: NITA | BE75: Basic Salary for Paye
A76: =IFERROR(IF($BR$8<>"",$BR$8,""),"") -> 1 | B76: =IFERROR(IF($BS$8<>"",$BS$8,""),"") -> Brian Kombe Gode | C76: =IFERROR(IF($BT$8<>"",$BT$8,""),"") -> 334567890 | D76: =IFERROR(IF($BU$8<>"",$BU$8,""),"") -> 7896543 | AK76: =IFERROR(SUM(F76:AJ76)+AU76,0) -> 0 | AL76: =IFERROR(E76*AK76,0) -> 0 | AN76: =BG76 -> 0 | AO76: =IFERROR(VLOOKUP(AL76,$BH$24:$BI$40,2,TRUE),0) -> 150 | AP76: =AO76*0.15 -> 22.5 | AQ76: =IF(AL76>=18000,1080,AL76*0.06) -> 0 | AR76: =IFERROR(AO76+AQ76,0) -> 150 | AT76: =AL76-AM76-AN76-AO76-AQ76-AS76 -> -150 | BE76: =AL76-AQ76 -> 0 | BF76: =(IFERROR(IF((BE76-$BH$10)>1,$BH$10*$BI$10,0)+IF((BE76-$BH$10)>$BH$11,$BH$11*$BI$11,IF(AND((BE76-$BH$10)<$BH$11,(BE76-$BH$10)>0),((BE76-$BH$10)/$BH$11*($BH$11*$BI$11)),0))+IF((BE76-$BH$10-$BH$11)>$BH$12,(BE76-$BH$12)*$BI$12,IF(AND((BE76-$BH$10-$BH$11)<$BH$12,(BE76-$BH$10-$BH$11)>0),((BE76-$BH$10-$BH$11)/$BH$12*($BH$12*$BI$12)),0)),0))-2400-AP76 -> -2422.5 | BG76: =IFERROR(IF(BF76<=0,0,BF76),0) -> 0
A77: =IFERROR(IF($BR$9<>"",$BR$9,""),"") -> 2 | B77: =IFERROR(IF($BS$9<>"",$BS$9,""),"") -> Timothy Brian Odongo | C77: =IFERROR(IF($BT$9<>"",$BT$9,""),"") -> 2345671 | D77: =IFERROR(IF($BU$9<>"",$BU$9,""),"") -> 737456712 | AK77: =IFERROR(SUM(F77:AJ77)+AU77,0) -> 0 | AL77: =IFERROR(E77*AK77,0) -> 0 | AN77: =BG77 -> 0 | AO77: 150 | AP77: =AO77*0.15 -> 22.5 | AQ77: =IF(AL77>=18000,1080,AL77*0.06) -> 0 | AR77: =IFERROR(AO77+AQ77,0) -> 150 | AT77: =AL77-AM77-AN77-AO77-AQ77 -> -150 | BE77: 0 | BF77: -2422.5 | BG77: =IFERROR(IF(BF77<=0,0,BF77),0) -> 0
A78: =IFERROR(IF($BR$10<>"",$BR$10,""),"") -> 3 | B78: =IFERROR(IF($BS$10<>"",$BS$10,""),"") -> Bshora Wayu Nzamo | C78: =IFERROR(IF($BT$10<>"",$BT$10,""),"") -> 29675430 | D78: =IFERROR(IF($BU$10<>"",$BU$10,""),"") -> 734567820 | AK78: 0 | AL78: 0 | AN78: 0 | AO78: 150 | AP78: 22.5 | AQ78: 0 | AR78: 150 | AT78: -150 | BE78: 0 | BF78: -2422.5 | BG78: 0
A79: =IFERROR(IF($BR$11<>"",$BR$11,""),"") -> 4 | B79: =IFERROR(IF($BS$11<>"",$BS$11,""),"") -> Wanyoni Agala Musando | C79: =IFERROR(IF($BT$11<>"",$BT$11,""),"") -> 33456789 | D79: =IFERROR(IF($BU$11<>"",$BU$11,""),"") -> 786543221 | AK79: 0 | AL79: 0 | AN79: 0 | AO79: 150 | AP79: 22.5 | AQ79: 0 | AR79: 150 | AT79: -150 | BE79: 0 | BF79: -2422.5 | BG79: 0
A80: =IFERROR(IF($BR$12<>"",$BR$12,""),"") -> 5 | B80: =IFERROR(IF($BS$12<>"",$BS$12,""),"") -> Benerd Kimani Njorioge | C80: =IFERROR(IF($BT$12<>"",$BT$12,""),"") -> 30456789 | D80: =IFERROR(IF($BU$12<>"",$BU$12,""),"") -> 789654321 | AK80: 0 | AL80: 0 | AN80: 0 | AO80: 150 | AP80: 22.5 | AQ80: 0 | AR80: 150 | AT80: -150 | BE80: 0 | BF80: -2422.5 | BG80: 0
A81: =IFERROR(IF($BR$13<>"",$BR$13,""),"") -> 6 | B81: =IFERROR(IF($BS$13<>"",$BS$13,""),"") -> Sam Jacob Mroki | C81: =IFERROR(IF($BT$13<>"",$BT$13,""),"") -> 31567823 | D81: =IFERROR(IF($BU$13<>"",$BU$13,""),"") -> 768942345 | AK81: 0 | AL81: 0 | AN81: 0 | AO81: 150 | AP81: 22.5 | AQ81: 0 | AR81: 150 | AT81: -150 | BE81: 0 | BF81: -2422.5 | BG81: 0
A82: =IFERROR(IF($BR$14<>"",$BR$14,""),"") -> 7 | B82: =IFERROR(IF($BS$14<>"",$BS$14,""),"") -> Joy Mueni Mutinda | C82: =IFERROR(IF($BT$14<>"",$BT$14,""),"") -> 32897938 | D82: =IFERROR(IF($BU$14<>"",$BU$14,""),"") -> 723456765 | AK82: 0 | AL82: 0 | AN82: 0 | AO82: 150 | AP82: 22.5 | AQ82: 0 | AR82: 150 | AT82: -150 | BE82: 0 | BF82: -2422.5 | BG82: 0
A83: =IFERROR(IF($BR$15<>"",$BR$15,""),"") -> 8 | B83: =IFERROR(IF($BS$15<>"",$BS$15,""),"") -> Kahindi Mwero Boga | C83: =IFERROR(IF($BT$15<>"",$BT$15,""),"") -> 2934567 | D83: =IFERROR(IF($BU$15<>"",$BU$15,""),"") -> 798654312 | AK83: 0 | AL83: 0 | AN83: 0 | AO83: 150 | AP83: 22.5 | AQ83: 0 | AR83: 150 | AT83: -150 | BE83: 0 | BF83: -2422.5 | BG83: 0
A84: =IFERROR(IF($BR$16<>"",$BR$16,""),"") -> 9 | B84: =IFERROR(IF($BS$16<>"",$BS$16,""),"") -> John Boscco Bosire | C84: =IFERROR(IF($BT$16<>"",$BT$16,""),"") -> 98347897 | D84: =IFERROR(IF($BU$16<>"",$BU$16,""),"") -> 734567128 | AK84: 0 | AL84: 0 | AN84: 0 | AO84: 150 | AP84: 22.5 | AQ84: 0 | AR84: 150 | AT84: -150 | BE84: 0 | BF84: -2422.5 | BG84: 0
A85: =IFERROR(IF($BR$17<>"",$BR$17,""),"") -> 10 | B85: =IFERROR(IF($BS$17<>"",$BS$17,""),"") -> Hassan Abdulnasir Wario | C85: =IFERROR(IF($BT$17<>"",$BT$17,""),"") -> 2156789 | D85: =IFERROR(IF($BU$17<>"",$BU$17,""),"") -> 731256789 | AK85: 0 | AL85: 0 | AN85: 0 | AO85: 150 | AP85: 22.5 | AQ85: 0 | AR85: 150 | AT85: -150 | BE85: 0 | BF85: -2422.5 | BG85: 0
A86: =IFERROR(IF($BR$18<>"",$BR$18,""),"") -> 11 | B86: =IFERROR(IF($BS$18<>"",$BS$18,""),"") -> Jastine Makemba Batogo | C86: =IFERROR(IF($BT$18<>"",$BT$18,""),"") -> 34567890 | D86: =IFERROR(IF($BU$18<>"",$BU$18,""),"") -> 786885432 | AK86: 0 | AL86: 0 | AN86: 0 | AO86: 150 | AP86: 22.5 | AQ86: 0 | AR86: 150 | AT86: -150 | BE86: 0 | BF86: -2422.5 | BG86: 0
A87: =IFERROR(IF($BR$19<>"",$BR$19,""),"") -> 12 | B87: =IFERROR(IF($BS$19<>"",$BS$19,""),"") -> Janet Wairimu Wamatagi | C87: =IFERROR(IF($BT$19<>"",$BT$19,""),"") -> 35678910 | D87: =IFERROR(IF($BU$19<>"",$BU$19,""),"") -> 745683412 | AK87: 0 | AL87: 0 | AN87: 0 | AO87: 150 | AP87: 22.5 | AQ87: 0 | AR87: 150 | AT87: -150 | BE87: 0 | BF87: -2422.5 | BG87: 0
A88: =IFERROR(IF($BR$20<>"",$BR$20,""),"") -> 13 | B88: =IFERROR(IF($BS$20<>"",$BS$20,""),"") -> Denis Brian Ochola | C88: =IFERROR(IF($BT$20<>"",$BT$20,""),"") -> 34567812 | D88: =IFERROR(IF($BU$20<>"",$BU$20,""),"") -> 798345675 | AK88: 0 | AL88: 0 | AN88: 0 | AO88: 150 | AP88: 22.5 | AQ88: 0 | AR88: 150 | AT88: -150 | BE88: 0 | BF88: -2422.5 | BG88: 0
A89: =IFERROR(IF($BR$21<>"",$BR$21,""),"") -> 14 | B89: =IFERROR(IF($BS$21<>"",$BS$21,""),"") -> Gitau Harrison Kithi | C89: =IFERROR(IF($BT$21<>"",$BT$21,""),"") -> 35267812 | D89: =IFERROR(IF($BU$21<>"",$BU$21,""),"") -> 739456712 | AK89: 0 | AL89: 0 | AN89: 0 | AO89: 150 | AP89: 22.5 | AQ89: 0 | AR89: 150 | AT89: -150 | BE89: 0 | BF89: -2422.5 | BG89: 0
A90: =IFERROR(IF($BR$22<>"",$BR$22,""),"") ->  | B90: =IFERROR(IF($BS$22<>"",$BS$22,""),"") ->  | C90: =IFERROR(IF($BT$22<>"",$BT$22,""),"") ->  | D90: =IFERROR(IF($BU$22<>"",$BU$22,""),"") ->  | AK90: 0 | AL90: 0 | AN90: 0 | AO90: 150 | AP90: 22.5 | AQ90: 0 | AR90: 150 | AT90: -150 | BE90: 0 | BF90: -2422.5 | BG90: 0
A91: =IFERROR(IF($BR$23<>"",$BR$23,""),"") ->  | B91: =IFERROR(IF($BS$23<>"",$BS$23,""),"") ->  | C91: =IFERROR(IF($BT$23<>"",$BT$23,""),"") ->  | D91: =IFERROR(IF($BU$23<>"",$BU$23,""),"") ->  | AK91: 0 | AL91: 0 | AN91: 0 | AO91: 150 | AP91: 22.5 | AQ91: 0 | AR91: 150 | AT91: -150 | BE91: 0 | BF91: -2422.5 | BG91: 0
A92: =IFERROR(IF($BR$24<>"",$BR$24,""),"") ->  | B92: =IFERROR(IF($BS$24<>"",$BS$24,""),"") ->  | C92: =IFERROR(IF($BT$24<>"",$BT$24,""),"") ->  | D92: =IFERROR(IF($BU$24<>"",$BU$24,""),"") ->  | AK92: 0 | AL92: 0 | AN92: 0 | AO92: 150 | AP92: 22.5 | AQ92: 0 | AR92: 150 | AT92: -150 | BE92: 0 | BF92: -2422.5 | BG92: 0
A93: =IFERROR(IF($BR$25<>"",$BR$25,""),"") ->  | B93: =IFERROR(IF($BS$25<>"",$BS$25,""),"") ->  | C93: =IFERROR(IF($BT$25<>"",$BT$25,""),"") ->  | D93: =IFERROR(IF($BU$25<>"",$BU$25,""),"") ->  | AK93: 0 | AL93: 0 | AN93: 0 | AO93: 150 | AP93: 22.5 | AQ93: 0 | AR93: 150 | AT93: -150 | BE93: 0 | BF93: -2422.5 | BG93: 0
A94: =IFERROR(IF($BR$26<>"",$BR$26,""),"") ->  | B94: =IFERROR(IF($BS$26<>"",$BS$26,""),"") ->  | C94: =IFERROR(IF($BT$26<>"",$BT$26,""),"") ->  | D94: =IFERROR(IF($BU$26<>"",$BU$26,""),"") ->  | AK94: 0 | AL94: 0 | AN94: 0 | AO94: 150 | AP94: 22.5 | AQ94: 0 | AR94: 150 | AT94: -150 | BE94: 0 | BF94: -2422.5 | BG94: 0
A95: =IFERROR(IF($BR$27<>"",$BR$27,""),"") ->  | B95: =IFERROR(IF($BS$27<>"",$BS$27,""),"") ->  | C95: =IFERROR(IF($BT$27<>"",$BT$27,""),"") ->  | D95: =IFERROR(IF($BU$27<>"",$BU$27,""),"") ->  | AK95: 0 | AL95: 0 | AN95: 0 | AO95: 150 | AP95: 22.5 | AQ95: 0 | AR95: 150 | AT95: -150 | BE95: 0 | BF95: -2422.5 | BG95: 0
A96: =IFERROR(IF($BR$28<>"",$BR$28,""),"") ->  | B96: =IFERROR(IF($BS$28<>"",$BS$28,""),"") ->  | C96: =IFERROR(IF($BT$28<>"",$BT$28,""),"") ->  | D96: =IFERROR(IF($BU$28<>"",$BU$28,""),"") ->  | AK96: 0 | AL96: 0 | AN96: 0 | AO96: 150 | AP96: 22.5 | AQ96: 0 | AR96: 150 | AT96: -150 | BE96: 0 | BF96: -2422.5 | BG96: 0
A97: =IFERROR(IF($BR$29<>"",$BR$29,""),"") ->  | B97: =IFERROR(IF($BS$29<>"",$BS$29,""),"") ->  | C97: =IFERROR(IF($BT$29<>"",$BT$29,""),"") ->  | D97: =IFERROR(IF($BU$29<>"",$BU$29,""),"") ->  | AK97: 0 | AL97: 0 | AN97: 0 | AO97: 150 | AP97: 22.5 | AQ97: 0 | AR97: 150 | AT97: -150 | BE97: 0 | BF97: -2422.5 | BG97: 0
A98: =IFERROR(IF($BR$30<>"",$BR$30,""),"") ->  | B98: =IFERROR(IF($BS$30<>"",$BS$30,""),"") ->  | C98: =IFERROR(IF($BT$30<>"",$BT$30,""),"") ->  | D98: =IFERROR(IF($BU$30<>"",$BU$30,""),"") ->  | AK98: 0 | AL98: 0 | AN98: 0 | AO98: 150 | AP98: 22.5 | AQ98: 0 | AR98: 150 | AT98: -150 | BE98: 0 | BF98: -2422.5 | BG98: 0
A99: =IFERROR(IF($BR$31<>"",$BR$31,""),"") ->  | B99: =IFERROR(IF($BS$31<>"",$BS$31,""),"") ->  | C99: =IFERROR(IF($BT$31<>"",$BT$31,""),"") ->  | D99: =IFERROR(IF($BU$31<>"",$BU$31,""),"") ->  | AK99: 0 | AL99: 0 | AN99: 0 | AO99: 150 | AP99: 22.5 | AQ99: 0 | AR99: 150 | AT99: -150 | BE99: 0 | BF99: -2422.5 | BG99: 0
A100: =IFERROR(IF($BR$32<>"",$BR$32,""),"") ->  | B100: =IFERROR(IF($BS$32<>"",$BS$32,""),"") ->  | C100: =IFERROR(IF($BT$32<>"",$BT$32,""),"") ->  | D100: =IFERROR(IF($BU$32<>"",$BU$32,""),"") ->  | AK100: 0 | AL100: 0 | AN100: 0 | AO100: 150 | AP100: 22.5 | AQ100: 0 | AR100: 150 | AT100: -150 | BE100: 0 | BF100: -2422.5 | BG100: 0
A101: TOTAL | AL101: =SUM(AL76:AL100) -> 0 | AM101: =SUM(AM76:AM100) -> 0 | AN101: 0 | AO101: 3750 | AP101: 562.5 | AQ101: 0 | AR101: 3750 | AS101: 0 | AT101: -3750 | AU101: 0 | AV101: 0 | AW101: 0
A108: April
A109: EMP NO: | B109: NAMES | C109: ID NO | D109: PHONE NO. | E109: RATE | F109: 1 | G109: 2 | H109: 3 | I109: 4 | J109: 5 | K109: 6 | L109: 7 | M109: 8 | N109: 9 | O109: 10 | P109: 11 | Q109: 12 | R109: 13 | S109: 14 | T109: 15 | U109: 16 | V109: 17 | W109: 18 | X109: 19 | Y109: 20 | Z109: 21 | AA109: 22 | AB109: 23 | AC109: 24 | AD109: 25 | AE109: 26 | AF109: 27 | AG109: 28 | AH109: 29 | AI109: 30 | AJ109: 31 | AK109: TOTAL DAYS | AL109: BASIC PAY | AM109: ADVANCE | AN109: PAYEE | AO109: NHIF | AP109: NHIF RELIEF | AQ109: NSSF | AR109: TOTAL-D | AS109: LOAN REPAYMENT | AT109: NET PAYABLE | AU109: LEAVE DAYS | AV109: PAID END MONTH | AW109: NITA | BE109: Basic Salary for Paye
A110: =IFERROR(IF($BR$8<>"",$BR$8,""),"") -> 1 | B110: =IFERROR(IF($BS$8<>"",$BS$8,""),"") -> Brian Kombe Gode | C110: =IFERROR(IF($BT$8<>"",$BT$8,""),"") -> 334567890 | D110: =IFERROR(IF($BU$8<>"",$BU$8,""),"") -> 7896543 | AK110: =IFERROR(SUM(F110:AJ110)+AU110,0) -> 0 | AL110: =IFERROR(E110*AK110,0) -> 0 | AN110: =BG110 -> 0 | AO110: =IFERROR(VLOOKUP(AL110,$BH$24:$BI$40,2,TRUE),0) -> 150 | AP110: =AO110*0.15 -> 22.5 | AQ110: =IF(AL110>=18000,1080,AL110*0.06) -> 0 | AR110: =IFERROR(AO110+AQ110,0) -> 150 | AT110: =AL110-AM110-AN110-AO110-AQ110-AS110 -> -150 | BE110: =AL110-AQ110 -> 0 | BF110: =(IFERROR(IF((BE110-$BH$10)>1,$BH$10*$BI$10,0)+IF((BE110-$BH$10)>$BH$11,$BH$11*$BI$11,IF(AND((BE110-$BH$10)<$BH$11,(BE110-$BH$10)>0),((BE110-$BH$10)/$BH$11*($BH$11*$BI$11)),0))+IF((BE110-$BH$10-$BH$11)>$BH$12,(BE110-$BH$12)*$BI$12,IF(AND((BE110-$BH$10-$BH$11)<$BH$12,(BE110-$BH$10-$BH$11)>0),((BE110-$BH$10-$BH$11)/$BH$12*($BH$12*$BI$12)),0)),0))-2400-AP110 -> -2422.5 | BG110: =IFERROR(IF(BF110<=0,0,BF110),0) -> 0
A111: =IFERROR(IF($BR$9<>"",$BR$9,""),"") -> 2 | B111: =IFERROR(IF($BS$9<>"",$BS$9,""),"") -> Timothy Brian Odongo | C111: =IFERROR(IF($BT$9<>"",$BT$9,""),"") -> 2345671 | D111: =IFERROR(IF($BU$9<>"",$BU$9,""),"") -> 737456712 | AK111: =IFERROR(SUM(F111:AJ111)+AU111,0) -> 0 | AL111: =IFERROR(E111*AK111,0) -> 0 | AN111: =BG111 -> 0 | AO111: 150 | AP111: =AO111*0.15 -> 22.5 | AQ111: =IF(AL111>=18000,1080,AL111*0.06) -> 0 | AR111: =IFERROR(AO111+AQ111,0) -> 150 | AT111: =AL111-AM111-AN111-AO111-AQ111 -> -150 | BE111: 0 | BF111: -2422.5 | BG111: =IFERROR(IF(BF111<=0,0,BF111),0) -> 0
A112: =IFERROR(IF($BR$10<>"",$BR$10,""),"") -> 3 | B112: =IFERROR(IF($BS$10<>"",$BS$10,""),"") -> Bshora Wayu Nzamo | C112: =IFERROR(IF($BT$10<>"",$BT$10,""),"") -> 29675430 | D112: =IFERROR(IF($BU$10<>"",$BU$10,""),"") -> 734567820 | AK112: 0 | AL112: 0 | AN112: 0 | AO112: 150 | AP112: 22.5 | AQ112: 0 | AR112: 150 | AT112: -150 | BE112: 0 | BF112: -2422.5 | BG112: 0
A113: =IFERROR(IF($BR$11<>"",$BR$11,""),"") -> 4 | B113: =IFERROR(IF($BS$11<>"",$BS$11,""),"") -> Wanyoni Agala Musando | C113: =IFERROR(IF($BT$11<>"",$BT$11,""),"") -> 33456789 | D113: =IFERROR(IF($BU$11<>"",$BU$11,""),"") -> 786543221 | AK113: 0 | AL113: 0 | AN113: 0 | AO113: 150 | AP113: 22.5 | AQ113: 0 | AR113: 150 | AT113: -150 | BE113: 0 | BF113: -2422.5 | BG113: 0
A114: =IFERROR(IF($BR$12<>"",$BR$12,""),"") -> 5 | B114: =IFERROR(IF($BS$12<>"",$BS$12,""),"") -> Benerd Kimani Njorioge | C114: =IFERROR(IF($BT$12<>"",$BT$12,""),"") -> 30456789 | D114: =IFERROR(IF($BU$12<>"",$BU$12,""),"") -> 789654321 | AK114: 0 | AL114: 0 | AN114: 0 | AO114: 150 | AP114: 22.5 | AQ114: 0 | AR114: 150 | AT114: -150 | BE114: 0 | BF114: -2422.5 | BG114: 0
A115: =IFERROR(IF($BR$13<>"",$BR$13,""),"") -> 6 | B115: =IFERROR(IF($BS$13<>"",$BS$13,""),"") -> Sam Jacob Mroki | C115: =IFERROR(IF($BT$13<>"",$BT$13,""),"") -> 31567823 | D115: =IFERROR(IF($BU$13<>"",$BU$13,""),"") -> 768942345 | AK115: 0 | AL115: 0 | AN115: 0 | AO115: 150 | AP115: 22.5 | AQ115: 0 | AR115: 150 | AT115: -150 | BE115: 0 | BF115: -2422.5 | BG115: 0
A116: =IFERROR(IF($BR$14<>"",$BR$14,""),"") -> 7 | B116: =IFERROR(IF($BS$14<>"",$BS$14,""),"") -> Joy Mueni Mutinda | C116: =IFERROR(IF($BT$14<>"",$BT$14,""),"") -> 32897938 | D116: =IFERROR(IF($BU$14<>"",$BU$14,""),"") -> 723456765 | AK116: 0 | AL116: 0 | AN116: 0 | AO116: 150 | AP116: 22.5 | AQ116: 0 | AR116: 150 | AT116: -150 | BE116: 0 | BF116: -2422.5 | BG116: 0
A117: =IFERROR(IF($BR$15<>"",$BR$15,""),"") -> 8 | B117: =IFERROR(IF($BS$15<>"",$BS$15,""),"") -> Kahindi Mwero Boga | C117: =IFERROR(IF($BT$15<>"",$BT$15,""),"") -> 2934567 | D117: =IFERROR(IF($BU$15<>"",$BU$15,""),"") -> 798654312 | AK117: 0 | AL117: 0 | AN117: 0 | AO117: 150 | AP117: 22.5 | AQ117: 0 | AR117: 150 | AT117: -150 | BE117: 0 | BF117: -2422.5 | BG117: 0
A118: =IFERROR(IF($BR$16<>"",$BR$16,""),"") -> 9 | B118: =IFERROR(IF($BS$16<>"",$BS$16,""),"") -> John Boscco Bosire | C118: =IFERROR(IF($BT$16<>"",$BT$16,""),"") -> 98347897 | D118: =IFERROR(IF($BU$16<>"",$BU$16,""),"") -> 734567128 | AK118: 0 | AL118: 0 | AN118: 0 | AO118: 150 | AP118: 22.5 | AQ118: 0 | AR118: 150 | AT118: -150 | BE118: 0 | BF118: -2422.5 | BG118: 0
A119: =IFERROR(IF($BR$17<>"",$BR$17,""),"") -> 10 | B119: =IFERROR(IF($BS$17<>"",$BS$17,""),"") -> Hassan Abdulnasir Wario | C119: =IFERROR(IF($BT$17<>"",$BT$17,""),"") -> 2156789 | D119: =IFERROR(IF($BU$17<>"",$BU$17,""),"") -> 731256789 | AK119: 0 | AL119: 0 | AN119: 0 | AO119: 150 | AP119: 22.5 | AQ119: 0 | AR119: 150 | AT119: -150 | BE119: 0 | BF119: -2422.5 | BG119: 0
A120: =IFERROR(IF($BR$18<>"",$BR$18,""),"") -> 11 | B120: =IFERROR(IF($BS$18<>"",$BS$18,""),"") -> Jastine Makemba Batogo | C120: =IFERROR(IF($BT$18<>"",$BT$18,""),"") -> 34567890 | D120: =IFERROR(IF($BU$18<>"",$BU$18,""),"") -> 786885432 | AK120: 0 | AL120: 0 | AN120: 0 | AO120: 150 | AP120: 22.5 | AQ120: 0 | AR120: 150 | AT120: -150 | BE120: 0 | BF120: -2422.5 | BG120: 0
A121: =IFERROR(IF($BR$19<>"",$BR$19,""),"") -> 12 | B121: =IFERROR(IF($BS$19<>"",$BS$19,""),"") -> Janet Wairimu Wamatagi | C121: =IFERROR(IF($BT$19<>"",$BT$19,""),"") -> 35678910 | D121: =IFERROR(IF($BU$19<>"",$BU$19,""),"") -> 745683412 | AK121: 0 | AL121: 0 | AN121: 0 | AO121: 150 | AP121: 22.5 | AQ121: 0 | AR121: 150 | AT121: -150 | BE121: 0 | BF121: -2422.5 | BG121: 0
A122: =IFERROR(IF($BR$20<>"",$BR$20,""),"") -> 13 | B122: =IFERROR(IF($BS$20<>"",$BS$20,""),"") -> Denis Brian Ochola | C122: =IFERROR(IF($BT$20<>"",$BT$20,""),"") -> 34567812 | D122: =IFERROR(IF($BU$20<>"",$BU$20,""),"") -> 798345675 | AK122: 0 | AL122: 0 | AN122: 0 | AO122: 150 | AP122: 22.5 | AQ122: 0 | AR122: 150 | AT122: -150 | BE122: 0 | BF122: -2422.5 | BG122: 0
A123: =IFERROR(IF($BR$21<>"",$BR$21,""),"") -> 14 | B123: =IFERROR(IF($BS$21<>"",$BS$21,""),"") -> Gitau Harrison Kithi | C123: =IFERROR(IF($BT$21<>"",$BT$21,""),"") -> 35267812 | D123: =IFERROR(IF($BU$21<>"",$BU$21,""),"") -> 739456712 | AK123: 0 | AL123: 0 | AN123: 0 | AO123: 150 | AP123: 22.5 | AQ123: 0 | AR123: 150 | AT123: -150 | BE123: 0 | BF123: -2422.5 | BG123: 0
A124: =IFERROR(IF($BR$22<>"",$BR$22,""),"") ->  | B124: =IFERROR(IF($BS$22<>"",$BS$22,""),"") ->  | C124: =IFERROR(IF($BT$22<>"",$BT$22,""),"") ->  | D124: =IFERROR(IF($BU$22<>"",$BU$22,""),"") ->  | AK124: 0 | AL124: 0 | AN124: 0 | AO124: 150 | AP124: 22.5 | AQ124: 0 | AR124: 150 | AT124: -150 | BE124: 0 | BF124: -2422.5 | BG124: 0
A125: =IFERROR(IF($BR$23<>"",$BR$23,""),"") ->  | B125: =IFERROR(IF($BS$23<>"",$BS$23,""),"") ->  | C125: =IFERROR(IF($BT$23<>"",$BT$23,""),"") ->  | D125: =IFERROR(IF($BU$23<>"",$BU$23,""),"") ->  | AK125: 0 | AL125: 0 | AN125: 0 | AO125: 150 | AP125: 22.5 | AQ125: 0 | AR125: 150 | AT125: -150 | BE125: 0 | BF125: -2422.5 | BG125: 0
A126: =IFERROR(IF($BR$24<>"",$BR$24,""),"") ->  | B126: =IFERROR(IF($BS$24<>"",$BS$24,""),"") ->  | C126: =IFERROR(IF($BT$24<>"",$BT$24,""),"") ->  | D126: =IFERROR(IF($BU$24<>"",$BU$24,""),"") ->  | AK126: 0 | AL126: 0 | AN126: 0 | AO126: 150 | AP126: 22.5 | AQ126: 0 | AR126: 150 | AT126: -150 | BE126: 0 | BF126: -2422.5 | BG126: 0
A127: =IFERROR(IF($BR$25<>"",$BR$25,""),"") ->  | B127: =IFERROR(IF($BS$25<>"",$BS$25,""),"") ->  | C127: =IFERROR(IF($BT$25<>"",$BT$25,""),"") ->  | D127: =IFERROR(IF($BU$25<>"",$BU$25,""),"") ->  | AK127: 0 | AL127: 0 | AN127: 0 | AO127: 150 | AP127: 22.5 | AQ127: 0 | AR127: 150 | AT127: -150 | BE127: 0 | BF127: -2422.5 | BG127: 0
A128: =IFERROR(IF($BR$26<>"",$BR$26,""),"") ->  | B128: =IFERROR(IF($BS$26<>"",$BS$26,""),"") ->  | C128: =IFERROR(IF($BT$26<>"",$BT$26,""),"") ->  | D128: =IFERROR(IF($BU$26<>"",$BU$26,""),"") ->  | AK128: 0 | AL128: 0 | AN128: 0 | AO128: 150 | AP128: 22.5 | AQ128: 0 | AR128: 150 | AT128: -150 | BE128: 0 | BF128: -2422.5 | BG128: 0
A129: =IFERROR(IF($BR$27<>"",$BR$27,""),"") ->  | B129: =IFERROR(IF($BS$27<>"",$BS$27,""),"") ->  | C129: =IFERROR(IF($BT$27<>"",$BT$27,""),"") ->  | D129: =IFERROR(IF($BU$27<>"",$BU$27,""),"") ->  | AK129: 0 | AL129: 0 | AN129: 0 | AO129: 150 | AP129: 22.5 | AQ129: 0 | AR129: 150 | AT129: -150 | BE129: 0 | BF129: -2422.5 | BG129: 0
A130: =IFERROR(IF($BR$28<>"",$BR$28,""),"") ->  | B130: =IFERROR(IF($BS$28<>"",$BS$28,""),"") ->  | C130: =IFERROR(IF($BT$28<>"",$BT$28,""),"") ->  | D130: =IFERROR(IF($BU$28<>"",$BU$28,""),"") ->  | AK130: 0 | AL130: 0 | AN130: 0 | AO130: 150 | AP130: 22.5 | AQ130: 0 | AR130: 150 | AT130: -150 | BE130: 0 | BF130: -2422.5 | BG130: 0
A131: =IFERROR(IF($BR$29<>"",$BR$29,""),"") ->  | B131: =IFERROR(IF($BS$29<>"",$BS$29,""),"") ->  | C131: =IFERROR(IF($BT$29<>"",$BT$29,""),"") ->  | D131: =IFERROR(IF($BU$29<>"",$BU$29,""),"") ->  | AK131: 0 | AL131: 0 | AN131: 0 | AO131: 150 | AP131: 22.5 | AQ131: 0 | AR131: 150 | AT131: -150 | BE131: 0 | BF131: -2422.5 | BG131: 0
A132: =IFERROR(IF($BR$30<>"",$BR$30,""),"") ->  | B132: =IFERROR(IF($BS$30<>"",$BS$30,""),"") ->  | C132: =IFERROR(IF($BT$30<>"",$BT$30,""),"") ->  | D132: =IFERROR(IF($BU$30<>"",$BU$30,""),"") ->  | AK132: 0 | AL132: 0 | AN132: 0 | AO132: 150 | AP132: 22.5 | AQ132: 0 | AR132: 150 | AT132: -150 | BE132: 0 | BF132: -2422.5 | BG132: 0
A133: =IFERROR(IF($BR$31<>"",$BR$31,""),"") ->  | B133: =IFERROR(IF($BS$31<>"",$BS$31,""),"") ->  | C133: =IFERROR(IF($BT$31<>"",$BT$31,""),"") ->  | D133: =IFERROR(IF($BU$31<>"",$BU$31,""),"") ->  | AK133: 0 | AL133: 0 | AN133: 0 | AO133: 150 | AP133: 22.5 | AQ133: 0 | AR133: 150 | AT133: -150 | BE133: 0 | BF133: -2422.5 | BG133: 0
A134: =IFERROR(IF($BR$32<>"",$BR$32,""),"") ->  | B134: =IFERROR(IF($BS$32<>"",$BS$32,""),"") ->  | C134: =IFERROR(IF($BT$32<>"",$BT$32,""),"") ->  | D134: =IFERROR(IF($BU$32<>"",$BU$32,""),"") ->  | AK134: 0 | AL134: 0 | AN134: 0 | AO134: 150 | AP134: 22.5 | AQ134: 0 | AR134: 150 | AT134: -150 | BE134: 0 | BF134: -2422.5 | BG134: 0
A135: TOTAL | AL135: =SUM(AL110:AL134) -> 0 | AM135: =SUM(AM110:AM134) -> 0 | AN135: 0 | AO135: 3750 | AP135: 562.5 | AQ135: 0 | AR135: 3750 | AS135: 0 | AT135: -3750 | AU135: 0 | AV135: 0 | AW135: 0
A142: May
A143: EMP NO: | B143: NAMES | C143: ID NO | D143: PHONE NO. | E143: RATE | F143: 1 | G143: 2 | H143: 3 | I143: 4 | J143: 5 | K143: 6 | L143: 7 | M143: 8 | N143: 9 | O143: 10 | P143: 11 | Q143: 12 | R143: 13 | S143: 14 | T143: 15 | U143: 16 | V143: 17 | W143: 18 | X143: 19 | Y143: 20 | Z143: 21 | AA143: 22 | AB143: 23 | AC143: 24 | AD143: 25 | AE143: 26 | AF143: 27 | AG143: 28 | AH143: 29 | AI143: 30 | AJ143: 31 | AK143: TOTAL DAYS | AL143: BASIC PAY | AM143: ADVANCE | AN143: PAYEE | AO143: NHIF | AP143: NHIF RELIEF | AQ143: NSSF | AR143: TOTAL-D | AS143: LOAN REPAYMENT | AT143: NET PAYABLE | AU143: LEAVE DAYS | AV143: PAID END MONTH | AW143: NITA | BE143: Basic Salary for Paye
A144: =IFERROR(IF($BR$8<>"",$BR$8,""),"") -> 1 | B144: =IFERROR(IF($BS$8<>"",$BS$8,""),"") -> Brian Kombe Gode | C144: =IFERROR(IF($BT$8<>"",$BT$8,""),"") -> 334567890 | D144: =IFERROR(IF($BU$8<>"",$BU$8,""),"") -> 7896543 | AK144: =IFERROR(SUM(F144:AJ144)+AU144,0) -> 0 | AL144: =IFERROR(E144*AK144,0) -> 0 | AN144: =BG144 -> 0 | AO144: =IFERROR(VLOOKUP(AL144,$BH$24:$BI$40,2,TRUE),0) -> 150 | AP144: =AO144*0.15 -> 22.5 | AQ144: =IF(AL144>=18000,1080,AL144*0.06) -> 0 | AR144: =IFERROR(AO144+AQ144,0) -> 150 | AT144: =AL144-AM144-AN144-AO144-AQ144-AS144 -> -150 | BE144: =AL144-AQ144 -> 0 | BF144: =(IFERROR(IF((BE144-$BH$10)>1,$BH$10*$BI$10,0)+IF((BE144-$BH$10)>$BH$11,$BH$11*$BI$11,IF(AND((BE144-$BH$10)<$BH$11,(BE144-$BH$10)>0),((BE144-$BH$10)/$BH$11*($BH$11*$BI$11)),0))+IF((BE144-$BH$10-$BH$11)>$BH$12,(BE144-$BH$12)*$BI$12,IF(AND((BE144-$BH$10-$BH$11)<$BH$12,(BE144-$BH$10-$BH$11)>0),((BE144-$BH$10-$BH$11)/$BH$12*($BH$12*$BI$12)),0)),0))-2400-AP144 -> -2422.5 | BG144: =IFERROR(IF(BF144<=0,0,BF144),0) -> 0
A145: =IFERROR(IF($BR$9<>"",$BR$9,""),"") -> 2 | B145: =IFERROR(IF($BS$9<>"",$BS$9,""),"") -> Timothy Brian Odongo | C145: =IFERROR(IF($BT$9<>"",$BT$9,""),"") -> 2345671 | D145: =IFERROR(IF($BU$9<>"",$BU$9,""),"") -> 737456712 | AK145: =IFERROR(SUM(F145:AJ145)+AU145,0) -> 0 | AL145: =IFERROR(E145*AK145,0) -> 0 | AN145: =BG145 -> 0 | AO145: 150 | AP145: =AO145*0.15 -> 22.5 | AQ145: =IF(AL145>=18000,1080,AL145*0.06) -> 0 | AR145: =IFERROR(AO145+AQ145,0) -> 150 | AT145: =AL145-AM145-AN145-AO145-AQ145 -> -150 | BE145: 0 | BF145: -2422.5 | BG145: =IFERROR(IF(BF145<=0,0,BF145),0) -> 0
A146: =IFERROR(IF($BR$10<>"",$BR$10,""),"") -> 3 | B146: =IFERROR(IF($BS$10<>"",$BS$10,""),"") -> Bshora Wayu Nzamo | C146: =IFERROR(IF($BT$10<>"",$BT$10,""),"") -> 29675430 | D146: =IFERROR(IF($BU$10<>"",$BU$10,""),"") -> 734567820 | AK146: 0 | AL146: 0 | AN146: 0 | AO146: 150 | AP146: 22.5 | AQ146: 0 | AR146: 150 | AT146: -150 | BE146: 0 | BF146: -2422.5 | BG146: 0
A147: =IFERROR(IF($BR$11<>"",$BR$11,""),"") -> 4 | B147: =IFERROR(IF($BS$11<>"",$BS$11,""),"") -> Wanyoni Agala Musando | C147: =IFERROR(IF($BT$11<>"",$BT$11,""),"") -> 33456789 | D147: =IFERROR(IF($BU$11<>"",$BU$11,""),"") -> 786543221 | AK147: 0 | AL147: 0 | AN147: 0 | AO147: 150 | AP147: 22.5 | AQ147: 0 | AR147: 150 | AT147: -150 | BE147: 0 | BF147: -2422.5 | BG147: 0
A148: =IFERROR(IF($BR$12<>"",$BR$12,""),"") -> 5 | B148: =IFERROR(IF($BS$12<>"",$BS$12,""),"") -> Benerd Kimani Njorioge | C148: =IFERROR(IF($BT$12<>"",$BT$12,""),"") -> 30456789 | D148: =IFERROR(IF($BU$12<>"",$BU$12,""),"") -> 789654321 | AK148: 0 | AL148: 0 | AN148: 0 | AO148: 150 | AP148: 22.5 | AQ148: 0 | AR148: 150 | AT148: -150 | BE148: 0 | BF148: -2422.5 | BG148: 0
A149: =IFERROR(IF($BR$13<>"",$BR$13,""),"") -> 6 | B149: =IFERROR(IF($BS$13<>"",$BS$13,""),"") -> Sam Jacob Mroki | C149: =IFERROR(IF($BT$13<>"",$BT$13,""),"") -> 31567823 | D149: =IFERROR(IF($BU$13<>"",$BU$13,""),"") -> 768942345 | AK149: 0 | AL149: 0 | AN149: 0 | AO149: 150 | AP149: 22.5 | AQ149: 0 | AR149: 150 | AT149: -150 | BE149: 0 | BF149: -2422.5 | BG149: 0
A150: =IFERROR(IF($BR$14<>"",$BR$14,""),"") -> 7 | B150: =IFERROR(IF($BS$14<>"",$BS$14,""),"") -> Joy Mueni Mutinda | C150: =IFERROR(IF($BT$14<>"",$BT$14,""),"") -> 32897938 | D150: =IFERROR(IF($BU$14<>"",$BU$14,""),"") -> 723456765 | AK150: 0 | AL150: 0 | AN150: 0 | AO150: 150 | AP150: 22.5 | AQ150: 0 | AR150: 150 | AT150: -150 | BE150: 0 | BF150: -2422.5 | BG150: 0
A151: =IFERROR(IF($BR$15<>"",$BR$15,""),"") -> 8 | B151: =IFERROR(IF($BS$15<>"",$BS$15,""),"") -> Kahindi Mwero Boga | C151: =IFERROR(IF($BT$15<>"",$BT$15,""),"") -> 2934567 | D151: =IFERROR(IF($BU$15<>"",$BU$15,""),"") -> 798654312 | AK151: 0 | AL151: 0 | AN151: 0 | AO151: 150 | AP151: 22.5 | AQ151: 0 | AR151: 150 | AT151: -150 | BE151: 0 | BF151: -2422.5 | BG151: 0
A152: =IFERROR(IF($BR$16<>"",$BR$16,""),"") -> 9 | B152: =IFERROR(IF($BS$16<>"",$BS$16,""),"") -> John Boscco Bosire | C152: =IFERROR(IF($BT$16<>"",$BT$16,""),"") -> 98347897 | D152: =IFERROR(IF($BU$16<>"",$BU$16,""),"") -> 734567128 | AK152: 0 | AL152: 0 | AN152: 0 | AO152: 150 | AP152: 22.5 | AQ152: 0 | AR152: 150 | AT152: -150 | BE152: 0 | BF152: -2422.5 | BG152: 0
A153: =IFERROR(IF($BR$17<>"",$BR$17,""),"") -> 10 | B153: =IFERROR(IF($BS$17<>"",$BS$17,""),"") -> Hassan Abdulnasir Wario | C153: =IFERROR(IF($BT$17<>"",$BT$17,""),"") -> 2156789 | D153: =IFERROR(IF($BU$17<>"",$BU$17,""),"") -> 731256789 | AK153: 0 | AL153: 0 | AN153: 0 | AO153: 150 | AP153: 22.5 | AQ153: 0 | AR153: 150 | AT153: -150 | BE153: 0 | BF153: -2422.5 | BG153: 0
A154: =IFERROR(IF($BR$18<>"",$BR$18,""),"") -> 11 | B154: =IFERROR(IF($BS$18<>"",$BS$18,""),"") -> Jastine Makemba Batogo | C154: =IFERROR(IF($BT$18<>"",$BT$18,""),"") -> 34567890 | D154: =IFERROR(IF($BU$18<>"",$BU$18,""),"") -> 786885432 | AK154: 0 | AL154: 0 | AN154: 0 | AO154: 150 | AP154: 22.5 | AQ154: 0 | AR154: 150 | AT154: -150 | BE154: 0 | BF154: -2422.5 | BG154: 0
A155: =IFERROR(IF($BR$19<>"",$BR$19,""),"") -> 12 | B155: =IFERROR(IF($BS$19<>"",$BS$19,""),"") -> Janet Wairimu Wamatagi | C155: =IFERROR(IF($BT$19<>"",$BT$19,""),"") -> 35678910 | D155: =IFERROR(IF($BU$19<>"",$BU$19,""),"") -> 745683412 | AK155: 0 | AL155: 0 | AN155: 0 | AO155: 150 | AP155: 22.5 | AQ155: 0 | AR155: 150 | AT155: -150 | BE155: 0 | BF155: -2422.5 | BG155: 0
A156: =IFERROR(IF($BR$20<>"",$BR$20,""),"") -> 13 | B156: =IFERROR(IF($BS$20<>"",$BS$20,""),"") -> Denis Brian Ochola | C156: =IFERROR(IF($BT$20<>"",$BT$20,""),"") -> 34567812 | D156: =IFERROR(IF($BU$20<>"",$BU$20,""),"") -> 798345675 | AK156: 0 | AL156: 0 | AN156: 0 | AO156: 150 | AP156: 22.5 | AQ156: 0 | AR156: 150 | AT156: -150 | BE156: 0 | BF156: -2422.5 | BG156: 0
A157: =IFERROR(IF($BR$21<>"",$BR$21,""),"") -> 14 | B157: =IFERROR(IF($BS$21<>"",$BS$21,""),"") -> Gitau Harrison Kithi | C157: =IFERROR(IF($BT$21<>"",$BT$21,""),"") -> 35267812 | D157: =IFERROR(IF($BU$21<>"",$BU$21,""),"") -> 739456712 | AK157: 0 | AL157: 0 | AN157: 0 | AO157: 150 | AP157: 22.5 | AQ157: 0 | AR157: 150 | AT157: -150 | BE157: 0 | BF157: -2422.5 | BG157: 0
A158: =IFERROR(IF($BR$22<>"",$BR$22,""),"") ->  | B158: =IFERROR(IF($BS$22<>"",$BS$22,""),"") ->  | C158: =IFERROR(IF($BT$22<>"",$BT$22,""),"") ->  | D158: =IFERROR(IF($BU$22<>"",$BU$22,""),"") ->  | AK158: 0 | AL158: 0 | AN158: 0 | AO158: 150 | AP158: 22.5 | AQ158: 0 | AR158: 150 | AT158: -150 | BE158: 0 | BF158: -2422.5 | BG158: 0
A159: =IFERROR(IF($BR$23<>"",$BR$23,""),"") ->  | B159: =IFERROR(IF($BS$23<>"",$BS$23,""),"") ->  | C159: =IFERROR(IF($BT$23<>"",$BT$23,""),"") ->  | D159: =IFERROR(IF($BU$23<>"",$BU$23,""),"") ->  | AK159: 0 | AL159: 0 | AN159: 0 | AO159: 150 | AP159: 22.5 | AQ159: 0 | AR159: 150 | AT159: -150 | BE159: 0 | BF159: -2422.5 | BG159: 0
A160: =IFERROR(IF($BR$24<>"",$BR$24,""),"") ->  | B160: =IFERROR(IF($BS$24<>"",$BS$24,""),"") ->  | C160: =IFERROR(IF($BT$24<>"",$BT$24,""),"") ->  | D160: =IFERROR(IF($BU$24<>"",$BU$24,""),"") ->  | AK160: 0 | AL160: 0 | AN160: 0 | AO160: 150 | AP160: 22.5 | AQ160: 0 | AR160: 150 | AT160: -150 | BE160: 0 | BF160: -2422.5 | BG160: 0
A161: =IFERROR(IF($BR$25<>"",$BR$25,""),"") ->  | B161: =IFERROR(IF($BS$25<>"",$BS$25,""),"") ->  | C161: =IFERROR(IF($BT$25<>"",$BT$25,""),"") ->  | D161: =IFERROR(IF($BU$25<>"",$BU$25,""),"") ->  | AK161: 0 | AL161: 0 | AN161: 0 | AO161: 150 | AP161: 22.5 | AQ161: 0 | AR161: 150 | AT161: -150 | BE161: 0 | BF161: -2422.5 | BG161: 0
A162: =IFERROR(IF($BR$26<>"",$BR$26,""),"") ->  | B162: =IFERROR(IF($BS$26<>"",$BS$26,""),"") ->  | C162: =IFERROR(IF($BT$26<>"",$BT$26,""),"") ->  | D162: =IFERROR(IF($BU$26<>"",$BU$26,""),"") ->  | AK162: 0 | AL162: 0 | AN162: 0 | AO162: 150 | AP162: 22.5 | AQ162: 0 | AR162: 150 | AT162: -150 | BE162: 0 | BF162: -2422.5 | BG162: 0
A163: =IFERROR(IF($BR$27<>"",$BR$27,""),"") ->  | B163: =IFERROR(IF($BS$27<>"",$BS$27,""),"") ->  | C163: =IFERROR(IF($BT$27<>"",$BT$27,""),"") ->  | D163: =IFERROR(IF($BU$27<>"",$BU$27,""),"") ->  | AK163: 0 | AL163: 0 | AN163: 0 | AO163: 150 | AP163: 22.5 | AQ163: 0 | AR163: 150 | AT163: -150 | BE163: 0 | BF163: -2422.5 | BG163: 0
A164: =IFERROR(IF($BR$28<>"",$BR$28,""),"") ->  | B164: =IFERROR(IF($BS$28<>"",$BS$28,""),"") ->  | C164: =IFERROR(IF($BT$28<>"",$BT$28,""),"") ->  | D164: =IFERROR(IF($BU$28<>"",$BU$28,""),"") ->  | AK164: 0 | AL164: 0 | AN164: 0 | AO164: 150 | AP164: 22.5 | AQ164: 0 | AR164: 150 | AT164: -150 | BE164: 0 | BF164: -2422.5 | BG164: 0
A165: =IFERROR(IF($BR$29<>"",$BR$29,""),"") ->  | B165: =IFERROR(IF($BS$29<>"",$BS$29,""),"") ->  | C165: =IFERROR(IF($BT$29<>"",$BT$29,""),"") ->  | D165: =IFERROR(IF($BU$29<>"",$BU$29,""),"") ->  | AK165: 0 | AL165: 0 | AN165: 0 | AO165: 150 | AP165: 22.5 | AQ165: 0 | AR165: 150 | AT165: -150 | BE165: 0 | BF165: -2422.5 | BG165: 0
A166: =IFERROR(IF($BR$30<>"",$BR$30,""),"") ->  | B166: =IFERROR(IF($BS$30<>"",$BS$30,""),"") ->  | C166: =IFERROR(IF($BT$30<>"",$BT$30,""),"") ->  | D166: =IFERROR(IF($BU$30<>"",$BU$30,""),"") ->  | AK166: 0 | AL166: 0 | AN166: 0 | AO166: 150 | AP166: 22.5 | AQ166: 0 | AR166: 150 | AT166: -150 | BE166: 0 | BF166: -2422.5 | BG166: 0
A167: =IFERROR(IF($BR$31<>"",$BR$31,""),"") ->  | B167: =IFERROR(IF($BS$31<>"",$BS$31,""),"") ->  | C167: =IFERROR(IF($BT$31<>"",$BT$31,""),"") ->  | D167: =IFERROR(IF($BU$31<>"",$BU$31,""),"") ->  | AK167: 0 | AL167: 0 | AN167: 0 | AO167: 150 | AP167: 22.5 | AQ167: 0 | AR167: 150 | AT167: -150 | BE167: 0 | BF167: -2422.5 | BG167: 0
A168: =IFERROR(IF($BR$32<>"",$BR$32,""),"") ->  | B168: =IFERROR(IF($BS$32<>"",$BS$32,""),"") ->  | C168: =IFERROR(IF($BT$32<>"",$BT$32,""),"") ->  | D168: =IFERROR(IF($BU$32<>"",$BU$32,""),"") ->  | AK168: 0 | AL168: 0 | AN168: 0 | AO168: 150 | AP168: 22.5 | AQ168: 0 | AR168: 150 | AT168: -150 | BE168: 0 | BF168: -2422.5 | BG168: 0
A169: TOTAL | AL169: =SUM(AL144:AL168) -> 0 | AM169: =SUM(AM144:AM168) -> 0 | AN169: 0 | AO169: 3750 | AP169: 562.5 | AQ169: 0 | AR169: 3750 | AS169: 0 | AT169: -3750 | AU169: 0 | AV169: 0 | AW169: 0
A176: June
A177: EMP NO: | B177: NAMES | C177: ID NO | D177: PHONE NO. | E177: RATE | F177: 1 | G177: 2 | H177: 3 | I177: 4 | J177: 5 | K177: 6 | L177: 7 | M177: 8 | N177: 9 | O177: 10 | P177: 11 | Q177: 12 | R177: 13 | S177: 14 | T177: 15 | U177: 16 | V177: 17 | W177: 18 | X177: 19 | Y177: 20 | Z177: 21 | AA177: 22 | AB177: 23 | AC177: 24 | AD177: 25 | AE177: 26 | AF177: 27 | AG177: 28 | AH177: 29 | AI177: 30 | AJ177: 31 | AK177: TOTAL DAYS | AL177: BASIC PAY | AM177: ADVANCE | AN177: PAYEE | AO177: NHIF | AP177: NHIF RELIEF | AQ177: NSSF | AR177: TOTAL-D | AS177: LOAN REPAYMENT | AT177: NET PAYABLE | AU177: LEAVE DAYS | AV177: PAID END MONTH | AW177: NITA | BE177: Basic Salary for Paye
A178: =IFERROR(IF($BR$8<>"",$BR$8,""),"") -> 1 | B178: =IFERROR(IF($BS$8<>"",$BS$8,""),"") -> Brian Kombe Gode | C178: =IFERROR(IF($BT$8<>"",$BT$8,""),"") -> 334567890 | D178: =IFERROR(IF($BU$8<>"",$BU$8,""),"") -> 7896543 | AK178: =IFERROR(SUM(F178:AJ178)+AU178,0) -> 0 | AL178: =IFERROR(E178*AK178,0) -> 0 | AN178: =BG178 -> 0 | AO178: =IFERROR(VLOOKUP(AL178,$BH$24:$BI$40,2,TRUE),0) -> 150 | AP178: =AO178*0.15 -> 22.5 | AQ178: =IF(AL178>=18000,1080,AL178*0.06) -> 0 | AR178: =IFERROR(AO178+AQ178,0) -> 150 | AT178: =AL178-AM178-AN178-AO178-AQ178-AS178 -> -150 | BE178: =AL178-AQ178 -> 0 | BF178: =(IFERROR(IF((BE178-$BH$10)>1,$BH$10*$BI$10,0)+IF((BE178-$BH$10)>$BH$11,$BH$11*$BI$11,IF(AND((BE178-$BH$10)<$BH$11,(BE178-$BH$10)>0),((BE178-$BH$10)/$BH$11*($BH$11*$BI$11)),0))+IF((BE178-$BH$10-$BH$11)>$BH$12,(BE178-$BH$12)*$BI$12,IF(AND((BE178-$BH$10-$BH$11)<$BH$12,(BE178-$BH$10-$BH$11)>0),((BE178-$BH$10-$BH$11)/$BH$12*($BH$12*$BI$12)),0)),0))-2400-AP178 -> -2422.5 | BG178: =IFERROR(IF(BF178<=0,0,BF178),0) -> 0
A179: =IFERROR(IF($BR$9<>"",$BR$9,""),"") -> 2 | B179: =IFERROR(IF($BS$9<>"",$BS$9,""),"") -> Timothy Brian Odongo | C179: =IFERROR(IF($BT$9<>"",$BT$9,""),"") -> 2345671 | D179: =IFERROR(IF($BU$9<>"",$BU$9,""),"") -> 737456712 | AK179: =IFERROR(SUM(F179:AJ179)+AU179,0) -> 0 | AL179: =IFERROR(E179*AK179,0) -> 0 | AN179: =BG179 -> 0 | AO179: 150 | AP179: =AO179*0.15 -> 22.5 | AQ179: =IF(AL179>=18000,1080,AL179*0.06) -> 0 | AR179: =IFERROR(AO179+AQ179,0) -> 150 | AT179: =AL179-AM179-AN179-AO179-AQ179 -> -150 | BE179: 0 | BF179: -2422.5 | BG179: =IFERROR(IF(BF179<=0,0,BF179),0) -> 0
A180: =IFERROR(IF($BR$10<>"",$BR$10,""),"") -> 3 | B180: =IFERROR(IF($BS$10<>"",$BS$10,""),"") -> Bshora Wayu Nzamo | C180: =IFERROR(IF($BT$10<>"",$BT$10,""),"") -> 29675430 | D180: =IFERROR(IF($BU$10<>"",$BU$10,""),"") -> 734567820 | AK180: 0 | AL180: 0 | AN180: 0 | AO180: 150 | AP180: 22.5 | AQ180: 0 | AR180: 150 | AT180: -150 | BE180: 0 | BF180: -2422.5 | BG180: 0
A181: =IFERROR(IF($BR$11<>"",$BR$11,""),"") -> 4 | B181: =IFERROR(IF($BS$11<>"",$BS$11,""),"") -> Wanyoni Agala Musando | C181: =IFERROR(IF($BT$11<>"",$BT$11,""),"") -> 33456789 | D181: =IFERROR(IF($BU$11<>"",$BU$11,""),"") -> 786543221 | AK181: 0 | AL181: 0 | AN181: 0 | AO181: 150 | AP181: 22.5 | AQ181: 0 | AR181: 150 | AT181: -150 | BE181: 0 | BF181: -2422.5 | BG181: 0
A182: =IFERROR(IF($BR$12<>"",$BR$12,""),"") -> 5 | B182: =IFERROR(IF($BS$12<>"",$BS$12,""),"") -> Benerd Kimani Njorioge | C182: =IFERROR(IF($BT$12<>"",$BT$12,""),"") -> 30456789 | D182: =IFERROR(IF($BU$12<>"",$BU$12,""),"") -> 789654321 | AK182: 0 | AL182: 0 | AN182: 0 | AO182: 150 | AP182: 22.5 | AQ182: 0 | AR182: 150 | AT182: -150 | BE182: 0 | BF182: -2422.5 | BG182: 0
A183: =IFERROR(IF($BR$13<>"",$BR$13,""),"") -> 6 | B183: =IFERROR(IF($BS$13<>"",$BS$13,""),"") -> Sam Jacob Mroki | C183: =IFERROR(IF($BT$13<>"",$BT$13,""),"") -> 31567823 | D183: =IFERROR(IF($BU$13<>"",$BU$13,""),"") -> 768942345 | AK183: 0 | AL183: 0 | AN183: 0 | AO183: 150 | AP183: 22.5 | AQ183: 0 | AR183: 150 | AT183: -150 | BE183: 0 | BF183: -2422.5 | BG183: 0
A184: =IFERROR(IF($BR$14<>"",$BR$14,""),"") -> 7 | B184: =IFERROR(IF($BS$14<>"",$BS$14,""),"") -> Joy Mueni Mutinda | C184: =IFERROR(IF($BT$14<>"",$BT$14,""),"") -> 32897938 | D184: =IFERROR(IF($BU$14<>"",$BU$14,""),"") -> 723456765 | AK184: 0 | AL184: 0 | AN184: 0 | AO184: 150 | AP184: 22.5 | AQ184: 0 | AR184: 150 | AT184: -150 | BE184: 0 | BF184: -2422.5 | BG184: 0
A185: =IFERROR(IF($BR$15<>"",$BR$15,""),"") -> 8 | B185: =IFERROR(IF($BS$15<>"",$BS$15,""),"") -> Kahindi Mwero Boga | C185: =IFERROR(IF($BT$15<>"",$BT$15,""),"") -> 2934567 | D185: =IFERROR(IF($BU$15<>"",$BU$15,""),"") -> 798654312 | AK185: 0 | AL185: 0 | AN185: 0 | AO185: 150 | AP185: 22.5 | AQ185: 0 | AR185: 150 | AT185: -150 | BE185: 0 | BF185: -2422.5 | BG185: 0
A186: =IFERROR(IF($BR$16<>"",$BR$16,""),"") -> 9 | B186: =IFERROR(IF($BS$16<>"",$BS$16,""),"") -> John Boscco Bosire | C186: =IFERROR(IF($BT$16<>"",$BT$16,""),"") -> 98347897 | D186: =IFERROR(IF($BU$16<>"",$BU$16,""),"") -> 734567128 | AK186: 0 | AL186: 0 | AN186: 0 | AO186: 150 | AP186: 22.5 | AQ186: 0 | AR186: 150 | AT186: -150 | BE186: 0 | BF186: -2422.5 | BG186: 0
A187: =IFERROR(IF($BR$17<>"",$BR$17,""),"") -> 10 | B187: =IFERROR(IF($BS$17<>"",$BS$17,""),"") -> Hassan Abdulnasir Wario | C187: =IFERROR(IF($BT$17<>"",$BT$17,""),"") -> 2156789 | D187: =IFERROR(IF($BU$17<>"",$BU$17,""),"") -> 731256789 | AK187: 0 | AL187: 0 | AN187: 0 | AO187: 150 | AP187: 22.5 | AQ187: 0 | AR187: 150 | AT187: -150 | BE187: 0 | BF187: -2422.5 | BG187: 0
A188: =IFERROR(IF($BR$18<>"",$BR$18,""),"") -> 11 | B188: =IFERROR(IF($BS$18<>"",$BS$18,""),"") -> Jastine Makemba Batogo | C188: =IFERROR(IF($BT$18<>"",$BT$18,""),"") -> 34567890 | D188: =IFERROR(IF($BU$18<>"",$BU$18,""),"") -> 786885432 | AK188: 0 | AL188: 0 | AN188: 0 | AO188: 150 | AP188: 22.5 | AQ188: 0 | AR188: 150 | AT188: -150 | BE188: 0 | BF188: -2422.5 | BG188: 0
A189: =IFERROR(IF($BR$19<>"",$BR$19,""),"") -> 12 | B189: =IFERROR(IF($BS$19<>"",$BS$19,""),"") -> Janet Wairimu Wamatagi | C189: =IFERROR(IF($BT$19<>"",$BT$19,""),"") -> 35678910 | D189: =IFERROR(IF($BU$19<>"",$BU$19,""),"") -> 745683412 | AK189: 0 | AL189: 0 | AN189: 0 | AO189: 150 | AP189: 22.5 | AQ189: 0 | AR189: 150 | AT189: -150 | BE189: 0 | BF189: -2422.5 | BG189: 0
A190: =IFERROR(IF($BR$20<>"",$BR$20,""),"") -> 13 | B190: =IFERROR(IF($BS$20<>"",$BS$20,""),"") -> Denis Brian Ochola | C190: =IFERROR(IF($BT$20<>"",$BT$20,""),"") -> 34567812 | D190: =IFERROR(IF($BU$20<>"",$BU$20,""),"") -> 798345675 | AK190: 0 | AL190: 0 | AN190: 0 | AO190: 150 | AP190: 22.5 | AQ190: 0 | AR190: 150 | AT190: -150 | BE190: 0 | BF190: -2422.5 | BG190: 0
A191: =IFERROR(IF($BR$21<>"",$BR$21,""),"") -> 14 | B191: =IFERROR(IF($BS$21<>"",$BS$21,""),"") -> Gitau Harrison Kithi | C191: =IFERROR(IF($BT$21<>"",$BT$21,""),"") -> 35267812 | D191: =IFERROR(IF($BU$21<>"",$BU$21,""),"") -> 739456712 | AK191: 0 | AL191: 0 | AN191: 0 | AO191: 150 | AP191: 22.5 | AQ191: 0 | AR191: 150 | AT191: -150 | BE191: 0 | BF191: -2422.5 | BG191: 0
A192: =IFERROR(IF($BR$22<>"",$BR$22,""),"") ->  | B192: =IFERROR(IF($BS$22<>"",$BS$22,""),"") ->  | C192: =IFERROR(IF($BT$22<>"",$BT$22,""),"") ->  | D192: =IFERROR(IF($BU$22<>"",$BU$22,""),"") ->  | AK192: 0 | AL192: 0 | AN192: 0 | AO192: 150 | AP192: 22.5 | AQ192: 0 | AR192: 150 | AT192: -150 | BE192: 0 | BF192: -2422.5 | BG192: 0
A193: =IFERROR(IF($BR$23<>"",$BR$23,""),"") ->  | B193: =IFERROR(IF($BS$23<>"",$BS$23,""),"") ->  | C193: =IFERROR(IF($BT$23<>"",$BT$23,""),"") ->  | D193: =IFERROR(IF($BU$23<>"",$BU$23,""),"") ->  | AK193: 0 | AL193: 0 | AN193: 0 | AO193: 150 | AP193: 22.5 | AQ193: 0 | AR193: 150 | AT193: -150 | BE193: 0 | BF193: -2422.5 | BG193: 0
A194: =IFERROR(IF($BR$24<>"",$BR$24,""),"") ->  | B194: =IFERROR(IF($BS$24<>"",$BS$24,""),"") ->  | C194: =IFERROR(IF($BT$24<>"",$BT$24,""),"") ->  | D194: =IFERROR(IF($BU$24<>"",$BU$24,""),"") ->  | AK194: 0 | AL194: 0 | AN194: 0 | AO194: 150 | AP194: 22.5 | AQ194: 0 | AR194: 150 | AT194: -150 | BE194: 0 | BF194: -2422.5 | BG194: 0
A195: =IFERROR(IF($BR$25<>"",$BR$25,""),"") ->  | B195: =IFERROR(IF($BS$25<>"",$BS$25,""),"") ->  | C195: =IFERROR(IF($BT$25<>"",$BT$25,""),"") ->  | D195: =IFERROR(IF($BU$25<>"",$BU$25,""),"") ->  | AK195: 0 | AL195: 0 | AN195: 0 | AO195: 150 | AP195: 22.5 | AQ195: 0 | AR195: 150 | AT195: -150 | BE195: 0 | BF195: -2422.5 | BG195: 0
A196: =IFERROR(IF($BR$26<>"",$BR$26,""),"") ->  | B196: =IFERROR(IF($BS$26<>"",$BS$26,""),"") ->  | C196: =IFERROR(IF($BT$26<>"",$BT$26,""),"") ->  | D196: =IFERROR(IF($BU$26<>"",$BU$26,""),"") ->  | AK196: 0 | AL196: 0 | AN196: 0 | AO196: 150 | AP196: 22.5 | AQ196: 0 | AR196: 150 | AT196: -150 | BE196: 0 | BF196: -2422.5 | BG196: 0
A197: =IFERROR(IF($BR$27<>"",$BR$27,""),"") ->  | B197: =IFERROR(IF($BS$27<>"",$BS$27,""),"") ->  | C197: =IFERROR(IF($BT$27<>"",$BT$27,""),"") ->  | D197: =IFERROR(IF($BU$27<>"",$BU$27,""),"") ->  | AK197: 0 | AL197: 0 | AN197: 0 | AO197: 150 | AP197: 22.5 | AQ197: 0 | AR197: 150 | AT197: -150 | BE197: 0 | BF197: -2422.5 | BG197: 0
A198: =IFERROR(IF($BR$28<>"",$BR$28,""),"") ->  | B198: =IFERROR(IF($BS$28<>"",$BS$28,""),"") ->  | C198: =IFERROR(IF($BT$28<>"",$BT$28,""),"") ->  | D198: =IFERROR(IF($BU$28<>"",$BU$28,""),"") ->  | AK198: 0 | AL198: 0 | AN198: 0 | AO198: 150 | AP198: 22.5 | AQ198: 0 | AR198: 150 | AT198: -150 | BE198: 0 | BF198: -2422.5 | BG198: 0
A199: =IFERROR(IF($BR$29<>"",$BR$29,""),"") ->  | B199: =IFERROR(IF($BS$29<>"",$BS$29,""),"") ->  | C199: =IFERROR(IF($BT$29<>"",$BT$29,""),"") ->  | D199: =IFERROR(IF($BU$29<>"",$BU$29,""),"") ->  | AK199: 0 | AL199: 0 | AN199: 0 | AO199: 150 | AP199: 22.5 | AQ199: 0 | AR199: 150 | AT199: -150 | BE199: 0 | BF199: -2422.5 | BG199: 0
A200: =IFERROR(IF($BR$30<>"",$BR$30,""),"") ->  | B200: =IFERROR(IF($BS$30<>"",$BS$30,""),"") ->  | C200: =IFERROR(IF($BT$30<>"",$BT$30,""),"") ->  | D200: =IFERROR(IF($BU$30<>"",$BU$30,""),"") ->  | AK200: 0 | AL200: 0 | AN200: 0 | AO200: 150 | AP200: 22.5 | AQ200: 0 | AR200: 150 | AT200: -150 | BE200: 0 | BF200: -2422.5 | BG200: 0
A201: =IFERROR(IF($BR$31<>"",$BR$31,""),"") ->  | B201: =IFERROR(IF($BS$31<>"",$BS$31,""),"") ->  | C201: =IFERROR(IF($BT$31<>"",$BT$31,""),"") ->  | D201: =IFERROR(IF($BU$31<>"",$BU$31,""),"") ->  | AK201: 0 | AL201: 0 | AN201: 0 | AO201: 150 | AP201: 22.5 | AQ201: 0 | AR201: 150 | AT201: -150 | BE201: 0 | BF201: -2422.5 | BG201: 0
A202: =IFERROR(IF($BR$32<>"",$BR$32,""),"") ->  | B202: =IFERROR(IF($BS$32<>"",$BS$32,""),"") ->  | C202: =IFERROR(IF($BT$32<>"",$BT$32,""),"") ->  | D202: =IFERROR(IF($BU$32<>"",$BU$32,""),"") ->  | AK202: 0 | AL202: 0 | AN202: 0 | AO202: 150 | AP202: 22.5 | AQ202: 0 | AR202: 150 | AT202: -150 | BE202: 0 | BF202: -2422.5 | BG202: 0
A203: TOTAL | AL203: =SUM(AL178:AL202) -> 0 | AM203: =SUM(AM178:AM202) -> 0 | AN203: 0 | AO203: 3750 | AP203: 562.5 | AQ203: 0 | AR203: 3750 | AS203: 0 | AT203: -3750 | AU203: 0 | AV203: 0 | AW203: 0
A210: July
A211: EMP NO: | B211: NAMES | C211: ID NO | D211: PHONE NO. | E211: RATE | F211: 1 | G211: 2 | H211: 3 | I211: 4 | J211: 5 | K211: 6 | L211: 7 | M211: 8 | N211: 9 | O211: 10 | P211: 11 | Q211: 12 | R211: 13 | S211: 14 | T211: 15 | U211: 16 | V211: 17 | W211: 18 | X211: 19 | Y211: 20 | Z211: 21 | AA211: 22 | AB211: 23 | AC211: 24 | AD211: 25 | AE211: 26 | AF211: 27 | AG211: 28 | AH211: 29 | AI211: 30 | AJ211: 31 | AK211: TOTAL DAYS | AL211: BASIC PAY | AM211: ADVANCE | AN211: PAYEE | AO211: NHIF | AP211: NHIF RELIEF | AQ211: NSSF | AR211: TOTAL-D | AS211: LOAN REPAYMENT | AT211: NET PAYABLE | AU211: LEAVE DAYS | AV211: PAID END MONTH | AW211: NITA | BE211: Basic Salary for Paye
A212: =IFERROR(IF($BR$8<>"",$BR$8,""),"") -> 1 | B212: =IFERROR(IF($BS$8<>"",$BS$8,""),"") -> Brian Kombe Gode | C212: =IFERROR(IF($BT$8<>"",$BT$8,""),"") -> 334567890 | D212: =IFERROR(IF($BU$8<>"",$BU$8,""),"") -> 7896543 | AK212: =IFERROR(SUM(F212:AJ212)+AU212,0) -> 0 | AL212: =IFERROR(E212*AK212,0) -> 0 | AN212: =BG212 -> 0 | AO212: =IFERROR(VLOOKUP(AL212,$BH$24:$BI$40,2,TRUE),0) -> 150 | AP212: =AO212*0.15 -> 22.5 | AQ212: =IF(AL212>=18000,1080,AL212*0.06) -> 0 | AR212: =IFERROR(AO212+AQ212,0) -> 150 | AT212: =AL212-AM212-AN212-AO212-AQ212-AS212 -> -150 | BE212: =AL212-AQ212 -> 0 | BF212: =(IFERROR(IF((BE212-$BH$10)>1,$BH$10*$BI$10,0)+IF((BE212-$BH$10)>$BH$11,$BH$11*$BI$11,IF(AND((BE212-$BH$10)<$BH$11,(BE212-$BH$10)>0),((BE212-$BH$10)/$BH$11*($BH$11*$BI$11)),0))+IF((BE212-$BH$10-$BH$11)>$BH$12,(BE212-$BH$12)*$BI$12,IF(AND((BE212-$BH$10-$BH$11)<$BH$12,(BE212-$BH$10-$BH$11)>0),((BE212-$BH$10-$BH$11)/$BH$12*($BH$12*$BI$12)),0)),0))-2400-AP212 -> -2422.5 | BG212: =IFERROR(IF(BF212<=0,0,BF212),0) -> 0
A213: =IFERROR(IF($BR$9<>"",$BR$9,""),"") -> 2 | B213: =IFERROR(IF($BS$9<>"",$BS$9,""),"") -> Timothy Brian Odongo | C213: =IFERROR(IF($BT$9<>"",$BT$9,""),"") -> 2345671 | D213: =IFERROR(IF($BU$9<>"",$BU$9,""),"") -> 737456712 | AK213: =IFERROR(SUM(F213:AJ213)+AU213,0) -> 0 | AL213: =IFERROR(E213*AK213,0) -> 0 | AN213: =BG213 -> 0 | AO213: 150 | AP213: =AO213*0.15 -> 22.5 | AQ213: =IF(AL213>=18000,1080,AL213*0.06) -> 0 | AR213: =IFERROR(AO213+AQ213,0) -> 150 | AT213: =AL213-AM213-AN213-AO213-AQ213 -> -150 | BE213: 0 | BF213: -2422.5 | BG213: =IFERROR(IF(BF213<=0,0,BF213),0) -> 0
A214: =IFERROR(IF($BR$10<>"",$BR$10,""),"") -> 3 | B214: =IFERROR(IF($BS$10<>"",$BS$10,""),"") -> Bshora Wayu Nzamo | C214: =IFERROR(IF($BT$10<>"",$BT$10,""),"") -> 29675430 | D214: =IFERROR(IF($BU$10<>"",$BU$10,""),"") -> 734567820 | AK214: 0 | AL214: 0 | AN214: 0 | AO214: 150 | AP214: 22.5 | AQ214: 0 | AR214: 150 | AT214: -150 | BE214: 0 | BF214: -2422.5 | BG214: 0
A215: =IFERROR(IF($BR$11<>"",$BR$11,""),"") -> 4 | B215: =IFERROR(IF($BS$11<>"",$BS$11,""),"") -> Wanyoni Agala Musando | C215: =IFERROR(IF($BT$11<>"",$BT$11,""),"") -> 33456789 | D215: =IFERROR(IF($BU$11<>"",$BU$11,""),"") -> 786543221 | AK215: 0 | AL215: 0 | AN215: 0 | AO215: 150 | AP215: 22.5 | AQ215: 0 | AR215: 150 | AT215: -150 | BE215: 0 | BF215: -2422.5 | BG215: 0
A216: =IFERROR(IF($BR$12<>"",$BR$12,""),"") -> 5 | B216: =IFERROR(IF($BS$12<>"",$BS$12,""),"") -> Benerd Kimani Njorioge | C216: =IFERROR(IF($BT$12<>"",$BT$12,""),"") -> 30456789 | D216: =IFERROR(IF($BU$12<>"",$BU$12,""),"") -> 789654321 | AK216: 0 | AL216: 0 | AN216: 0 | AO216: 150 | AP216: 22.5 | AQ216: 0 | AR216: 150 | AT216: -150 | BE216: 0 | BF216: -2422.5 | BG216: 0
A217: =IFERROR(IF($BR$13<>"",$BR$13,""),"") -> 6 | B217: =IFERROR(IF($BS$13<>"",$BS$13,""),"") -> Sam Jacob Mroki | C217: =IFERROR(IF($BT$13<>"",$BT$13,""),"") -> 31567823 | D217: =IFERROR(IF($BU$13<>"",$BU$13,""),"") -> 768942345 | AK217: 0 | AL217: 0 | AN217: 0 | AO217: 150 | AP217: 22.5 | AQ217: 0 | AR217: 150 | AT217: -150 | BE217: 0 | BF217: -2422.5 | BG217: 0
A218: =IFERROR(IF($BR$14<>"",$BR$14,""),"") -> 7 | B218: =IFERROR(IF($BS$14<>"",$BS$14,""),"") -> Joy Mueni Mutinda | C218: =IFERROR(IF($BT$14<>"",$BT$14,""),"") -> 32897938 | D218: =IFERROR(IF($BU$14<>"",$BU$14,""),"") -> 723456765 | AK218: 0 | AL218: 0 | AN218: 0 | AO218: 150 | AP218: 22.5 | AQ218: 0 | AR218: 150 | AT218: -150 | BE218: 0 | BF218: -2422.5 | BG218: 0
A219: =IFERROR(IF($BR$15<>"",$BR$15,""),"") -> 8 | B219: =IFERROR(IF($BS$15<>"",$BS$15,""),"") -> Kahindi Mwero Boga | C219: =IFERROR(IF($BT$15<>"",$BT$15,""),"") -> 2934567 | D219: =IFERROR(IF($BU$15<>"",$BU$15,""),"") -> 798654312 | AK219: 0 | AL219: 0 | AN219: 0 | AO219: 150 | AP219: 22.5 | AQ219: 0 | AR219: 150 | AT219: -150 | BE219: 0 | BF219: -2422.5 | BG219: 0
A220: =IFERROR(IF($BR$16<>"",$BR$16,""),"") -> 9 | B220: =IFERROR(IF($BS$16<>"",$BS$16,""),"") -> John Boscco Bosire | C220: =IFERROR(IF($BT$16<>"",$BT$16,""),"") -> 98347897 | D220: =IFERROR(IF($BU$16<>"",$BU$16,""),"") -> 734567128 | AK220: 0 | AL220: 0 | AN220: 0 | AO220: 150 | AP220: 22.5 | AQ220: 0 | AR220: 150 | AT220: -150 | BE220: 0 | BF220: -2422.5 | BG220: 0
A221: =IFERROR(IF($BR$17<>"",$BR$17,""),"") -> 10 | B221: =IFERROR(IF($BS$17<>"",$BS$17,""),"") -> Hassan Abdulnasir Wario | C221: =IFERROR(IF($BT$17<>"",$BT$17,""),"") -> 2156789 | D221: =IFERROR(IF($BU$17<>"",$BU$17,""),"") -> 731256789 | AK221: 0 | AL221: 0 | AN221: 0 | AO221: 150 | AP221: 22.5 | AQ221: 0 | AR221: 150 | AT221: -150 | BE221: 0 | BF221: -2422.5 | BG221: 0
A222: =IFERROR(IF($BR$18<>"",$BR$18,""),"") -> 11 | B222: =IFERROR(IF($BS$18<>"",$BS$18,""),"") -> Jastine Makemba Batogo | C222: =IFERROR(IF($BT$18<>"",$BT$18,""),"") -> 34567890 | D222: =IFERROR(IF($BU$18<>"",$BU$18,""),"") -> 786885432 | AK222: 0 | AL222: 0 | AN222: 0 | AO222: 150 | AP222: 22.5 | AQ222: 0 | AR222: 150 | AT222: -150 | BE222: 0 | BF222: -2422.5 | BG222: 0
A223: =IFERROR(IF($BR$19<>"",$BR$19,""),"") -> 12 | B223: =IFERROR(IF($BS$19<>"",$BS$19,""),"") -> Janet Wairimu Wamatagi | C223: =IFERROR(IF($BT$19<>"",$BT$19,""),"") -> 35678910 | D223: =IFERROR(IF($BU$19<>"",$BU$19,""),"") -> 745683412 | AK223: 0 | AL223: 0 | AN223: 0 | AO223: 150 | AP223: 22.5 | AQ223: 0 | AR223: 150 | AT223: -150 | BE223: 0 | BF223: -2422.5 | BG223: 0
A224: =IFERROR(IF($BR$20<>"",$BR$20,""),"") -> 13 | B224: =IFERROR(IF($BS$20<>"",$BS$20,""),"") -> Denis Brian Ochola | C224: =IFERROR(IF($BT$20<>"",$BT$20,""),"") -> 34567812 | D224: =IFERROR(IF($BU$20<>"",$BU$20,""),"") -> 798345675 | AK224: 0 | AL224: 0 | AN224: 0 | AO224: 150 | AP224: 22.5 | AQ224: 0 | AR224: 150 | AT224: -150 | BE224: 0 | BF224: -2422.5 | BG224: 0
A225: =IFERROR(IF($BR$21<>"",$BR$21,""),"") -> 14 | B225: =IFERROR(IF($BS$21<>"",$BS$21,""),"") -> Gitau Harrison Kithi | C225: =IFERROR(IF($BT$21<>"",$BT$21,""),"") -> 35267812 | D225: =IFERROR(IF($BU$21<>"",$BU$21,""),"") -> 739456712 | AK225: 0 | AL225: 0 | AN225: 0 | AO225: 150 | AP225: 22.5 | AQ225: 0 | AR225: 150 | AT225: -150 | BE225: 0 | BF225: -2422.5 | BG225: 0
A226: =IFERROR(IF($BR$22<>"",$BR$22,""),"") ->  | B226: =IFERROR(IF($BS$22<>"",$BS$22,""),"") ->  | C226: =IFERROR(IF($BT$22<>"",$BT$22,""),"") ->  | D226: =IFERROR(IF($BU$22<>"",$BU$22,""),"") ->  | AK226: 0 | AL226: 0 | AN226: 0 | AO226: 150 | AP226: 22.5 | AQ226: 0 | AR226: 150 | AT226: -150 | BE226: 0 | BF226: -2422.5 | BG226: 0
A227: =IFERROR(IF($BR$23<>"",$BR$23,""),"") ->  | B227: =IFERROR(IF($BS$23<>"",$BS$23,""),"") ->  | C227: =IFERROR(IF($BT$23<>"",$BT$23,""),"") ->  | D227: =IFERROR(IF($BU$23<>"",$BU$23,""),"") ->  | AK227: 0 | AL227: 0 | AN227: 0 | AO227: 150 | AP227: 22.5 | AQ227: 0 | AR227: 150 | AT227: -150 | BE227: 0 | BF227: -2422.5 | BG227: 0
A228: =IFERROR(IF($BR$24<>"",$BR$24,""),"") ->  | B228: =IFERROR(IF($BS$24<>"",$BS$24,""),"") ->  | C228: =IFERROR(IF($BT$24<>"",$BT$24,""),"") ->  | D228: =IFERROR(IF($BU$24<>"",$BU$24,""),"") ->  | AK228: 0 | AL228: 0 | AN228: 0 | AO228: 150 | AP228: 22.5 | AQ228: 0 | AR228: 150 | AT228: -150 | BE228: 0 | BF228: -2422.5 | BG228: 0
A229: =IFERROR(IF($BR$25<>"",$BR$25,""),"") ->  | B229: =IFERROR(IF($BS$25<>"",$BS$25,""),"") ->  | C229: =IFERROR(IF($BT$25<>"",$BT$25,""),"") ->  | D229: =IFERROR(IF($BU$25<>"",$BU$25,""),"") ->  | AK229: 0 | AL229: 0 | AN229: 0 | AO229: 150 | AP229: 22.5 | AQ229: 0 | AR229: 150 | AT229: -150 | BE229: 0 | BF229: -2422.5 | BG229: 0
A230: =IFERROR(IF($BR$26<>"",$BR$26,""),"") ->  | B230: =IFERROR(IF($BS$26<>"",$BS$26,""),"") ->  | C230: =IFERROR(IF($BT$26<>"",$BT$26,""),"") ->  | D230: =IFERROR(IF($BU$26<>"",$BU$26,""),"") ->  | AK230: 0 | AL230: 0 | AN230: 0 | AO230: 150 | AP230: 22.5 | AQ230: 0 | AR230: 150 | AT230: -150 | BE230: 0 | BF230: -2422.5 | BG230: 0
A231: =IFERROR(IF($BR$27<>"",$BR$27,""),"") ->  | B231: =IFERROR(IF($BS$27<>"",$BS$27,""),"") ->  | C231: =IFERROR(IF($BT$27<>"",$BT$27,""),"") ->  | D231: =IFERROR(IF($BU$27<>"",$BU$27,""),"") ->  | AK231: 0 | AL231: 0 | AN231: 0 | AO231: 150 | AP231: 22.5 | AQ231: 0 | AR231: 150 | AT231: -150 | BE231: 0 | BF231: -2422.5 | BG231: 0
A232: =IFERROR(IF($BR$28<>"",$BR$28,""),"") ->  | B232: =IFERROR(IF($BS$28<>"",$BS$28,""),"") ->  | C232: =IFERROR(IF($BT$28<>"",$BT$28,""),"") ->  | D232: =IFERROR(IF($BU$28<>"",$BU$28,""),"") ->  | AK232: 0 | AL232: 0 | AN232: 0 | AO232: 150 | AP232: 22.5 | AQ232: 0 | AR232: 150 | AT232: -150 | BE232: 0 | BF232: -2422.5 | BG232: 0
A233: =IFERROR(IF($BR$29<>"",$BR$29,""),"") ->  | B233: =IFERROR(IF($BS$29<>"",$BS$29,""),"") ->  | C233: =IFERROR(IF($BT$29<>"",$BT$29,""),"") ->  | D233: =IFERROR(IF($BU$29<>"",$BU$29,""),"") ->  | AK233: 0 | AL233: 0 | AN233: 0 | AO233: 150 | AP233: 22.5 | AQ233: 0 | AR233: 150 | AT233: -150 | BE233: 0 | BF233: -2422.5 | BG233: 0
... 144 more rows
